Workbook

Sheet Start Here
V1: CQD-113.1; Rev 3; 08/30/17 | Y1: X'
D2: APQP Requirements | G2: Start Here | AB2: 48 | AD2: H-CHB 2 | AE2: M-CHB 7 | AF2: L-CHB 8 | AG2: El-CHB 1 | AH2: Hy-CHB 3 | AI2: VT-CHB 4 | AJ2: VA-CHB 5 | AK2: A-CHB 6
D3: Select to View the Form, Deselect When Done Reviewing | E3: AIAG PPAP Element | F3: FELL APQP/PPAP Table of Contents | G3: 1. Identify the project risk level High Medium Low | AB3: 1 | AD3: TRUE | AE3: FALSE | AF3: FALSE | AG3: TRUE | AH3: FALSE | AI3: FALSE | AJ3: FALSE | AK3: FALSE
G4: 2. Identify which business the project is belong to | AB4: =IF(AB2-AB3=0,"",AB2-AB3) -> 47
G5: 3. Identify additional elements required (column V)
G6: 4. Once all appropriate boxes are checked, click on SUBMIT button on the right.
V7: Additional Requirements (optional)
G8: Electrical | J8: Hydraulics | M8: Vehicle- Truck | P8: Vehicle- Auto | S8: Aerospace
G9: H | H9: M | I9: L | J9: H | K9: M | L9: L | M9: H | N9: M | O9: L | P9: H | Q9: M | R9: L | S9: H | T9: M | U9: L
A10: APQP Kickoff - Team | B10: TRUE | E10: 17 | F10: APQP Kickoff - team | G10: X | H10: X | J10: X | K10: X | M10: X | P10: X | S10: X
A11: PPAP Requirements Matrix | B11: FALSE | E11: 17 | F11: PPAP Requirements Matrix | G11: X | H11: X | I11: X | J11: X | K11: X | L11: X | M11: X | N11: X | O11: X | P11: X | Q11: X | R11: X | S11: X | T11: X | U11: X
A12: APQP Timeline Template | B12: FALSE | E12: 17 | F12: APQP Timeline Template | G12: X | M12: X | P12: X | S12: X
A13: Action Item Log | B13: FALSE | E13: 17 | F13: Action Item Log | G13: X | H13: X | J13: X | K13: X | M13: X | P13: X | S13: X
A14: No Form | B14: FALSE | D14: No Form | E14: 2 | F14: Engineering Change Document | G14: X | H14: X | I14: X | J14: X | K14: X | L14: X | M14: X | N14: X | O14: X | P14: X | Q14: X | R14: X
A15: No Form | B15: FALSE | D15: No Form | E15: 2 | F15: FELL Engineering Approval | G15: X | H15: X | I15: X | J15: X | K15: X | L15: X | M15: X | N15: X | O15: X | P15: X | Q15: X | R15: X
A16: Design Checklist | B16: FALSE | E16: 4 | F16: Design Checklist A-2* | G16: X | M16: X | P16: X
A17: Design FMEA | B17: FALSE | E17: 4 | F17: Design FMEA* | G17: X | J17: X | K17: X | M17: X | P17: X | Q17: X | R17: X | S17: X
A18: DFMEA Ranking | B18: FALSE | E18: 4 | F18: DFMEA Rankings | G18: X | J18: X | K18: X | M18: X | P18: X | Q18: X | R18: X | S18: X
A19: DFMEA Checklist | B19: FALSE | E19: 4 | F19: DFMEA Checklist A-1* | G19: X | M19: X | P19: X
A20: Production Feasibility Agreemen | B20: FALSE | E20: 1, 2 & 3 | F20: Production Feasibility Agreement (PFA) | G20: X | H20: X | S20: X | T20: X
A21: Process Flow | B21: FALSE | E21: 5 | F21: Process / Inspection Flow Chart* | G21: X | H21: X | J21: X | K21: X | M21: X | N21: X | O21: X | P21: X | Q21: X | R21: X | S21: X | T21: X
A22: Process Flow Checklist | B22: FALSE | E22: 5 | F22: Process Flow Chart Checklist A-6* | G22: X | M22: X | P22: X
A23: Floor Plan Checklist | B23: FALSE | E23: 5 | F23: Floor Plan Checklist A-5* | G23: X | M23: X | P23: X
A24: Process FMEA | B24: FALSE | E24: 6 | F24: Process FMEA** | G24: X | H24: X | J24: X | K24: X | M24: X | N24: X | O24: X | P24: X | Q24: X | R24: X | S24: X | T24: X
A25: PFMEA Ranking | B25: FALSE | E25: 6 | F25: PFMEA Rankings* | G25: X | J25: X | K25: X | M25: X | N25: X | O25: X | P25: X | Q25: X | R25: X | S25: X
A26: PFMEA Checklist | B26: FALSE | E26: 6 | F26: Process FMEA Checklist A-7* | G26: X | M26: X | P26: X
A27: Gage Plan | B27: FALSE | E27: 17 | F27: Gage Plan | G27: X | J27: X | K27: X | M27: X | P27: X | S27: X | T27: X
A28: Dimensional Correlation Matrix | B28: FALSE | E28: 9 | F28: Dimensional Correlation Matrix | M28: X | P28: X | Q28: X
A29: Control Plan | B29: FALSE | E29: 7 | F29: Control Plan* | G29: X | H29: X | J29: X | K29: X | M29: X | N29: X | O29: X | P29: X | Q29: X | R29: X | S29: X | T29: X
A30: Dynamic Control Plan | B30: FALSE | E30: 7 | F30: Dynamic Control Plan* | G30: X
A31: Control P Checklist | B31: FALSE | E31: 7 | F31: Control Plan Checklist A-8* | G31: X | M31: X | P31: X | S31: X
A32: Tooling checklist | B32: FALSE | E32: 17 | F32: New Equipment Tooling & Test Equipment Checklist A-3* | G32: X | M32: X | P32: X | S32: X | T32: X
A33: Quality Checklist | B33: FALSE | E33: 17 | F33: Product/Process Quality Check A-4* | G33: X | M33: X | P33: X
A34: Pass Through Char. Instruction | B34: FALSE | E34: 17 | F34: Pass Through Characteristics (PTC) Instructions | G34: X | M34: X | P34: X | Q34: X | S34: X | T34: X
A35: Pass Through Characteristics | B35: FALSE | E35: 17 | F35: Pass Through Characteristics (PTC) | G35: X | M35: X | P35: X | Q35: X | S35: X | T35: X
A36: Safe Launch Instructions | B36: FALSE | E36: 17 | F36: Safe Launch Instruction | G36: X | J36: X | M36: X | P36: X | Q36: X
A37: Safe Launch Control Plan | B37: FALSE | E37: 17 | F37: Safe Launch Control Plan | G37: X | J37: X | M37: X | P37: X | Q37: X
A38: No Form | B38: FALSE | D38: No Form | E38: 2 | F38: Ballooned Drawing | G38: X | H38: X | I38: X | J38: X | K38: X | L38: X | M38: X | N38: X | O38: X | P38: X | Q38: X | R38: X
A39: Dimension Report- FAI | B39: FALSE | E39: 3 & 9 | F39: Dimensional Test Results** | G39: X | H39: X | I39: X | J39: X | K39: X | L39: X | M39: X | N39: X | O39: X | P39: X | Q39: X | R39: X
A40: No Form | B40: FALSE | D40: No Form | E40: 3 & 9 | F40: PPAP Sample Part / Product | G40: X | H40: X | I40: X | J40: X | K40: X | L40: X | M40: X | N40: X | O40: X | P40: X | Q40: X | R40: X
A41: No Form | B41: FALSE | D41: No Form | E41: 15 | F41: Master Sample | G41: X
A42: No Form | B42: FALSE | D42: No Form | E42: 16 | F42: Checking Aids | G42: X
A43: Material Test | B43: FALSE | E43: 10 | F43: Material Test* | G43: X | H43: X | I43: X | J43: X | K43: X | L43: X | S43: X | T43: X
A44: Performance Test | B44: FALSE | E44: 10 | F44: Performance Test* | G44: X | H44: X | I44: X | J44: X | K44: X | L44: X | M44: X | N44: X | O44: X | P44: X | Q44: X | R44: X | S44: X | T44: X
A45: Qualified Laboratory Doc | B45: FALSE | E45: 12 | F45: Qualified Laboratory Documentation | G45: X | M45: X | N45: X | O45: X | P45: X | Q45: X | R45: X
A46: Appearance Approval | B46: FALSE | E46: 13 | F46: Appearance Approval Report* | G46: X | J46: X | K46: X | L46: X
A47: ATT Bias (Analytic) | B47: FALSE | E47: 8 | F47: Attribute Gage Bias Report* | G47: X
A48: Gage Performance Curve-Graph | B48: FALSE | E48: 8 | F48: Directions for Gage Performance Curve for Attribute Analytical Method Form (graph) *
A49: Gage R&R ATT(Hyp) | B49: FALSE | E49: 8 | F49: Gage Repeatability & Reproducibility Report Attribute Hypothesis*
A50: Gage R&R Variable (TV) | B50: FALSE | E50: 8 | F50: Gage Repeatability & Reproducibility Report Variable (Total Variation)* | G50: X | H50: X | J50: X | K50: X | M50: X | N50: X | O50: X | P50: X | Q50: X | R50: X
A51: Gage R&R Variable (T) | B51: FALSE | E51: 8 | F51: Gage Repeatability & Reproducibility Report Variable (Tolerance)* | G51: X | H51: X | J51: X | K51: X | M51: X | N51: X | O51: X | P51: X | Q51: X | R51: X | S51: X | T51: X
A52: GR&R ANOVA | B52: FALSE | E52: 8 | F52: Gage Repeatability & Reproducibility Report Anova Method* | M52: X | N52: X | O52: X | P52: X | Q52: X | R52: X
A53: GR&R Data Sheet | B53: FALSE | E53: 8 | F53: Gage Repeatability & Reproducibility Data Sheet & Graphical Analysis* | M53: X | N53: X | O53: X | P53: X | Q53: X | R53: X
A54: Gage R&R X&R | B54: FALSE | E54: 8 | F54: Gage Repeatability & Reproducibility Report X Bar & R* | M54: X | N54: X | O54: X | P54: X | Q54: X | R54: X
A55: Process Capability Cpk Ppk | B55: FALSE | E55: 11 | F55: Process Capability Cpk Ppk | G55: X | H55: X | J55: X | K55: X | M55: X | N55: X | O55: X | P55: X | Q55: X | R55: X
A56: CPK PPK Calculations | B56: FALSE | E56: 11 | F56: Process Capability Cpk Ppk Calculations | G56: X | H56: X | J56: X | K56: X | M56: X | N56: X | O56: X | P56: X | Q56: X | R56: X
A57: AS 9102 Forms | B57: FALSE | E57: 17 | F57: AS 9102 Forms | S57: X | T57: X | U57: X
A58: Ramp-up and Down | B58: FALSE | E58: 17 | F58: Ramp Up & Down Plan | G58: X | J58: X | K58: X | M58: X | P58: X | Q58: X
A59: Packaging Spec. Instructions | B59: FALSE | E59: 17 | F59: Packaging Spec. Instructions | G59: X | J59: X | K59: X | M59: X | N59: X | O59: X | P59: X | Q59: X | R59: X | S59: X | T59: X | U59: X
A60: Packaging Specification | B60: FALSE | E60: 17 | F60: Packaging Specification Data | G60: X | H60: X | J60: X | K60: X | M60: X | N60: X | O60: X | P60: X | Q60: X | R60: X | S60: X | T60: X | U60: X
A61: Packaging Spec Example | B61: FALSE | E61: 17 | F61: Packaging Spec Data - Example | G61: X | H61: X | J61: X | K61: X | M61: X | N61: X | O61: X | P61: X | Q61: X | R61: X | S61: X | T61: X | U61: X
A62: Bar Code Label PA | B62: FALSE | E62: 17 | F62: Submit Bar Code Label Packaging Approval | G62: X | H62: X | M62: X | N62: X | O62: X | P62: X | Q62: X | R62: X | S62: X | T62: X | U62: X
A63: No Form | B63: FALSE | D63: No Form | E63: 17 | F63: Conduct Trial Run – Trial at FELL facility | M63: X | N63: X | O63: X | P63: X | Q63: X | R63: X
A64: No Form | B64: FALSE | D64: No Form | E64: 17 | F64: Customer Specific Requirements (FELL) | J64: X | K64: X | M64: X | N64: X | O64: X | P64: X | Q64: X | R64: X
A65: No Form | B65: FALSE | D65: No Form | E65: 17 | F65: Raw Casting X-ray when Applicable | J65: X | K65: X
A66: No Form | B66: FALSE | D66: No Form | E66: 17 | F66: Magma Flow When Applicable | J66: X | K66: X
A67: No Form | B67: FALSE | D67: No Form | E67: 17 | F67: Material Safety Data Sheet (MSDS) | J67: X | K67: X
A68: No Form | B68: FALSE | D68: No Form | E68: 17 | F68: IMDS Document | J68: X | K68: X | M68: X | N68: X | O68: X | P68: X | Q68: X | R68: X
A69: No Form | B69: FALSE | D69: No Form | E69: 17 | F69: Error Proofing | J69: X
A70: PSW | B70: FALSE | E70: 18 | F70: Part Submission Warrant (PSW)* | G70: X | H70: X | I70: X | J70: X | K70: X | L70: X | M70: X | N70: X | O70: X | P70: X | Q70: X | R70: X
A71: Capacity Constraint Instruction | B71: FALSE | E71: 17 | F71: Capacity R@R Constraint Instructions | G71: X | J71: X | M71: X | N71: X | O71: X | P71: X | Q71: X | R71: X
A72: Capacity R@R Worksheet Input | B72: FALSE | C72: ` | E72: 17 | F72: Capacity R@R Worksheet Input | G72: X | J72: X | M72: X | N72: X | O72: X | P72: X | Q72: X | R72: X
A73: Capacity R@R Constraint Options | B73: FALSE | E73: 17 | F73: Capacity R@R Constraint Options | G73: X | J73: X | M73: X | N73: X | O73: X | P73: X | Q73: X | R73: X
A74: Capacity R@R Constraint Example | B74: FALSE | E74: 17 | F74: Capacity R@R Constraint Example | G74: X | J74: X | M74: X | N74: X | O74: X | P74: X | Q74: X | R74: X
A75: R@R Summary | B75: FALSE | E75: 17 | F75: Capacity R@R Summary Form | G75: X | J75: X | M75: X | N75: X | O75: X | P75: X | Q75: X | R75: X
A76: Production Readiness Review | B76: FALSE | E76: 17 | F76: Production Readiness Review (PRR) | G76: X | J76: X | K76: X | M76: X | P76: X | Q76: X | S76: X | T76: X
D77: Revision History | F77: Required Items | G77: =COUNTA(G10:G76)-G81 -> 47 | H77: 18 | I77: 5 | J77: 31 | K77: 24 | L77: 6 | M77: 46 | N77: 25 | O77: 25 | P77: 46 | Q77: 34 | R77: 27 | S77: 25 | T77: 18 | U77: 6 | V77: =IF(COUNTA(V10:V76)=0,"",COUNTA(V10:V76)) -> 
D78: CQD-110; Rev 1; 01/15/15 (Supplier APQP SIPOC
D79: CQD-111; Rev 1; 01/15/15 (Supplier APQP Resource Calculator) | G79: * AIAG tool not modified
D80: CQD-112; Rev 1; 01/15/15 (Supplier Engagement Guidelines) | G80: ** AIAG tool modified
G81: =COUNTA(G14:G15)+COUNTA(G38)+COUNTA(G40)+COUNTA(G41:G42)+COUNTA(G63:G69) -> 6 | H81: =COUNTA(H14:H15)+COUNTA(H38)+COUNTA(H40)+COUNTA(H41:H42)+COUNTA(H63:H69) -> 4 | I81: 4 | J81: 10 | K81: 9 | L81: 4 | M81: 7 | N81: 7 | O81: 7 | P81: 7 | Q81: 7 | R81: =COUNTA(R14:R15)+COUNTA(R38)+COUNTA(R40)+COUNTA(R41:R42)+COUNTA(R63:R69) -> 7 | S81: 0 | T81: 0 | U81: 0
D82: CQD-114; Rev 1; 01/15/15 (Supplier APQP Overview Training - Internal)
D83: CQD-115; Rev 1; 01/15/15 (Supplier APQP Overview Training - External) | G83: Note: Certain APQP tools may not be required. The design, and supplier
D84: CQD-116; Rev 1; 01/15/15 (Supplier APQP Process Training (In-depth)) | G84: engagement guidelines inputs may change the PPAP requirements matrix.
D85: CQD-113; Rev 2; 02/04/15 (Supplier APQP Workbook (PPAP))
D86: CQD-113-1; Rev 3; 08/30/17 (Supplier APQP Workbook (PPAP)) - minor cell changes
D87: CQD-113.1; Rev 2; 02/04/15
D88: CQD-113.2; Rev 1; 01/15/15
D89: CQD-113.3; Rev 1; 01/15/15
D90: CQD-113.4; Rev 1; 01/15/15
D91: CQD-113.5; Rev 1; 01/15/15
D92: CQD-113.6; Rev 1; 01/15/15
D93: CQD-113.7; Rev 1; 01/15/15
D94: CQD-113.8; Rev 1; 01/15/15
D95: CQD-113.9; Rev 1; 01/15/15
D96: CQD-113.10; Rev 1; 01/15/15
D97: CQD-113.11; Rev 1; 01/15/15
D98: CQD-113.12; Rev 1; 01/15/15
D99: CQD-113.13; Rev 1; 01/15/15
D100: CQD-113.14; Rev 1; 01/15/15
D101: CQD-113.15; Rev 1; 01/15/15
D102: CQD-113.16; Rev 1; 01/15/15
D103: CQD-113.17; Rev 1; 01/15/15
D104: CQD-113.18; Rev 1; 01/15/15
D105: CQD-113.19; Rev 1; 01/15/15
D106: CQD-113.20; Rev 1; 01/15/15
D107: CQD-113.21; Rev 1; 01/15/15
D108: CQD-113.22; Rev 1; 01/15/15
D109: CQD-113.23; Rev 1; 01/15/15
D110: CQD-113.24; Rev 1; 01/15/15
D111: CQD-113.25; Rev 1; 01/15/15
D112: CQD-113.26; Rev 1; 01/15/15
D113: CQD-113.27; Rev 1; 01/15/15
D114: CQD-113.28; Rev 1; 01/15/15
D115: CQD-113.29; Rev 1; 01/15/15
D116: CQD-113.30; Rev 1; 01/15/15
D117: CQD-113.31; Rev 1; 01/15/15
D118: CQD-113.32; Rev 1; 01/15/15
D119: CQD-113.33; Rev 1; 01/15/15
D120: CQD-113.34; Rev 1; 01/15/15
D121: CQD-113.35; Rev 1; 01/15/15
D122: CQD-113.36; Rev 1; 01/15/15
D123: CQD-113.37; Rev 1; 01/15/15
D124: CQD-113.38; Rev 1; 01/15/15
D125: CQD-113.39; Rev 1; 01/15/15
D126: CQD-113.40; Rev 1; 01/15/15
D127: CQD-113.41; Rev 1; 01/15/15
D128: CQD-113.42; Rev 1; 01/15/15
D129: CQD-113.43; Rev 1; 01/15/15
D130: CQD-113.44; Rev 1; 01/15/15
D131: CQD-113.45; Rev 1; 01/15/15
D132: CQD-113.46; Rev 1; 01/15/15
D133: CQD-113.47; Rev 1; 01/15/15
D134: CQD-113.48; Rev 1; 01/15/15
D135: CQD-113.49; Rev 1; 01/15/15
D136: CQD-113.50; Rev 1; 01/15/15
D137: CQD-113.51; Rev 1; 01/15/15
D138: CQD-113.52; Rev 1; 01/15/15
D139: CQD-113.53; Rev 1; 01/15/15
D140: CQD-113.54; Rev 1; 01/15/15
D141: CQD-113.55; Rev 1; 01/15/15

Sheet APQP Kickoff - Team
B2: Advance Product Quality Planning (APQP) | V2: CQD-113.2; Rev 1; 01/15/15
B3: Supplier | K3: Part Number | S3: Revision
B4: Project Name
B5: Purpose | C5: To communicate FELL requirements to supplier and gather feedback for alignment. Help supplier in process and product development (as needed) to result in successful PPAP submission and approval
B6: Expectation | C6: Supplier to fully comply to AIAG PPAP 4th Edition Manual and FELL Supplier Excellence Manual. Supplier to identify and assign project coordinate / manager to meet all deliverables on-time per FELL / AIAG requirements
B7: Output | C7: On-time PPAP submission and approval
B8: Benefits | C8: Prompt production ramp-up
B9: APQP Team Members (FELL and Supplier) | M9: Meeting Attendance (optional)
B10: Name | C10: Location | E10: Title | G10: Phone (optional) | I10: Cell (optional) | K10: E-mail (optional) | M10: Date | N10: Date | O10: Date | P10: Date | Q10: Date | R10: Date | S10: Date | T10: Date | U10: Date | V10: Date
B27: Revision History
B28: Rev 1; 01/15/15

Sheet PPAP Requirements Matrix
D2: FALSE | E2: Start Here (Optional) | G2: Check the Box to show all the APQP elements as per the 'Risk Level & Business Selected' in 'Start Here' tab. | N2: All documents / forms shall be compliant to the latest edition of AIAG Manuals
G3: Uncheck the Box to show all the required APQP elements | N3: Supplier may use their own form as long the form meets all requirements of FELL provided form and FELL APQP team agrees with the substitute form
N4: All Items marked with "X" is required in the PPAP submission package
B5: PPAP Requirements Matrix | L5: CQD-113.3; Rev 1; 01/15/15 | N5: Review comments for additional explanation and requirement definition
B6: Supplier | C6: ='APQP Kickoff - Team'!C3:J3 -> 0 | BZ6: Measure of APQP Effectiveness
B7: Project Name | C7: 0 | BX7: Summary | BZ7: =IFERROR(COUNTIF(BZ12:BZ110,"yes")/COUNTA(BZ12:BZ110),"") ->  | CA7: =IFERROR(COUNTIF(CA12:CA110,"yes")/COUNTA(CA12:CA110),"") ->  | CB7: =IFERROR(COUNTIF(CB12:CB110,"yes")/COUNTA(CB12:CB110),"") ->  | CC7: =IFERROR(COUNTIF(CC12:CC110,"yes")/COUNTA(CC12:CC110),"") -> 
O8: =IF(IFERROR(VLOOKUP(O9,'Start Here'!$A$10:$V$76,22,0),"")=0,"",IFERROR(VLOOKUP(O9,'Start Here'!$A$10:$V$76,22,0),"")) ->  | P8: =IF(IFERROR(VLOOKUP(P9,'Start Here'!$A$10:$V$76,22,0),"")=0,"",IFERROR(VLOOKUP(P9,'Start Here'!$A$10:$V$76,22,0),"")) ->  | Q8: =IF(IFERROR(VLOOKUP(Q9,'Start Here'!$A$10:$V$76,22,0),"")=0,"",IFERROR(VLOOKUP(Q9,'Start Here'!$A$10:$V$76,22,0),"")) ->  | R8: =IF(IFERROR(VLOOKUP(R9,'Start Here'!$A$10:$V$76,22,0),"")=0,"",IFERROR(VLOOKUP(R9,'Start Here'!$A$10:$V$76,22,0),"")) ->  | S8: =IF(IFERROR(VLOOKUP(S9,'Start Here'!$A$10:$V$76,22,0),"")=0,"",IFERROR(VLOOKUP(S9,'Start Here'!$A$10:$V$76,22,0),"")) ->  | T8: =IF(IFERROR(VLOOKUP(T9,'Start Here'!$A$10:$V$76,22,0),"")=0,"",IFERROR(VLOOKUP(T9,'Start Here'!$A$10:$V$76,22,0),"")) ->  | U8: =IF(IFERROR(VLOOKUP(U9,'Start Here'!$A$10:$V$76,22,0),"")=0,"",IFERROR(VLOOKUP(U9,'Start Here'!$A$10:$V$76,22,0),"")) ->  | V8: =IF(IFERROR(VLOOKUP(V9,'Start Here'!$A$10:$V$76,22,0),"")=0,"",IFERROR(VLOOKUP(V9,'Start Here'!$A$10:$V$76,22,0),"")) ->  | W8: =IF(IFERROR(VLOOKUP(W9,'Start Here'!$A$10:$V$76,22,0),"")=0,"",IFERROR(VLOOKUP(W9,'Start Here'!$A$10:$V$76,22,0),"")) ->  | X8: =IF(IFERROR(VLOOKUP(X9,'Start Here'!$A$10:$V$76,22,0),"")=0,"",IFERROR(VLOOKUP(X9,'Start Here'!$A$10:$V$76,22,0),"")) ->  | Y8: =IF(IFERROR(VLOOKUP(Y9,'Start Here'!$A$10:$V$76,22,0),"")=0,"",IFERROR(VLOOKUP(Y9,'Start Here'!$A$10:$V$76,22,0),"")) ->  | Z8: =IF(IFERROR(VLOOKUP(Z9,'Start Here'!$A$10:$V$76,22,0),"")=0,"",IFERROR(VLOOKUP(Z9,'Start Here'!$A$10:$V$76,22,0),"")) ->  | AA8: =IF(IFERROR(VLOOKUP(AA9,'Start Here'!$A$10:$V$76,22,0),"")=0,"",IFERROR(VLOOKUP(AA9,'Start Here'!$A$10:$V$76,22,0),"")) ->  | AB8: =IF(IFERROR(VLOOKUP(AB9,'Start Here'!$A$10:$V$76,22,0),"")=0,"",IFERROR(VLOOKUP(AB9,'Start Here'!$A$10:$V$76,22,0),"")) ->  | AC8: =IF(IFERROR(VLOOKUP(AC9,'Start Here'!$A$10:$V$76,22,0),"")=0,"",IFERROR(VLOOKUP(AC9,'Start Here'!$A$10:$V$76,22,0),"")) ->  | AD8: =IF(IFERROR(VLOOKUP(AD9,'Start Here'!$A$10:$V$76,22,0),"")=0,"",IFERROR(VLOOKUP(AD9,'Start Here'!$A$10:$V$76,22,0),"")) ->  | AE8: =IF(IFERROR(VLOOKUP(AE9,'Start Here'!$A$10:$V$76,22,0),"")=0,"",IFERROR(VLOOKUP(AE9,'Start Here'!$A$10:$V$76,22,0),"")) ->  | AF8: =IF(IFERROR(VLOOKUP(AF9,'Start Here'!$A$10:$V$76,22,0),"")=0,"",IFERROR(VLOOKUP(AF9,'Start Here'!$A$10:$V$76,22,0),"")) ->  | AG8: =IF(IFERROR(VLOOKUP(AG9,'Start Here'!$A$10:$V$76,22,0),"")=0,"",IFERROR(VLOOKUP(AG9,'Start Here'!$A$10:$V$76,22,0),"")) ->  | AH8: =IF(IFERROR(VLOOKUP(AH9,'Start Here'!$A$10:$V$76,22,0),"")=0,"",IFERROR(VLOOKUP(AH9,'Start Here'!$A$10:$V$76,22,0),"")) ->  | AI8: =IF(IFERROR(VLOOKUP(AI9,'Start Here'!$A$10:$V$76,22,0),"")=0,"",IFERROR(VLOOKUP(AI9,'Start Here'!$A$10:$V$76,22,0),"")) ->  | AJ8: =IF(IFERROR(VLOOKUP(AJ9,'Start Here'!$A$10:$V$76,22,0),"")=0,"",IFERROR(VLOOKUP(AJ9,'Start Here'!$A$10:$V$76,22,0),"")) ->  | AK8: =IF(IFERROR(VLOOKUP(AK9,'Start Here'!$A$10:$V$76,22,0),"")=0,"",IFERROR(VLOOKUP(AK9,'Start Here'!$A$10:$V$76,22,0),"")) ->  | AL8: =IF(IFERROR(VLOOKUP(AL9,'Start Here'!$A$10:$V$76,22,0),"")=0,"",IFERROR(VLOOKUP(AL9,'Start Here'!$A$10:$V$76,22,0),"")) ->  | AM8: =IF(IFERROR(VLOOKUP(AM9,'Start Here'!$A$10:$V$76,22,0),"")=0,"",IFERROR(VLOOKUP(AM9,'Start Here'!$A$10:$V$76,22,0),"")) ->  | AN8: =IF(IFERROR(VLOOKUP(AN9,'Start Here'!$A$10:$V$76,22,0),"")=0,"",IFERROR(VLOOKUP(AN9,'Start Here'!$A$10:$V$76,22,0),"")) ->  | AO8: =IF(IFERROR(VLOOKUP(AO9,'Start Here'!$A$10:$V$76,22,0),"")=0,"",IFERROR(VLOOKUP(AO9,'Start Here'!$A$10:$V$76,22,0),"")) ->  | AP8: =IF(IFERROR(VLOOKUP(AP9,'Start Here'!$A$10:$V$76,22,0),"")=0,"",IFERROR(VLOOKUP(AP9,'Start Here'!$A$10:$V$76,22,0),"")) ->  | AQ8: =IF(IFERROR(VLOOKUP(AQ9,'Start Here'!$A$10:$V$76,22,0),"")=0,"",IFERROR(VLOOKUP(AQ9,'Start Here'!$A$10:$V$76,22,0),"")) ->  | AR8: =IF(IFERROR(VLOOKUP(AR9,'Start Here'!$A$10:$V$76,22,0),"")=0,"",IFERROR(VLOOKUP(AR9,'Start Here'!$A$10:$V$76,22,0),"")) ->  | AS8: =IF(IFERROR(VLOOKUP(AS9,'Start Here'!$A$10:$V$76,22,0),"")=0,"",IFERROR(VLOOKUP(AS9,'Start Here'!$A$10:$V$76,22,0),"")) ->  | AT8: =IF(IFERROR(VLOOKUP(AT9,'Start Here'!$A$10:$V$76,22,0),"")=0,"",IFERROR(VLOOKUP(AT9,'Start Here'!$A$10:$V$76,22,0),"")) ->  | AU8: =IF(IFERROR(VLOOKUP(AU9,'Start Here'!$A$10:$V$76,22,0),"")=0,"",IFERROR(VLOOKUP(AU9,'Start Here'!$A$10:$V$76,22,0),"")) ->  | AV8: =IF(IFERROR(VLOOKUP(AV9,'Start Here'!$A$10:$V$76,22,0),"")=0,"",IFERROR(VLOOKUP(AV9,'Start Here'!$A$10:$V$76,22,0),"")) ->  | AW8: =IF(IFERROR(VLOOKUP(AW9,'Start Here'!$A$10:$V$76,22,0),"")=0,"",IFERROR(VLOOKUP(AW9,'Start Here'!$A$10:$V$76,22,0),"")) ->  | AX8: =IF(IFERROR(VLOOKUP(AX9,'Start Here'!$A$10:$V$76,22,0),"")=0,"",IFERROR(VLOOKUP(AX9,'Start Here'!$A$10:$V$76,22,0),"")) ->  | AY8: =IF(IFERROR(VLOOKUP(AY9,'Start Here'!$A$10:$V$76,22,0),"")=0,"",IFERROR(VLOOKUP(AY9,'Start Here'!$A$10:$V$76,22,0),"")) ->  | AZ8: =IF(IFERROR(VLOOKUP(AZ9,'Start Here'!$A$10:$V$76,22,0),"")=0,"",IFERROR(VLOOKUP(AZ9,'Start Here'!$A$10:$V$76,22,0),"")) ->  | BA8: =IF(IFERROR(VLOOKUP(BA9,'Start Here'!$A$10:$V$76,22,0),"")=0,"",IFERROR(VLOOKUP(BA9,'Start Here'!$A$10:$V$76,22,0),"")) ->  | BB8: =IF(IFERROR(VLOOKUP(BB9,'Start Here'!$A$10:$V$76,22,0),"")=0,"",IFERROR(VLOOKUP(BB9,'Start Here'!$A$10:$V$76,22,0),"")) ->  | BC8: =IF(IFERROR(VLOOKUP(BC9,'Start Here'!$A$10:$V$76,22,0),"")=0,"",IFERROR(VLOOKUP(BC9,'Start Here'!$A$10:$V$76,22,0),"")) ->  | BD8: =IF(IFERROR(VLOOKUP(BD9,'Start Here'!$A$10:$V$76,22,0),"")=0,"",IFERROR(VLOOKUP(BD9,'Start Here'!$A$10:$V$76,22,0),"")) ->  | BE8: =IF(IFERROR(VLOOKUP(BE9,'Start Here'!$A$10:$V$76,22,0),"")=0,"",IFERROR(VLOOKUP(BE9,'Start Here'!$A$10:$V$76,22,0),"")) ->  | BF8: =IF(IFERROR(VLOOKUP(BF9,'Start Here'!$A$10:$V$76,22,0),"")=0,"",IFERROR(VLOOKUP(BF9,'Start Here'!$A$10:$V$76,22,0),"")) ->  | BG8: =IF(IFERROR(VLOOKUP(BG9,'Start Here'!$A$10:$V$76,22,0),"")=0,"",IFERROR(VLOOKUP(BG9,'Start Here'!$A$10:$V$76,22,0),"")) ->  | BH8: =IF(IFERROR(VLOOKUP(BH9,'Start Here'!$A$10:$V$76,22,0),"")=0,"",IFERROR(VLOOKUP(BH9,'Start Here'!$A$10:$V$76,22,0),"")) ->  | BI8: =IF(IFERROR(VLOOKUP(BI9,'Start Here'!$A$10:$V$76,22,0),"")=0,"",IFERROR(VLOOKUP(BI9,'Start Here'!$A$10:$V$76,22,0),"")) ->  | BJ8: =IF(IFERROR(VLOOKUP(BJ9,'Start Here'!$A$10:$V$76,22,0),"")=0,"",IFERROR(VLOOKUP(BJ9,'Start Here'!$A$10:$V$76,22,0),"")) ->  | BK8: =IF(IFERROR(VLOOKUP(BK9,'Start Here'!$A$10:$V$76,22,0),"")=0,"",IFERROR(VLOOKUP(BK9,'Start Here'!$A$10:$V$76,22,0),"")) ->  | BL8: =IF(IFERROR(VLOOKUP(BL9,'Start Here'!$A$10:$V$76,22,0),"")=0,"",IFERROR(VLOOKUP(BL9,'Start Here'!$A$10:$V$76,22,0),"")) ->  | BM8: =IF(IFERROR(VLOOKUP(BM9,'Start Here'!$A$10:$V$76,22,0),"")=0,"",IFERROR(VLOOKUP(BM9,'Start Here'!$A$10:$V$76,22,0),"")) ->  | BN8: =IF(IFERROR(VLOOKUP(BN9,'Start Here'!$A$10:$V$76,22,0),"")=0,"",IFERROR(VLOOKUP(BN9,'Start Here'!$A$10:$V$76,22,0),"")) ->  | BO8: =IF(IFERROR(VLOOKUP(BO9,'Start Here'!$A$10:$V$76,22,0),"")=0,"",IFERROR(VLOOKUP(BO9,'Start Here'!$A$10:$V$76,22,0),"")) ->  | BP8: =IF(IFERROR(VLOOKUP(BP9,'Start Here'!$A$10:$V$76,22,0),"")=0,"",IFERROR(VLOOKUP(BP9,'Start Here'!$A$10:$V$76,22,0),"")) -> 
O9: PPAP Requirements Matrix | P9: Engineering Change Document | Q9: Customer Engineering Approval | R9: Design Checklist | S9: Design FMEA | T9: DFMEA Checklist | U9: Production Feasibility Agreemen | V9: Process Flow | W9: Process Flow Checklist | X9: Floor Plan Checklist | Y9: Process FMEA | Z9: PFMEA Checklist | AA9: Gage Plan | AB9: Dimensional Correlation Matrix | AC9: Control Plan | AD9: Control P Checklist | AE9: Dynamic Control Plan | AF9: Tooling checklist | AG9: Quality Checklist | AH9: Pass Through Characteristics | AI9: Safe Launch Control Plan | AJ9: Ballooned Drawing | AK9: Dimension Report- FAI | AL9: PPAP Sample Part or Product | AM9: Master Sample | AN9: Checking Aids | AO9: Material Test | AP9: Performance Test | AQ9: Qualified Laboratory Doc | AR9: Appearance Approval | AS9: ATT Bias (Analytic) | AT9: Gage Performance Curve-Graph | AU9: Gage R&R ATT(Hyp) | AV9: Gage R&R Variable (TV) | AW9: Gage R&R Variable (T) | AX9: GR&R ANOVA | AY9: GR&R Data Sheet | AZ9: Gage R&R X&R | BA9: Process Capability Cpk Ppk | BB9: AS 9102 Forms | BC9: Packaging Specification | BD9: Bar Code Label PA | BE9: Conduct Trial Run – Trial at FELL facility | BF9: Customer Specific Requirements (FELL) | BG9: Raw Casting X-ray when Applicable | BH9: Magma Flow When Applicable | BI9: Material Safety Data Sheet (MSDS) | BJ9: IMDS Document | BK9: Error Proofing | BL9: PSW | BM9: Capacity R@R Worksheet Input | BN9: Capacity R@R Constraint Options | BO9: R@R Summary | BP9: Production Readiness Review
B10: This document specify our expectations for a succesfull PPAP submissions. As your team prepares for production, please be advised that Production Part Approval Process (PPAP) is defined as product produced and evaluated using the following conditions: Production Personnel > Production Location/ Site > Production Sub-supplier(s) > Production Materials > Production process using production Tooling/ Equipment > Production Gauging/ Inspection Equipment (Accredited laboratories if outside) > Production Rates/ Speeds/ Feeds > Production released Prints/ Specifications/ Design Aides Additionally, the purpose is to determine if ALL customer engineering design record and specification requirements are properly understood by the supplier AND that the process has the potential to produce product consistently meeting these requirements. Shipment of the PPAP material to the production facility may be in conjunction with the paperwork submission. Placards that identify material as “PPAP Samples” are required on each pallet. Suppliers are required to manage and track APQP status / progress. If the product / process is deemed complex, the supplier will likely be required to support a minimum of two on-site APQP reviews during the development process. APQP milestones may be tracked through WISPER and be submitted as defined by the responsible Supplier Development / Supplier Quality Engineer. Supplier Development / Supplier Quality will assist the Supplier with their Advance Product Quality Planning (APQP), in accordance with FELL requirements as applicable, upon the request of the supplier. The supplier is encouraged to become an active member of any larger project FELL APQP team as appropriate through the product/process development cycle. | M10: PPAP Due Date | N10: AIAG PPAP Submission Level | O10: PPAP Requirements Matrix | P10: Engineering Change Document | Q10: Customer Engineering Approval | R10: Design Checklist | S10: Design FMEA | T10: Design FMEA Checklist | U10: Production Feasibility Agreement - PFA | V10: Process Flowchart | W10: Process / Inspection Flow Chart Checklist | X10: Floor Plan Checklist | Y10: Process FMEA | Z10: Process FMEA Checklist | AA10: Gage Plan | AB10: Dimensional Correlation Matrix | AC10: Control Plan | AD10: Control Plan Checklist | AE10: Dynamic Control Plan | AF10: Tooling & Test Equipment Checklist | AG10: Product / Quality Checklist | AH10: Pass Through Characteristics (PTC) | AI10: Safe Launch Control Plan | AJ10: Ballooned Drawing | AK10: Dimensional Report (ISIR / FAI) | AL10: Sample Part / Product | AM10: Master Sample | AN10: Checling Aids | AO10: Material Test Result (Cert.) | AP10: Performance Test Result (Cert.) | AQ10: Qualified Laboratory Documentation | AR10: Appearance Approval Report (AAR) | AS10: Attribute Gage Bias Report* | AT10: Directions for Gage Performance Curve for Attribute Analytical Method Form (graph) * | AU10: Gage Repeatability & Reproducibility Report Attribute Hypothesis* | AV10: Gage Repeatability & Reproducibility Report Variable (Total Variation)* | AW10: Gage Repeatability & Reproducibility Report Variable (Tolerance)* | AX10: Gage Repeatability & Reproducibility Report Anova Method* | AY10: Gage Repeatability & Reproducibility Data Sheet & Graphical Analysis* | AZ10: Gage Repeatability & Reproducibility Report X Bar & R* | BA10: Initial Process Capability Cpk Ppk | BB10: AS-9102 Forms (Aerospace Specific) | BC10: Packaging Specifications Data | BD10: Bar Code Label Packaging Approval | BE10: Conduct Trial Run – Trial at FELL facility | BF10: Customer Specific Requirements (FELL) | BG10: Raw Casting X-ray when Applicable | BH10: Magma Flow When Applicable | BI10: Material Safety Data Sheet (MSDS) | BJ10: IMDS Document | BK10: Error Proofing | BL10: Part Submission Warrant (PSW) | BM10: Capacity R@R Worksheet Input | BN10: Capacity R@R Constraint Options | BO10: Capacity R@R Summary Form | BP10: Production Readiness Review (PRR) | BQ10: PPAP Run Quantity (batch) | BR10: PPAP Submission Quantity to Plant | BS10: PPAP Submittal Quantity (from each cavity / machine station) when applicable | BT10: PPAP Quantity to be submitted for Qualification Testing at FELL | BU10: Date PPAP Submitted | BV10: Was the 1st PPAP Submitted Approved? (Yes / No) | BW10: If the 1st PPAP Submitted Not Approved, Establish PPAP Resubmission Due Date | BX10: Was 2nd PPAP Submitted Approved? (Yes / No) | BY10: Was Qualification Testing Approved? (Yes / No) | BZ10: Was PPAP Submitted On-Time? (Yes / No) | CA10: Was PPAP Approved on 1st Submittal? (Yes / No) | CB10: Was There Any DMR Issued On 1st Three Production Receipts or 90 Days after Production Launch (whichever comes last)? (Yes / No) | CC10: Was Design / Print Review Conducted with Supplier? (Yes / No)
B11: Family Leader | C11: Priority Ranking (which PPAP to submit first) | D11: Part Number | E11: Rev. | F11: Casting Part Number when applicable | G11: Rev. | H11: Casting Supplier Name when applicable | I11: Estimated Annual Usage (EAU) | J11: Estimated Production Start Date | K11: Estimated Qualification Testing Duration at FELL | L11: Estimated PPAP Review and Disposition at FELL | BZ11: Yes | CA11: No | CB11: Yes | CC11: No
B111: Revision History
B112: Rev 1; 01/15/15

Sheet APQP Timeline Template
B2: APQP Timeline -- Line-items listed should be modified to reflect the critical milestones and activities for your project. | J2: CQD-113.4; Rev 1; 01/15/15
B3: APQP Activity | D3: Not Applicable | E3: Suggested Responsibility | F3: Date | H3: Completed Date | I3: Status G/Y/R | J3: % Completed | K3: Month | O3: Month | S3: Month | X3: Part Numbers
F4: Start | G4: End | K4: Date | L4: Date | M4: Date | N4: Date | O4: Date | P4: Date | Q4: Date | R4: Date | S4: Date | T4: Date | U4: Date | V4: Date | W4: Date | X4: XXX | Y4: XXX | Z4: XXX | AA4: XXX | AB4: XXX
B5: I. APQP Initiation
C6: APQP Kick-Off Meeting | E6: FELL / Supplier
B7: 2. Customer Requirements:
C8: Supplier Excellence Manual (SEM) Issued to Supplier | E8: FELL-SQE/SDE | I8: r
C9: Top Level Drawing and Product Specification Initial Release to Supplier | E9: FELL-Eng | I9: r
C10: PPAP Requirement established and finalized | E10: FELL-SQE | I10: r
B11: 3. Product Design and Development:
C12: Production drawing Released | E12: FELL | I12: r
C13: Purchase Order given to Supplier | E13: FELL / Supplier | I13: r
C14: Design Validation Testing | E14: FELL-Eng | I14: r
C15: Design FMEA (DFMEA) | E15: FELL-Eng | I15: r
C16: Initial Drawing and Specification Review Form # 1 | E16: FELL / Supplier | I16: r
C17: Drawing and Specification Review (Gage Comparison) Form # 2 | E17: FELL / Supplier | I17: r
C18: Critical to Quality (CTQ's) identified and reviewed with supplier | E18: FELL / Supplier
C19: DFMEA onsite Review (Checklist Available) | E19: FELL-Eng | I19: r
C20: Operator and Inspection Instructions and Visual Aids | E20: Supplier | I20: r
C21: Component Validation Testing complete | E21: FELL
C22: Proto-type Builds | E22: Supplier | I22: r
C23: Packaging standard/Instruction | E23: Supplier | I23: r
C24: Packaging Plan completed and submitted to FELL | E24: Supplier | I24: r
C25: Packaging Plan approved by FELL | E25: FELL
C26: International Material Data System (IMDS) submitted | E26: Supplier
C27: International Material Data System (IMDS) approved | E27: FELL | I27: r
B28: 4. Process Design and Development:
C29: Process Flow Chart | E29: Supplier | I29: r
C30: Process FMEA (PFMEA) | E30: Supplier | I30: r
C31: PFMEA onsite Review (Checklist Available) | E31: FELL / Supplier | I31: r
C32: Proto-Type Control plan | E32: Supplier | I32: r
C33: Pass Thru Characteristics (Form Available) | E33: FELL / Supplier | I33: r
C34: Pre-production Control Plan | E34: Supplier | I34: r
C35: Safe Launch Control Plan | E35: FELL / Supplier | I35: r
C36: Operator's / Inspector's Training Plan | E36: Supplier | I36: r
C37: Production Control Plan | E37: Supplier | I37: r
C38: Production Readiness Assessment | E38: Supplier | I38: r
B39: 5. Facilities Readiness:
C40: Production Facility | E40: Supplier | I40: r
C41: Define Workflow & Equipment | E41: Supplier | I41: r
C42: Process Layout (Value Stream Map) | E42: Supplier | I42: r
C43: Machine/Equipment/Tools availability/Lead-time | E43: Supplier | I43: r
C44: Machine/Equipment/Tools Set-up | E44: Supplier | I44: r
C45: Preventive Maintenance Instructions / Metrics | E45: Supplier | I45: r
C46: Machine/Equipment/Tools Validation | E46: Supplier | I46: r
C47: Machine/Equipment/Tools Tryout / Capability Review | E47: Supplier | I47: r
B48: 6. Measurement System and Analysis
C49: Measuring and Testing Equipment: | E49: Supplier
C50: Gaging Plan completed | E50: Supplier
C51: Gaging completed and available for use | E51: Supplier
C52: Measurement System Evaluation Completed (GR&R) | E52: Supplier
C53: Measurement correlation between FELL and supplier | E53: Supplier
B54: 7. Quality - Full PPAP
C55: Product Verification (New Setup) | E55: Supplier | I55: r
C56: Sub-Supplier Full PPAP | E56: Supplier | I56: r
C57: Build PPAP Quantity & Run-at-Rate (Qty: pieces) | E57: Supplier | I57: r
C58: Process Capability Studies | E58: Supplier | I58: r
C59: Process Improvements | E59: Supplier | I59: r
C60: Full PPAP Submission | E60: FELL / SQE | I60: r
C61: Metallurgical approval by FELL | E61: FELL
C62: Full PPAP Signoff | E62: Supplier | I62: r
B63: 8. Pre-Production Build | E63: Supplier | I63: r
B64: 9. SOP-Production Build
C65: Production Requirements given to Supplier (Ramp Plan) | E65: FELL | I65: r
C66: SOP at FELL Facility shared with supplier | E66: FELL
B67: 10. Ship First Production Parts (Contingent to PPAP Approval) | E67: Supplier | I67: r
B68: Revision History
B69: Rev 1; 01/15/15

Sheet Action Item Log
B2: Action Items Log (FELL / Supplier) | H2: CQD-113.5; Rev 1; 01/15/15
B3: Item | C3: Action Items | D3: Responsibility | E3: Planned Start Date | F3: Due Date | G3: Status / Comments / Notes | H3: Status (Open / Closed)
B4: 1
B5: 2
B6: 3
B7: 4
B8: 5
B9: 6
B10: 7
B11: 8
B12: 9
B13: 10
B14: 11
B15: 12
B16: 13
B17: 14
B18: 15
B19: 16
B20: 17
B21: 18
B22: 19
B23: 20
B24: 21
B25: 22
B26: 23
B27: 24
B28: 25
B29: 26
B30: 27
B31: 27
B32: 28
B33: 29
B34: 30
B35: 31
B36: 32
B37: 33
B38: 34
B39: 35
B40: 36
B41: 37
B42: 38
B43: 39
B44: 40
B45: 41
B46: 42
B47: 43
B48: 44
B49: 45
B50: 46
B51: 47
B52: 48
B53: 49
B54: 50
B55: 51
B56: 52
B57: 53
B58: Revision History
B59: Rev 1; 01/15/15

Sheet Design Checklist
B2: A-2 Design Information Checklist | H2: CQD-113.6; Rev 1; 01/15/15
B3: Question | D3: Yes | E3: No | F3: Comment / Action Required | G3: Person Responsible | H3: Due Date
B4: A. General
B5: Does the design require:
B6: 1 | C6: New materials?
B7: =B6+1 -> 2 | C7: Special tooling?
B8: =B7+1 -> 3 | C8: Has assembly build variation analysis been considered?
B9: 4 | C9: Has Design of Experiments been considered?
B10: 5 | C10: Is there a plan for prototypes in place?
B11: 6 | C11: Has a DFMEA been completed?
B12: 7 | C12: Has a DFMA been completed?
B13: 8 | C13: Have service and maintenance issues been considered?
B14: 9 | C14: Has the Design Verification Plan been considered?
B15: 10 | C15: If yes, was it completed by a cross functional team?
B16: 11 | C16: Are all specified tests, methods, equipment and acceptance criteria clearly defined and understood?
B17: 12 | C17: Have Special Characteristics been selected?
B18: 13 | C18: Is bill of material complete?
B19: 14 | C19: Are Special Characteristics properly documented?
B20: B. Engineering Drawings
B21: =B19+1 -> 15 | C21: Have dimensions that affect fit, function and durability been identified?
B22: =B21+1 -> 16 | C22: Are reference dimensions identified to minimize inspection layout time?
B23: =B22+1 -> 17 | C23: Are sufficient control points and datum surfaces identified to design functional gages?
B24: =B23+1 -> 18 | C24: Are tolerances compatible with accepted manufacturing standards?
B25: =B24+1 -> 19 | C25: Are there any requirements specified that cannot be evaluated using known inspection techniques?
B26: C. Engineering Performance Specifications
B27: =B25+1 -> 20 | C27: Have all special characteristics been identified? /
B28: =B27+1 -> 21 | C28: Is test loading sufficient to provide all conditions, i.e., production validation and end use?
B29: 22 | C29: Have parts manufactured at minimum and maximum specifications been tested?
B30: 23 | C30: Can additional samples be tested when a reaction plan requires it, and still conduct regularly scheduled in-process tests?
B31: 24 | C31: Will all product testing be done in-house? /
B32: 25 | C32: If not, is it done by an approved subcontractor? /
B33: 26 | C33: Is the specified test sampling size and/or frequency feasible?
B34: 27 | C34: If required, has customer approval been obtained for test equipment?
B35: D. Material Specification
B36: =B34+1 -> 28 | C36: Are special material characteristics identified? /
B37: =B36+1 -> 29 | C37: Are specified materials, heat treat and surface treatments compatible with the durability requirements in the identified environment?
B38: =B37+1 -> 30 | C38: Are the intended material suppliers on the customer approved list?
B39: =B38+1 -> 31 | C39: Will material suppliers be required to provide certification with each shipment?
B40: =B39+1 -> 32 | C40: Have material characteristics requiring inspection been identified? If so,
B41: =B40+1 -> 33 | C41: Will characteristics be checked in-house? /
B42: 34 | C42: Is test equipment available? /
B43: 35 | C43: Will training be required to assure accurate test results?
B44: 36 | C44: Will outside laboratories be used? /
B45: 37 | C45: Are all laboratories used accredited (if required)? /
B46: Have the following material requirements been considered:
B47: =B45+1 -> 38 | C47: Handling? /
B48: 39 | C48: Storage? /
B49: 40 | C49: Environmental? /
B50: Revision History
B51: Rev 1; 01/15/15
F52: Revision Date
F55: Prepared By:

Sheet Design FMEA
B2: This is one of many DFMEA formats avilable in AIAG manual. Please select the appropriate format. | S2: CQD-113.7; Rev 1; 01/15/15
C4: System | G4: POTENTIAL FAILURE MODE AND EFFECTS ANALYSIS (DESIGN FMEA) | N4: FMEA Number:
C6: Subsystem | N6: Prepared by:
C8: Component; | G8: Design Responsibility | N8: FMEA Date (Orig.)
B10: Model Year(s)/Program(s) | G10: Key Date | N10: FMEA Date (Rev.)
B12: Core Team:
B14: Item / | C14: Potential Failure Mode | D14: Potential Effect(s) of Failure | E14: Severity | F14: Classification | G14: Potential Causes(s) of Failure | H14: Occurrence | I14: Current Design Controls Prevention | J14: Current Design Controls Detection | K14: Detection | L14: RPN | M14: Recommended Action | N14: Responsibility & Target Completion Date | O14: Action Results
B15: Function | O15: Actions Taken & Effective Date | P15: Severity | Q15: Occurrence | R15: Detection | S15: RPN
B18: Requirements
L19: =IF(E19<>"",E19*H19*K19,"") ->  | M19: =IF(E19<>"","None","") ->  | S19: =IF(P19<>"",P19*Q19*R19,"") -> 
B53: Revision History
B54: Rev 1; 01/15/15

Sheet DFMEA Ranking
N1: CQD-113.8; Rev 1; 01/15/15
B2: Suggested DFMEA Severity Evaluation Criteria | F2: Suggested DFMEA Occurrence Evaluation Criteria | K2: Suggested DFMEA / PFMEA Prevention / Detection Evaluation Criteria
B3: Rank | C3: Effect | D3: Criteria: Severity of Effect on Product (Customer Effect) | F3: Rank | G3: Likelihood of Failure | H3: Criteria: Occurrence of Cause - DFMEA (Design Life / Reliability of the Item or Product) | I3: Criteria: Occurrence of Cause - DFMEA (Incidents per Item / Products) | K3: Rank | L3: Likelihood of Detection | M3: Opportunity for Detection | N3: Criteria: Likelihood of Detection by Design Control
B6: 10 | C6: Failure to Meet Safety and/or Regulatory Requirements | D6: Potential failure mode affects safe Product operation and/or involves noncompliance with government regulation without warning | F6: 10 | G6: Very High | H6: New Technology / New Design with No History | I6: => 100 per Thousand | K6: 10 | L6: Almost Impossible | M6: No Detection Opportunity | N6: No Current Design Control; Cannot Detect or is not Analyzed
I7: => 1 in 10
B8: 9 | D8: Potential failure mode affects safe Product operation and/or involves noncompliance with government regulation with warning | F8: 9 | G8: High | H8: Failure is inevitable with new design, new application, or change in duty cycle / operating conditions. | I8: 50 per Thousand | K8: 9 | L8: Very Remote | M8: Not Likely to Detect at any Stage | N8: Design analysis / detection controls have a weak detection capability; Virtual Analysis (e.g. CAE, FEA etc.) is not correlated to expected actual operating conditions
I9: 1 in 20
B10: 8 | C10: Loss or Degradation of Primary Function | D10: Loss of primary function (Product inoperable, does not affect safe Product operation) | F10: 8 | H10: Failure is likely with new design, new application, or change in duty cycle / operating conditions. | I10: 20 per Thousand | K10: 8 | L10: Remote | M10: Post Design Freeze and prior to launch | N10: Product verification / validation after design freeze and prior to launch with pass / fail testing (Subsystem or system testing with acceptance criteria such as ride and handling, shipping evaluation, etc.).
I11: 1 in 50
B12: 7 | D12: Degradation of primary function (Product operable, but at reduced level of performance) | F12: 7 | H12: Failure is uncertain with new design, new application, or change in duty cycle / operating conditions. | I12: 10 per Thousand | K12: 7 | L12: Very Low | N12: Product verification / validation after design freeze and prior to launch with test to failure testing (Subsystem or system testing until failure occurs, testing of system interactions, etc.).
I13: 1 in 100
B14: 6 | C14: Loss or Degradation of Secondary Function | D14: Loss of secondary function (Product operable, but comfort / convenience functions inoperable) | F14: 6 | G14: Moderate | H14: Frequent failures associated with similar designs or in design simulation and testing | I14: 2 per Thousand | K14: 6 | L14: Low | N14: Product verification / validation after design freeze and prior to launch with degradation testing (Subsystem or system testing after durability test, e.g., function check).
I15: 1 in 500
B16: 5 | D16: Degradation of secondary function (Product operable, but comfort / convenience functions at reduced level of performance) | F16: 5 | H16: Occasional failures associated with similar designs or in design simulation and testing | I16: 0.5 per Thousand | K16: 5 | L16: Moderate | M16: Prior to Design Freeze | N16: Product validation (reliability testing, development or validation tests) prior to design freeze using pass / fail testing (e.g. acceptance criteria for performance, function checks, etc.).
I17: 1 in 2,000
B18: 4 | C18: Annoyance | D18: Appearance or audible Noise, Product operable, item does not conform and noticed by many customers (>75%) | F18: 4 | H18: Isolated failures associated with similar designs or in design simulation and testing | I18: 0.1 per Thousand | K18: 4 | L18: Moderately High | N18: Product validation (reliability testing, development or validation tests) prior to design freeze using test to failure testing (e.g. until leaks, yields, cracks, etc.).
I19: 1 in 10,000
B20: 3 | D20: Appearance or audible Noise, Product operable, item does not conform and noticed by most customers (50%) | F20: 3 | G20: Low | H20: Only isolated failures associated with almost identical design or in design simulation and testing | I20: 0.01 per Thousand | K20: 3 | L20: High | N20: Product validation (reliability testing, development or validation tests) prior to design freeze using degradation testing (e.g. data trends, before / after values, etc.).
I21: 1 in 100,000
B22: 2 | D22: Appearance or audible Noise, Product operable, item does not conform and noticed by discriminating customers (<25%) | F22: 2 | H22: No observed failures associated with almost identical design or in design simulation and testing | I22: =< 0.001 per Thousand | K22: 2 | L22: Very High | M22: Virtual Analysis Correlated | N22: Design analysis / detection controls have a Strong detection capability; Virtual Analysis (e.g. CAE, FEA etc.) is highly correlated with actual or expected operating conditions prior to design freeze.
I23: 1 in 1,000,000
B24: 1 | C24: No Effect | D24: No discernible effect | F24: 1 | G24: Very Low | H24: Failure is eliminated through preventive control | I24: Failure is eliminated through preventive control | K24: 1 | L24: Almost Certain | M24: Detection Not Applicable; Error Prevention | N24: Failure cause or failure mode can not occur because it is fully prevented through design solutions (e.g. proven design standard, best practice or common material, etc.),
B26: Revision History
B27: Rev 1; 01/15/15

Sheet DFMEA Checklist
B2: A-1 Design FMEA Checklist | H2: CQD-113.9; Rev 1; 01/15/15
B3: Question | D3: Yes | E3: No | F3: Comment / Action Required | G3: Person Responsible | H3: Due Date
B4: 1 | C4: Was the SFMEA and/or DFMEA prepared using the DaimlerChrysler, Ford, and General Motors Potential Failure Mode and Effects Analysis (FMEA) reference manual?
B5: 2 | C5: Have historical campaign and warranty data been reviewed?
B6: 3 | C6: Have similar part DFMEAs been considered?
B7: 4 | C7: Does the SFMEA and/or DFMEA identify Special Characteristics?
B8: 5 | C8: Have design characteristics that affect high risk priority failure modes been identified?
B9: 6 | C9: Have appropriate corrective actions been assigned to high risk priority numbers?
B10: 7 | C10: Have appropriate corrective actions been assigned to high severity numbers?
B11: 8 | C11: Have risk priorities been revised when corrective actions have been completed and verified?
B12: Revision History
B13: Rev 1; 01/15/15
F14: Revision Date:
F17: Prepared By:

Sheet Production Feasibility Agreemen
B2: Production Feasibility Agreement (PFA) | S2: CQD-113.10; Rev 1; 01/15/15
B3: Supplier Name: | D3: ='APQP Kickoff - Team'!C3:J3 -> 0 | G3: Part Number: | I3: ='APQP Kickoff - Team'!L3 -> 0 | L3: FELL Plant: | R3: Initial PFA:
B4: Supplier Address: | G4: Part Name / Description | L4: Part Risk Level: | R4: Interim PFA:
B5: FELL Purchasing Rep.: | G5: Part Family (if Applicable): | L5: Date Submitted: | R5: Final PFA:
B6: Signature and Date: | G6: Revision Level: | I6: ='APQP Kickoff - Team'!T3 -> 0 | L6: Any Issue: | R6: PFA Version:
B7: Note: FELL recommends that this agreement be completed by the quoting supplier's production, quality or engineering staff. Add rows as required. | R7: Page: | S7: 1 of xx
B8: Supplier Input Data | P8: FELL Input Data
B9: # | C9: Print Requirements (Including all Dimensions, Notes and Specifications or as instructed by FELL) | E9: Special Characteristics / Critical To Quality (CTQ) (Yes or No) | F9: Confirm supplier (you) are capable of manufacture and meet the require specification (Yes / No) | G9: Evaluation Measurement Technique (Gage used) | H9: Measure and input at the completion of PPAP run | J9: Supplier Comments | P9: FELL Engineering or Quality Representative Only!
H10: SPC | I10: PpK / CpK | P10: FELL Agrees (Yes / No) | Q10: Comment | S10: Specification Change Required
B11: - Require to fill in all the Print requirements following by the Ballooned prints with numbering. - For complicated or family parts, only listing the exceptional dimensions or requirements is acceptable. But Ballooned prints are necessary to be attached to show all the Print requirements have been reviewed.
B12: 1
B13: 2
B14: 3
B15: 4
B16: 5
B17: 6
B18: 7
B19: 8
B20: 9
B21: 10
B22: 11
B23: 12
B24: 13
B25: 14
B26: 15
B27: 16
B28: 17
B29: 18
B30: 19
B31: 20
B32: 21 | U32: INSERT BALLONED DRAWING AS ILLUSTRATED
B33: 22
B34: 23
B35: 24
B36: OTHER REQUIREMENTS: Please include any exceptions to print notes, referenced specifications, Gerber files, schematics, reference drawings , assembly drawings, plating, finishing, special processes and/or packaging requirements as may be specified on drawing, purchase order or in the supplier quality manual. Add rows as required. | P36: FELL Agrees (Yes / No) | Q36: Comment | S36: Specification Change Required
B37: 1
B38: 2
B39: 3
B40: 4
B41: 5
B42: IMPORT SPECIFIC REQUIREMENTS: Add rows as required. Please refer to the Supplier Excellence Manual for further clarifications of governing requirements. | P42: FELL Agrees (Yes / No) | Q42: Comment | S42: Specification Change Required
B43: 1 | C43: Material COA Requirement (Raw Material Composition Test) | J43: Please identify material standard and where The test will Be done (3rd party lab / supplier plant lab / material supplier)
B44: 2 | C44: Material Performance Test | J44: Please identify which test can be done and where (3rd party lab / supplier plant lab / material supplier)
B45: 3 | C45: Product safety requirement | J45: For material part or Casting process part, please identify whether the product's radiation conforms with all specific national standards. List who completed the radiation testing (supplier plant lab or 3rd party). For other material or process part, fill "NA" in the item
B46: 4
B47: 5
B48: Team Feasibility Commitment Questions | P48: Lessons Learned
B49: # | C49: Consideration | I49: Yes / No | J49: Comments
A50: Caliper | B50: 1 | C50: Is product adequately defined (application requirements, etc. to enable feasibility evaluation?
A51: CMM | B51: 2 | C51: Can Engineering Performance Specifications be met as written?
A52: Color Chip | B52: 3 | C52: Can product be manufactured to tolerances specified on drawing?
A53: Drop Gage | B53: 4 | C53: Can product be manufactured with Cpk's that meet requirements?
A54: Gage Blocks | B54: 5 | C54: Is there adequate capacity to produce product?
A55: Height Gage | B55: 6 | C55: Does the design allow the use of efficient material handling techniques?
A56: Micrometer | B56: 7 | C56: Is statistical process control required on the product?
A57: Optical Comparator | B57: 8 | C57: Is statistical process control presently used on similar products?
A58: Overlay | B58: 9 | C58: Where statistical process control is used on similar products:
A59: Pin Gage | B59: 9a | C59: Are the processes in control and stable?
A60: Profilometer | B60: 9b | C60: Are Cpk's greater than 1.33?
B61: Supplier comments for Cost improvement (Ideals for recommendation, Ex. VA/VE, substitute material, tooling, process, etc.)
A66: Spectrophotometer | B66: By signing this document you (supplier) confirm that at the time of mass production you can achieve all print requirements unless otherwise noted "No" in column F above
A67: Texture Plaques
A68: Thread Gage | B68: Supplier Representative Signature and Date | H68: FELL SDE/SQE Name & Signature Date | P68: FELL Engineering Name & Signature Date
A69: Visual | B69: x Sign Here | H69: X Sign Here | P69: X Sign Here
B70: Type/Print name here | H70: Type/print name here | P70: Type/print name here
B71: Type/Print Title Here
B72: Suppliers: Type name on each page | H72: FELL Purchasing Name & Signature Date
B73: Revision History | H73: x Sign Here
B74: Rev 1; 01/15/15 | H74: Type/print name here
H75: Comments from FELL Design Engineering or Purchasing

Sheet Process Flow
B2: PROCESS / INSPECTION FLOWCHART | N2: CQD-113.11; Rev 1; 01/15/15
C3: Project / Program | J3: Issue Date | L3: Rev. | M3: ='APQP Kickoff - Team'!T3 -> 0
C4: Supplier Name | F4: ='APQP Kickoff - Team'!C3 -> 0 | J4: Part Name
C5: Supplier Location | J5: Part Number | K5: ='APQP Kickoff - Team'!L3 -> 0
C8: Legend:
C10: Operation | F10: Transportation | I10: Inspection | K10: Delay | M10: Storage
B12: STEP
E13: Operation or Event | I13: Description of | L13: Evaluation
I14: Operation or Event | L14: and Analysis Methods
B16: 1
B18: 2
B20: 3
B22: 4
B24: 5
B26: 6
B28: 7
B30: 8
B32: 9
B34: 10
B36: 11
B38: 12
B40: 13
B42: 14
B44: 15
B46: 16
B48: 17
B50: 18
B52: 19
B54: 20
B56: Revision History
B57: Rev 1; 01/15/15

Sheet Process Flow Checklist
B2: A-6 Process Flowchart Checklist | H2: CQD-113.12; Rev 1; 01/15/15
B3: Question | D3: Yes | E3: No | F3: Comment / Action Required | G3: Person Responsible | H3: Due Date
B4: 1 | C4: Does the flow chart illustrate the sequence of production and inspection stations?
B5: =B4+1 -> 2 | C5: Were all appropriate FMEA's (SFMEA, DFMEA) available and used as aids to develop the process flow chart?
B6: 3 | C6: Is the flow chart keyed to product and process checks in the control plan?
B7: 4 | C7: Does the flow chart describe how the product will move, i.e., roller conveyor, slide containers, etc.?
B8: 5 | C8: Has the pull system/optimization been considered for this process?
B9: 6 | C9: Have provisions been made to identify and inspect reworked product before being used?
B10: 7 | C10: Have potential quality problems due to handling and outside processing been identified and corrected?
B11: Revision History
B12: Rev 1; 01/15/15
F13: Revision Date
F16: Prepared By:

Sheet Floor Plan Checklist
B2: A-5 Floor Plan Checklist | H2: CQD-113.13; Rev 1; 01/15/15
B3: Question | D3: Yes | E3: No | F3: Comment / Action Required | G3: Person Responsible | H3: Due Date
B4: 1 | C4: Does the floor plan identify all required process and inspection points?
B5: =B4+1 -> 2 | C5: Have clearly marked areas for all material, tools, and equipment at each operation been considered?
B6: =B5+1 -> 3 | C6: Has sufficient space been allocated for all equipment?
B7: Are process and inspection areas:
B8: =B6+1 -> 4 | C8: Of adequate size? /
B9: 5 | C9: Properly lighted? /
B10: 6 | C10: Do inspection areas contain necessary equipment and files?
B11: Are there adequate:
B12: =B10+1 -> 7 | C12: Staging areas? /
B13: 8 | C13: Impound areas? /
B14: 9 | C14: Are inspection points logically located to prevent shipment of nonconforming products?
B15: 10 | C15: Have controls been established to eliminate the potential for an operation, including outside processing, to contaminate or mix similar products?
B16: 11 | C16: Is material protected from overhead or air handling systems contamination?
B17: 12 | C17: Have final audit facilities been provided?
B18: =B17+1 -> 13 | C18: Are controls adequate to prevent movement of nonconforming incoming material to storage or point of use?
B19: Revision History
B20: Rev 1; 01/15/15 | F20: Revision Date
F23: Prepared By:

Sheet Process FMEA
C1: This is one of many FFMEA formats avilable in AIAG manual. Please select the appropriate format. | N1: PLANT or PRODUCT LINE:
N2: PpFMEA NO:
N3: PROJECT NO:
N4: PROCESS RESP:
N5: PREPARED BY:
P7: PG | R7: OF
B8: PROCESS OR PRODUCT NAME: | I8: RESPONSIBLE TEAM LEADER: | N8: DATE (Orig) | Q8: (REV)
B9: TEAM MEMBERS:
S10: CQD-113.14; Rev 1; 01/15/15
B11: Process step/Input | C11: Potential Failure Mode | D11: Potential Failure Effects | E11: SEV | F11: Class | G11: Potential Causes(s) of Failure | H11: OCC | I11: Current PROCESS Controls - Prevention - | J11: Current PROCESS Controls - Detection - | K11: DET | L11: RPN | M11: Actions Recommended | N11: Resp. | O11: Actions Taken | P11: SEV | Q11: OCC | R11: DET | S11: RPN
B12: Enter the name of the process step/input being analyzed | C12: In what way(s) could the step/input fail to meet the specificed requirements? | D12: What are the effects of the failure on the function, as perceived by the customer (both internal and/or end user)? | E12: Severity rank per SEV tables | F12: Is this an SC per company policy and procedure? | G12: What could cause the failure, in terms of something that can be corrected or controlled? | H12: Likelihood of failure ranking per OCC tables | I12: What are the existing process controls to prevent the cause of failure or failure mode from occurring or reduce the rate of occurrence? | J12: What are the existing process controls to detect the cause of failure or failure mode and lead to corrective action(s)? | K12: Rank of the best listed detection control per DET tables. | L12: SEV x OCC x DET = RPN | M12: For items with high SEV, and/or high RPNs | N12: Name of person and dept. resp. for each action with the ECD | O12: Brief description of actual action and effective date | P12: SEV after actions taken | Q12: DET after actions taken | R12: OCC after actions taken | S12: Recalculated RPN after actions taken
L13: =E13*H13*K13 -> 0 | S13: =PRODUCT(P13:R13) -> 0
L14: =E14*H14*K14 -> 0 | S14: 0
L15: 0 | S15: 0
L16: 0 | S16: 0
L17: 0 | S17: 0
L18: 0 | S18: 0
L19: 0 | S19: 0
L20: 0 | S20: 0
L21: 0 | S21: 0
L22: 0 | S22: 0
L23: 0 | S23: 0
L24: 0 | S24: 0
L25: =E25*H25*K25 -> 0 | S25: =PRODUCT(P25:R25) -> 0
L26: =E26*H26*K26 -> 0 | S26: =PRODUCT(P26:R26) -> 0
L27: =E27*H27*K27 -> 0 | S27: =PRODUCT(P27:R27) -> 0
L28: =E28*H28*K28 -> 0 | S28: =PRODUCT(P28:R28) -> 0
B29: Revision History
B30: Rev 1; 01/15/15

Sheet PFMEA Ranking
R1: CQD-113.15; Rev 1; 01/15/15
B2: Suggested PFMEA Severity Evaluation Criteria | H2: Suggested PFMEA Occurrence Evaluation Criteria | L2: Suggested PFMEA Prevention / Detection Evaluation Criteria
B3: Rank | C3: Effect | D3: Criteria: Severity of Effect on Product (Customer Effect) | E3: Effect | F3: Criteria: Severity of Effect on Process (Manufacturing / Assembly Effect) | H3: Rank | I3: Likelihood of Failure | J3: Criteria: Occurrence of Cause - DFMEA (Incidents per Item / Products) | L3: Rank | M3: Likelihood of Detection | N3: Opportunity for Detection | O3: Inspection Types | R3: Criteria: Likelihood of Detection by Design Control
O5: A - Error Proofed | P5: B - Gauged | Q5: C - Manual
B6: 10 | C6: Failure to Meet Safety and/or Regulatory Requirements | D6: Potential failure mode affects safe Product operation and/or involves noncompliance with government regulation without warning | E6: Failure to Meet Safety and/or Regulatory Requirements | F6: May Endanger Operator (machine or assembly) without warning | H6: 10 | I6: Very High | J6: => 100 per Thousand | L6: 10 | M6: Almost Impossible | N6: No Detection Opportunity | Q6: X | R6: No Current Process Control; Cannot Detect or is not Analyzed
J7: => 1 in 10
B8: 9 | D8: Potential failure mode affects safe Product operation and/or involves noncompliance with government regulation with warning | F8: May Endanger Operator (machine or assembly) with warning | H8: 9 | I8: High | J8: 50 per Thousand | L8: 9 | M8: Very Remote | N8: Not Likely to Detect at any Stage | Q8: X | R8: Failure Mode and/or Error (Cause) is not easily detected (eg random audits)
J9: 1 in 20
B10: 8 | C10: Loss or Degradation of Primary Function | D10: Loss of primary function (Product inoperable, does not affect safe Product operation) | E10: Major Disruption | F10: 100% of product may have to be scrapped. Line shutdown or stop ship. | H10: 8 | J10: 20 per Thousand | L10: 8 | M10: Remote | N10: Controls will probably not detect. Problem detection post processing. | Q10: X | R10: Failure Mode detection post processing by operator through visual tactile audible means
J11: 1 in 50
B12: 7 | D12: Degradation of primary function (Product operable, but at reduced level of performance) | E12: Significant Disruption | F12: A portion of the production run may have to be scrapped. Deviation from primary process including decrease line speed or added manpower. | H12: 7 | J12: 10 per Thousand | L12: 7 | M12: Very Low | N12: Controls have poor chance of detection Problem detection at source. | P12: X | Q12: X | R12: Failure Mode detection in-station by operator through visual tactile audible means or post processing through use of attribute gauging (go/no go, manual torque check / clicker wrench etc.)
J13: 1 in 100
B14: 6 | C14: Loss or Degradation of Secondary Function | D14: Loss of secondary function (Product operable, but comfort / convenience functions inoperable) | E14: High Disruption | F14: 100% of production run may have to be reworked off line and accepted | H14: 6 | I14: Moderate | J14: 2 per Thousand | L14: 6 | M14: Low | N14: Controls might detect. Problem detection post processing. | P14: X | Q14: X | R14: Failure Mode detection post processing by operator through variable gauging or in-station by operator through the use of attribute gauging (go/no go, manual torque check / clicker wrench etc.)
J15: 1 in 500
B16: 5 | D16: Degradation of secondary function (Product operable, but comfort / convenience functions at reduced level of performance) | F16: A portion of production run may have to be reworked off line and accepted | H16: 5 | J16: 0.5 per Thousand | L16: 5 | M16: Moderate | N16: Controls might detect. Problem detection at source. | O16: X | P16: X | R16: Failure Mode or Error (Cause) detection in-station by operator through the use of variable gauging or by automated controls in-station that will detect discrepant part and notify operator (light buzzer etc.). Gauging performed on set-up and first piece check (for set-up causes only)
J17: 1 in 2,000
B18: 4 | C18: Annoyance | D18: Appearance or audible Noise, Product operable, item does not conform and noticed by most customers (>75%) | E18: Moderate Disruption | F18: 100% of production run may have to be reworked in station before it is processed. | H18: 4 | J18: 0.1 per Thousand | L18: 4 | M18: Moderately High | N18: Controls may detect. Problem detection post processing. | O18: X | P18: X | R18: Failure Mode detection post processing by automated controls that will detect discrepant part and lock part to prevent further processing.
J19: 1 in 10,000
B20: 3 | D20: Appearance or audible Noise, Product operable, item does not conform and noticed by most customers (50%) | F20: A portion of production run may have to be reworked in station before it is processed. | H20: 3 | I20: Low | J20: 0.01 per Thousand | L20: 3 | M20: High | N20: Controls have a good chance to detect. Problem detection at source. | O20: X | R20: Failure Mode detection in-station by automated controls that will detect discrepant part and automatically lock part in station to prevent further processing.
J21: 1 in 100,000
B22: 2 | D22: Appearance or audible Noise, Product operable, item does not conform and noticed by most customers (<25%) | E22: Minor Disruption | F22: Slight inconvenience to process operation or operator. | H22: 2 | J22: =< 0.001 per Thousand | L22: 2 | M22: Very High | N22: Controls almost certain to detect. Error detection and or problem prevention. | O22: X | R22: Error (Cause) detection in-station by automated controls that will detect error and prevent discrepant part from being made.
J23: 1 in 1,000,000
B24: 1 | C24: No Effect | D24: No discernible effect | E24: No Effect | F24: No discernible effect | H24: 1 | I24: Very Low | J24: Failure is eliminated through preventive control | L24: 1 | M24: Almost Certain | N24: Detection not applicable, error prevention. | O24: X | R24: Error (Cause) prevention as a result of fixture design, machine design or part design. discrepant parts cannot be made because item has been error proofed by process/product design.
B26: Revision History
B27: Rev 1; 01/15/15

Sheet PFMEA Checklist
B2: A-7 Process FMEA Checklist | H2: CQD-113.16; Rev 1; 01/15/15
B3: Question | D3: Yes | E3: No | F3: Comment / Action Required | G3: Person Responsible | H3: Due Date
B4: 1 | C4: Was the Process FMEA prepared using the Chrysler, Ford, and General Motors guidelines?
B5: =B4+1 -> 2 | C5: Have all operations affecting fit, function, durability, governmental regulations and safety been identified and listed sequentially?
B6: =B5+1 -> 3 | C6: Were similar part FMEA's considered?
B7: 4 | C7: Have historical campaign and warranty data been reviewed?
B8: 5 | C8: Have appropriate corrective actions been planned or taken for high risk priority items?
B9: 6 | C9: Have appropriate corrective actions been planned or taken for high severity numbers?
B10: 7 | C10: Were risk priorities numbers revised when corrective action was completed?
B11: 8 | C11: Were high severity numbers revised when a design change was completed?
B12: 9 | C12: Do the effects consider the customer in terms of the subsequent operation, assembly, and product?
B13: 10 | C13: Was warranty information used as an aid in developing the Process FMEA?
B14: 11 | C14: Were customer plant problems used as an aid in developing the Process FMEA?
B15: 12 | C15: Have the causes been described in terms of something that can be fixed or controlled?
B16: 13 | C16: Where detection is the major factor, have provisions been made to control the cause prior to the next operation?
B17: Revision History
B18: Rev 1; 01/15/15
F19: Revision Date
F22: Prepared By:

Sheet Gage Plan
B2: Gage Plan | I2: CQD-113.17; Rev 1; 01/15/15
B3: Supplier | F3: Part Revision
B4: Manufacturing Location | F4: Document Revision
B5: Part Name | F5: FELL Plant
B6: Part Number or Specification
B7: Supplier | F7: FELL Quality | G7: Team | H7: Issues / Comments / Next Steps
B8: Print Balloon No. | C8: Characteristic (Dimension and tolerance) | D8: Char. Type | E8: Supplier’s measurement method | F8: FELL User Plant Control Method | G8: Is measurement method acceptable?
B9: example | C9: 999.999 +/- 0.9999 | D9: Critical | E9: CMM | F9: CMM | G9: Yes | H9: Briefly describe planned actions.
B36: Revision History
B37: Rev 1; 01/15/15

Sheet Dimensional Correlation Matrix (hidden)
B2: Dimensional Correlation Matrix | O2: CQD-113.18; Rev 1; 01/15/15
B3: Supplier | D3: ='APQP Kickoff - Team'!C3 -> 0 | H3: Drawing Number: | M3: Supplier Representative:
B4: Manufacturing Location | H4: Part Revision and Date | J4: ='APQP Kickoff - Team'!T3 -> 0 | M4: Phone number:
B5: Part Name | H5: Document Revision | M5: Correlation Date:
B6: Part Number or Specification | D6: ='APQP Kickoff - Team'!L3 -> 0 | H6: Eaton Plant
B7: Eaton part/Assembly number | C7: Print feature name | D7: Sample Number | E7: Upper Tolerance (+) | F7: Lower Tolerance (-) | G7: Total Tolerance | H7: Nominal target | I7: Bonus Tolerance Y/N | J7: Eaton Measuring equipment type | K7: Eaton reading | L7: Supplier Measuring equipment type | M7: Supplier reading | N7: Delta | O7: % of tolerance (if value is > or = to 25% or -25%, correlation improvement is recommended)
B8: Example | C8: Ball diameter | D8: 1 | E8: 0.0025 | F8: 0.0025 | G8: 0.005 | H8: 5.556 | I8: N | J8: Beta laser mic | K8: 5.55923 | L8: Non contact laser | M8: 5.5586 | N8: =K8-M8 -> 0.00063 | O8: =N8/G8 -> 0.126
B9: Example | C9: Ball diameter | D9: 5 | E9: 0.0025 | F9: 0.0025 | G9: 0.005 | H9: 5.556 | I9: N | J9: Beta laser mic | K9: 5.56123 | L9: Non contact laser | M9: 5.5601 | N9: 0.00113 | O9: 0.226
B10: Example | C10: Ball diameter | D10: 2 | E10: 0.0025 | F10: 0.0025 | G10: 0.005 | H10: 5.556 | I10: N | J10: Beta laser mic | K10: 5.55952 | L10: Non contact laser | M10: 5.5581 | N10: 0.00142 | O10: 0.284
B11: Example | C11: Ball diameter | D11: 4 | E11: 0.0025 | F11: 0.0025 | G11: 0.005 | H11: 5.556 | I11: N | J11: Beta laser mic | K11: 5.55971 | L11: Non contact laser | M11: 5.5582 | N11: 0.00151 | O11: 0.302
B12: Example | C12: Ball diameter | D12: 1 | E12: 0.0025 | F12: 0.0025 | G12: 0.005 | H12: 5.556 | I12: N | J12: Beta laser mic | K12: 5.56087 | L12: Non contact laser | M12: 5.5596 | N12: 0.00127 | O12: 0.254
B13: Example | C13: Ball diameter | D13: 7 | E13: 0.0025 | F13: 0.0025 | G13: 0.005 | H13: 5.556 | I13: N | J13: Beta laser mic | K13: 5.59313 | L13: Non contact laser | M13: 5.5579 | N13: 0.03523 | O13: 7.046
B14: Example | C14: Ball diameter | D14: 7 | E14: 0.0025 | F14: 0.0025 | G14: 0.005 | H14: 5.556 | I14: N | J14: Beta laser mic | K14: 5.56005 | L14: Non contact laser | M14: 5.5587 | N14: 0.00135 | O14: 0.27
B15: Example | C15: Ball diameter | D15: 2 | E15: 0.0025 | F15: 0.0025 | G15: 0.005 | H15: 5.556 | I15: N | J15: Beta laser mic | K15: 5.56046 | L15: Non contact laser | M15: 5.5592 | N15: 0.00126 | O15: 0.252
B16: Example | C16: Ball diameter | D16: 1 | E16: 0.0025 | F16: 0.0025 | G16: 0.005 | H16: 5.556 | I16: N | J16: Beta laser mic | K16: 5.56058 | L16: Non contact laser | M16: 5.5591 | N16: 0.00148 | O16: 0.296
B17: Example | C17: Ball diameter | D17: 10 | E17: 0.0025 | F17: 0.0025 | G17: 0.005 | H17: 5.556 | I17: N | J17: Beta laser mic | K17: 5.56008 | L17: Non contact laser | M17: 5.5575 | N17: 0.00258 | O17: 0.516
B18: Example | C18: OD | D18: 1 | E18: 0.25 | F18: 0.25 | G18: 0.5 | H18: 15 | I18: N | J18: dial calipers | K18: 15.1 | L18: dial calipers | M18: 15.2 | N18: -0.1 | O18: -0.2
B19: Example | C19: ID | D19: 1 | E19: 0.5 | F19: 0.5 | G19: 1 | H19: 20.115 | I19: N | J19: optical comparator | K19: 20.01 | L19: CMM | M19: 20.116 | N19: -0.106 | O19: -0.106
B38: Revision History
B39: Rev 1; 01/15/15

Sheet Control Plan
G1: CONTROL PLAN
N2: CQD-113.19; Rev 1; 01/15/15
B3: Control Plan Number | F3: Key Contact/Phone | K3: Date (Orig.) | M3: Date (Rev.)
B5: Part Number/Latest Change Level | F5: Core Team | K5: Customer Engineering Approval/Date (If Req'd.)
B7: Part Name/Description | F7: Supplier/Plant Approval/Date | K7: Customer Quality Approval/Date (If Req'd.)
B9: Supplier/Plant | D9: Supplier Code | F9: Other Approval/Date (If Req'd.) | K9: Other Approval/Date (If Req'd.)
B11: PART/ PROCESS NUMBER | C11: PROCESS NAME/ OPERATION DESCRIPTION | D11: MACHINE, DEVICE JIG, TOOLS FOR MFG. | E11: CHARACTERISTICS | H11: SPECIAL CHAR. CLASS | I11: METHODS | N11: REACTION PLAN
E13: NO. | F13: PRODUCT | G13: PROCESS | I13: PRODUCT/PROCESS | J13: EVALUATION/ | K13: SAMPLE | M13: CONTROL METHOD
I14: SPECIFICATION/ | J14: MEASUREMENT | K14: SIZE | L14: FREQ.
I15: TOLERANCE | J15: TECHNIQUE
B39: Revision History
B40: Rev 1; 01/15/15

Sheet Dynamic Control Plan
B1: Dynamic Control Plan - Master Copy
AC2: CQD-113.20; Rev 1; 01/15/15
B3: Company/Plant | G3: Department | K3: Operation | O3: Station | Q3: Part Name | Z3: Control Plan Revision Date
B5: Process | G5: Machine | K5: Part Number | Q5: Process sheet revision date | Z5: B/P revision date
C7: Characteristic | W7: C
B8: Char | C8: Description | D8: Spec | E8: T | F8: I | G8: Failure | H8: Effects | I8: S | J8: Causes | K8: O | L8: Current | M8: D | N8: R | O8: Recom. | P8: Area | Q8: Actions | R8: S | S8: O | T8: D | U8: R | V8: Ctrl. | W8: l | X8: Control | Y8: T | Z8: Gage desc, | AA8: GR&R | AB8: Cp/Cpk | AC8: Reaction
B9: # | E9: y | F9: m | G9: Mode | H9: of | I9: E | J9: of | K9: C | L9: Controls | M9: E | N9: P | O9: Actions | P9: Respon. | Q9: Taken | R9: E | S9: C | T9: E | U9: P | V9: Fact. | W9: a | X9: Method | Y9: o | Z9: master, | AA9: & | AB9: (target) | AC9: Plans
C10: (Product & | E10: p | F10: p | H10: failure | I10: V | J10: Failure | K10: C | M10: T | N10: N | P10: & Date | R10: V | S10: C | T10: T | U10: N | W10: s | Y10: o | Z10: detail | AA10: Date | AB10: & Date
C11: Process) | E11: e | W11: s | Y11: l
B41: Revision History
B42: Rev 1; 01/15/15

Sheet Control P Checklist
B2: A-8 Control Plan Checklist | H2: CQD-113.21; Rev 1; 01/15/15
B3: Question | D3: Yes | E3: No | F3: Comment / Action Required | G3: Person Responsible | H3: Due Date
B4: 1 | C4: Was the control plan methodology referenced in Section 6 used in preparing the control plan?
B5: =B4+1 -> 2 | C5: Have all known customer complaints been identified to facilitate the selection of special product/process characteristics?
B6: =B5+1 -> 3 | C6: Are all special product/process characteristics included in the control plan?
B7: 4 | C7: Were SFMEA, DFMEA, and PFMEA used to prepare the control plan?
B8: 5 | C8: Are material specifications requiring inspection identified?
B9: 6 | C9: Does the control pan address incoming (material/components) through processing/assembly including packaging?
B10: 7 | C10: Are engineering performance testing requirements identified?
B11: 8 | C11: Are gages and test equipment available as required by the control plan?
B12: 9 | C12: If required, has the customer approved the control plan?
B13: 10 | C13: Are gage methods compatible between supplier and customer?
B14: Revision History
B15: Rev 1; 01/15/15
F16: Revision Date
F19: Prepared By:

Sheet Tooling checklist
B2: A-3 New Equipment, Tooling, and Test Equipment Checklist | H2: CQD-113.22; Rev 1; 01/15/15
B3: Question | D3: Yes | E3: No | F3: Comment / Action Required | G3: Person Responsible | H3: Due Date
B4: Does the design require:
B5: 1 | C5: New materials?
B6: =B5+1 -> 2 | C6: Quick change?
B7: =B6+1 -> 3 | C7: Volume fluctuations?
B8: 4 | C8: Mistake proofing?
B9: Have lists been prepared identifying:
B10: =B8+1 -> 5 | C10: New equipment?
B11: =B10+1 -> 6 | C11: New tooling?
B12: 7 | C12: New test equipment?
B13: Has acceptance criteria been agreed upon for:
B14: =B12+1 -> 8 | C14: New equipment?
B15: =B14+1 -> 9 | C15: New tooling?
B16: 10 | C16: New test equipment?
B17: 11 | C17: Will a preliminary capability study be conducted at the tooling and/or equipment manufacturer?
B18: 12 | C18: Has test equipment feasibility and accuracy been established?
B19: =B18+1 -> 13 | C19: Is a preventive maintenance plan complete for equipment and tooling?
B20: =B19+1 -> 14 | C20: Are setup instructions for new equipment and tooling complete and understandable?
B21: =B20+1 -> 15 | C21: Will capable gages be available to run preliminary process capability studies at the equipment supplier's facility?
B22: 16 | C22: Will preliminary process capability studies be run at the processing plant?
B23: 17 | C23: Have process characteristics that affect special product characteristics been identified?
B24: 18 | C24: Were special product characteristics used in determining acceptance criteria?
B25: 19 | C25: Does the manufacturing equipment have sufficient capacity to handle forecasted production and service volumes?
B26: 20 | C26: Is testing capacity sufficient to provide adequate testing?
B27: Revision History
B28: Rev 1; 01/15/15
F29: Revision Date
F32: Prepared By:

Sheet Quality Checklist
B2: A-4 Product/Process Quality Checklist | H2: CQD-113.23; Rev 1; 01/15/15
B3: Question | D3: Yes | E3: No | F3: Comment / Action Required | G3: Person Responsible | H3: Due Date
B4: 1 | C4: Is the assistance of the customer's quality assurance or product engineering activity needed to develop or concur to the control plan?
B5: =B4+1 -> 2 | C5: Has the supplier identified who will be the quality liaison with the customer?
B6: =B5+1 -> 3 | C6: Has the supplier identified who will be the quality liaison with its suppliers?
B7: 4 | C7: Has the quality assurance system been reviewed using the Chrysler, Ford, and General Motors Quality System Assessment?
B8: Are there sufficient personnel identified to cover:
B9: =B7+1 -> 5 | C9: Control plan requirements?
B10: 6 | C10: Layout inspection?
B11: 7 | C11: Engineering performance testing?
B12: 8 | C12: Problem resolution analysis?
B13: Is there a documented training program that:
B14: =B12+1 -> 9 | C14: Includes all employees?
B15: 10 | C15: Lists whose been trained?
B16: 11 | C16: Provides a training schedule?
B17: Has training been completed for:
B18: =B16+1 -> 12 | C18: Statistical process control?
B19: 13 | C19: Capability studies?
B20: 14 | C20: Problem solving?
B21: 15 | C21: Mistake proofing?
B22: =B21+1 -> 16 | C22: Other topics as identified?
B23: =B22+1 -> 17 | C23: Is each operation provided with process instructions that are keyed to the control plan?
B24: =B23+1 -> 18 | C24: Are standard operator instructions available at each operation?
B25: =B24+1 -> 19 | C25: Were operator/team leaders involved in developing standard operator instructions?
B26: Do inspection instructions include:
B27: =B25+1 -> 20 | C27: Easily understood engineering performance specifications?
B28: =B27+1 -> 21 | C28: Test frequencies?
B29: =B28+1 -> 22 | C29: Sample sizes?
B30: =B29+1 -> 23 | C30: Reaction plans?
B31: =B30+1 -> 24 | C31: Documentation?
B32: Are visual aids:
B33: =B31+1 -> 25 | C33: Easily understood?
B34: =B33+1 -> 26 | C34: Available?
B35: 27 | C35: Accessible?
B36: 28 | C36: Approved?
B37: 29 | C37: Dated and current?
B38: 30 | C38: Is there a procedure to implement, maintain, and establish reaction plans for statistical control charts?
B39: 31 | C39: Is there an effective root cause analysis system in place?
B40: 32 | C40: Have provisions been made to place the latest drawings and specifications at the point of the inspection?
B41: 33 | C41: Are forms/logs available for appropriate personnel to record inspection results?
B42: Have provisions been made to place the following at the monitored operation:
B43: =B41+1 -> 34 | C43: Inspection gages?
B44: =B43+1 -> 35 | C44: Gage instructions?
B45: =B44+1 -> 36 | C45: Reference samples?
B46: =B45+1 -> 37 | C46: Inspection logs?
B47: =B46+1 -> 38 | C47: Have provisions been made to certify and routinely calibrate gages and test equipment?
B48: Have required measurement system capability studies been:
B49: =B47+1 -> 39 | C49: Completed?
B50: =B49+1 -> 40 | C50: Acceptable?
B51: =B50+1 -> 41 | C51: Are layout inspection equipment and facilities adequate to provide initial and ongoing layout of all details and components?
B52: Is there a procedure for controlling incoming product that identifies:
B53: =B51+1 -> 42 | C53: Characteristics to be inspected?
B54: =B53+1 -> 43 | C54: Frequency of inspection?
B55: =B54+1 -> 44 | C55: Sample size?
B56: =B55+1 -> 45 | C56: Designated location for approved product?
B57: =B56+1 -> 46 | C57: Disposition of nonconforming products?
B58: =B57+1 -> 47 | C58: Is there a procedure to identify, segregate, and control nonconforming products to prevent shipment?
B59: 48 | C59: Are rework/repair procedures available?
B60: 49 | C60: Is there a procedure to requalify repaired/reworked material?
B61: 50 | C61: Is there an appropriate lot traceability procedure?
B62: 51 | C62: Are periodic audits of outgoing products planned and implemented?
B63: 52 | C63: Are periodic surveys of the quality system planned and implemented?
B64: 53 | C64: Has the customer approved the packaging specification?
B65: Revision History
B66: Rev 1; 01/15/15
F67: Revision Date
F70: Prepared By:

Sheet Pass Through Characteristics
B2: Pass Through Characteristics | M2: CQD-113.25; Rev 1; 01/15/15
B3: Supplier | E3: ='APQP Kickoff - Team'!C3:J3 -> 0 | AC3: DO NOT DELETE THIS SECTION
B4: Manufacturing Location
B5: Part Description
B6: Part Number or Specification | AG6: OR
B7: Document Revision | AG7: Method <> Yes and <> Poke-Yoke | AH7: Ch. Type = "TP", Meth <> "PY" | AI7: IS Exception
B8: Instructions: For all features and notes listed below, enter the number from the balloon drawing and all related information per the column headings.
B9: Drawing Feature Review: Note that all Exceptions & RED PTC's require Corrective Action.
B10: Supplier | H10: FELL SQE | I10: Team | J10: Engineer | AC10: AND
B11: Balloon No. | C11: Process Routing Step No. | D11: Characteristic (Dimension and tolerance) | E11: Char. Type | F11: Supplier’s Production Control Method | G11: Supplier Production Checking Frequency | H11: FELL User Plant Control Method | I11: Is Supplier method & frequency acceptable? | J11: Affects Form, Fit and/or Function? | K11: Pass Thru Characteristic | L11: Issues / Comments / Corrective Action | AC11: Fields filled | AD11: NOT Modified | AE11: NOT Checked | AF11: IS FFF | AH11: c6 | AJ11: c7
B12: Example | C12: 10 | D12: abc | E12: KPC | F12: NONE | G12: 2/hour | H12: NONE | I12: No | J12: Yes | K12: =IF(OR(ISTEXT(D12),ISTEXT(E12),ISTEXT(F12),ISTEXT(H12)),IF(OR($F12="Exception",AND(($H12<>"Modified"),OR($H12="None",$H12="NONE",$H12=""),J12="Yes")),IF(OR(AND($I12<>"Yes",$I12<>"Poke-Yoke"),AND($E12="TP",$I12<>"Poke-Yoke"),$F12="Exception"),"PTC","(PTC)"),"No"),"-") -> PTC | L12: Briefly describe planned actions. | AC12: =OR(ISTEXT(D12),ISTEXT(E12),ISTEXT(F12),ISTEXT(H12)) -> TRUE | AD12: =($H12<>"Modified") -> TRUE | AE12: =OR($H12="None",$H12="NONE",$H12="") -> TRUE | AF12: =J12="Yes" -> TRUE | AG12: =AND($I12<>"Yes",$I12<>"Poke-Yoke") -> TRUE | AH12: =AND($E12="TP",$I12<>"Poke-Yoke") -> FALSE | AI12: =$F12="Exception" -> FALSE
B13: Example | C13: 11 | D13: xyz | E13: RFA | F13: NONE | G13: 1/hour | H13: NONE | I13: No | J13: No | K13: =IF(OR(ISTEXT(D13),ISTEXT(E13),ISTEXT(F13),ISTEXT(H13)),IF(OR($F13="Exception",AND(($H13<>"Modified"),OR($H13="None",$H13="NONE",$H13=""),J13="Yes")),IF(OR(AND($I13<>"Yes",$I13<>"Poke-Yoke"),AND($E13="TP",$I13<>"Poke-Yoke"),$F13="Exception"),"PTC","(PTC)"),"No"),"-") -> No | AC13: =OR(ISTEXT(D13),ISTEXT(E13),ISTEXT(F13),ISTEXT(H13)) -> TRUE | AD13: =($H13<>"Modified") -> TRUE | AE13: =OR($H13="None",$H13="NONE",$H13="") -> TRUE | AF13: =J13="Yes" -> FALSE | AG13: =AND($I13<>"Yes",$I13<>"Poke-Yoke") -> TRUE | AH13: =AND($E13="TP",$I13<>"Poke-Yoke") -> FALSE | AI13: =$F13="Exception" -> FALSE
B14: Example | C14: 12 | D14: abc | E14: SC (DC) | F14: Poke-Yoke | G14: 5/hour | H14: Receiving Insp. | I14: No | J14: Yes | K14: =IF(OR(ISTEXT(D14),ISTEXT(E14),ISTEXT(F14),ISTEXT(H14)),IF(OR($F14="Exception",AND(($H14<>"Modified"),OR($H14="None",$H14="NONE",$H14=""),J14="Yes")),IF(OR(AND($I14<>"Yes",$I14<>"Poke-Yoke"),AND($E14="TP",$I14<>"Poke-Yoke"),$F14="Exception"),"PTC","(PTC)"),"No"),"-") -> No | AC14: =OR(ISTEXT(D14),ISTEXT(E14),ISTEXT(F14),ISTEXT(H14)) -> TRUE | AD14: =($H14<>"Modified") -> TRUE | AE14: =OR($H14="None",$H14="NONE",$H14="") -> FALSE | AF14: =J14="Yes" -> TRUE | AG14: =AND($I14<>"Yes",$I14<>"Poke-Yoke") -> TRUE | AH14: =AND($E14="TP",$I14<>"Poke-Yoke") -> FALSE | AI14: =$F14="Exception" -> FALSE
B15: Example | C15: 13 | D15: xyz | E15: KPC | F15: Poke-Yoke | G15: 2/hour | H15: Receiving Insp. | I15: No | J15: No | K15: =IF(OR(ISTEXT(D15),ISTEXT(E15),ISTEXT(F15),ISTEXT(H15)),IF(OR($F15="Exception",AND(($H15<>"Modified"),OR($H15="None",$H15="NONE",$H15=""),J15="Yes")),IF(OR(AND($I15<>"Yes",$I15<>"Poke-Yoke"),AND($E15="TP",$I15<>"Poke-Yoke"),$F15="Exception"),"PTC","(PTC)"),"No"),"-") -> No | AC15: TRUE | AD15: TRUE | AE15: FALSE | AF15: FALSE | AG15: TRUE | AH15: FALSE | AI15: FALSE
B16: Example | C16: 14 | D16: tre | E16: CTQ | F16: NONE | G16: 2/hour | H16: NONE | I16: No | J16: Yes | K16: =IF(OR(ISTEXT(D16),ISTEXT(E16),ISTEXT(F16),ISTEXT(H16)),IF(OR($F16="Exception",AND(($H16<>"Modified"),OR($H16="None",$H16="NONE",$H16=""),J16="Yes")),IF(OR(AND($I16<>"Yes",$I16<>"Poke-Yoke"),AND($E16="TP",$I16<>"Poke-Yoke"),$F16="Exception"),"PTC","(PTC)"),"No"),"-") -> PTC | AC16: TRUE | AD16: TRUE | AE16: TRUE | AF16: TRUE | AG16: TRUE | AH16: FALSE | AI16: FALSE
B17: Example | C17: 15 | D17: sdf | E17: RFA | F17: NONE | G17: 1/hour | H17: NONE | I17: No | J17: No | K17: =IF(OR(ISTEXT(D17),ISTEXT(E17),ISTEXT(F17),ISTEXT(H17)),IF(OR($F17="Exception",AND(($H17<>"Modified"),OR($H17="None",$H17="NONE",$H17=""),J17="Yes")),IF(OR(AND($I17<>"Yes",$I17<>"Poke-Yoke"),AND($E17="TP",$I17<>"Poke-Yoke"),$F17="Exception"),"PTC","(PTC)"),"No"),"-") -> No | AC17: TRUE | AD17: TRUE | AE17: TRUE | AF17: FALSE | AG17: TRUE | AH17: FALSE | AI17: FALSE
B18: Example | C18: 16 | D18: qws | E18: Critical | F18: Caliper | G18: 2/hour | H18: NONE | I18: Yes | J18: Yes | K18: (PTC) | AC18: TRUE | AD18: TRUE | AE18: TRUE | AF18: TRUE | AG18: FALSE | AH18: FALSE | AI18: FALSE
B19: Example | C19: 17 | D19: ijy | E19: TP | F19: NONE | G19: 2/hour | H19: NONE | I19: No | J19: Yes | K19: PTC | AC19: TRUE | AD19: TRUE | AE19: TRUE | AF19: TRUE | AG19: TRUE | AH19: TRUE | AI19: FALSE
B20: Example | C20: 18 | D20: rtf | E20: SC | F20: NONE | G20: 1/hour | H20: NONE | I20: Poke-Yoke | J20: Yes | K20: (PTC) | AC20: TRUE | AD20: TRUE | AE20: TRUE | AF20: TRUE | AG20: FALSE | AH20: FALSE | AI20: FALSE
B21: Example | C21: 19 | D21: hhy | E21: SC | F21: NONE | G21: 2/hour | H21: NONE | I21: No | J21: Yes | K21: PTC | AC21: TRUE | AD21: TRUE | AE21: TRUE | AF21: TRUE | AG21: TRUE | AH21: FALSE | AI21: FALSE
B22: Example | C22: 20 | D22: ers | E22: SC | F22: NONE | G22: 2/hour | H22: NONE | I22: Yes | J22: Yes | K22: (PTC) | AC22: TRUE | AD22: TRUE | AE22: TRUE | AF22: TRUE | AG22: FALSE | AH22: FALSE | AI22: FALSE
K23: - | AC23: FALSE | AD23: TRUE | AE23: TRUE | AF23: FALSE | AG23: TRUE | AH23: FALSE | AI23: FALSE
K24: - | AC24: FALSE | AD24: TRUE | AE24: TRUE | AF24: FALSE | AG24: TRUE | AH24: FALSE | AI24: FALSE
K25: - | AC25: FALSE | AD25: TRUE | AE25: TRUE | AF25: FALSE | AG25: TRUE | AH25: FALSE | AI25: FALSE
K26: - | AC26: FALSE | AD26: TRUE | AE26: TRUE | AF26: FALSE | AG26: TRUE | AH26: FALSE | AI26: FALSE
K27: - | AC27: FALSE | AD27: TRUE | AE27: TRUE | AF27: FALSE | AG27: TRUE | AH27: FALSE | AI27: FALSE
B28: Note: Copy & insert additional rows above as needed. See 'Instructions' document for "how to". | K28: =IF(OR(ISBLANK(D28)=FALSE,ISBLANK(E28)=FALSE,ISBLANK(F28)=FALSE,ISBLANK(H28)=FALSE),IF(OR(H28="Modified",J28="No"),"No",IF(AND(J28="Yes",I28<>"Yes"),"PTC","No")),"") -> 
B29: Any features marked as an Exception or RED PTC requires a Corrective Action. Use the Corrective Action table below to document the planned Corrective Action(s), or separate Corrective Action plan.
B30: PLAN FOR 100% SORT OF SPECIAL CHARACTERISTICS (if needed)
B31: * = Mandatory Signature | E31: Signature below | J31: Name, Title
B32: * Supplier Quality Rep.: | J32: (enter name, title here)
B33: FELL Engineering Rep.: | J33: (enter name, title here)
B34: FELL Supply Chain Rep.: | J34: (enter name, title here)
B35: * (if facilitator) FELL SQE: | J35: (enter name, title here)
B36: * (if facilitator) FELL SDE: | J36: (enter name, title here)
B37: Date of Review: | J37: (dd-mmm-yyyy)
B38: Supplier list of Corrective Actions for any Exceptions or RED PTC's identified in the PTC Matrix above.
B39: Balloon No. | C39: Routing Step | D39: Characteristic (Dim. and tol.) | E39: Corrective Action | L39: Target Date | M39: Actual Date
B49: Revision History
B50: Rev 1; 01/15/15

Sheet Safe Launch Instructions
B2: SUPPLIER Procedures
B3: EARLY PRODUCTION CONTAINMENT PROCEDURE
B4: CQD-113.26; Rev 1; 01/15/15
B5: Scope
B6: The Early Production Containment Procedure applies to all suppliers which supply new or existing product to a new model program and is to be used for all pre-PPAP and PPAP approved production requirements as required by the customer plant. The procedure is to be communicated as part of the initial PPAP letter communication to the supplier and is considered a contractual obligation for the supplier that must be complied with.
B8: Definition and Purpose
B9: The Supplier Product Readiness Review Assessment and containment activities are designed to identify and correct potential issues prior to launch. The purpose of Supplier Production Readiness Review Assessment is to document the supplier’s efforts to gain control of its processes during start-up and acceleration (ramp-up), so that any quality issues that may arise are quickly identified and corrected at the supplier’s facility. The containment activity includes an increased level of off-line inspection documented in a control plan format for a specified period of time as agreed to by the Supplier and the FELL Plant. Recommendation is a minimum of ten shipments.
B11: Note: This procedure does not provide authorization to ship nor is it a shipping schedule.
B13: Supplier Responsibility
B14: The supplier must do the following:
B15: 1. Support a containment process that contains the following elements:
B16: 1.1 Identify (name, position, phone number and E-mail) the management team responsible for the Early Production Containment Process.
B17: 1.2 Complete all elements of the Supplier Production Readiness Review Assessment and forward in a timely manner as directed by the FELL supplier quality engineer.
B18: 1.3 Provide as evidence for Element 21 on the Readiness Assessment: The development and implementation of a Pre-Launch Control Plan (PLCP) in addition to a Control Plan that consist of additional controls, inspection, audits and testing as needed to identify non-conformances during the production process. Depending on the dominant factor in the production process (set-up, machinery, fixture, tooling, operator, material components, preventive maintenance) additional controls could include:
B19: · Increased frequency/sample size of receiving, process and/or shipping inspections.
B20: · Mandated sub-supplier containment and/or sub-supplier support/audits.
B21: · Additional inspection/control.
B22: · Increased verification of shipping label accuracy.
B23: · Enhancement of process controls, such as mistake proofing.
B24: · Mistake proofing validation through introduction of known defects.
B25: · Increased involvement and visibility of top management during this phase.
B26: 1.4 Document prompt implementation of containment and corrective actions when non-conformances are discovered using an agreed upon problem solving discipline and reporting format.
B27: 1.5 Identify on the control plan measurement equipment and data collection devices/activities to be used, where applicable.
B28: 1.6 Note: the development and documentation of the control plan is expected to occur during the development of the quality plan. The nor the PLCP are not substitutes for the Production Control Plan, but are over and above the Production Control Plan and shall be used to validate it. FELL must approve the control plan, including subsequent revisions, prior to any product runs. Inputs should include:
B29: 1.6.1 Engineering Prints
B30: 1.6.2 DFMEA’s and PFMEA’s
B31: 1.6.3 Process Capability
B32: 1.6.4 Critical to Quality (CTQ) dimensions and Pass Through Characteristics (PTC)
B33: 1.7 The Control Plan should be submitted with the PPAP Control Plan documents and will be used as reference documentation.
B34: 1.8 The Control Plan is a living document requiring revision and updates as necessary to address non-conformances found.
B36: 2. Support of the Early Production Containment Plan requires off-line certification of dimensions and quality characteristics as agreed upon between supplier and FELL plant supplier quality engineer. The certification criteria shall be in place for all pre-PPAP approved production requirements (e.g. prototype build, pilot build) in addition to the production ship quantities specified by the FELL releasing function (up to a designated number of shipments) or until the production control plan is validated, whichever occurs later.
B38: 3. Signify compliance with the requirements by attaching to each shipping label a green paper sticker dated and signed by the supplier’s Plant QA Manager. All inspection data should be captured on the Containment Results form and submitted with shipment.
B40: Exit Criteria
B41: The supplier will be eligible to exit Early Production Containment after meeting the criterion listed below. If the supplier is unable to meet the exit criteria or if the supplier’s containment continues to identify non-conformances, the supplier is expected to continue the necessary containment measures to insulate FELL. This will continue up to the time when the quality concerns have been resolved to the satisfaction of both the Supplier and FELL User Plant, and the Supplier’s Production Control Plan is validated.
B43: Criteria to Exit Early Production Containment:
B45: 1. Ship the number of pieces (minimum 10 shipments) specified by the FELL releasing function with no discrepancies or plant complaints.
B46: 2. If supplier does not meet exit criteria, then, to exit LW-10, all FELL Plant complaints must be closed by FELL Supplier Quality functions.
B47: 3. In the event the exit criteria has been met, but the containment continues to identify non-conformances, the plan must be kept in place until process controls and capabilities have proven effective and the Production Control Plan updated and validated.
B49: Revision History
B50: Rev 1; 01/15/15

Sheet Safe Launch Control Plan
O1: Note: This is a summary of the 3 documents (pre-launch, production control plan, and Early containment Plan)
B2: Safe Launch Control Plan | O2: CQD-113.27; Rev 1; 01/15/15
B3: Supplier Name: | D3: ='APQP Kickoff - Team'!C3:J3 -> 0 | H3: Part Name: | I3: ='APQP Kickoff - Team'!L3 -> 0 | L3: Orig. Issue Date:
B4: Location: | H4: Revision: | I4: ='APQP Kickoff - Team'!T3 -> 0 | L4: Revision / Date:
B5: FELL Plant(s): | H5: Project/ Program: | I5: ='APQP Kickoff - Team'!C4:V4 -> 0
B6: # | C6: Designated Characteristic | D6: Level/ Class | E6: Prod/ PPAP | F6: Control Method/ Equipment | G6: Sample Size | H6: Frequency | I6: SLP Exit Criteria | J6: Reporting | K6: Pp/ Ppk Cp/Cpk | L6: Comments
B7: 1.1 | C7: Example diameter 3,9 +- 0,05 | D7: C | E7: Prod. | F7: dial gage | G7: 5 | H7: 2h | I7: -- | J7: variable SPC
B8: 1.2 | E8: PPAP | F8: dial gauge | G8: 50 | H8: Beginning, middle, end of production run | I8: -- | J8: Capability study | K8: >2.0
B9: 1.3 | E9: LW-10 | F9: letterbox gauge | G9: 1 | H9: -- | I9: 10000 parts without defect | J9: P-Chart
B30: Characteristic Review Approval
B31: Name | D31: Position/ Title | G31: Date | I31: Signature
B34: Safe Launch Exit Approvals
B35: Name | D35: Position/ Title | G35: Date | I35: Signature
B39: Revision History
B40: Rev 1; 01/15/15

Sheet Dimension Report- FAI
O2: Note: IF A DIMENSION IS OUT OF SPEC., DO NOT SUBMIT PPAP. FIX THE DISCRAPANCY AND CONTACT FELL ASAP IF PPAP SUBMISSION IS GOING TO BE DELAYED.
B4: Production Part Approval / Dimensional Test Results | AC4: CQD-113.28; Rev 1; 01/15/15
B5: Supplier | F5: ='APQP Kickoff - Team'!C3 -> 0 | O5: Part Number | P5: ='APQP Kickoff - Team'!L3 -> 0
B6: Supplier / Vender Code | O6: Part Name
B7: Inspection Facility | O7: Design Record Change Level | P7: ='APQP Kickoff - Team'!T3 -> 0
O8: Engineering Change Document
B9: Item | D9: Dimension / Specification | H9: Specification / Limits | K9: Test Date | M9: Qty. Tested | O9: Measurement Method | P9: Supplier Measurement Results (DATA) | U9: OK | V9: Not OK | W9: FELL Measurement Results (optional) | AB9: OK | AC9: Not OK
B51: Blanket statements of conformance are unacceptable for any test results.
B53: Revision History | K53: Signature | P53: Title | U53: Date
B54: Rev 1; 01/15/15

Sheet Master Sample (hidden)

Sheet Checking Aids (hidden)

Sheet Material Test
I1: Production Part Approval
I2: Material Test Results
U3: CQD-113.29; Rev 1; 01/15/15
B4: ORGANIZATION: | M4: PART NUMBER:
B5: SUPPLIER / VENDOR CODE: | M5: PART NAME:
B6: MATERIAL SUPPLIER: | M6: DESIGN RECORD CHANGE LEVEL:
B7: *CUSTOMER SPECIFIED SUPPLIER / VENDOR CODE: | M7: ENGINEERING CHANGE DOCUMENTS:
B8: *If source approval is req'd, include the Supplier (Source) & Customer assigned code. | M8: NAME of LABORATORY:
B9: MATERIAL SPEC. NO. / REV / DATE | H9: SPECIFICATION / LIMITS | K9: TEST DATE | M9: QTY. TESTED | O9: SUPPLIER TEST RESULTS (DATA) | T9: OK | U9: NOT OK
B53: Revision History | J53: Blanket statements of conformance are unacceptable for any test results.
B54: Rev 1; 01/15/15
L55: SIGNATURE | Q55: TITLE | T55: DATE

Sheet Performance Test
I1: Production Part Approval
I2: Performance Test Results
U3: CQD-113.30; Rev 1; 01/15/15
B4: ORGANIZATION: | M4: PART NUMBER:
B5: SUPPLIER / VENDOR CODE: | M5: PART NAME:
B6: NAME of LABORATORY: | M6: DESIGN RECORD CHANGE LEVEL:
B7: *CUSTOMER SPECIFIED SUPPLIER / VENDOR CODE: | M7: ENGINEERING CHANGE DOCUMENTS:
B8: *If source approval is req'd, include the Supplier (Source) & Customer assigned code.
B9: TEST SPECIFICATION / REV / DATE | H9: SPECIFICATION / LIMITS | K9: TEST DATE | M9: QTY. TESTED | O9: SUPPLIER TEST RESULTS (DATA)/ TEST CONDITIONS | T9: OK | U9: NOT OK
B53: Revision History | J53: Blanket statements of conformance are unacceptable for any test results.
B54: Rev 1; 01/15/15
L55: SIGNATURE | Q55: TITLE | T55: DATE

Sheet Qualified Laboratory Doc
B2: Qualified Laboratory Doc | E2: CQD-113.31; Rev 1; 01/15/15
B3: AIAG Requirements: Inspection and testing for PPAP shall be performed by a qualified laboratory as defined by customer requirements (e.g., an accredited laboratory). The qualified laboratory (internal or external to the organization) shall have a laboratory scope and documentation showing that the laboratory is qualified for the type of measurements or tests conducted. When an external/commercial laboratory is used, the organization shall submit the test results on the laboratory letterhead or the normal laboratory report format. The name of the laboratory that performed the tests, the date (s) of the tests, and the standards used to run the tests shall be identified.
B4: Revision History
B5: Rev 1; 01/15/15

Sheet Appearance Approval
O1: APPEARANCE APPROVAL REPORT | Y1: CQD-113.32; Rev 1; 01/15/15
B2: PART | L2: DRAWING | T2: APPLICATION
B3: NUMBER | L3: NUMBER | T3: (VEHICLES)
B4: PART | L4: BUYER | Q4: E/C LEVEL | V4: DATE
B5: NAME | L5: CODE
B6: ORGANIZATION | K6: MANUFACTURING | V6: SUPPLIER / VENDOR
B7: NAME | K7: LOCATION | V7: CODE
B8: REASON FOR | F8: PART SUBMISSION WARRANT | K8: SPECIAL SAMPLE | Q8: RE-SUBMISSION | V8: OTHER
B9: SUBMISSION | F9: PRE TEXTURE | K9: FIRST PRODUCTION SHIPMENT | Q9: ENGINEERING CHANGE
M10: APPEARANCE EVALUATION
V11: AUTHORIZED CUSTOMER
G12: ORGANIZATION SOURCING AND TEXTURE INFORMATION | S12: PRE-TEXTURE | V12: REPRESENTATIVE
S13: EVALUATION | V13: SIGNATURE AND DATE
S14: CORRECT AND PROCEED
S16: CORRECT AND PROCEED
S18: APPROVED TO ETCH/TOOL/EDM
M20: COLOR EVALUATION
V21: METALLIC | X21: COLOR
B22: COLOR | E22: TRISTIMULUS DATA | H22: MASTER | I22: MASTER | J22: MATERIAL | K22: MATERIAL | L22: HUE | P22: VALUE | R22: CHROMA | T22: GLOSS | V22: BRILLIANCE | X22: SHIPPING | Y22: PART
B23: SUFFIX | C23: DL* | D23: Da* | E23: Db* | F23: DE* | G23: CMC | H23: NUMBER | I23: DATE | J23: TYPE | K23: SOURCE | L23: RED | M23: YEL | N23: GRN | O23: BLU | P23: LIGHT | Q23: DARK | R23: GRAY | S23: CLEAN | T23: HIGH | U23: LOW | V23: HIGH | W23: LOW | X23: SUFFIX | Y23: DISPOSITION
B32: COMMENTS
B35: ORGANIZATION | I35: PHONE NO. | K35: DATE | N35: AUTHORIZED CUSTOMER | X35: DATE
B36: SIGNATURE | N36: REPRESENTATIVE SIGNATURE
B37: Revision History
B38: Rev 1; 01/15/15

Sheet ATT Bias (Analytic)
B1: ATTRIBUTE GAGE BIAS REPORT | L1: ATTRIBUTE GAGE BIAS REPORT | V1: ATTRIBUTE GAGE BIAS REPORT
B2: ANALYTICAL METHOD - LOW LIMIT | L2: ANALYTICAL METHOD - HIGH LIMIT | V2: ANALYTICAL METHOD - GAGE PERFORMANCE CURVE
AE3: CQD-113.33; Rev 1; 01/15/15
B4: Part Number | F4: Gage Name | I4: Appraiser | L4: Part Number | P4: Gage Name | S4: Appraiser | V4: Part Number | Z4: Gage Name | AC4: Appraiser
P5: =IF(F5<>"",F5,"") ->  | S5: =IF(I5<>"",I5,"") ->  | Z5: =IF(P5<>"",P5,"") ->  | AC5: =IF(S5<>"",S5,"") -> 
B6: Part Name | F6: Gage Number | I6: Date Performed | L6: Part Name | P6: Gage Number | S6: Date Performed | V6: Part Name | Z6: Gage Number | AC6: Date Performed
P7: =IF(F7<>"",F7,"") ->  | S7: =IF(I7<>"",I7,"") ->  | Z7: =IF(P7<>"",P7,"") ->  | AC7: =IF(S7<>"",S7,"") -> 
B8: Characteristic | F8: Gage Type | H8: Upper Limit | J8: Lower Limit | L8: Characteristic | P8: Gage Type | R8: Upper Limit | T8: Lower Limit | V8: Characteristic | Z8: Gage Type | AB8: Upper Limit | AD8: Lower Limit
L9: =IF(B9<>"",B9,"") ->  | P9: =IF(F9<>"",F9,"") ->  | R9: =IF(H9<>"",H9,"") ->  | T9: =IF(J9<>"",J9,"") ->  | V9: =IF(L9<>"",L9,"") ->  | Z9: =IF(P9<>"",P9,"") ->  | AB9: =IF(R9<>"",R9,"") ->  | AD9: =IF(T9<>"",T9,"") -> 
H10: =IF(J9>H9,"Upper Limit Must be Greater than Lower Limit","") -> 
B12: ATTRIBUTE DATA | L12: ATTRIBUTE DATA | X12: LOW LIMIT RESULTS* | AB12: HIGH LIMIT RESULTS*
B13: # | C13: XT | D13: a | E13: P'a | G13: After entering data, follow the directions on the tab marked | L13: # | M13: XT | N13: a | O13: P'a | Q13: After entering data, follow the directions on the tab marked | X13: Bias | Y13: =IF(E37<>"",E37,"") ->  | AB13: Bias | AC13: =IF(O37<>"",O37,"") -> 
B14: 1 | E14: =IF(AND(D14=0,D15=0),0,IF(AND(D14=0,D15<>0),0.025,IF(D14<10,(D14+0.5)/20,IF(D14=10,0.5,IF(AND(D14>10,D14<20),(D14-0.5)/20,IF(AND(D14=20,B14<>9),0.975,IF(AND(D14=20,B14=9),1,"?"))))))) -> 0 | G14: 'Graph' to create the Gage Performance Curve | L14: 1 | O14: =IF(AND(N13=0,N14=0),0,IF(AND(N14=0,N13<>0),0.025,IF(N14<10,(N14+0.5)/20,IF(N14=10,0.5,IF(AND(N14>10,N14<20),(N14-0.5)/20,IF(AND(N14=20,L14<>1),0.975,IF(AND(N14=20,L14=1),1,"?"))))))) -> 0.025 | Q14: 'Graph' to create the Gage Performance Curve | X14: GRR | Y14: =IF(I37<>"",I37,"") ->  | AB14: GRR | AC14: =IF(S37<>"",S37,"") -> 
B15: 2 | E15: =IF(AND(D15=0,D16=0),0,IF(AND(D15=0,D16<>0),0.025,IF(D15<10,(D15+0.5)/20,IF(D15=10,0.5,IF(AND(D15>10,D15<20),(D15-0.5)/20,IF(AND(D15=20,B15<>9),0.975,IF(AND(D15=20,B15=9),1,"?"))))))) -> 0 | L15: 2 | O15: 0 | X15: sGRR | Y15: =IF(Y14<>"",Y14/5.15,"") ->  | AB15: sGRR | AC15: =IF(AC14<>"",AC14/5.15,"") -> 
B16: 3 | E16: 0 | L16: 3 | O16: 0 | X16: *Curve can be generated from low or high limit results if symmetry is assumed.
B17: 4 | E17: 0 | L17: 4 | O17: 0
B18: 5 | E18: 0 | L18: 5 | O18: 0
B19: 6 | E19: 0 | L19: 6 | O19: 0 | AG19: Measurement | AH19: P(pass) | AI19: USL | AJ19: LSL | AK19: Y
B20: 7 | E20: 0 | L20: 7 | O20: 0 | AG20: =$AJ$20-($AI$20-$AJ$20)/2 -> 0 | AH20: =NORMSDIST(($AI$20-AG20-$Y$13)/$Y$15)-NORMSDIST(($AJ$20-AG20-$Y$13)/$Y$15) ->  | AI20: =$H$9 -> 0 | AJ20: =$J$9 -> 0 | AK20: 0
B21: 8 | E21: 0 | L21: 8 | O21: 0 | AG21: =AG20+0.05*($AI$20-$AJ$20) -> 0 | AH21: =NORMSDIST(($AI$20-AG21-$Y$13)/$Y$15)-NORMSDIST(($AJ$20-AG21-$Y$13)/$Y$15) ->  | AI21: =$H$9 -> 0 | AJ21: =$J$9 -> 0 | AK21: 1
B22: 9 | E22: 0 | L22: 9 | O22: =IF(AND(N21=0,N22=0),0,IF(AND(N22=0,N21<>0),0.025,IF(N22<10,(N22+0.5)/20,IF(N22=10,0.5,IF(AND(N22>10,N22<20),(N22-0.5)/20,IF(AND(N22=20,L22<>1),0.975,IF(AND(N22=20,L22=1),1,"?"))))))) -> 0 | AG22: =AG21+0.05*($AI$20-$AJ$20) -> 0
AG23: 0
AG24: 0
C25: FROM THE GRAPH | M25: FROM THE GRAPH | AG25: 0
C26: ENTER THE FOLLOWING: | M26: ENTER THE FOLLOWING: | AG26: 0
C27: XT (P=.5) = | M27: XT (P=.5) = | AG27: 0
C28: XT (P=.995) = | M28: XT (P=.995) = | AG28: 0
C29: XT (P=.005) = | M29: XT (P=.005) = | AG29: 0
AG30: 0
AG31: 0
AG32: 0
AG33: 0
B34: Measurement Unit Analysis | L34: Measurement Unit Analysis | AG34: 0
B35: Bias | G35: Repeatability | L35: Bias | Q35: Repeatability | AG35: 0
C36: B | D36: = | E36: =IF(E27<>"",CONCATENATE(TEXT($J$9,"0.0000")," - (",TEXT($E$27,"0.000"),")"),"") ->  | G36: R | H36: = | I36: =IF(E28<>"",CONCATENATE("(",TEXT($E$28,"0.0000")," - (",TEXT($E$29,"0.0000"),")) / ",1.08),"") ->  | M36: B | N36: = | O36: =IF(O27<>"",CONCATENATE(TEXT($R$9,"0.0000")," - (",TEXT($O$27,"0.000"),")"),"") ->  | Q36: R | R36: = | S36: =IF(O28<>"",CONCATENATE("(",TEXT($O$29,"0.0000")," - (",TEXT($O$28,"0.0000"),")) / ",1.08),"") ->  | AG36: 0
D37: = | E37: =IF(E27<>"",$J$9-$E$27,"") ->  | H37: = | I37: =IF(E28<>"",($E$28-$E$29)/1.08,"") ->  | N37: = | O37: =IF(O27<>"",$R$9-$O$27,"") ->  | R37: = | S37: =IF(O28<>"",($O$29-$O$28)/1.08,"") ->  | AG37: 0
AG38: 0
B39: t Statistic | L39: t Statistic | AG39: 0
C40: t | D40: = | E40: 31.3 IBI / R | H40: t0.025,19 | I40: = | J40: 2.093 | M40: t | N40: = | O40: 31.3 IBI / R | R40: t0.025,19 | S40: = | T40: 2.093 | AG40: 0
D41: = | E41: =IF(E27<>"",CONCATENATE("31.3 x ",TEXT(ABS($E$37),"0.0000")," / ",TEXT($I$37,"0.0000")),"") ->  | N41: = | O41: =IF(O27<>"",CONCATENATE("31.3 x ",TEXT(ABS($O$37),"0.0000")," / ",TEXT($S$37,"0.0000")),"") ->  | W41: REMARKS | AG41: 0 | AH41: =NORMSDIST(($AI$20-AG41-$AC$13)/$AC$15)-NORMSDIST(($AJ$20-AG41-$AC$13)/$AC$15) -> 
D42: = | E42: =IF(E27<>"",31.3*ABS($E$37)/$I$37,"") ->  | N42: = | O42: =IF(O27<>"",31.3*ABS($O$37)/$S$37,"") ->  | AG42: 0 | AH42: =NORMSDIST(($AI$20-AG42-$AC$13)/$AC$15)-NORMSDIST(($AJ$20-AG42-$AC$13)/$AC$15) -> 
AG43: 0
B44: Result | L44: Result | AG44: 0
AG45: 0
C46: =IF(E27<>"",IF($E$42>$J$40,"The bias is significantly different from zero, the gage FAILS","The bias is insignificant from zero, the gage PASSES."),"") ->  | M46: =IF(O27<>"",IF($O$42>$T$40,"The bias is significantly different from zero, the gage FAILS","The bias is insignificant from zero, the gage PASSES."),"") ->  | AG46: 0
AG47: 0
AA48: Signature | AG48: 0
B49: Revision History | AG49: 0
B50: Rev 1; 01/15/15 | AA50: Title | AD50: Date | AG50: 0
AG51: 0
AG52: 0
AG53: 0
AG54: 0
AG55: 0
AG56: 0
AG57: 0
AG58: 0
AG59: 0
AG60: 0

Sheet Gage Performance Curve-Graph (hidden)
A1: Directions for Gage Performance Curve for Attribute Analytical Method Form
A3: 1) Click Tools - Data Analysis - Regression
A4: (If Data Analysis is not available load Analysis Tool Pak from the Add-Ins menu)
A5: 2) In the box for Input Y Range select the cells ATT BIAS(Analytic)!D14:D22
A6: 3) In the box for Input X Range select the cells ATT BIAS(Analytic)!B14:B22
A7: 4) In the box for Output range select the cells below A23:M60
A8: 5) Check Line Fit Plots
A9: 6) Press OK
A10: 7) Copy the Line Fit plot graph to the space on the Analytic sheet
A11: 8) Change the graph title to GPC - Low Side Normal Prob Paper
A12: 9) Change the x axis to Xt
A13: 10) Change the y axis to Probability
A14: 11) Repeat for high side data
M22: CQD-113.34; Rev 1; 01/15/15
A61: Revision History
A62: Rev 1; 01/15/15

Sheet Gage R&R ATT(Hyp) (hidden)
B1: GAGE REPEATABILITY AND REPRODUCIBILITY REPORT
B2: ATTRIBUTE HYPOTHESIS TEST METHOD
N3: CQD-113.35; Rev 1; 01/15/15
B4: Part Number | F4: Gage Name | I4: Date Performed | L4: Appraiser A
B6: Part Name | F6: Gage Number | I6: Gage Type | L6: Appraiser B
B8: Characteristic | F8: Upper Specification | I8: Lower Specification | L8: Appraiser C
B11: DATA TABLE | P11: AB Tabulation | T11: BC Tabulation | X11: AC Tabulation | AB11: AREF Tabulation | AF11: BREF Tabulation | AJ11: CREF Tabulation
B12: PART | C12: A-1 | D12: A-2 | E12: A-3 | F12: B-1 | G12: B-2 | H12: B-3 | I12: C-1 | J12: C-2 | K12: C-3 | L12: Reference | M12: Reference Value | N12: Code | P12: 1 | Q12: 2 | R12: 3 | T12: 1 | U12: 2 | V12: 3 | X12: 1 | Y12: 2 | Z12: 3 | AB12: 1 | AC12: 2 | AD12: 3 | AF12: 1 | AG12: 2 | AH12: 3 | AJ12: 1 | AK12: 2 | AL12: 3
B13: 1 | N13: =IF(C13<>"",IF(SUM(C13:K13)=9,"+",IF(SUM(C13:K13)=0,"-","x")),"") ->  | P13: =IF(C13<>"",IF(AND(C13=0,F13=0),"a",IF(AND(C13=1,F13=0),"b",IF(AND(C13=0,F13=1),"c","d"))),"") ->  | Q13: =IF(D13<>"",IF(AND(D13=0,G13=0),"a",IF(AND(D13=1,G13=0),"b",IF(AND(D13=0,G13=1),"c","d"))),"") ->  | R13: =IF(E13<>"",IF(AND(E13=0,H13=0),"a",IF(AND(E13=1,H13=0),"b",IF(AND(E13=0,H13=1),"c","d"))),"") ->  | T13: =IF(F13<>"",IF(AND(F13=0,I13=0),"a",IF(AND(F13=1,I13=0),"b",IF(AND(F13=0,I13=1),"c","d"))),"") ->  | U13: =IF(G13<>"",IF(AND(G13=0,J13=0),"a",IF(AND(G13=1,J13=0),"b",IF(AND(G13=0,J13=1),"c","d"))),"") ->  | V13: =IF(H13<>"",IF(AND(H13=0,K13=0),"a",IF(AND(H13=1,K13=0),"b",IF(AND(H13=0,K13=1),"c","d"))),"") ->  | X13: =IF(C13<>"",IF(AND(C13=0,I13=0),"a",IF(AND(C13=1,I13=0),"b",IF(AND(C13=0,I13=1),"c","d"))),"") ->  | Y13: =IF(D13<>"",IF(AND(D13=0,J13=0),"a",IF(AND(D13=1,J13=0),"b",IF(AND(D13=0,J13=1),"c","d"))),"") ->  | Z13: =IF(E13<>"",IF(AND(E13=0,K13=0),"a",IF(AND(E13=1,K13=0),"b",IF(AND(E13=0,K13=1),"c","d"))),"") ->  | AB13: =IF(C13<>"",IF(AND(C13=0,$L13=0),"a",IF(AND(C13=1,$L13=0),"b",IF(AND(C13=0,$L13=1),"c","d"))),"") ->  | AC13: =IF(D13<>"",IF(AND(D13=0,$L13=0),"a",IF(AND(D13=1,$L13=0),"b",IF(AND(D13=0,$L13=1),"c","d"))),"") ->  | AD13: =IF(E13<>"",IF(AND(E13=0,$L13=0),"a",IF(AND(E13=1,$L13=0),"b",IF(AND(E13=0,$L13=1),"c","d"))),"") ->  | AF13: =IF(G13<>"",IF(AND(F13=0,$L13=0),"a",IF(AND(F13=1,$L13=0),"b",IF(AND(F13=0,$L13=1),"c","d"))),"") ->  | AG13: =IF(H13<>"",IF(AND(G13=0,$L13=0),"a",IF(AND(G13=1,$L13=0),"b",IF(AND(G13=0,$L13=1),"c","d"))),"") ->  | AH13: =IF(I13<>"",IF(AND(H13=0,$L13=0),"a",IF(AND(H13=1,$L13=0),"b",IF(AND(H13=0,$L13=1),"c","d"))),"") ->  | AJ13: =IF(K13<>"",IF(AND(I13=0,$L13=0),"a",IF(AND(I13=1,$L13=0),"b",IF(AND(I13=0,$L13=1),"c","d"))),"") ->  | AK13: =IF(L13<>"",IF(AND(J13=0,$L13=0),"a",IF(AND(J13=1,$L13=0),"b",IF(AND(J13=0,$L13=1),"c","d"))),"") ->  | AL13: =IF(M13<>"",IF(AND(K13=0,$L13=0),"a",IF(AND(K13=1,$L13=0),"b",IF(AND(K13=0,$L13=1),"c","d"))),"") -> 
B14: =B13+1 -> 2 | N14: =IF(C14<>"",IF(SUM(C14:K14)=9,"+",IF(SUM(C14:K14)=0,"-","x")),"") ->  | P14: =IF(C14<>"",IF(AND(C14=0,F14=0),"a",IF(AND(C14=1,F14=0),"b",IF(AND(C14=0,F14=1),"c","d"))),"") ->  | Q14: =IF(D14<>"",IF(AND(D14=0,G14=0),"a",IF(AND(D14=1,G14=0),"b",IF(AND(D14=0,G14=1),"c","d"))),"") ->  | R14: =IF(E14<>"",IF(AND(E14=0,H14=0),"a",IF(AND(E14=1,H14=0),"b",IF(AND(E14=0,H14=1),"c","d"))),"") ->  | T14: =IF(F14<>"",IF(AND(F14=0,I14=0),"a",IF(AND(F14=1,I14=0),"b",IF(AND(F14=0,I14=1),"c","d"))),"") ->  | U14: =IF(G14<>"",IF(AND(G14=0,J14=0),"a",IF(AND(G14=1,J14=0),"b",IF(AND(G14=0,J14=1),"c","d"))),"") ->  | V14: =IF(H14<>"",IF(AND(H14=0,K14=0),"a",IF(AND(H14=1,K14=0),"b",IF(AND(H14=0,K14=1),"c","d"))),"") ->  | X14: =IF(C14<>"",IF(AND(C14=0,I14=0),"a",IF(AND(C14=1,I14=0),"b",IF(AND(C14=0,I14=1),"c","d"))),"") ->  | Y14: =IF(D14<>"",IF(AND(D14=0,J14=0),"a",IF(AND(D14=1,J14=0),"b",IF(AND(D14=0,J14=1),"c","d"))),"") ->  | Z14: =IF(E14<>"",IF(AND(E14=0,K14=0),"a",IF(AND(E14=1,K14=0),"b",IF(AND(E14=0,K14=1),"c","d"))),"") ->  | AB14: =IF(C14<>"",IF(AND(C14=0,$L14=0),"a",IF(AND(C14=1,$L14=0),"b",IF(AND(C14=0,$L14=1),"c","d"))),"") ->  | AC14: =IF(D14<>"",IF(AND(D14=0,$L14=0),"a",IF(AND(D14=1,$L14=0),"b",IF(AND(D14=0,$L14=1),"c","d"))),"") ->  | AD14: =IF(E14<>"",IF(AND(E14=0,$L14=0),"a",IF(AND(E14=1,$L14=0),"b",IF(AND(E14=0,$L14=1),"c","d"))),"") ->  | AF14: =IF(G14<>"",IF(AND(F14=0,$L14=0),"a",IF(AND(F14=1,$L14=0),"b",IF(AND(F14=0,$L14=1),"c","d"))),"") ->  | AG14: =IF(H14<>"",IF(AND(G14=0,$L14=0),"a",IF(AND(G14=1,$L14=0),"b",IF(AND(G14=0,$L14=1),"c","d"))),"") ->  | AH14: =IF(I14<>"",IF(AND(H14=0,$L14=0),"a",IF(AND(H14=1,$L14=0),"b",IF(AND(H14=0,$L14=1),"c","d"))),"") ->  | AJ14: =IF(K14<>"",IF(AND(I14=0,$L14=0),"a",IF(AND(I14=1,$L14=0),"b",IF(AND(I14=0,$L14=1),"c","d"))),"") ->  | AK14: =IF(L14<>"",IF(AND(J14=0,$L14=0),"a",IF(AND(J14=1,$L14=0),"b",IF(AND(J14=0,$L14=1),"c","d"))),"") ->  | AL14: =IF(M14<>"",IF(AND(K14=0,$L14=0),"a",IF(AND(K14=1,$L14=0),"b",IF(AND(K14=0,$L14=1),"c","d"))),"") -> 
B15: =B14+1 -> 3
B16: 4
B17: 5
B18: 6
B19: 7
B20: 8
B21: 9
B22: 10
B23: 11
B24: 12
B25: 13
B26: 14
B27: 15
B28: 16
B29: 17
B30: 18
B31: 19
B32: 20
B33: 21
B34: 22
B35: 23
B36: 24
B37: 25
B38: 26
B39: 27
B40: 28
B41: 29
B42: 30
B43: 31
B44: 32
B45: 33
B46: 34
B47: 35
B48: 36
B49: 37
B50: 38
B51: 39
B52: 40
B55: DATA TABLE CONTINUED
B56: PART | C56: A-1 | D56: A-2 | E56: A-3 | F56: B-1 | G56: B-2 | H56: B-3 | I56: C-1 | J56: C-2 | K56: C-3 | L56: Reference | M56: Reference Value | N56: Code
B57: =B52+1 -> 41 | N57: =IF(C57<>"",IF(SUM(C57:K57)=9,"+",IF(SUM(C57:K57)=0,"-","x")),"") ->  | P57: =IF(C57<>"",IF(AND(C57=0,F57=0),"a",IF(AND(C57=1,F57=0),"b",IF(AND(C57=0,F57=1),"c","d"))),"") ->  | Q57: =IF(D57<>"",IF(AND(D57=0,G57=0),"a",IF(AND(D57=1,G57=0),"b",IF(AND(D57=0,G57=1),"c","d"))),"") ->  | R57: =IF(E57<>"",IF(AND(E57=0,H57=0),"a",IF(AND(E57=1,H57=0),"b",IF(AND(E57=0,H57=1),"c","d"))),"") ->  | T57: =IF(F57<>"",IF(AND(F57=0,I57=0),"a",IF(AND(F57=1,I57=0),"b",IF(AND(F57=0,I57=1),"c","d"))),"") ->  | U57: =IF(G57<>"",IF(AND(G57=0,J57=0),"a",IF(AND(G57=1,J57=0),"b",IF(AND(G57=0,J57=1),"c","d"))),"") ->  | V57: =IF(H57<>"",IF(AND(H57=0,K57=0),"a",IF(AND(H57=1,K57=0),"b",IF(AND(H57=0,K57=1),"c","d"))),"") ->  | X57: =IF(C57<>"",IF(AND(C57=0,I57=0),"a",IF(AND(C57=1,I57=0),"b",IF(AND(C57=0,I57=1),"c","d"))),"") ->  | Y57: =IF(D57<>"",IF(AND(D57=0,J57=0),"a",IF(AND(D57=1,J57=0),"b",IF(AND(D57=0,J57=1),"c","d"))),"") ->  | Z57: =IF(E57<>"",IF(AND(E57=0,K57=0),"a",IF(AND(E57=1,K57=0),"b",IF(AND(E57=0,K57=1),"c","d"))),"") ->  | AB57: =IF(C57<>"",IF(AND(C57=0,$L57=0),"a",IF(AND(C57=1,$L57=0),"b",IF(AND(C57=0,$L57=1),"c","d"))),"") ->  | AC57: =IF(D57<>"",IF(AND(D57=0,$L57=0),"a",IF(AND(D57=1,$L57=0),"b",IF(AND(D57=0,$L57=1),"c","d"))),"") ->  | AD57: =IF(E57<>"",IF(AND(E57=0,$L57=0),"a",IF(AND(E57=1,$L57=0),"b",IF(AND(E57=0,$L57=1),"c","d"))),"") ->  | AF57: =IF(G57<>"",IF(AND(F57=0,$L57=0),"a",IF(AND(F57=1,$L57=0),"b",IF(AND(F57=0,$L57=1),"c","d"))),"") ->  | AG57: =IF(H57<>"",IF(AND(G57=0,$L57=0),"a",IF(AND(G57=1,$L57=0),"b",IF(AND(G57=0,$L57=1),"c","d"))),"") ->  | AH57: =IF(I57<>"",IF(AND(H57=0,$L57=0),"a",IF(AND(H57=1,$L57=0),"b",IF(AND(H57=0,$L57=1),"c","d"))),"") ->  | AJ57: =IF(K57<>"",IF(AND(I57=0,$L57=0),"a",IF(AND(I57=1,$L57=0),"b",IF(AND(I57=0,$L57=1),"c","d"))),"") ->  | AK57: =IF(L57<>"",IF(AND(J57=0,$L57=0),"a",IF(AND(J57=1,$L57=0),"b",IF(AND(J57=0,$L57=1),"c","d"))),"") ->  | AL57: =IF(M57<>"",IF(AND(K57=0,$L57=0),"a",IF(AND(K57=1,$L57=0),"b",IF(AND(K57=0,$L57=1),"c","d"))),"") -> 
B58: 42
B59: 43
B60: 44
B61: 45
B62: 46
B63: 47
B64: 48
B65: 49
B66: 50
C71: Risk Analysis
C73: A * B Crosstabulation
H75: B | L75: Total
H76: 0 | J76: 1
C77: A | D77: 0 | E77: Count | H77: =COUNTIF($P$13:$R$66,"=a") -> 0 | J77: =COUNTIF($P$13:$R$66,"=c") -> 0 | L77: =SUM(H77:K77) -> 0
E78: Expected Count | H78: =IF(L81<>0,L77/L81*H81,"") ->  | J78: =IF(L81<>0,L77/L81*J81,"") ->  | L78: =IF(H78<>"",H78+J78,"") -> 
D79: 1 | E79: Count | H79: =COUNTIF($P$13:$R$66,"=b") -> 0 | J79: =COUNTIF($P$13:$R$66,"=d") -> 0 | L79: =SUM(H79:K79) -> 0
E80: Expected Count | H80: =IF(L81<>0,L79/L81*H81,"") ->  | J80: =IF(L81<>0,L79/L81*J81,"") ->  | L80: =IF(H80<>"",H80+J80,"") -> 
C81: Total | E81: Count | H81: =H77+H79 -> 0 | J81: =J77+J79 -> 0 | L81: =L77+L79 -> 0
E82: Expected Count | H82: =IF(H78<>"",H78+H80,"") ->  | J82: =IF(J78<>"",J78+J80,"") ->  | L82: =IF(L78<>"",L78+L80,"") -> 
C85: B * C Crosstabulation
H87: C | L87: Total
H88: 0 | J88: 1
C89: B | D89: 0 | E89: Count | H89: =COUNTIF($T$13:$V$66,"=a") -> 0 | J89: =COUNTIF($T$13:$V$66,"=c") -> 0 | L89: =SUM(H89:K89) -> 0
E90: Expected Count | H90: =IF(L93<>0,L89/L93*H93,"") ->  | J90: =IF(L93<>0,L89/L93*J93,"") ->  | L90: =IF(H90<>"",H90+J90,"") -> 
D91: 1 | E91: Count | H91: =COUNTIF($T$13:$V$66,"=b") -> 0 | J91: =COUNTIF($T$13:$V$66,"=d") -> 0 | L91: =SUM(H91:K91) -> 0
E92: Expected Count | H92: =IF(L93<>0,L91/L93*H93,"") ->  | J92: =IF(L93<>0,L91/L93*J93,"") ->  | L92: =IF(H92<>"",H92+J92,"") -> 
C93: Total | E93: Count | H93: =H89+H91 -> 0 | J93: =J89+J91 -> 0 | L93: =L89+L91 -> 0
E94: Expected Count | H94: =IF(H90<>"",H90+H92,"") ->  | J94: =IF(J90<>"",J90+J92,"") ->  | L94: =IF(L90<>"",L90+L92,"") -> 
C98: A * C Crosstabulation
H100: C | L100: Total
H101: 0 | J101: 1
C102: A | D102: 0 | E102: Count | H102: =COUNTIF($X$13:$Z$66,"=a") -> 0 | J102: =COUNTIF($X$13:$Z$66,"=c") -> 0 | L102: =SUM(H102:K102) -> 0
E103: Expected Count | H103: =IF(L106<>0,L102/L106*H106,"") ->  | J103: =IF(L106<>0,L102/L106*J106,"") ->  | L103: =IF(H103<>"",H103+J103,"") -> 
D104: 1 | E104: Count | H104: =COUNTIF($X$13:$Z$66,"=b") -> 0 | J104: =COUNTIF($X$13:$Z$66,"=d") -> 0 | L104: =SUM(H104:K104) -> 0
E105: Expected Count | H105: =IF(L106<>0,L104/L106*H106,"") ->  | J105: =IF(L106<>0,L104/L106*J106,"") ->  | L105: =IF(H105<>"",H105+J105,"") -> 
C106: Total | E106: Count | H106: =H102+H104 -> 0 | J106: =J102+J104 -> 0 | L106: =L102+L104 -> 0
E107: Expected Count | H107: =IF(H103<>"",H103+H105,"") ->  | J107: =IF(J103<>"",J103+J105,"") ->  | L107: =IF(L103<>"",L103+L105,"") -> 
C110: Kappa | E110: A | G110: B | I110: C
C111: A | E111: - | G111: =IF(H81<>0,((H77+J79)/L81-(H78+J80)/L82)/(1-(H78+J80)/L82),"") ->  | I111: =IF(H106<>0,((H102+J104)/L106-(H103+J105)/L107)/(1-(H103+J105)/L107),"") -> 
C112: B | E112: =G111 ->  | G112: - | I112: =IF(H93<>0,((H89+J91)/L93-(H90+J92)/L94)/(1-(H90+J92)/L94),"") -> 
C113: C | E113: =I111 ->  | G113: =I112 ->  | I113: -
C116: DETERMINATION
C117: A x B | D117: =IF(G111<>"",IF(G111>0.7,"Good Agreement",IF(G111<0.4,"Poor Agreement","Some Agreement")),"") ->  | H117: 0.75 or higher indicates good agreement
C118: A x C | D118: =IF(I112<>"",IF(I111>0.7,"Good Agreement",IF(I111<0.4,"Poor Agreement","Some Agreement")),"") ->  | H118: Between 0.40 and 0.75 indicates some agreement
C119: B x C | D119: =IF(G113<>"",IF(G113>0.7,"Good Agreement",IF(G113<0.4,"Poor Agreement","Some Agreement")),"") ->  | H119: Less then 0.40 indeicates poor agreement
C122: A * REF Crosstabulation
H124: REF | L124: Total
H125: 0 | J125: 1
C126: A | D126: 0 | E126: Count | H126: =COUNTIF($AB$13:$AD$66,"=a") -> 0 | J126: =COUNTIF($AB$13:$AD$66,"=c") -> 0 | L126: =SUM(H126:K126) -> 0
E127: Expected Count | H127: =IF(L130<>0,L126/L130*H130,"") ->  | J127: =IF(L130<>0,L126/L130*J130,"") ->  | L127: =IF(H127<>"",H127+J127,"") -> 
D128: 1 | E128: Count | H128: =COUNTIF($AB$13:$AD$66,"=b") -> 0 | J128: =COUNTIF($AB$13:$AD$66,"=d") -> 0 | L128: =SUM(H128:K128) -> 0
E129: Expected Count | H129: =IF(L130<>0,L128/L130*H130,"") ->  | J129: =IF(L130<>0,L128/L130*J130,"") ->  | L129: =IF(H129<>"",H129+J129,"") -> 
C130: Total | E130: Count | H130: =H126+H128 -> 0 | J130: =J126+J128 -> 0 | L130: =L126+L128 -> 0
E131: Expected Count | H131: =IF(H127<>"",H127+H129,"") ->  | J131: =IF(J127<>"",J127+J129,"") ->  | L131: =IF(L127<>"",L127+L129,"") -> 
C134: B * REF Crosstabulation
H136: REF | L136: Total
H137: 0 | J137: 1
C138: B | D138: 0 | E138: Count | H138: =COUNTIF($AF$13:$AH$66,"=a") -> 0 | J138: =COUNTIF($AF$13:$AH$66,"=c") -> 0 | L138: =SUM(H138:K138) -> 0
E139: Expected Count | H139: =IF(L142<>0,L138/L142*H142,"") ->  | J139: =IF(L142<>0,L138/L142*J142,"") ->  | L139: =IF(H139<>"",H139+J139,"") -> 
D140: 1 | E140: Count | H140: =COUNTIF($AF$13:$AH$66,"=b") -> 0 | J140: =COUNTIF($AF$13:$AH$66,"=d") -> 0 | L140: =SUM(H140:K140) -> 0
E141: Expected Count | H141: =IF(L142<>0,L140/L142*H142,"") ->  | J141: =IF(L142<>0,L140/L142*J142,"") ->  | L141: =IF(H141<>"",H141+J141,"") -> 
C142: Total | E142: Count | H142: =H138+H140 -> 0 | J142: =J138+J140 -> 0 | L142: =L138+L140 -> 0
E143: Expected Count | H143: =IF(H139<>"",H139+H141,"") ->  | J143: =IF(J139<>"",J139+J141,"") ->  | L143: =IF(L139<>"",L139+L141,"") -> 
C147: C * REF Crosstabulation
H149: REF | L149: Total
H150: 0 | J150: 1
C151: C | D151: 0 | E151: Count | H151: =COUNTIF($AJ$13:$AL$66,"=a") -> 0 | J151: =COUNTIF($AJ$13:$AL$66,"=c") -> 0 | L151: =SUM(H151:K151) -> 0
E152: Expected Count | H152: =IF(L155<>0,L151/L155*H155,"") ->  | J152: =IF(L155<>0,L151/L155*J155,"") ->  | L152: =IF(H152<>"",H152+J152,"") -> 
D153: 1 | E153: Count | H153: =COUNTIF($AJ$13:$AL$66,"=b") -> 0 | J153: =COUNTIF($AJ$13:$AL$66,"=d") -> 0 | L153: =SUM(H153:K153) -> 0
E154: Expected Count | H154: =IF(L155<>0,L153/L155*H155,"") ->  | J154: =IF(L155<>0,L153/L155*J155,"") ->  | L154: =IF(H154<>"",H154+J154,"") -> 
C155: Total | E155: Count | H155: =H151+H153 -> 0 | J155: =J151+J153 -> 0 | L155: =L151+L153 -> 0
E156: Expected Count | H156: =IF(H152<>"",H152+H154,"") ->  | J156: =IF(J152<>"",J152+J154,"") ->  | L156: =IF(L152<>"",L152+L154,"") -> 
E159: A | G159: B | I159: C
C160: Kappa | E160: =IF(L131<>"",((H126+J128)/L130-(H127+J129)/L131)/(1-(H127+J129)/L131),"") ->  | G160: =IF(L143<>"",((H138+J140)/L142-(H139+J141)/L143)/(1-(H139+J141)/L143),"") ->  | I160: =IF(L156<>"",((H151+J153)/L155-(H152+J154)/L156)/(1-(H152+J154)/L156),"") -> 
C163: DETERMINATION
C164: A x REF | E164: =IF(E160<>"",IF(E160>0.7,"Good Agreement",IF(E160<0.4,"Poor Agreement","Some Agreement")),"") ->  | I164: 0.75 or higher indicates good agreement
C165: B x REF | E165: =IF(G160<>"",IF(G160>0.7,"Good Agreement",IF(G160<0.4,"Poor Agreement","Some Agreement")),"") ->  | I165: Between 0.40 and 0.75 indicates some agreement
C166: C x REF | E166: =IF(I160<>"",IF(I160>0.7,"Good Agreement",IF(I160<0.4,"Poor Agreement","Some Agreement")),"") ->  | I166: Less then 0.40 indeicates poor agreement
F169: % Appraiser1 | L169: % Score vs. Attribute2
C170: Source | F170: Appraiser A | H170: Appraiser B | J170: Appraiser C | L170: Appraiser A | M170: Appraiser B | N170: Appraiser C | P170: A analysis | T170: B analysis | X170: C analysis | AB170: System
C171: Total Inspected | F171: =IF(C13<>"",COUNT(C13:C52)+COUNT(C57:C66),"") ->  | H171: =IF(F13<>"",COUNT(F13:F52)+COUNT(F57:F66),"") ->  | J171: =IF(I13<>"",COUNT(I13:I52)+COUNT(I57:I66),"") ->  | L171: =F171 ->  | M171: =H171 ->  | N171: =J171 ->  | P171: =IF(C13<>"",IF(AND(C13=D13,D13=E13),1,0),"") ->  | Q171: =IF(C13<>"",IF(AND(C13=D13,D13=E13,E13=L13),1,0),"") ->  | R171: =IF(P171<>"",IF(P171<>Q171,L13,""),"") ->  | T171: =IF(F13<>"",IF(AND(F13=G13,F13=H13),1,0),"") ->  | U171: =IF(F13<>"",IF(AND(F13=G13,G13=H13,H13=L13),1,0),"") ->  | V171: =IF(T171<>"",IF(T171<>U171,L13,""),"") ->  | X171: =IF(I13<>"",IF(AND(I13=J13,J13=K13),1,0),"") ->  | Y171: =IF(I13<>"",IF(AND(I13=J13,J13=K13,K13=L13),1,0),"") ->  | Z171: =IF(X171<>"",IF(X171<>Y171,L13,""),"") ->  | AB171: =IF(C13<>"",IF(OR(SUM(C13:K13)=9,SUM(C13:K13)=0),1,0),"") ->  | AC171: =IF(Y171<>"",IF(Q171+U171+Y171=3,1,0),"") -> 
C172: # Matched | F172: =SUM(P171:P224) -> 0 | H172: =SUM(T171:T224) -> 0 | J172: =SUM(X171:X224) -> 0 | L172: =SUM(Q171:Q224) -> 0 | M172: =SUM(U171:U224) -> 0 | N172: =SUM(Y171:Y224) -> 0 | P172: =IF(C14<>"",IF(AND(C14=D14,D14=E14),1,0),"") ->  | Q172: =IF(C14<>"",IF(AND(C14=D14,D14=E14,E14=L14),1,0),"") ->  | R172: =IF(P172<>"",IF(P172<>Q172,L14,""),"") ->  | T172: =IF(F14<>"",IF(AND(F14=G14,F14=H14),1,0),"") ->  | U172: =IF(F14<>"",IF(AND(F14=G14,G14=H14,H14=L14),1,0),"") ->  | V172: =IF(T172<>"",IF(T172<>U172,L14,""),"") ->  | X172: =IF(I14<>"",IF(AND(I14=J14,J14=K14),1,0),"") ->  | Y172: =IF(I14<>"",IF(AND(I14=J14,J14=K14,K14=L14),1,0),"") ->  | Z172: =IF(X172<>"",IF(X172<>Y172,L14,""),"") ->  | AB172: =IF(C14<>"",IF(OR(SUM(C14:K14)=9,SUM(C14:K14)=0),1,0),"") ->  | AC172: =IF(Y172<>"",IF(Q172+U172+Y172=3,1,0),"") -> 
C173: False Positive (appraiser biased towards rejection) | L173: =COUNTIF(R171:R224,"=1") -> 0 | M173: =COUNTIF(V171:V224,"=1") -> 0 | N173: =COUNTIF(Z171:Z224,"=1") -> 0
C174: False Negative (appraiser biased towards acceptance) | L174: =COUNTIF(R171:R224,"=0") -> 0 | M174: =COUNTIF(V171:V224,"=0") -> 0 | N174: =COUNTIF(Z171:Z224,"=0") -> 0
C175: Mixed | L175: =IF(L171<>"",L171-L172,"") ->  | M175: =IF(M171<>"",M171-M172,"") ->  | N175: =IF(N171<>"",N171-N172,"") -> 
C176: 95% UCI5 | F176: =IF(F172<>0,(F177+1.96*1.96/2/F172+1.96*SQRT((F177*(1-F177)+1.96*1.96/4/F172)/F172))/(1+1.96*1.96/F172),"") ->  | H176: =IF(H172<>0,(H177+1.96*1.96/2/H172+1.96*SQRT((H177*(1-H177)+1.96*1.96/4/H172)/H172))/(1+1.96*1.96/H172),"") ->  | J176: =IF(J172<>0,(J177+1.96*1.96/2/J172+1.96*SQRT((J177*(1-J177)+1.96*1.96/4/J172)/J172))/(1+1.96*1.96/J172),"") ->  | L176: =IF(L172<>0,(L177+1.96*1.96/2/L172+1.96*SQRT((L177*(1-L177)+1.96*1.96/4/L172)/L172))/(1+1.96*1.96/L172),"") ->  | M176: =IF(M172<>0,(M177+1.96*1.96/2/M172+1.96*SQRT((M177*(1-M177)+1.96*1.96/4/M172)/M172))/(1+1.96*1.96/M172),"") ->  | N176: =IF(N172<>0,(N177+1.96*1.96/2/N172+1.96*SQRT((N177*(1-N177)+1.96*1.96/4/N172)/N172))/(1+1.96*1.96/N172),"") -> 
C177: Calculated Score | F177: =IF(L171<>"",F172/F171,"") ->  | H177: =IF(N171<>"",H172/H171,"") ->  | J177: =IF(P171<>"",J172/J171,"") ->  | L177: =IF(L171<>"",L172/L171,"") ->  | M177: =IF(M171<>"",M172/M171,"") ->  | N177: =IF(N171<>"",N172/N171,"") -> 
C178: 95% LCI5 | F178: =IF(F172<>0,(F177+1.96*1.96/2/F172-1.96*SQRT((F177*(1-F177)+1.96*1.96/4/F172)/F172))/(1+1.96*1.96/F172),"") ->  | H178: =IF(H172<>0,(H177+1.96*1.96/2/H172-1.96*SQRT((H177*(1-H177)+1.96*1.96/4/H172)/H172))/(1+1.96*1.96/H172),"") ->  | J178: =IF(J172<>0,(J177+1.96*1.96/2/J172-1.96*SQRT((J177*(1-J177)+1.96*1.96/4/J172)/J172))/(1+1.96*1.96/J172),"") ->  | L178: =IF(L172<>0,(L177+1.96*1.96/2/L172-1.96*SQRT((L177*(1-L177)+1.96*1.96/4/L172)/L172))/(1+1.96*1.96/L172),"") ->  | M178: =IF(M172<>0,(M177+1.96*1.96/2/M172-1.96*SQRT((M177*(1-M177)+1.96*1.96/4/M172)/M172))/(1+1.96*1.96/M172),"") ->  | N178: =IF(N172<>0,(N177+1.96*1.96/2/N172-1.96*SQRT((N177*(1-N177)+1.96*1.96/4/N172)/N172))/(1+1.96*1.96/N172),"") -> 
F181: System % Effective Score3 | L181: System % Effective Score vs. Reference4
C182: Total Inspected | H182: =F171 ->  | M182: =L171 -> 
C183: # in Agreement | H183: =SUM(AB171:AB224) -> 0 | M183: =SUM(AC171:AC224) -> 0
C184: 95% UCI5 | H184: =IF(H183<>0,(H185+1.96*1.96/2/H183+1.96*SQRT((H185*(1-H185)+1.96*1.96/4/H183)/H183))/(1+1.96*1.96/H183),"") ->  | M184: =IF(M183<>0,(M185+1.96*1.96/2/M183+1.96*SQRT((M185*(1-M185)+1.96*1.96/4/M183)/M183))/(1+1.96*1.96/M183),"") -> 
C185: Calculated Score | H185: =IF(H182<>"",H183/H182,"") ->  | M185: =IF(M182<>"",M183/M182,"") -> 
C186: 95% LCI5 | H186: =IF(H183<>0,(H185+1.96*1.96/2/H183-1.96*SQRT((H185*(1-H185)+1.96*1.96/4/H183)/H183))/(1+1.96*1.96/H183),"") ->  | M186: =IF(M183<>0,(M185+1.96*1.96/2/M183-1.96*SQRT((M185*(1-M185)+1.96*1.96/4/M183)/M183))/(1+1.96*1.96/M183),"") -> 
C188: Notes:
E189: (1) Appraiser agress with themself on all trials
E190: (2) Appraiser agrees on all trials with the known standard
E191: (3) All appraisers agreed within and between themselves
E192: (4) All appraisers agreed within and between themselves and with the reference
E193: (5) UCI and LCI are the upper and lower confidence internval bounds, respectively (Wilson score method)
C196: H0: | D196: The effectiveness of both appraisers is the same | L196: (Null hypothesis)
C197: HA: | D197: The effectiveness of both appraisers is not the same | L197: (Alternative Hypothesis)
C199: Acceptance criteria: | F199: The calculated score of the appraiser falls between the confidence interval of the other.
C201: EFFECTIVENESS EVALUATION
C202: Appraiser A vs. Appraiser B | G202: =IF(AND(H177<F176,H177>F178),"Accept Null Hypothesis","Reject Null Hypothesis Accept Alternative") -> Reject Null Hypothesis Accept Alternative
C203: Appraiser A vs. Appraiser C | G203: =IF(AND(J177<F176,J177>F178),"Accept Null Hypothesis","Reject Null Hypothesis Accept Alternative") -> Reject Null Hypothesis Accept Alternative
C204: Appraiser B vs. Appraiser C | G204: =IF(AND(J177<H176,J177>H178),"Accept Null Hypothesis","Reject Null Hypothesis Accept Alternative") -> Reject Null Hypothesis Accept Alternative
C214: Second Analysis
P215: =IF(C57<>"",IF(AND(C57=D57,D57=E57),1,0),"") ->  | Q215: =IF(C57<>"",IF(AND(C57=D57,D57=E57,E57=L57),1,0),"") ->  | R215: =IF(P215<>"",IF(P215<>Q215,L57,""),"") ->  | T215: =IF(F57<>"",IF(AND(F57=G57,F57=H57),1,0),"") ->  | U215: =IF(F57<>"",IF(AND(F57=G57,G57=H57,H57=L57),1,0),"") ->  | V215: =IF(T215<>"",IF(T215<>U215,L57,""),"") ->  | X215: =IF(I57<>"",IF(AND(I57=J57,J57=K57),1,0),"") ->  | Y215: =IF(I57<>"",IF(AND(I57=J57,J57=K57,K57=L57),1,0),"") ->  | Z215: =IF(X215<>"",IF(X215<>Y215,L57,""),"") ->  | AB215: =IF(C57<>"",IF(OR(SUM(C57:K57)=9,SUM(C57:K57)=0),1,0),"") ->  | AC215: =IF(Y215<>"",IF(Q215+U215+Y215=3,1,0),"") -> 
C216: EVALUATION CRITERIA
C217: Measurement System Decision | G217: Effectiveness | J217: Miss Rate | L217: False Alarm Rate
C219: Acceptable for the appraiser | G219: >90% | J219: <2% | L219: <5%
C221: Marginally acceptable fo the appraiser - may need improvement | G221: >80% | J221: <5% | L221: <10%
C224: Unacceptable for the appraiser - needs improvement | G224: <80% | J224: >5% | L224: >10%
C228: RESULTS SUMMARY
C229: Appraiser | G229: Effectiveness | J229: Miss Rate | L229: False Alarm Rate
C231: A | G231: =L177 ->  | J231: =IF(L13<>"",J126/(COUNTIF($L$13:$L$66,"=1")*3),"") ->  | L231: =IF(L13<>"",(H128+J126)/(COUNTIF($L$13:$L$66,"=1")*3),"") -> 
C233: B | G233: =M177 ->  | J233: =IF(L13<>"",J138/(COUNTIF($L$13:$L$66,"=1")*3),"") ->  | L233: =IF(L13<>"",(H140+J138)/(COUNTIF($L$13:$L$66,"=1")*3),"") -> 
C235: C | G235: =N177 ->  | J235: =IF(L13<>"",J151/(COUNTIF($L$13:$L$66,"=1")*3),"") ->  | L235: =IF(L13<>"",(H153+J151)/(COUNTIF($L$13:$L$66,"=1")*3),"") -> 
C239: Final Analysis
D245: Approved for use as is
D246: Not approved for use as is
I247: Signature | M247: Title
C249: Revision History
C250: Rev 1; 01/15/15

Sheet Gage R&R Variable (TV)
B1: GAGE REPEATABILITY AND REPRODUCIBILITY DATA SHEET
B2: VARIABLE DATA RESULTS
Z3: CQD-113.36; Rev 1; 01/15/15
B4: Part Number | G4: Gage Name | K4: Appraiser A | P4: Part Number | S4: Gage Name | W4: Appraiser A
S5: =IF(G5<>"",G5,"") ->  | W5: =IF(K5<>"",K5,"") -> 
B6: Part Name | G6: Gage Number | K6: Appraiser B | P6: Part Name | S6: Gage Number | W6: Appraiser B
S7: =IF(G7<>"",G7,"") ->  | W7: =IF(K7<>"",K7,"") -> 
B8: Characteristic | E8: Specification | G8: Gage Type | K8: Appraiser C | P8: Characteristic | S8: Gage Type | W8: Appraiser C
E9: Lower | F9: Upper | P9: =IF(B9<>"",B9,"") ->  | S9: =IF(G9<>"",G9,"") ->  | W9: =IF(K9<>"",K9,"") -> 
B10: Characteristic Classification | G10: Trials | I10: Parts | K10: Appraisers | M10: Date Performed | P10: Characteristic Classification | S10: Trials | U10: Parts | W10: Appraisers | Y10: Date Performed
G11: =IF(D15<>"",COUNT(D15:D17),"") ->  | I11: =IF(D15<>"",COUNT(D15:M15),"") ->  | K11: =IF(D15<>"",COUNT(D15,D20,D25),"") ->  | P11: =IF(B11<>"",B11,"") ->  | S11: =G11 ->  | U11: =I11 ->  | W11: =K11 ->  | Y11: =IF(M11<>"",M11,"") -> 
F12: =IF(E9>F9,"ENTER LOWER TOLERANCE IN D9","") ->  | G12: =IF(D15<>"",IF(G11*I11*K11<90,"DERIVED RESULTS MAY NOT BE STATISTICALLY SOUND",""),"") -> 
B13: APPRAISER/ | D13: PART | N13: AVERAGE | S13: Measurement Unit Analysis | W13: % Total Variation (TV)
B14: TRIAL # | D14: 1 | E14: 2 | F14: 3 | G14: 4 | H14: 5 | I14: 6 | J14: 7 | K14: 8 | L14: 9 | M14: 10 | P14: Repeatability - Equipment Variation (EV)
B15: 1. A | C15: 1 | O15: =IF(D15<>"",AVERAGE(D15:M15),"") ->  | P15: EV | Q15: = | R15: R x K1 | U15: Trials | V15: K1 | W15: % EV | X15: = | Y15: 100 (EV/TV)
B16: 2 | C16: 2 | Q16: = | R16: =IF(D15<>"",CONCATENATE(TEXT($O$32,"0.000")," x ",CHOOSE($G$11,0,V16,V17)),"") ->  | U16: 2 | V16: 0.8865 | X16: = | Y16: =IF(D15<>"",CONCATENATE("100(",TEXT($R$17,"0.000"),"/",TEXT($R$35,"0.000"),")"),"") -> 
B17: =B16+1 -> 3 | C17: 3 | Q17: = | R17: =IF(D15<>"",$O$32*(CHOOSE($G$11,0,V16,V17)),"") ->  | U17: 3 | V17: 0.5907 | X17: = | Y17: =IF(D15<>"",100*($R$17/$R$35),"") -> 
B18: =B17+1 -> 4 | C18: AVE | D18: =IF(D15<>"",SUM(D15:D17)/COUNT(D15:D17),"") ->  | N18: xa= | P18: Reproducibility - Appraiser Variation (AV)
B19: =B18+1 -> 5 | C19: R | D19: =IF(D15<>"",MAX(D15:D17)-MIN(D15:D17),"") ->  | N19: ra= | P19: AV | Q19: = | R19: {(xDIFF x K2)2 - (EV2/nr)}1/2 | W19: % AV | X19: = | Y19: 100 (AV/TV)
B20: 6. B | C20: 1 | Q20: = | R20: =IF(D15<>"",CONCATENATE("{(",TEXT($O$33,"0.00")," x ",CHOOSE($K$11,0,U23,V23),")^2 - (",TEXT($R$17,"0.00")," ^2/(",$I$11," x ",$G$11,"))}^1/2"),"") ->  | X20: = | Y20: =IF(D15<>"",CONCATENATE("100(",TEXT($R$21,"0.000"),"/",TEXT($R$35,"0.000"),")"),"") -> 
B21: 7 | C21: 2 | Q21: = | R21: =IF(D15="","",IF(($O$33*CHOOSE($K$11,0,U23,V23))^2-$R$17^2/($I$11*$G$11)<0,0,(($O$33*CHOOSE($K$11,0,U23,V23))^2-$R$17^2/($I$11*$G$11))^(1/2))) ->  | X21: = | Y21: =IF(D15<>"",100*($R$21/$R$35),"") -> 
B22: =B21+1 -> 8 | C22: 3 | T22: Appraisers | U22: 2 | V22: 3
B23: =B22+1 -> 9 | C23: AVE | D23: =IF(D20<>"",SUM(D20:D22)/COUNT(D20:D22),"") ->  | N23: xb= | P23: n = parts r = trials | T23: K2 | U23: 0.7087 | V23: 0.5236
B24: =B23+1 -> 10 | C24: R | D24: =IF(D20<>"",MAX(D20:D22)-MIN(D20:D22),"") ->  | N24: rb= | P24: Repeatability & Reproducibility (GRR) | W24: % GRR | X24: = | Y24: 100 (GRR/TV)
B25: 11. C | C25: 1 | P25: GRR | Q25: = | R25: {(EV2 + AV2)}1/2 | U25: Parts | V25: K3 | X25: = | Y25: =IF(D15<>"",CONCATENATE("100(",TEXT($R$27,"0.000"),"/",TEXT($R$35,"0.000"),")"),"") -> 
B26: 12 | C26: 2 | Q26: = | R26: =IF(D15<>"",CONCATENATE("{(",TEXT($R$17,"0.000"),"^2 + ",TEXT($R$21,"0.000"),"^2)}^1/2"),"") ->  | U26: 2 | V26: 0.7087 | X26: = | Y26: =IF(D15<>"",100*($R$27/$R$35),"") -> 
B27: =B26+1 -> 13 | C27: 3 | Q27: = | R27: =IF(D15<>"",($R$17^2+$R$21^2)^(1/2),"") ->  | U27: 3 | V27: 0.5236 | W27: =IF(D16<>"",IF(Y26<10,"Gage system O.K",IF(Y26<30,"Gage system may be acceptable","Gage system needs improvement")),"") -> 
B28: =B27+1 -> 14 | C28: AVE | D28: =IF(D25<>"",SUM(D25:D27)/COUNT(D25:D27),"") ->  | N28: xc= | P28: Part Variation (PV) | U28: 4 | V28: 0.4464
B29: =B28+1 -> 15 | C29: R | D29: =IF(D25<>"",MAX(D25:D27)-MIN(D25:D27),"") ->  | N29: rc= | P29: PV | Q29: = | R29: RP x K3 | U29: 5 | V29: 0.4032 | W29: % PV | X29: = | Y29: 100 (PV/TV)
B30: 16. PART | N30: X= | O30: =IF(D15<>"",AVERAGE(D31:M31),"") ->  | Q30: = | R30: =IF(D15<>"",CONCATENATE(TEXT($O$31,"0.000")," x ",CHOOSE($I$11,0,V26,V27,V28,V29,V30,V31,V32,V33,V34)),"") ->  | U30: 6 | V30: 0.3745 | X30: = | Y30: =IF(D15<>"",CONCATENATE("100(",TEXT($R$31,"0.000"),"/",TEXT($R$35,"0.000"),")"),"") -> 
B31: AVERAGE | D31: =IF(D18<>"",SUM(D18,D23,D28)/COUNT(D18,D23,D28),"") ->  | E31: =IF(E18<>"",SUM(E18,E23,E28)/COUNT(E18,E23,E28),"") ->  | N31: Rp= | O31: =IF(D15<>"",MAX(D31:M31)-MIN(D31:M31),"") ->  | Q31: = | R31: =IF(D15<>"",$O$31*CHOOSE($I$11,0,V26,V27,V28,V29,V30,V31,V32,V33,V34),"") ->  | U31: 7 | V31: 0.3534 | X31: = | Y31: =IF(D15<>"",100*($R$31/$R$35),"") -> 
B32: =B29+2 -> 17 | C32: (ra + rb + rc) / (# OF APPRAISERS) = | N32: R= | O32: =IF(D15<>"",SUM(O19,O24,O29)/COUNT(D15,D20,D25),"") ->  | P32: Total Variation (TV) | U32: 8 | V32: 0.3378
B33: =B32+1 -> 18 | C33: xDIFF = (Max x - Min x) = | N33: xDIFF= | O33: =IF(D15<>"",MAX(O18,O23,O28)-MIN(O18,O23,O28),"") ->  | P33: TV | Q33: = | R33: {(GRR2 + PV2)}1/2 | U33: 9 | V33: 0.3247 | W33: ndc | X33: = | Y33: 1.41(PV/GRR)
B34: =B33+1 -> 19 | C34: * UCLR = R x D4 = | F34: =IF(D15="","",IF(OR(H34<>"",I34<>"",J34<>""),"APPRAISER","")) ->  | H34: =IF(D15="","",IF(OR(AND($D19<>"",$D19>$O$34),AND($E19<>"",$E19>$O$34),AND($F19<>"",$F19>$O$34),AND($G19<>"",$G19>$O$34),AND($H19<>"",$H19>$O$34),AND($I19<>"",$I19>$O$34),AND($J19<>"",$J19>$O$34),AND($K19<>"",$K19>$O$34),AND($L19<>"",$L19>$O$34),AND($M19<>"",$M19>$O$34)),"A","")) ->  | I34: =IF(D15="","",IF(OR(AND($D24<>"",$D24>$O$34),AND($E24<>"",$E24>$O$34),AND($F24<>"",$F24>$O$34),AND($G24<>"",$G24>$O$34),AND($H24<>"",$H24>$O$34),AND($I24<>"",$I24>$O$34),AND($J24<>"",$J24>$O$34),AND($K24<>"",$K24>$O$34),AND($L24<>"",$L24>$O$34),AND($M24<>"",$M24>$O$34)),"B","")) ->  | J34: =IF(D15="","",IF(OR(AND($D29<>"",$D29>$O$34),AND($E29<>"",$E29>$O$34),AND($F29<>"",$F29>$O$34),AND($G29<>"",$G29>$O$34),AND($H29<>"",$H29>$O$34),AND($I29<>"",$I29>$O$34),AND($J29<>"",$J29>$O$34),AND($K29<>"",$K29>$O$34),AND($L29<>"",$L29>$O$34),AND($M29<>"",$M29>$O$34)),"C","")) ->  | K34: =IF(D15="","",IF(OR(H34<>"",I34<>"",J34<>""),"OUT OF CONTROL","")) ->  | N34: UCLR= | O34: =IF(D15<>"",IF(G11=3,2.58*O32,3.27*O32),"") ->  | Q34: = | R34: =IF(D15<>"",CONCATENATE("{(",TEXT($R$27,"0.000"),"^2 + ",TEXT($R$31,"0.000"),"^2)}^1/2"),"") ->  | U34: 10 | V34: 0.3145 | X34: = | Y34: =IF(D15<>"",CONCATENATE("1.41(",TEXT($R$31,"0.000"),"/",TEXT($R$27,"0.000"),")"),"") -> 
Q35: = | R35: =IF(D15<>"",($R$27^2+$R$31^2)^(1/2),"") ->  | X35: = | Y35: =IF(D15<>"",TRUNC(1.41*($R$31/$R$27)),"") -> 
B36: * D4 =3.27 for 2 trials and 2.58 for 3 trials. UCLR represents the limit of individual R's. Circle those that are | W36: =IF(Y35<>"",IF(Y35<5,"Gage discrimination low","Gage discrimination acceptable"),"") -> 
B37: beyond this limit. Identify the cause and correct. Repeat these readings using the same appraiser and unit as originally used or
B38: discard values and re-average and recompute R and the limiting value from the remaining observations. | P38: For information on the theory and constants used in the form see MSA Reference Manual, Third edition.
B40: Notes:
B43: Revision History
B44: Rev 1; 01/15/15

Sheet Gage R&R Variable (T)
B1: GAGE REPEATABILITY AND REPRODUCIBILITY DATA SHEET
B2: VARIABLE DATA RESULTS
Z3: CQD-113.37; Rev 1; 01/15/15
B4: Part Number | G4: Gage Name | K4: Appraiser A | P4: Part Number | S4: Gage Name | W4: Appraiser A
S5: =IF(G5<>"",G5,"") ->  | W5: =IF(K5<>"",K5,"") -> 
B6: Part Name | G6: Gage Number | K6: Appraiser B | P6: Part Name | S6: Gage Number | W6: Appraiser B
S7: =IF(G7<>"",G7,"") ->  | W7: =IF(K7<>"",K7,"") -> 
B8: Characteristic | E8: Specification | G8: Gage Type | K8: Appraiser C | P8: Characteristic | S8: Gage Type | W8: Appraiser C
E9: Lower | F9: Upper | P9: =IF(B9<>"",B9,"") ->  | S9: =IF(G9<>"",G9,"") ->  | W9: =IF(K9<>"",K9,"") -> 
B10: Characteristic Classification | G10: Trials | I10: Parts | K10: Appraisers | M10: Date Performed | P10: Characteristic Classification | S10: Trials | U10: Parts | W10: Appraisers | Y10: Date Performed
G11: =IF(D15<>"",COUNT(D15:D17),"") ->  | I11: =IF(D15<>"",COUNT(D15:M15),"") ->  | K11: =IF(D15<>"",COUNT(D15,D20,D25),"") ->  | P11: =IF(B11<>"",B11,"") ->  | S11: =G11 ->  | U11: =I11 ->  | W11: =K11 -> 
F12: =IF(E9>F9,"ENTER LOWER TOLERANCE IN D9","") ->  | G12: =IF(D15<>"",IF(G11*I11*K11<90,"DERIVED RESULTS MAY NOT BE STATISTICALLY SOUND",""),"") -> 
B13: APPRAISER/ | D13: PART | N13: AVERAGE | S13: Measurement Unit Analysis | W13: % Tolerance (Tol)
B14: TRIAL # | D14: 1 | E14: 2 | F14: 3 | G14: 4 | H14: 5 | I14: 6 | J14: 7 | K14: 8 | L14: 9 | M14: 10 | P14: Repeatability - Equipment Variation (EV)
B15: 1. A | C15: 1 | O15: =IF(D15<>"",AVERAGE(D15:M15),"") ->  | P15: EV | Q15: = | R15: R x K1 | U15: Trials | V15: K1 | W15: % EV | X15: = | Y15: 100 (EV/Tol)
B16: 2 | C16: 2 | Q16: = | R16: =IF(D15<>"",CONCATENATE(TEXT($O$32,"0.000")," x ",CHOOSE($G$11,0,V16,V17)),"") ->  | U16: 2 | V16: 0.8865 | X16: = | Y16: =IF(D15<>"",CONCATENATE("100(",TEXT($R$17,"0.000"),"/",TEXT($R$35,"0.000"),")"),"") -> 
B17: =B16+1 -> 3 | C17: 3 | Q17: = | R17: =IF(D15<>"",$O$32*(CHOOSE($G$11,0,V16,V17)),"") ->  | U17: 3 | V17: 0.5907 | X17: = | Y17: =IF(D15<>"",100*($R$17/$R$35),"") -> 
B18: =B17+1 -> 4 | C18: AVE | D18: =IF(D15<>"",SUM(D15:D17)/COUNT(D15:D17),"") ->  | E18: =IF(E15<>"",SUM(E15:E17)/COUNT(E15:E17),"") ->  | N18: xa= | P18: Reproducibility - Appraiser Variation (AV)
B19: =B18+1 -> 5 | C19: R | D19: =IF(D15<>"",MAX(D15:D17)-MIN(D15:D17),"") ->  | E19: =IF(E15<>"",MAX(E15:E17)-MIN(E15:E17),"") ->  | N19: ra= | P19: AV | Q19: = | R19: {(xDIFF x K2)2 - (EV2/nr)}1/2 | W19: % AV | X19: = | Y19: 100 (AV/Tol)
B20: 6. B | C20: 1 | Q20: = | R20: =IF(D15<>"",CONCATENATE("{(",TEXT($O$33,"0.000")," x ",CHOOSE($K$11,0,U23,V23),")^2 - (",TEXT($R$17,"0.000")," ^2/(",$I$11," x ",$G$11,"))}^1/2"),"") ->  | X20: = | Y20: =IF(D15<>"",CONCATENATE("100(",TEXT($R$21,"0.000"),"/",TEXT($R$35,"0.000"),")"),"") -> 
B21: 7 | C21: 2 | Q21: = | R21: =IF(D15="","",IF(($O$33*CHOOSE($K$11,0,U23,V23))^2-$R$17^2/($I$11*$G$11)<0,0,(($O$33*CHOOSE($K$11,0,U23,V23))^2-$R$17^2/($I$11*$G$11))^(1/2))) ->  | X21: = | Y21: =IF(D15<>"",100*($R$21/$R$35),"") -> 
B22: =B21+1 -> 8 | C22: 3 | T22: Appraisers | U22: 2 | V22: 3
B23: =B22+1 -> 9 | C23: AVE | D23: =IF(D20<>"",SUM(D20:D22)/COUNT(D20:D22),"") ->  | N23: xb= | P23: n = parts r = trials | T23: K2 | U23: 0.7087 | V23: 0.5236
B24: =B23+1 -> 10 | C24: R | D24: =IF(D20<>"",MAX(D20:D22)-MIN(D20:D22),"") ->  | N24: rb= | P24: Repeatability & Reproducibility (GRR) | W24: % GRR | X24: = | Y24: 100 (GRR/Tol)
B25: 11. C | C25: 1 | P25: GRR | Q25: = | R25: {(EV2 + AV2)}1/2 | U25: Parts | V25: K3 | X25: = | Y25: =IF(D15<>"",CONCATENATE("100(",TEXT($R$27,"0.000"),"/",TEXT($R$35,"0.000"),")"),"") -> 
B26: 12 | C26: 2 | Q26: = | R26: =IF(D15<>"",CONCATENATE("{(",TEXT($R$17,"0.000"),"^2 + ",TEXT($R$21,"0.000"),"^2)}^1/2"),"") ->  | U26: 2 | V26: 0.7087 | X26: = | Y26: =IF(D15<>"",100*($R$27/$R$35),"") -> 
B27: =B26+1 -> 13 | C27: 3 | Q27: = | R27: =IF(D15<>"",($R$17^2+$R$21^2)^(1/2),"") ->  | U27: 3 | V27: 0.5236 | W27: =IF(D16<>"",IF(Y26<10,"Gage system O.K",IF(Y26<30,"Gage system may be acceptable","Gage system needs improvement")),"") -> 
B28: =B27+1 -> 14 | C28: AVE | D28: =IF(D25<>"",SUM(D25:D27)/COUNT(D25:D27),"") ->  | N28: xc= | P28: Part Variation (PV) | U28: 4 | V28: 0.4464
B29: =B28+1 -> 15 | C29: R | D29: =IF(D25<>"",MAX(D25:D27)-MIN(D25:D27),"") ->  | N29: rc= | P29: PV | Q29: = | R29: RP x K3 | U29: 5 | V29: 0.4032 | W29: % PV | X29: = | Y29: 100 (PV/Tol)
B30: 16. PART | N30: X= | O30: =IF(D15<>"",AVERAGE(D31:M31),"") ->  | Q30: = | R30: =IF(D15<>"",CONCATENATE(TEXT($O$31,"0.000")," x ",CHOOSE($I$11,0,V26,V27,V28,V29,V30,V31,V32,V33,V34)),"") ->  | U30: 6 | V30: 0.3745 | X30: = | Y30: =IF(D15<>"",CONCATENATE("100(",TEXT($R$31,"0.000"),"/",TEXT($R$35,"0.000"),")"),"") -> 
B31: AVERAGE | D31: =IF(D18<>"",SUM(D18,D23,D28)/COUNT(D18,D23,D28),"") ->  | E31: =IF(E18<>"",SUM(E18,E23,E28)/COUNT(E18,E23,E28),"") ->  | N31: Rp= | O31: =IF(D15<>"",MAX(D31:M31)-MIN(D31:M31),"") ->  | Q31: = | R31: =IF(D15<>"",$O$31*CHOOSE($I$11,0,V26,V27,V28,V29,V30,V31,V32,V33,V34),"") ->  | U31: 7 | V31: 0.3534 | X31: = | Y31: =IF(D15<>"",100*($R$31/$R$35),"") -> 
B32: =B29+2 -> 17 | C32: (ra + rb + rc) / (# OF APPRAISERS) = | N32: R= | O32: =IF(D15<>"",SUM(O19,O24,O29)/COUNT(D15,D20,D25),"") ->  | P32: Tolerance (Tol) | U32: 8 | V32: 0.3378
B33: =B32+1 -> 18 | C33: xDIFF = (Max x - Min x) = | N33: xDIFF= | O33: =IF(D15<>"",MAX(O18,O23,O28)-MIN(O18,O23,O28),"") ->  | P33: Tol | Q33: = | R33: Upper - Lower / 6 | U33: 9 | V33: 0.3247 | W33: ndc | X33: = | Y33: 1.41(PV/GRR)
B34: =B33+1 -> 19 | C34: * UCLR = R x D4 = | F34: =IF(D15="","",IF(OR(H34<>"",I34<>"",J34<>""),"APPRAISER","")) ->  | H34: =IF(D15="","",IF(OR(AND($D19<>"",$D19>$O$34),AND($E19<>"",$E19>$O$34),AND($F19<>"",$F19>$O$34),AND($G19<>"",$G19>$O$34),AND($H19<>"",$H19>$O$34),AND($I19<>"",$I19>$O$34),AND($J19<>"",$J19>$O$34),AND($K19<>"",$K19>$O$34),AND($L19<>"",$L19>$O$34),AND($M19<>"",$M19>$O$34)),"A","")) ->  | I34: =IF(D15="","",IF(OR(AND($D24<>"",$D24>$O$34),AND($E24<>"",$E24>$O$34),AND($F24<>"",$F24>$O$34),AND($G24<>"",$G24>$O$34),AND($H24<>"",$H24>$O$34),AND($I24<>"",$I24>$O$34),AND($J24<>"",$J24>$O$34),AND($K24<>"",$K24>$O$34),AND($L24<>"",$L24>$O$34),AND($M24<>"",$M24>$O$34)),"B","")) ->  | J34: =IF(D15="","",IF(OR(AND($D29<>"",$D29>$O$34),AND($E29<>"",$E29>$O$34),AND($F29<>"",$F29>$O$34),AND($G29<>"",$G29>$O$34),AND($H29<>"",$H29>$O$34),AND($I29<>"",$I29>$O$34),AND($J29<>"",$J29>$O$34),AND($K29<>"",$K29>$O$34),AND($L29<>"",$L29>$O$34),AND($M29<>"",$M29>$O$34)),"C","")) ->  | K34: =IF(D15="","",IF(OR(H34<>"",I34<>"",J34<>""),"OUT OF CONTROL","")) ->  | N34: UCLR= | O34: =IF(D15<>"",IF(G11=3,2.58*O32,3.27*O32),"") ->  | Q34: = | R34: =CONCATENATE("( ",F9," - ",E9," ) / 6") -> ( Upper - Lower ) / 6 | U34: 10 | V34: 0.3145 | X34: = | Y34: =IF(D15<>"",CONCATENATE("1.41(",TEXT($R$31,"0.000"),"/",TEXT($R$27,"0.000"),")"),"") -> 
Q35: = | R35: =IF(D15<>"",(F9-E9)/6,"") ->  | X35: = | Y35: =IF(D15<>"",TRUNC(1.41*($R$31/$R$27)),"") -> 
B36: * D4 =3.27 for 2 trials and 2.58 for 3 trials. UCLR represents the limit of individual R's. Circle those that are | W36: =IF(Y35<>"",IF(Y35<5,"Gage discrimination low","Gage discrimination acceptable"),"") -> 
B37: beyond this limit. Identify the cause and correct. Repeat these readings using the same appraiser and unit as originally used or
B38: discard values and re-average and recompute R and the limiting value from the remaining observations. | P38: For information on the theory and constants used in the form see MSA Reference Manual, Third edition.
B40: Notes:
B43: Revision History
B44: Rev 1; 01/15/15

Sheet GR&R ANOVA (hidden)
B1: GAGE REPEATABILITY AND REPRODUCIBILITY DATA SHEET
B2: ANOVA METHOD
O3: CQD-113.38; Rev 1; 01/15/15
B4: Part Number | G4: Gage Name | K4: Appraiser A
B6: Part Name | G6: Gage Number | K6: Appraiser B
B8: Characteristic | E8: Specification | G8: Gage Type | K8: Appraiser C
E9: Lower | F9: Upper
B10: Characteristic Classification | G10: Trials | I10: Parts | K10: Appraisers | M10: Date Performed
G11: =IF(D15<>"",COUNT(D15:D17),"") ->  | I11: =IF(D15<>"",COUNT(D15:M15),"") ->  | K11: =IF(D15<>"",COUNT(D15,D20,D25),"") -> 
F12: =IF(E9>F9,"ENTER LOWER TOLERANCE IN D9","") ->  | G12: =IF(D15<>"",IF(G11*I11*K11<90,"DERIVED RESULTS MAY NOT BE STATISTICALLY SOUND",""),"") -> 
B13: APPRAISER/ | D13: PART | N13: AVERAGE
B14: TRIAL # | D14: 1 | E14: 2 | F14: 3 | G14: 4 | H14: 5 | I14: 6 | J14: 7 | K14: 8 | L14: 9 | M14: 10 | S14: squared | T14: /nr | U14: /nkr | V14: /kr | Y14: squared | Z14: /r
B15: 1. A | C15: 1 | O15: =IF(D15<>"",AVERAGE(D15:M15),"") ->  | Q15: x.1. | R15: =SUM(D15:M17) -> 0 | S15: =R15*R15 -> 0 | T15: =S15/$R$19 ->  | W15: x11. | X15: =SUM(D15:D17) -> 0 | Y15: =X15*X15 -> 0 | Z15: =Y15/$G$11 ->  | AB15: Squared | AC15: Part 1 | AD15: Part 2 | AE15: Part 3 | AF15: Part 4 | AG15: Part 5 | AH15: Part 6 | AI15: Part 7 | AJ15: Part 8 | AK15: Part 9 | AL15: Part 10
B16: 2 | C16: 2 | Q16: x.2. | R16: =SUM(D20:M22) -> 0 | S16: =R16*R16 -> 0 | T16: =S16/$R$19 ->  | W16: x21. | X16: =SUM(E15:E17) -> 0 | Y16: =X16*X16 -> 0 | Z16: =Y16/$G$11 ->  | AA16: Appr A | AB16: Trial 1 | AC16: =D15*D15 -> 0 | AD16: 0 | AE16: 0 | AF16: 0 | AG16: 0 | AH16: 0 | AI16: 0 | AJ16: 0 | AK16: =L15*L15 -> 0 | AL16: 0
B17: =B16+1 -> 3 | C17: 3 | Q17: x.3. | R17: =SUM(D25:M27) -> 0 | S17: =R17*R17 -> 0 | T17: =S17/$R$19 ->  | W17: x31. | X17: =SUM(F15:F17) -> 0 | Y17: 0 | AB17: Trial 2 | AC17: 0 | AD17: 0 | AE17: 0 | AF17: 0 | AG17: 0 | AH17: 0 | AI17: 0 | AJ17: 0 | AK17: 0 | AL17: 0
B18: =B17+1 -> 4 | C18: AVE | D18: =IF(D15<>"",SUM(D15:D17)/COUNT(D15:D17),"") ->  | N18: xa= | Q18: x… | R18: =SUM(R15:R17) -> 0 | S18: =R18*R18 -> 0 | U18: =S18/R20 ->  | W18: x41. | X18: =SUM(G15:G17) -> 0 | Y18: 0 | AB18: Trial 3 | AC18: 0 | AD18: 0 | AE18: 0 | AF18: 0 | AG18: 0 | AH18: 0 | AI18: 0 | AJ18: 0 | AK18: 0 | AL18: 0
B19: =B18+1 -> 5 | C19: R | D19: =IF(D15<>"",MAX(D15:D17)-MIN(D15:D17),"") ->  | N19: ra= | Q19: nr | R19: =K11*I11 ->  | W19: x51. | X19: =SUM(H15:H17) -> 0 | Y19: 0 | AA19: Appr B | AB19: Trial 1 | AC19: =D20*D20 -> 0 | AD19: 0 | AE19: 0 | AF19: 0 | AG19: 0 | AH19: 0 | AI19: 0 | AJ19: 0 | AK19: =L20*L20 -> 0 | AL19: 0
B20: 6. B | C20: 1 | Q20: nkr | R20: =G11*I11*K11 ->  | W20: x61. | X20: =SUM(I15:I17) -> 0 | Y20: 0 | AB20: Trial 2 | AC20: 0 | AD20: 0 | AE20: 0 | AF20: 0 | AG20: 0 | AH20: 0 | AI20: 0 | AJ20: 0 | AK20: 0 | AL20: 0
B21: 7 | C21: 2 | Q21: kr | R21: =G11*K11 ->  | W21: x71. | X21: =SUM(J15:J17) -> 0 | Y21: 0 | AB21: Trial 3 | AC21: 0 | AD21: 0 | AE21: 0 | AF21: 0 | AG21: 0 | AH21: 0 | AI21: 0 | AJ21: 0 | AK21: 0 | AL21: 0
B22: =B21+1 -> 8 | C22: 3 | Q22: x1.. | R22: =SUM(D15:D17)+SUM(D20:D22)+SUM(D25:D27) -> 0 | S22: =R22*R22 -> 0 | V22: =S22/$R$21 ->  | W22: x81. | X22: =SUM(K15:K17) -> 0 | Y22: 0 | AA22: Appr C | AB22: Trial 1 | AC22: =D25*D25 -> 0 | AD22: 0 | AE22: 0 | AF22: 0 | AG22: 0 | AH22: 0 | AI22: 0 | AJ22: 0 | AK22: 0 | AL22: 0
B23: =B22+1 -> 9 | C23: AVE | D23: =IF(D20<>"",SUM(D20:D22)/COUNT(D20:D22),"") ->  | N23: xb= | Q23: x2.. | R23: =SUM(E15:E17)+SUM(E20:E22)+SUM(E25:E27) -> 0 | S23: 0 | V23: =S23/$R$21 ->  | W23: x91. | X23: =SUM(L15:L17) -> 0 | Y23: 0 | AB23: Trial 2 | AC23: 0 | AD23: 0 | AE23: 0 | AF23: 0 | AG23: 0 | AH23: 0 | AI23: 0 | AJ23: 0 | AK23: 0 | AL23: 0
B24: =B23+1 -> 10 | C24: R | D24: =IF(D20<>"",MAX(D20:D22)-MIN(D20:D22),"") ->  | N24: rb= | Q24: x3.. | R24: =SUM(F15:F17)+SUM(F20:F22)+SUM(F25:F27) -> 0 | S24: 0 | W24: x101. | X24: =SUM(M15:M17) -> 0 | Y24: 0 | AB24: Trial 3 | AC24: =D27*D27 -> 0 | AD24: 0 | AE24: 0 | AF24: 0 | AG24: 0 | AH24: 0 | AI24: 0 | AJ24: 0 | AK24: 0 | AL24: =M27*M27 -> 0
B25: 11. C | C25: 1 | Q25: x4.. | R25: =SUM(G15:G17)+SUM(G20:G22)+SUM(G25:G27) -> 0 | S25: 0 | W25: x12. | X25: =SUM(D20:D22) -> 0 | Y25: 0
B26: 12 | C26: 2 | Q26: x5.. | R26: =SUM(H15:H17)+SUM(H20:H22)+SUM(H25:H27) -> 0 | S26: 0 | W26: x22. | X26: =SUM(E20:E22) -> 0 | Y26: 0
B27: =B26+1 -> 13 | C27: 3 | Q27: x6.. | R27: =SUM(I15:I17)+SUM(I20:I22)+SUM(I25:I27) -> 0 | S27: 0 | W27: x32. | X27: =SUM(F20:F22) -> 0 | Y27: 0
B28: =B27+1 -> 14 | C28: AVE | D28: =IF(D25<>"",SUM(D25:D27)/COUNT(D25:D27),"") ->  | N28: xc= | Q28: x7.. | R28: =SUM(J15:J17)+SUM(J20:J22)+SUM(J25:J27) -> 0 | S28: 0 | W28: x42. | X28: =SUM(G20:G22) -> 0 | Y28: 0
B29: =B28+1 -> 15 | C29: R | D29: =IF(D25<>"",MAX(D25:D27)-MIN(D25:D27),"") ->  | N29: rc= | Q29: x8.. | R29: =SUM(K15:K17)+SUM(K20:K22)+SUM(K25:K27) -> 0 | S29: 0 | W29: x52. | X29: =SUM(H20:H22) -> 0 | Y29: 0
B30: 16. PART | N30: X= | O30: =IF(D15<>"",AVERAGE(D31:M31),"") ->  | Q30: x9.. | R30: =SUM(L15:L17)+SUM(L20:L22)+SUM(L25:L27) -> 0 | S30: 0 | W30: x62. | X30: =SUM(I20:I22) -> 0 | Y30: 0
B31: AVERAGE | D31: =IF(D18<>"",SUM(D18,D23,D28)/COUNT(D18,D23,D28),"") ->  | E31: =IF(E18<>"",SUM(E18,E23,E28)/COUNT(E18,E23,E28),"") ->  | N31: Rp= | O31: =IF(D15<>"",MAX(D31:M31)-MIN(D31:M31),"") ->  | Q31: x10.. | R31: =SUM(M15:M17)+SUM(M20:M22)+SUM(M25:M27) -> 0 | S31: 0 | W31: x72. | X31: =SUM(J20:J22) -> 0 | Y31: 0
W32: x82. | X32: =SUM(K20:K22) -> 0 | Y32: 0
W33: x92. | X33: =SUM(L20:L22) -> 0 | Y33: 0
C34: Anova Table | W34: x102. | X34: =SUM(M20:M22) -> 0 | Y34: 0
C35: Source | F35: DF | H35: SS | J35: MS | L35: F | N35: Sig | W35: x13. | X35: =SUM(D25:D27) -> 0 | Y35: 0
C36: Appraiser | F36: =IF(K11<>"",K11-1,"") ->  | H36: =IF(D15<>"",IF(SUM(T15:T17)-U18<0,0,SUM(T15:T17)-U18),"") ->  | J36: =IF(H36<>"",H36/F36,"") ->  | L36: =IF(J39<>"",IF(J39=0,0,J36/J39),"") ->  | N36: =IF(L36<>"",IF(L36>FINV(0.05,F36,F39),"*",""),"") ->  | W36: x23. | X36: =SUM(E25:E27) -> 0 | Y36: 0
C37: Parts | F37: =IF(I11<>"",I11-1,"") ->  | H37: =IF(D15<>"",IF(SUM(V22:V31)-U18<0,0,SUM(V22:V31)-U18),"") ->  | J37: =IF(H37<>"",H37/F37,"") ->  | L37: =IF(J39<>"",IF(J39=0,0,J37/J39),"") ->  | N37: =IF(L37<>"",IF(L37>FINV(0.05,F37,F39),"*",""),"") ->  | W37: x33. | X37: =SUM(F25:F27) -> 0 | Y37: 0
C38: Appraiser-by-Part | F38: =IF(F36<>"",F36*F37,"") ->  | H38: =IF(D15<>"",IF(SUM(Z15:Z44)-SUM(V22:V31)-SUM(T15:T17)+U18<0,0,SUM(Z15:Z44)-SUM(V22:V31)-SUM(T15:T17)+U18),"") ->  | J38: =IF(H38<>"",H38/F38,"") ->  | L38: =IF(J39<>"",IF(J39=0,0,J38/J39),"") ->  | N38: =IF(L38<>"",IF(L38>FINV(0.05,F38,F39),"*",""),"") ->  | W38: x43. | X38: =SUM(G25:G27) -> 0 | Y38: 0
C39: Equipment | F39: =IF(I11<>"",I11*K11*(G11-1),"") ->  | H39: =IF(D15<>"",IF(H40-H36-H37-H38<0,0,H40-H36-H37-H38),"") ->  | J39: =IF(H39<>"",H39/F39,"") ->  | W39: x53. | X39: =SUM(H25:H27) -> 0 | Y39: 0
C40: Total | F40: =IF(G11<>"",G11*I11*K11-1,"") ->  | H40: =IF(D15<>"",(SUM(AC16:AL24)-U18),"") ->  | W40: x63. | X40: =SUM(I25:I27) -> 0 | Y40: 0
K41: * Significant at a = 0.05 level | W41: x73. | X41: =SUM(J25:J27) -> 0 | Y41: 0
W42: x83. | X42: =SUM(K25:K27) -> 0 | Y42: 0
W43: x93. | X43: =SUM(L25:L27) -> 0 | Y43: 0
W44: x103. | X44: =SUM(M25:M27) -> 0 | Y44: 0
C48: Anova Report | G48: Standard Deviation (s) | I48: % Total Variation | L48: % Contribution
Q49: MSpool | R49: =IF(H39<>"",(H39+H38)/(R20-I11-K11+1),"") -> 
C50: Repeatability (EV) | G50: =IF(R49<>"",SQRT(R49),"") ->  | I50: =IF(G50<>"",G50/N58,"") ->  | L50: =IF(I50<>"",I50*I50,"") -> 
C51: Reproducibility (AV) | G51: =IF(R49<>"",IF(J36-R49<0,0,SQRT((J36-R49)/R19)),"") ->  | I51: =IF(G51<>"",G51/N58,"") ->  | L51: =IF(I51<>"",I51*I51,"") -> 
C52: Appraiser by Part (INT) | G52: =IF(J38<>"",IF(J38-J39<0,0,SQRT((J38-J39)/I11)),"") ->  | I52: =IF(G52<>"",G52/N58,"") ->  | L52: =IF(I52<>"",I52*I52,"") -> 
C53: GRR | G53: =IF(G50<>"",SQRT(G50*G50+G51*G51),"") ->  | I53: =IF(G53<>"",G53/N58,"") ->  | L53: =IF(I53<>"",I53*I53,"") -> 
C54: Part-to-Part (PV) | G54: =IF(R49<>"",IF(J37-R49<0,0,SQRT((J37-R49)/K11/G11)),"") ->  | I54: =IF(G54<>"",G54/N58,"") ->  | L54: =IF(I54<>"",I54*I54,"") -> 
I55: =IF(I53<>"",IF(I53<10%,"Gage system O.K",IF(I53<30%,"Gage system may be acceptable","Gage system needs improvement")),"") -> 
C57: Note:
C58: Tolerance = | E58: =IF(AND(D15<>"",E9<>"Lower"),F9-E9,"") ->  | K58: Total variation (TV) = | N58: =IF(G53<>"",SQRT(G53*G53+G54*G54),"") -> 
C59: Number of distinct data categories (ndc) = | I59: =IF(I54<>"",TRUNC(1.41*G54/G53),"") -> 
I60: =IF(I59<>"",IF(I59<5,"Gage discrimination low","Gage discrimination acceptable"),"") -> 
B63: Revision History
B64: Rev 1; 01/15/15

Sheet GR&R Data Sheet (hidden)
B1: GAGE REPEATABILITY AND REPRODUCIBILITY DATA SHEET
B2: GRAPHICAL ANALYSIS
O3: CQD-113.39; Rev 1; 01/15/15
B4: Part Number | G4: Gage Name | K4: Appraiser A
B6: Part Name | G6: Gage Number | K6: Appraiser B
B8: Characteristic | E8: Specification | G8: Gage Type | K8: Appraiser C
E9: Lower | F9: Upper
B10: Characteristic Classification | G10: Trials | I10: Parts | K10: Appraisers | M10: Date Performed
G11: =IF(D15<>"",COUNT(D15:D17),"") ->  | I11: =IF(D15<>"",COUNT(D15:M15),"") ->  | K11: =IF(D15<>"",COUNT(D15,D20,D25),"") -> 
F12: =IF(E9>F9,"ENTER LOWER TOLERANCE IN D9","") ->  | G12: =IF(D15<>"",IF(G11*I11*K11<90,"DERIVED RESULTS MAY NOT BE STATISTICALLY SOUND",""),"") -> 
B13: APPRAISER/ | D13: PART | N13: AVERAGE
B14: TRIAL # | D14: 1 | E14: 2 | F14: 3 | G14: 4 | H14: 5 | I14: 6 | J14: 7 | K14: 8 | L14: 9 | M14: 10
B15: 1. A | C15: 1 | O15: =IF(D15<>"",AVERAGE(D15:M15),"") -> 
B16: 2 | C16: 2
B17: =B16+1 -> 3 | C17: 3
B18: =B17+1 -> 4 | C18: AVE | D18: =IF(D15<>"",SUM(D15:D17)/COUNT(D15:D17),"") ->  | E18: =IF(E15<>"",SUM(E15:E17)/COUNT(E15:E17),"") ->  | N18: xa=
B19: =B18+1 -> 5 | C19: R | D19: =IF(D15<>"",MAX(D15:D17)-MIN(D15:D17),"") ->  | E19: =IF(E15<>"",MAX(E15:E17)-MIN(E15:E17),"") ->  | N19: ra=
B20: 6. B | C20: 1
B21: 7 | C21: 2
B22: =B21+1 -> 8 | C22: 3
B23: =B22+1 -> 9 | C23: AVE | D23: =IF(D20<>"",SUM(D20:D22)/COUNT(D20:D22),"") ->  | N23: xb=
B24: =B23+1 -> 10 | C24: R | D24: =IF(D20<>"",MAX(D20:D22)-MIN(D20:D22),"") ->  | N24: rb=
B25: 11. C | C25: 1
B26: 12 | C26: 2
B27: =B26+1 -> 13 | C27: 3
B28: =B27+1 -> 14 | C28: AVE | D28: =IF(D25<>"",SUM(D25:D27)/COUNT(D25:D27),"") ->  | N28: xc=
B29: =B28+1 -> 15 | C29: R | D29: =IF(D25<>"",MAX(D25:D27)-MIN(D25:D27),"") ->  | N29: rc=
B30: 16. PART | N30: X= | O30: =IF(D15<>"",AVERAGE(D31:M31),"") -> 
B31: AVE ( Xp ) | D31: =IF(D18<>"",SUM(D18,D23,D28)/COUNT(D18,D23,D28),"") ->  | E31: =IF(E18<>"",SUM(E18,E23,E28)/COUNT(E18,E23,E28),"") ->  | N31: Rp= | O31: =IF(D15<>"",MAX(D31:M31)-MIN(D31:M31),"") -> 
B32: Note: | C32: The REFERENCE VALUE can be substituted for PART AVE to generate graphs indicating true bias.
B33: Revision History
B34: Rev 1; 01/15/15
R47: A2= | T47: =IF(COUNT(D15:D17)=3,1.023,1.88) -> 1.88
R48: Range Ave= | T48: =AVERAGE(O19,O24,O29) -> 
Q51: Supporting line
R52: 1 | S52: 2 | T52: 3 | U52: 4 | V52: 5 | W52: 6 | X52: 7 | Y52: 8 | Z52: 9 | AA52: 10
Q53: Upper Spec | R53: =O30+T47*T48 ->  | S53: =$R$53 ->  | T53: =$R$53 -> 
Q54: Lower Spec | R54: =O30-T47*T48 ->  | S54: =$R$54 ->  | T54: =$R$54 -> 
Q55: Rucl | R55: =IF(G11=3,2.58*(O19+O24+O29)/K11,3.27*(O19+O24+O29)/3) ->  | S55: =$R$55 ->  | T55: =$R$55 -> 
C66: Analysis:
C88: Analysis:
Q92: Supporting Data
R93: Appr A | AB93: Appr B | AL93: Appr C
R94: 1 | S94: 2 | T94: 3 | U94: 4 | V94: 5 | W94: 6 | X94: 7 | Y94: 8 | Z94: 9 | AA94: 10 | AB94: 1 | AC94: 2 | AD94: 3 | AE94: 4 | AF94: 5 | AG94: 6 | AH94: 7 | AI94: 8 | AJ94: 9 | AK94: 10 | AL94: 1 | AM94: 2 | AN94: 3 | AO94: 4 | AP94: 5 | AQ94: 6 | AR94: 7 | AS94: 8 | AT94: 9 | AU94: 10
Q95: Mean | R95: =D18 ->  | AB95: =D23 ->  | AL95: =D28 -> 
Q96: Range
Q97: UCL B | AB97: =R53 -> 
Q98: LCL B | AB98: =R54 ->  | AK98: =AA54 -> 
Q99: UCL C | AL99: =AB97 -> 
Q100: LCL C
Q101: Rucl B | AB101: =R55 ->  | AC101: =AB101 ->  | AD101: =AC101 -> 
Q102: Rucl C | AL102: =AB101 ->  | AM102: =AC101 -> 
C109: Analysis:
C131: Analysis:
C161: Analysis:
Q176: Supporting Data
V177: Part 1 | AE177: Part 2 | AN177: Part 3 | AW177: Part 4 | BF177: Part 5
R178: A1 | S178: A2 | T178: A3 | U178: B1 | V178: B2 | W178: B3 | X178: C1 | Y178: C2 | Z178: C3 | AA178: A1 | AB178: A2 | AC178: A3 | AD178: B1 | AE178: B2 | AF178: B3 | AG178: C1 | AH178: C2 | AI178: C3 | AJ178: A1 | AK178: A2 | AL178: A3 | AM178: B1 | AN178: B2 | AO178: B3 | AP178: C1 | AQ178: C2 | AR178: C3 | AS178: A1 | AT178: A2 | AU178: A3 | AV178: B1 | AW178: B2 | AX178: B3 | AY178: C1 | AZ178: C2 | BA178: C3 | BB178: A1 | BC178: A2 | BD178: A3 | BE178: B1 | BF178: B2 | BG178: B3 | BH178: C1 | BI178: C2 | BJ178: C3
Q179: A Value | R179: =D15 -> 0 | S179: =D16 -> 0 | T179: =D17 -> 0 | AA179: =E15 -> 0 | AB179: =E16 -> 0 | AC179: =E17 -> 0 | AJ179: =F15 -> 0 | AK179: =F16 -> 0 | AL179: =F17 -> 0 | AS179: =G15 -> 0 | AT179: =G16 -> 0 | AU179: =G17 -> 0 | BB179: =H15 -> 0 | BC179: =H16 -> 0 | BD179: =H17 -> 0
Q180: B Value | U180: =IF(D20<>"",D20,"") ->  | V180: =IF(D21<>"",D21,"") ->  | W180: =IF(D22<>"",D22,"") ->  | AD180: =IF(E20<>"",E20,"") ->  | AE180: =IF(E21<>"",E21,"") ->  | AF180: =IF(E22<>"",E22,"") ->  | AM180: =IF(F20<>"",F20,"") ->  | AN180: =IF(F21<>"",F21,"") ->  | AO180: =IF(F22<>"",F22,"") ->  | AV180: =IF(G20<>"",G20,"") ->  | AW180: =IF(G21<>"",G21,"") ->  | AX180: =IF(G22<>"",G22,"") ->  | BE180: =IF(H20<>"",H20,"") ->  | BF180: =IF(H21<>"",H21,"") ->  | BG180: =IF(H22<>"",H22,"") -> 
Q181: C Value | X181: =IF(D25<>"",D25,"") ->  | Y181: =IF(D26<>"",D26,"") ->  | Z181: =IF(D27<>"",D27,"") ->  | AG181: =IF(E25<>"",E25,"") ->  | AH181: =IF(E26<>"",E26,"") ->  | AI181: =IF(E27<>"",E27,"") ->  | AP181: =IF(F25<>"",F25,"") ->  | AQ181: =IF(F26<>"",F26,"") ->  | AR181: =IF(F27<>"",F27,"") ->  | AY181: =IF(G25<>"",G25,"") ->  | AZ181: =IF(G26<>"",G26,"") ->  | BA181: =IF(G27<>"",G27,"") ->  | BH181: =IF(H25<>"",H25,"") ->  | BI181: =IF(H26<>"",H26,"") ->  | BJ181: =IF(H27<>"",H27,"") -> 
V183: Part 6 | AE183: Part 7 | AN183: Part 8 | AW183: Part 9 | BF183: Part 10
R184: A1 | S184: A2 | T184: A3 | U184: B1 | V184: B2 | W184: B3 | X184: C1 | Y184: C2 | Z184: C3 | AA184: A1 | AB184: A2 | AC184: A3 | AD184: B1 | AE184: B2 | AF184: B3 | AG184: C1 | AH184: C2 | AI184: C3 | AJ184: A1 | AK184: A2 | AL184: A3 | AM184: B1 | AN184: B2 | AO184: B3 | AP184: C1 | AQ184: C2 | AR184: C3 | AS184: A1 | AT184: A2 | AU184: A3 | AV184: B1 | AW184: B2 | AX184: B3 | AY184: C1 | AZ184: C2 | BA184: C3 | BB184: A1 | BC184: A2 | BD184: A3 | BE184: B1 | BF184: B2 | BG184: B3 | BH184: C1 | BI184: C2 | BJ184: C3
Q185: A Value | R185: =I15 -> 0 | S185: =I16 -> 0 | T185: =I17 -> 0 | AA185: =J15 -> 0 | AB185: =J16 -> 0 | AC185: =J17 -> 0 | AJ185: =K15 -> 0 | AK185: =K16 -> 0 | AL185: =K17 -> 0 | AS185: =L15 -> 0 | AT185: =L16 -> 0 | AU185: =L17 -> 0 | BB185: =M15 -> 0 | BC185: =M16 -> 0 | BD185: =M17 -> 0
Q186: B Value | U186: =IF(I20<>"",I20,"") ->  | V186: =IF(I21<>"",I21,"") ->  | W186: =IF(I22<>"",I22,"") ->  | AD186: =IF(J20<>"",J20,"") ->  | AE186: =IF(J21<>"",J21,"") ->  | AF186: =IF(J22<>"",J22,"") ->  | AM186: =IF(K20<>"",K20,"") ->  | AN186: =IF(K21<>"",K21,"") ->  | AO186: =IF(K22<>"",K22,"") ->  | AV186: =IF(L20<>"",L20,"") ->  | AW186: =IF(L21<>"",L21,"") ->  | AX186: =IF(L22<>"",L22,"") ->  | BE186: =IF(M20<>"",M20,"") ->  | BF186: =IF(M21<>"",M21,"") ->  | BG186: =IF(M22<>"",M22,"") -> 
Q187: C Value | X187: =IF(I25<>"",I25,"") ->  | Y187: =IF(I26<>"",I26,"") ->  | Z187: =IF(I27<>"",I27,"") ->  | AG187: =IF(J25<>"",J25,"") ->  | AH187: =IF(J26<>"",J26,"") ->  | AI187: =IF(J27<>"",J27,"") ->  | AP187: =IF(K25<>"",K25,"") ->  | AQ187: =IF(K26<>"",K26,"") ->  | AR187: =IF(K27<>"",K27,"") ->  | AY187: =IF(L25<>"",L25,"") ->  | AZ187: =IF(L26<>"",L26,"") ->  | BA187: =IF(L27<>"",L27,"") ->  | BH187: =IF(M25<>"",M25,"") ->  | BI187: =IF(M26<>"",M26,"") ->  | BJ187: =IF(M27<>"",M27,"") -> 
C214: Analysis:
Q220: Supporting Data
S221: 1 | T221: 2 | U221: 3 | V221: 4 | W221: 5 | X221: 6 | Y221: 7 | Z221: 8 | AA221: 9 | AB221: 10
Q222: Appr A | R222: Max | S222: =IF(D15<>"",MAX(D15:D17),"") -> 
R223: + | S223: =IF(D18<>"",S222-D18,"") -> 
R224: Min | S224: =IF(D15<>"",MIN(D15:D17),"") -> 
R225: - | S225: =IF(D18<>"",D18-S224,"") -> 
Q226: Appr B | R226: Max | S226: =IF(D20<>"",MAX(D20:D22),"") -> 
R227: + | S227: =IF(D23<>"",S226-D23,"") -> 
R228: Min | S228: =IF(D20<>"",MIN(D20:D22),"") -> 
R229: - | S229: =IF(D23<>"",D23-S228,"") -> 
Q230: Appr C | R230: Max | S230: =IF(D25<>"",MAX(D25:D27),"") -> 
R231: + | S231: =IF(D28<>"",S230-D28,"") -> 
R232: Min | S232: =IF(D25<>"",MIN(D25:D27),"") -> 
R233: - | S233: =IF(D28<>"",D28-S232,"") -> 
C259: Analysis:
Q263: Supporting Data
V264: Part 1 | AE264: Part 2 | AN264: Part 3 | AW264: Part 4 | BF264: Part 5
R265: A1 | S265: A2 | T265: A3 | U265: B1 | V265: B2 | W265: B3 | X265: C1 | Y265: C2 | Z265: C3 | AA265: A1 | AB265: A2 | AC265: A3 | AD265: B1 | AE265: B2 | AF265: B3 | AG265: C1 | AH265: C2 | AI265: C3 | AJ265: A1 | AK265: A2 | AL265: A3 | AM265: B1 | AN265: B2 | AO265: B3 | AP265: C1 | AQ265: C2 | AR265: C3 | AS265: A1 | AT265: A2 | AU265: A3 | AV265: B1 | AW265: B2 | AX265: B3 | AY265: C1 | AZ265: C2 | BA265: C3 | BB265: A1 | BC265: A2 | BD265: A3 | BE265: B1 | BF265: B2 | BG265: B3 | BH265: C1 | BI265: C2 | BJ265: C3
Q266: A Value | R266: =IF(D15<>"",D15-D31,"") ->  | S266: =IF(D16<>"",D16-D31,"") ->  | T266: =IF(D17<>"",D17-D31,"") ->  | AA266: =IF(E15<>"",E15-E31,"") ->  | AB266: =IF(E16<>"",E16-E31,"") ->  | AC266: =IF(E17<>"",E17-E31,"") ->  | AJ266: =IF(F15<>"",F15-F31,"") ->  | AK266: =IF(F16<>"",F16-F31,"") ->  | AL266: =IF(F17<>"",F17-F31,"") ->  | AS266: =IF(G15<>"",G15-G31,"") ->  | AT266: =IF(G16<>"",G16-G31,"") ->  | AU266: =IF(G17<>"",G17-G31,"") ->  | BB266: =IF(H15<>"",H15-H31,"") ->  | BC266: =IF(H16<>"",H16-H31,"") ->  | BD266: =IF(H17<>"",H17-H31,"") -> 
Q267: B Value | U267: =IF(D20<>"",D20-D31,"") ->  | V267: =IF(D21<>"",D21-D31,"") ->  | W267: =IF(D22<>"",D22-D31,"") ->  | AD267: =IF(E20<>"",E20-E31,"") ->  | AE267: =IF(E21<>"",E21-E31,"") ->  | AF267: =IF(E22<>"",E22-E31,"") ->  | AM267: =IF(F20<>"",F20-F31,"") ->  | AN267: =IF(F21<>"",F21-F31,"") ->  | AO267: =IF(F22<>"",F22-F31,"") ->  | AV267: =IF(G20<>"",G20-G31,"") ->  | AW267: =IF(G21<>"",G21-G31,"") ->  | AX267: =IF(G22<>"",G22-G31,"") ->  | BE267: =IF(H20<>"",H20-H31,"") ->  | BF267: =IF(H21<>"",H21-H31,"") ->  | BG267: =IF(H22<>"",H22-H31,"") -> 
Q268: C Value | X268: =IF(D25<>"",D25-D31,"") ->  | Y268: =IF(D26<>"",D26-D31,"") ->  | Z268: =IF(D27<>"",D27-D31,"") ->  | AG268: =IF(E25<>"",E25-E31,"") ->  | AH268: =IF(E26<>"",E26-E31,"") ->  | AI268: =IF(E27<>"",E27-E31,"") ->  | AP268: =IF(F25<>"",F25-F31,"") ->  | AQ268: =IF(F26<>"",F26-F31,"") ->  | AR268: =IF(F27<>"",F27-F31,"") ->  | AY268: =IF(G25<>"",G25-G31,"") ->  | AZ268: =IF(G26<>"",G26-G31,"") ->  | BA268: =IF(G27<>"",G27-G31,"") ->  | BH268: =IF(H25<>"",H25-H31,"") ->  | BI268: =IF(H26<>"",H26-H31,"") ->  | BJ268: =IF(H27<>"",H27-H31,"") -> 
V270: Part 6 | AE270: Part 7 | AN270: Part 8 | AW270: Part 9 | BF270: Part 10
R271: A1 | S271: A2 | T271: A3 | U271: B1 | V271: B2 | W271: B3 | X271: C1 | Y271: C2 | Z271: C3 | AA271: A1 | AB271: A2 | AC271: A3 | AD271: B1 | AE271: B2 | AF271: B3 | AG271: C1 | AH271: C2 | AI271: C3 | AJ271: A1 | AK271: A2 | AL271: A3 | AM271: B1 | AN271: B2 | AO271: B3 | AP271: C1 | AQ271: C2 | AR271: C3 | AS271: A1 | AT271: A2 | AU271: A3 | AV271: B1 | AW271: B2 | AX271: B3 | AY271: C1 | AZ271: C2 | BA271: C3 | BB271: A1 | BC271: A2 | BD271: A3 | BE271: B1 | BF271: B2 | BG271: B3 | BH271: C1 | BI271: C2 | BJ271: C3
Q272: A Value | R272: =IF(I15<>"",I15-I31,"") ->  | S272: =IF(I16<>"",I16-I31,"") ->  | T272: =IF(I17<>"",I17-I31,"") ->  | AA272: =IF(J15<>"",J15-J31,"") ->  | AB272: =IF(J16<>"",J16-J31,"") ->  | AC272: =IF(J17<>"",J17-J31,"") ->  | AJ272: =IF(K15<>"",K15-K31,"") ->  | AK272: =IF(K16<>"",K16-K31,"") ->  | AL272: =IF(K17<>"",K17-K31,"") ->  | AS272: =IF(L15<>"",L15-L31,"") ->  | AT272: =IF(L16<>"",L16-L31,"") ->  | AU272: =IF(L17<>"",L17-L31,"") ->  | BB272: =IF(M15<>"",M15-M31,"") ->  | BC272: =IF(M16<>"",M16-M31,"") ->  | BD272: =IF(M17<>"",M17-M31,"") -> 
Q273: B Value | U273: =IF(I20<>"",I20-I31,"") ->  | V273: =IF(I21<>"",I21-I31,"") ->  | W273: =IF(I22<>"",I22-I31,"") ->  | AD273: =IF(J20<>"",J20-J31,"") ->  | AE273: =IF(J21<>"",J21-J31,"") ->  | AF273: =IF(J22<>"",J22-J31,"") ->  | AM273: =IF(K20<>"",K20-K31,"") ->  | AN273: =IF(K21<>"",K21-K31,"") ->  | AO273: =IF(K22<>"",K22-K31,"") ->  | AV273: =IF(L20<>"",L20-L31,"") ->  | AW273: =IF(L21<>"",L21-L31,"") ->  | AX273: =IF(L22<>"",L22-L31,"") ->  | BE273: =IF(M20<>"",M20-M31,"") ->  | BF273: =IF(M21<>"",M21-M31,"") ->  | BG273: =IF(M22<>"",M22-M31,"") -> 
Q274: C Value | X274: =IF(I25<>"",I25-I31,"") ->  | Y274: =IF(I26<>"",I26-I31,"") ->  | Z274: =IF(I27<>"",I27-I31,"") ->  | AG274: =IF(J25<>"",J25-J31,"") ->  | AH274: =IF(J26<>"",J26-J31,"") ->  | AI274: =IF(J27<>"",J27-J31,"") ->  | AP274: =IF(K25<>"",K25-K31,"") ->  | AQ274: =IF(K26<>"",K26-K31,"") ->  | AR274: =IF(K27<>"",K27-K31,"") ->  | AY274: =IF(L25<>"",L25-L31,"") ->  | AZ274: =IF(L26<>"",L26-L31,"") ->  | BA274: =IF(L27<>"",L27-L31,"") ->  | BH274: =IF(M25<>"",M25-M31,"") ->  | BI274: =IF(M26<>"",M26-M31,"") ->  | BJ274: =IF(M27<>"",M27-M31,"") -> 
C301: Analysis:
Q307: supporting data
Q309: divisions | S309: -1 | T309: =S309+0.1 -> -0.9 | U309: =T309+0.1 -> -0.8 | V309: -0.7 | W309: -0.6 | X309: -0.5 | Y309: -0.4 | Z309: -0.3 | AA309: -0.2 | AB309: -0.1 | AC309: -1.387778781e-16 | AD309: 0.1 | AE309: 0.2 | AF309: 0.3 | AG309: 0.4 | AH309: 0.5 | AI309: 0.6 | AJ309: 0.7 | AK309: 0.8 | AL309: 0.9 | AM309: 1
Q310: Count | R310: Appr A | S310: =COUNTIF($R266:$BJ266,">-1")+COUNTIF($R272:$BJ272,">-1")-SUM(T310:AM310) -> 0 | T310: =COUNTIF($R266:$BJ266,">-.9")+COUNTIF($R272:$BJ272,">-.9")-SUM(U310:AM310) -> 0 | U310: =COUNTIF($R266:$BJ266,">-.8")+COUNTIF($R272:$BJ272,">-.8")-SUM(V310:AM310) -> 0 | V310: =COUNTIF($R266:$BJ266,">-.7")+COUNTIF($R272:$BJ272,">-.7")-SUM(W310:AM310) -> 0 | W310: =COUNTIF($R266:$BJ266,">-.6")+COUNTIF($R272:$BJ272,">-.6")-SUM(X310:AM310) -> 0 | X310: =COUNTIF($R266:$BJ266,">-.5")+COUNTIF($R272:$BJ272,">-.5")-SUM(Y310:AM310) -> 0 | Y310: =COUNTIF($R266:$BJ266,">-.4")+COUNTIF($R272:$BJ272,">-.4")-SUM(Z310:AM310) -> 0 | Z310: =COUNTIF($R266:$BJ266,">-.3")+COUNTIF($R272:$BJ272,">-.3")-SUM(AA310:AM310) -> 0 | AA310: =COUNTIF($R266:$BJ266,">-.2")+COUNTIF($R272:$BJ272,">-.2")-SUM(AB310:AM310) -> 0 | AB310: =COUNTIF($R266:$BJ266,">-.1")+COUNTIF($R272:$BJ272,">-.1")-SUM(AC310:AM310) -> 0 | AC310: =COUNTIF($R266:$BJ266,">-0")+COUNTIF($R272:$BJ272,">0")-SUM(AD310:AM310) -> 0 | AD310: =COUNTIF($R266:$BJ266,">.1")+COUNTIF($R272:$BJ272,">.1")-SUM(AE310:AM310) -> 0 | AE310: =COUNTIF($R266:$BJ266,">.2")+COUNTIF($R272:$BJ272,">.2")-SUM(AF310:AM310) -> 0 | AF310: =COUNTIF($R266:$BJ266,">.3")+COUNTIF($R272:$BJ272,">.3")-SUM(AG310:AM310) -> 0 | AG310: =COUNTIF($R266:$BJ266,">.4")+COUNTIF($R272:$BJ272,">.4")-SUM(AH310:AM310) -> 0 | AH310: =COUNTIF($R266:$BJ266,">.5")+COUNTIF($R272:$BJ272,">.5")-SUM(AI310:AM310) -> 0 | AI310: =COUNTIF($R266:$BJ266,">.6")+COUNTIF($R272:$BJ272,">.6")-SUM(AJ310:AM310) -> 0 | AJ310: =COUNTIF($R266:$BJ266,">.7")+COUNTIF($R272:$BJ272,">.7")-SUM(AK310:AM310) -> 0 | AK310: =COUNTIF($R266:$BJ266,">.8")+COUNTIF($R272:$BJ272,">.8")-SUM(AL310:AM310) -> 0 | AL310: =COUNTIF($R266:$BJ266,">.9")+COUNTIF($R272:$BJ272,">.9")-SUM(AM310:AM310) -> 0 | AM310: =COUNTIF($R266:$BJ266,">1")+COUNTIF($R272:$BJ272,">1") -> 0
R311: Appr B | S311: =COUNTIF($R267:$BJ267,">-1")+COUNTIF($R273:$BJ273,">-1")-SUM(T311:AM311) -> 0 | T311: =COUNTIF($R267:$BJ267,">-.9")+COUNTIF($R273:$BJ273,">-.9")-SUM(U311:AM311) -> 0 | U311: =COUNTIF($R267:$BJ267,">-.8")+COUNTIF($R273:$BJ273,">-.8")-SUM(V311:AM311) -> 0 | V311: =COUNTIF($R267:$BJ267,">-.7")+COUNTIF($R273:$BJ273,">-.7")-SUM(W311:AM311) -> 0 | W311: =COUNTIF($R267:$BJ267,">-.6")+COUNTIF($R273:$BJ273,">-.6")-SUM(X311:AM311) -> 0 | X311: =COUNTIF($R267:$BJ267,">-.5")+COUNTIF($R273:$BJ273,">-.5")-SUM(Y311:AM311) -> 0 | Y311: =COUNTIF($R267:$BJ267,">-.4")+COUNTIF($R273:$BJ273,">-.4")-SUM(Z311:AM311) -> 0 | Z311: =COUNTIF($R267:$BJ267,">-.3")+COUNTIF($R273:$BJ273,">-.3")-SUM(AA311:AM311) -> 0 | AA311: =COUNTIF($R267:$BJ267,">-.2")+COUNTIF($R273:$BJ273,">-.2")-SUM(AB311:AM311) -> 0 | AB311: =COUNTIF($R267:$BJ267,">-.1")+COUNTIF($R273:$BJ273,">-.1")-SUM(AC311:AM311) -> 0 | AC311: =COUNTIF($R267:$BJ267,">-0")+COUNTIF($R273:$BJ273,">0")-SUM(AD311:AM311) -> 0 | AD311: =COUNTIF($R267:$BJ267,">.1")+COUNTIF($R273:$BJ273,">.1")-SUM(AE311:AM311) -> 0 | AE311: =COUNTIF($R267:$BJ267,">.2")+COUNTIF($R273:$BJ273,">.2")-SUM(AF311:AM311) -> 0 | AF311: =COUNTIF($R267:$BJ267,">.3")+COUNTIF($R273:$BJ273,">.3")-SUM(AG311:AM311) -> 0 | AG311: =COUNTIF($R267:$BJ267,">.4")+COUNTIF($R273:$BJ273,">.4")-SUM(AH311:AM311) -> 0 | AH311: =COUNTIF($R267:$BJ267,">.5")+COUNTIF($R273:$BJ273,">.5")-SUM(AI311:AM311) -> 0 | AI311: =COUNTIF($R267:$BJ267,">.6")+COUNTIF($R273:$BJ273,">.6")-SUM(AJ311:AM311) -> 0 | AJ311: =COUNTIF($R267:$BJ267,">.7")+COUNTIF($R273:$BJ273,">.7")-SUM(AK311:AM311) -> 0 | AK311: =COUNTIF($R267:$BJ267,">.8")+COUNTIF($R273:$BJ273,">.8")-SUM(AL311:AM311) -> 0 | AL311: =COUNTIF($R267:$BJ267,">.9")+COUNTIF($R273:$BJ273,">.9")-SUM(AM311:AM311) -> 0 | AM311: =COUNTIF($R267:$BJ267,">1")+COUNTIF($R273:$BJ273,">1") -> 0
R312: Appr C | S312: =COUNTIF($R268:$BJ268,">-1")+COUNTIF($R274:$BJ274,">-1")-SUM(T312:AM312) -> 0 | T312: =COUNTIF($R268:$BJ268,">-.9")+COUNTIF($R274:$BJ274,">-.9")-SUM(U312:AM312) -> 0 | U312: =COUNTIF($R268:$BJ268,">-.8")+COUNTIF($R274:$BJ274,">-.8")-SUM(V312:AM312) -> 0 | V312: =COUNTIF($R268:$BJ268,">-.7")+COUNTIF($R274:$BJ274,">-.7")-SUM(W312:AM312) -> 0 | W312: =COUNTIF($R268:$BJ268,">-.6")+COUNTIF($R274:$BJ274,">-.6")-SUM(X312:AM312) -> 0 | X312: =COUNTIF($R268:$BJ268,">-.5")+COUNTIF($R274:$BJ274,">-.5")-SUM(Y312:AM312) -> 0 | Y312: =COUNTIF($R268:$BJ268,">-.4")+COUNTIF($R274:$BJ274,">-.4")-SUM(Z312:AM312) -> 0 | Z312: =COUNTIF($R268:$BJ268,">-.3")+COUNTIF($R274:$BJ274,">-.3")-SUM(AA312:AM312) -> 0 | AA312: =COUNTIF($R268:$BJ268,">-.2")+COUNTIF($R274:$BJ274,">-.2")-SUM(AB312:AM312) -> 0 | AB312: =COUNTIF($R268:$BJ268,">-.1")+COUNTIF($R274:$BJ274,">-.1")-SUM(AC312:AM312) -> 0 | AC312: =COUNTIF($R268:$BJ268,">-0")+COUNTIF($R274:$BJ274,">0")-SUM(AD312:AM312) -> 0 | AD312: =COUNTIF($R268:$BJ268,">.1")+COUNTIF($R274:$BJ274,">.1")-SUM(AE312:AM312) -> 0 | AE312: =COUNTIF($R268:$BJ268,">.2")+COUNTIF($R274:$BJ274,">.2")-SUM(AF312:AM312) -> 0 | AF312: =COUNTIF($R268:$BJ268,">.3")+COUNTIF($R274:$BJ274,">.3")-SUM(AG312:AM312) -> 0 | AG312: =COUNTIF($R268:$BJ268,">.4")+COUNTIF($R274:$BJ274,">.4")-SUM(AH312:AM312) -> 0 | AH312: =COUNTIF($R268:$BJ268,">.5")+COUNTIF($R274:$BJ274,">.5")-SUM(AI312:AM312) -> 0 | AI312: =COUNTIF($R268:$BJ268,">.6")+COUNTIF($R274:$BJ274,">.6")-SUM(AJ312:AM312) -> 0 | AJ312: =COUNTIF($R268:$BJ268,">.7")+COUNTIF($R274:$BJ274,">.7")-SUM(AK312:AM312) -> 0 | AK312: =COUNTIF($R268:$BJ268,">.8")+COUNTIF($R274:$BJ274,">.8")-SUM(AL312:AM312) -> 0 | AL312: =COUNTIF($R268:$BJ268,">.9")+COUNTIF($R274:$BJ274,">.9")-SUM(AM312:AM312) -> 0 | AM312: =COUNTIF($R268:$BJ268,">1")+COUNTIF($R274:$BJ274,">1") -> 0
C345: Analysis:
S349: X=Y line
Q350: Appr A | S350: =MIN(D31:M31) -> 0 | T350: =MAX(D31:M31) -> 0
Q351: Appr B | S351: =S350 -> 0 | T351: =T350 -> 0
Q352: Appr C
C376: Analysis:
C456: Analysis:

Sheet Gage R&R X&R (hidden)
AG1: CQD-113.40; Rev 1; 01/15/15
B2: VARIABLES CONTROL CHART ( x & R ) | U2: PART NO. | AE2: CHART NO.
B3: MEASUREMENT EVALUATION
B4: PART NAME (Product) | N4: OPERATION (Process) | Y4: SPECIFICATION LIMITS
B6: APPRAISER A | F6: APPRAISER B | K6: APPRAISER C | P6: MACHINE | T6: GAGE | X6: UNIT OF MEASURE | AC6: ZERO EQUALS
C9: x = | D9: =IF(D53<>"",AVERAGE(D59:AG59),"") ->  | G9: UCL = | I9: =IF(D9<>"",D9+AJ17*D30,"") ->  | L9: LCL = | N9: =IF(D9<>"",D9-AJ17*D30,"") ->  | T9: AVERAGES (X BAR CHART) | AI9: X BAR CHART INFORMATION
AI11: DATAPOINT | AJ11: 1 | AK11: =AJ11+1 -> 2 | AL11: =AK11+1 -> 3 | AM11: 4 | AN11: 5 | AO11: 6 | AP11: 7 | AQ11: 8 | AR11: 9 | AS11: 10 | AT11: 11 | AU11: 12 | AV11: 13 | AW11: 14 | AX11: 15 | AY11: 16 | AZ11: 17 | BA11: 18 | BB11: 19 | BC11: 20 | BD11: 21 | BE11: 22 | BF11: 23 | BG11: 24 | BH11: 25 | BI11: 26 | BJ11: 27 | BK11: 28 | BL11: 29 | BM11: 30
AI12: UCL LINE | AJ12: =$I$9 -> 
AI13: AVERAGE | AJ13: =$D$9 -> 
AI14: X | AJ14: =D59 ->  | AK14: =IF(E53<>"",E59,AK13) ->  | AL14: =IF(F53<>"",F59,AL13) -> 
AI15: LCL LINE | AJ15: =$N$9 -> 
AI17: A2= | AJ17: =IF(COUNT(D53:D57)=5,0.577,IF(COUNT(D53:D57)=4,0.729,IF(COUNT(D53:D57)=3,1.023,1.88))) -> 1.88
C30: r = | D30: =IF(D60<>"",AVERAGE(D60:AG60),"") ->  | G30: UCL = | I30: =IF(D53="","",IF(COUNT(D53:D57)=5,AJ35*2.115,IF(COUNT(D53:D57)=4,AJ35*2.282,IF(COUNT(D53:D57)=3,AJ35*2.575,AJ35*3.267)))) ->  | L30: LCL = | N30: =IF(D53<>"",0,"") ->  | U30: RANGES (R CHART)
AI31: RANGE CHART INFORMATION
AI33: DATAPOINT | AJ33: 1 | AK33: =AJ33+1 -> 2 | AL33: 3 | AM33: 4 | AN33: 5 | AO33: 6 | AP33: 7 | AQ33: 8 | AR33: 9 | AS33: 10 | AT33: 11 | AU33: =AT33+1 -> 12 | AV33: 13 | AW33: 14 | AX33: 15 | AY33: 16 | AZ33: 17 | BA33: 18 | BB33: 19 | BC33: 20 | BD33: 21 | BE33: =BD33+1 -> 22 | BF33: 23 | BG33: 24 | BH33: 25 | BI33: 26 | BJ33: 27 | BK33: 28 | BL33: 29 | BM33: 30
AI34: UCL LINE | AJ34: =$I$30 -> 
AI35: AVERAGE | AJ35: =AVERAGE(D60:AG60) ->  | AK35: =$AJ$35 -> 
AI36: RANGE | AJ36: =D60 -> 
AI37: LCL LINE | AJ37: =$N$30 -> 
D51: APPRAISER A | N51: APPRAISER B | X51: APPRAISER C
B52: PART NUMBER | D52: 1 | E52: =D52+1 -> 2 | F52: 3 | G52: 4 | H52: 5 | I52: 6 | J52: 7 | K52: 8 | L52: 9 | M52: 10 | N52: 1 | O52: =N52+1 -> 2 | P52: 3 | Q52: 4 | R52: 5 | S52: 6 | T52: 7 | U52: 8 | V52: 9 | W52: 10 | X52: 1 | Y52: =X52+1 -> 2 | Z52: 3 | AA52: 4 | AB52: 5 | AC52: 6 | AD52: 7 | AE52: 8 | AF52: 9 | AG52: 10
B53: R | C53: 1
B54: EA | C54: 2
B55: D I | C55: 3
B56: NG | C56: 4
B57: S | C57: 5
B58: SUM | D58: =IF(D53<>"",SUM(D53:D57),"") ->  | E58: =IF(E53<>"",SUM(E53:E57),"") ->  | U58: =IF(U53<>"",SUM(U53:U57),"") -> 
B59: x | C59: SUM NUM | D59: =IF(D53<>"",AVERAGE(D53:D57),"") ->  | E59: =IF(E53<>"",AVERAGE(E53:E57),"") ->  | U59: =IF(U53<>"",AVERAGE(U53:U57),"") -> 
B60: R | C60: HIGH- LOW | D60: =IF(D53<>"",MAX(D53:D57)-MIN(D53:D57),"") ->  | E60: =IF(E53<>"",MAX(E53:E57)-MIN(E53:E57),"") ->  | U60: =IF(U53<>"",MAX(U53:U57)-MIN(U53:U57),"") -> 
D61: =IF(D60<>"",IF(D60>$I$30,"**",""),"") ->  | E61: =IF(E60<>"",IF(E60>$I$30,"**",""),"") ->  | U61: =IF(U60<>"",IF(U60>$I$30,"**",""),"") -> 
D62: ** = APPRAISER OUT OF CONTROL
C67: Computations for the Control Chart Method of Evaluating a Measurement Process
C69: REPLICATION ERROR: | I69: Average Subgroup Range = r = | U69: =D30 ->  | AA69: r | AC69: d2
AA70: 2 | AC70: 1.126
I71: Number of replications = Subgroup Size = r = | U71: =IF(D53<>"",COUNT(D53:D57),"") ->  | AA71: 3 | AC71: 1.693
AA72: 4 | AC72: 2.059
I73: Estimate Replication Standard Deviation r / d2 = se = | U73: =IF(U69<>"",U69/VLOOKUP(U71,AA70:AD73,3),"") ->  | AA73: 5 | AC73: 2.326
C75: CALCULATION FOR APPRAISER EFFECT: | Z75: Appraiser Averages
D77: no | F77: d2* | I77: Number of Appraisers = nA = | U77: =COUNT(AC78:AE80) -> 0 | Z77: Appraiser | AC77: Average
D78: 2 | F78: 1.41 | Z78: A | AC78: =IF(D59<>"",AVERAGE(D59:M59),"") -> 
D79: 3 | F79: 1.906 | I79: Number of Samples = n = | U79: =COUNT(D53:M53) -> 0 | Z79: B | AC79: =IF(N59<>"",AVERAGE(N59:W59),"") -> 
Z80: C | AC80: =IF(X59="","",AVERAGE(X59:AG59)) -> 
I81: Range of Appraiser Averages = RA = | U81: =MAX(AC78:AE80)-MIN(AC78:AE80) -> 0
I83: Appraiser Effect = RA / d2* = sA = | U83: =IF(U77<>0,U81/VLOOKUP(U77,D78:G79,3),"") -> 
C85: CALCULATIONS FOR MEASUREMENT ERROR STANDARD DEVIATION:
I87: sm | J87: = | K87: SQRT ( se + sA ) | U87: =IF(U73<>"",SQRT(U73*U73+U83*U83),"") -> 
C89: CALCULATIONS FOR SIGNAL TO NOISE RATIO: | Z89: Sample Averages
D91: no | F91: d2* | I91: Range for these Sample Averages = Rp = | U91: =MAX(AC92:AE101)-MIN(AC92:AE101) -> 0 | Z91: Sample | AC91: Average
D92: 2 | F92: 1.41 | Z92: 1 | AC92: =IF(D59="","",(D59+N59+X59)/COUNT(D59,N59,X59)) -> 
D93: 3 | F93: 1.906 | I93: Estimate Sample to Sample Standard Deviation: | Z93: 2 | AC93: =IF(E59="","",(E59+O59+Y59)/COUNT(E59,O59,Y59)) -> 
D94: 4 | F94: 2.237 | Z94: 3 | AC94: =IF(F59="","",(F59+P59+Z59)/COUNT(F59,P59,Z59)) -> 
D95: 5 | F95: 2.477 | P95: sp | Q95: = | R95: Rp / d2* = | U95: =IF(U79<>0,U91/VLOOKUP(U79,D92:G100,3),"") ->  | Z95: 4 | AC95: =IF(G59="","",(G59+Q59+AA59)/COUNT(G59,Q59,AA59)) -> 
D96: 6 | F96: 2.669 | Z96: 5 | AC96: =IF(H59="","",(H59+R59+AB59)/COUNT(H59,R59,AB59)) -> 
D97: 7 | F97: 2.827 | I97: Signal to Noise Ratio: | Z97: 6 | AC97: =IF(I59="","",(I59+S59+AC59)/COUNT(I59,S59,AC59)) -> 
D98: 8 | F98: 2.961 | Q98: sp / sm = | U98: =IF(U87<>"",U95/U87,"") ->  | Z98: 7 | AC98: =IF(J59="","",(J59+T59+AD59)/COUNT(J59,T59,AD59)) -> 
D99: 9 | F99: 3.076 | Z99: 8 | AC99: =IF(K59="","",(K59+U59+AE59)/COUNT(K59,U59,AE59)) -> 
D100: 10 | F100: 3.178 | Z100: 9 | AC100: =IF(L59="","",(L59+V59+AF59)/COUNT(L59,V59,AF59)) -> 
Z101: 10 | AC101: =IF(M59="","",(M59+W59+AG59)/COUNT(M59,W59,AG59)) -> 
D104: Thus the number of distinct categories that can be reliably distinguished by these measurements is:
G106: ndc = | I106: 1.41 x sp / sm = | U106: =IF(U98<>"",TRUNC(U98*1.41),"") -> 
U108: =IF(U106<>"",IF(U106<5,"Gage discrimination low","Gage discrimination acceptable"),"") -> 
D110: This is the number of non-overlapping 97% confidence intervals that will span the range of product variation. (A 97% confidence
D111: interval centered on a single measurement would contain the actual product value that is represented by that measurement 97%
D112: of the time.)
B115: Revision History
B116: Rev 1; 01/15/15

Sheet Gage Range Study (hidden)
B2: GAGE R STUDY | R2: PART NO. | Z2: CHART NO.
B3: MEASUREMENT EVALUATION
B4: PART NAME (Product) | L4: OPERATION (Process) | U4: ZERO EQUALS
B6: APPRAISER | F6: MACHINE | J6: GAGE | N6: UNIT OF MEASURE | S6: UPPER SPECIFICATION | X6: LOWER SPECIFICATION
C9: AVERAGES (X BAR CHART)
C10: x = | D10: =IF(D45<>"",AVERAGE(D45:M45),"") ->  | G10: UCL = | I10: =IF(D10<>"",D10+AJ18*D30,"") ->  | L10: LCL = | N10: =IF(D10<>"",D10-AJ18*D30,"") ->  | AI10: X BAR CHART INFORMATION
AI12: DATAPOINT | AJ12: 1 | AK12: =AJ12+1 -> 2 | AL12: =AK12+1 -> 3 | AM12: 4 | AN12: 5 | AO12: 6 | AP12: 7 | AQ12: 8 | AR12: 9 | AS12: 10
AI13: UCL LINE | AJ13: =$I$10 -> 
AI14: AVERAGE | AJ14: =$D$10 -> 
AI15: X | AJ15: =IF(D45<>"",D45,"") -> 
AI16: LCL LINE | AJ16: =$N$10 ->  | AK16: =AJ16 ->  | AL16: =AK16 -> 
AI18: E2 | AJ18: 2.66
C29: RANGES (R CHART)
C30: r = | D30: =IF(D45<>"",AVERAGE(D46:M46),"") ->  | G30: UCL = | I30: =IF(D30="","",D30*3.27) ->  | L30: LCL = | N30: =IF(D30<>"",0,"") -> 
AI32: RANGE CHART INFORMATION
AI34: DATAPOINT | AJ34: 1 | AK34: =AJ34+1 -> 2 | AL34: 3 | AM34: 4 | AN34: 5 | AO34: 6 | AP34: 7 | AQ34: 8 | AR34: 9 | AS34: 10
AI35: UCL LINE | AJ35: =$I$30 -> 
AI36: AVERAGE | AJ36: =AVERAGE(D46:M46) -> 0 | AK36: =$AJ$36 -> 0 | AL36: 0 | AM36: 0 | AN36: 0 | AO36: 0 | AP36: 0 | AQ36: 0 | AR36: 0 | AS36: 0
AI37: RANGE | AJ37: =D46 -> n/a | AK37: 0 | AL37: 0 | AM37: 0 | AN37: 0 | AO37: 0 | AP37: 0 | AQ37: 0 | AR37: 0 | AS37: 0
AI38: LCL LINE | AJ38: =$N$30 -> 
B44: READING | D44: 1 | E44: =D44+1 -> 2 | F44: 3 | G44: 4 | H44: 5 | I44: 6 | J44: 7 | K44: 8 | L44: 9 | M44: 10
B45: VALUE
B46: R | C46: HIGH- LOW | D46: n/a | E46: =ABS(E45-D45) -> 0 | F46: =ABS(F45-E45) -> 0 | G46: 0 | H46: 0 | I46: 0 | J46: 0 | K46: 0 | L46: 0 | M46: 0
D47: =IF(D46<>"",IF(OR(D45>$I$10,D45<$N$10),"**",""),"") ->  | E47: =IF(E46<>"",IF(OR(E46>$I$30,E45>$I$10,E45<$N$10),"**",""),"") ->  | F47: =IF(F46<>"",IF(OR(F46>$I$30,F45>$I$10,F45<$N$10),"**",""),"") -> 
D48: ** = POINT OUT OF CONTROL
C50: GAGE R ANALYSIS
C52: Data in control? | H52: =IF(M45<>"",IF(OR(D47<>"",E47<>"",F47<>"",G47<>"",H47<>"",I47<>"",J47<>"",K47<>"",L47<>"",M47<>""),"No","Yes"),"") ->  | M52: % Repeatability = | S52: =IF(M45<>"",STDEV(D45:M45)*6/(S7-X7)*100,"") ->  | X52: =IF(S52<>"",IF(S52>30,"Reject","Accept"),"") -> 
C54: This method CANNOT be used for final gage acceptance without other complete and detailed MSA methods.

Sheet PROCESS CAPABILITY CPK PPK
D3: Process Capability CPK PPK | AB3: CQD-113.41; Rev 1; 01/15/15
D4: HUB - Sleep mode Current Verification Batch run (UTC): 2020-Jun-02 09:35:51
D5: Enter Sub Group Size | F5: 1
D6: Enter Upper Spec Limit | F6: 70 | L6: Process Capability Study
D7: Enter Lower Spec Limit | F7: 40 | P7: Control Charts | X7: Process Capability
P8: Individuals Chart | X8: Histogram
D9: Input Data Here | E9: Sub Group | G9: Individuals Chart | J9: Moving Range Chart
G10: Point # | H10: Chart Data | J10: Point # | K10: Chart Data
D11: 52.195965 | E11: 1 | F11: 1 | G11: 1 | H11: =D11 -> 52.195965 | I11: 1 | J11: 1 | K11: 0
D12: 51.720496 | E12: 2 | F12: 2 | G12: 2 | H12: =D12 -> 51.720496 | I12: 2 | J12: 2 | K12: =H12-H11 -> -0.475469
D13: 52.589621 | E13: 3 | F13: 3 | G13: 3 | H13: 52.589621 | I13: 3 | J13: 3 | K13: =H13-H12 -> 0.869125
D14: 52.83495 | E14: 4 | F14: 4 | G14: 4 | H14: 52.83495 | I14: 4 | J14: 4 | K14: 0.245329
D15: 52.713011 | E15: 5 | F15: 5 | G15: 5 | H15: 52.713011 | I15: 5 | J15: 5 | K15: -0.121939
D16: 52.757413 | E16: 6 | F16: 6 | G16: 6 | H16: 52.757413 | I16: 6 | J16: 6 | K16: 0.044402
D17: 51.485971 | E17: 7 | F17: 7 | G17: 7 | H17: 51.485971 | I17: 7 | J17: 7 | K17: -1.271442
D18: 51.309217 | E18: 8 | F18: 8 | G18: 8 | H18: 51.309217 | I18: 8 | J18: 8 | K18: -0.176754
D19: 52.146637 | E19: 9 | F19: 9 | G19: 9 | H19: 52.146637 | I19: 9 | J19: 9 | K19: 0.83742
D20: 51.676681 | E20: 10 | F20: 10 | G20: 10 | H20: 51.676681 | I20: 10 | J20: 10 | K20: -0.469956
D21: 51.658221 | E21: 11 | F21: 11 | G21: 11 | H21: 51.658221 | I21: 11 | J21: 11 | K21: -0.01846
D22: 46.383939 | E22: 12 | F22: 12 | G22: 12 | H22: 46.383939 | I22: 12 | J22: 12 | K22: -5.274282
D23: 51.738932 | E23: 13 | F23: 13 | G23: 13 | H23: 51.738932 | I23: 13 | J23: 13 | K23: 5.354993
D24: 51.726101 | E24: 14 | F24: 14 | G24: 14 | H24: 51.726101 | I24: 14 | J24: 14 | K24: -0.012831
D25: 52.54053 | E25: 15 | F25: 15 | G25: 15 | H25: 52.54053 | I25: 15 | J25: 15 | K25: 0.814429 | P25: Moving Range Chart
D26: 52.341082 | E26: 16 | F26: 16 | G26: 16 | H26: 52.341082 | I26: 16 | J26: 16 | K26: -0.199448
D27: 50.643135 | E27: 17 | F27: 17 | G27: 17 | H27: 50.643135 | I27: 17 | J27: 17 | K27: -1.697947
D28: 52.375944 | E28: 18 | F28: 18 | G28: 18 | H28: 52.375944 | I28: 18 | J28: 18 | K28: 1.732809
D29: 52.559546 | E29: 19 | F29: 19 | G29: 19 | H29: 52.559546 | I29: 19 | J29: 19 | K29: 0.183602 | U29: Process Data | Y29: Potential (within) Capability
D30: 52.317412 | E30: 20 | F30: 20 | G30: 20 | H30: 52.317412 | I30: 20 | J30: 20 | K30: -0.242134 | U30: USL | W30: =F6 -> 70 | Y30: Cp | AA30: ='CPK PPK Calculations'!B20 -> 4.517104892
D31: 52.902283 | E31: 21 | F31: 21 | G31: 21 | H31: 52.902283 | I31: 21 | J31: 21 | K31: 0.584871 | U31: LSL | W31: =F7 -> 40 | Y31: CpU | AA31: ='CPK PPK Calculations'!B21 -> 5.343487842
D32: 51.845779 | E32: 22 | F32: 22 | G32: 22 | H32: 51.845779 | I32: 22 | J32: 22 | K32: -1.056504 | U32: # of Samples | W32: ='CPK PPK Calculations'!B24 -> 100 | Y32: CpL | AA32: ='CPK PPK Calculations'!B22 -> 3.690721942
D33: 52.749931 | E33: 23 | F33: 23 | G33: 23 | H33: 52.749931 | I33: 23 | J33: 23 | K33: 0.904152 | U33: # of Sub Groups | W33: ='CPK PPK Calculations'!B2 -> 100 | Y33: Cpk | AA33: ='CPK PPK Calculations'!B23 -> 3.690721942
D34: 60.233105 | E34: 24 | F34: 24 | G34: 24 | H34: 60.233105 | I34: 24 | J34: 24 | K34: 7.483174 | U34: Sub Group Size (n) | W34: ='CPK PPK Calculations'!B1 -> 1
D35: 52.669038 | E35: 25 | F35: 25 | G35: 25 | H35: 52.669038 | I35: 25 | J35: 25 | K35: -7.564067 | U35: Max Value | W35: ='CPK PPK Calculations'!B3 -> 60.233105 | Y35: Potential (overall) Capability
D36: 52.898168 | E36: 26 | F36: 26 | G36: 26 | H36: 52.898168 | I36: 26 | J36: 26 | K36: 0.22913 | U36: Min Value | W36: ='CPK PPK Calculations'!B4 -> 44.830663 | Y36: Pp | AA36: ='CPK PPK Calculations'!B16 -> 3.004489327
D37: 51.7678 | E37: 27 | F37: 27 | G37: 27 | H37: 51.7678 | I37: 27 | J37: 27 | K37: -1.130368 | U37: Range | W37: ='CPK PPK Calculations'!B5 -> 15.402442 | Y37: PpU | AA37: ='CPK PPK Calculations'!B17 -> 3.554146422
D38: 52.091924 | E38: 28 | F38: 28 | G38: 28 | H38: 52.091924 | I38: 28 | J38: 28 | K38: 0.324124 | U38: X Bar | W38: ='CPK PPK Calculations'!B9 -> 52.25582103 | Y38: PpL | AA38: ='CPK PPK Calculations'!B18 -> 2.454832232
D39: 52.609367 | E39: 29 | F39: 29 | G39: 29 | H39: 52.609367 | I39: 29 | J39: 29 | K39: 0.517443 | U39: R Bar | W39: ='CPK PPK Calculations'!B10 -> 1.250801152 | Y39: Ppk | AA39: ='CPK PPK Calculations'!B19 -> 2.454832232
D40: 51.648657 | E40: 30 | F40: 30 | G40: 30 | H40: 51.648657 | I40: 30 | J40: 30 | K40: -0.96071 | U40: St. Dev. (Within) | W40: ='CPK PPK Calculations'!B11 -> 1.664176323
D41: 52.824661 | E41: 31 | F41: 31 | G41: 31 | H41: 52.824661 | I41: 31 | J41: 31 | K41: 1.176004 | U41: St. Dev. (Overall) | W41: ='CPK PPK Calculations'!B11 -> 1.664176323 | Y41: I MR Chart Limits
D42: 52.330685 | E42: 32 | F42: 32 | G42: 32 | H42: 52.330685 | I42: 32 | J42: 32 | K42: -0.493976 | M42: One or more points are outside the control limits | S42: ='CPK PPK Calculations'!AA215 -> Fail | U42: UCL X | W42: ='CPK PPK Calculations'!B13 -> 55.57653205 | Y42: UCL X | AA42: ='CPK PPK Calculations'!B30 -> 58.32071102
D43: 52.376166 | E43: 33 | F43: 33 | G43: 33 | H43: 52.376166 | I43: 33 | J43: 33 | K43: 0.045481 | M43: More than 9 points in a row on one side of the average | S43: ='CPK PPK Calculations'!AA216 -> Fail | U43: LCL X | W43: ='CPK PPK Calculations'!B14 -> 48.93511001 | Y43: LCL X | AA43: ='CPK PPK Calculations'!B31 -> 51.67928898
D44: 51.940792 | E44: 34 | F44: 34 | G44: 34 | H44: 51.940792 | I44: 34 | J44: 34 | K44: -0.435374 | M44: Six points in a row increasing or decreasing | S44: ='CPK PPK Calculations'!AA217 -> Pass | U44: UCL R | W44: ='CPK PPK Calculations'!B15 -> 4.086367362 | Y44: UCL R | AA44: ='CPK PPK Calculations'!B32 -> 4.086367362
D45: 51.631531 | E45: 35 | F45: 35 | G45: 35 | H45: 51.631531 | I45: 35 | J45: 35 | K45: -0.309261 | M45: 14 points in a row alternating up and down | S45: ='CPK PPK Calculations'!AA218 -> Pass | U45: Normality | W45: ='CPK PPK Calculations'!B45 -> Pos skew & Tall
D46: 52.082259 | E46: 36 | F46: 36 | G46: 36 | H46: 52.082259 | I46: 36 | J46: 36 | K46: 0.450728 | M46: More than 2/3 of points outside 2 sigma | S46: ='CPK PPK Calculations'!AA219 -> Pass | Y46: X Median Chart Limits
D47: 51.773096 | E47: 37 | F47: 37 | G47: 37 | H47: 51.773096 | I47: 37 | J47: 37 | K47: -0.309163 | M47: More than 1/3 of points outside 1 sigma | S47: ='CPK PPK Calculations'!AA220 -> Pass | U47: Pre-Control Limits | Y47: UCL X | AA47: ='CPK PPK Calculations'!B27 -> Use IMR
D48: 51.902429 | E48: 38 | F48: 38 | G48: 38 | H48: 51.902429 | I48: 38 | J48: 38 | K48: 0.129333 | M48: 15 pts in a row within 1 sigma of centerline | S48: ='CPK PPK Calculations'!AA221 -> Pass | U48: Upper PC line | W48: ='CPK PPK Calculations'!B25 -> Not Stable | Y48: LCL X | AA48: ='CPK PPK Calculations'!B28 -> Use IMR
D49: 50.972968 | E49: 39 | F49: 39 | G49: 39 | H49: 50.972968 | I49: 39 | J49: 39 | K49: -0.929461 | M49: 8 pts in a row more than 1 sigma from centerline | S49: ='CPK PPK Calculations'!AA222 -> Pass | U49: Lower PC line | W49: ='CPK PPK Calculations'!B26 -> Not Stable | Y49: UCL R | AA49: ='CPK PPK Calculations'!B29 -> Use IMR
D50: 51.959042 | E50: 40 | F50: 40 | G50: 40 | H50: 51.959042 | I50: 40 | J50: 40 | K50: 0.986074
D51: 51.680017 | E51: 41 | F51: 41 | G51: 41 | H51: 51.680017 | I51: 41 | J51: 41 | K51: -0.279025 | M51: Generally, a Cpk and/or Ppk: | P51: < 1.00 is unacceptable | S51: 1.00 to 1.33 may require improvement | W51: 1.33 to 1.67 is acceptable | Z51: > 1.67 is excellent
D52: 51.680531 | E52: 42 | F52: 42 | G52: 42 | H52: 51.680531 | I52: 42 | J52: 42 | K52: 0.000514 | M52: Page 1 of 1
D53: 53.430066 | E53: 43 | F53: 43 | G53: 43 | H53: 53.430066 | I53: 43 | J53: 43 | K53: 1.749535
D54: 52.093703 | E54: 44 | F54: 44 | G54: 44 | H54: 52.093703 | I54: 44 | J54: 44 | K54: -1.336363
D55: 51.726946 | E55: 45 | F55: 45 | G55: 45 | H55: 51.726946 | I55: 45 | J55: 45 | K55: -0.366757 | M55: Guidance Information:
D56: 52.633387 | E56: 46 | F56: 46 | G56: 46 | H56: 52.633387 | I56: 46 | J56: 46 | K56: 0.906441 | M56: This is an X-bar and R (or Individuals-X Chart and Moving Range Chart). There are other similar charts that may be appropriate for different situations. Please see the chart selector below and ask your division quality manager, quality engineer, or Six Sigma Black Belt for assistance with other software calculations, if needed. Reminder, organize your data in a single column. If the data is sub-grouped, order the data by sub-group and sample. For example, if you have three subgroups of sample size equal to 5 you should order your data 1, 2, 3, 4, 5, 1, 2, 3, 4, 5, 1, 2, 3, 4, 5.
D57: 52.120309 | E57: 47 | F57: 47 | G57: 47 | H57: 52.120309 | I57: 47 | J57: 47 | K57: -0.513078
D58: 52.153933 | E58: 48 | F58: 48 | G58: 48 | H58: 52.153933 | I58: 48 | J58: 48 | K58: 0.033624
D59: 51.469504 | E59: 49 | F59: 49 | G59: 49 | H59: 51.469504 | I59: 49 | J59: 49 | K59: -0.684429
D60: 52.17517 | E60: 50 | F60: 50 | G60: 50 | H60: 52.17517 | I60: 50 | J60: 50 | K60: 0.705666
D61: 52.872146 | E61: 51 | F61: 51 | G61: 51 | H61: 52.872146 | I61: 51 | J61: 51 | K61: 0.696976
D62: 51.283677 | E62: 52 | F62: 52 | G62: 52 | H62: 51.283677 | I62: 52 | J62: 52 | K62: -1.588469
D63: 51.75685 | E63: 53 | F63: 53 | G63: 53 | H63: 51.75685 | I63: 53 | J63: 53 | K63: 0.473173
D64: 51.793904 | E64: 54 | F64: 54 | G64: 54 | H64: 51.793904 | I64: 54 | J64: 54 | K64: 0.037054
D65: 56.585208 | E65: 55 | F65: 55 | G65: 55 | H65: 56.585208 | I65: 55 | J65: 55 | K65: 4.791304
D66: 52.324934 | E66: 56 | F66: 56 | G66: 56 | H66: 52.324934 | I66: 56 | J66: 56 | K66: -4.260274
D67: 52.35336 | E67: 57 | F67: 57 | G67: 57 | H67: 52.35336 | I67: 57 | J67: 57 | K67: 0.028426
D68: 52.317302 | E68: 58 | F68: 58 | G68: 58 | H68: 52.317302 | I68: 58 | J68: 58 | K68: -0.036058
D69: 51.980942 | E69: 59 | F69: 59 | G69: 59 | H69: 51.980942 | I69: 59 | J69: 59 | K69: -0.33636
D70: 53.647259 | E70: 60 | F70: 60 | G70: 60 | H70: 53.647259 | I70: 60 | J70: 60 | K70: 1.666317
D71: 51.598459 | E71: 61 | F71: 61 | G71: 61 | H71: 51.598459 | I71: 61 | J71: 61 | K71: -2.0488
D72: 52.061686 | E72: 62 | F72: 62 | G72: 62 | H72: 52.061686 | I72: 62 | J72: 62 | K72: 0.463227
D73: 51.9597 | E73: 63 | F73: 63 | G73: 63 | H73: 51.9597 | I73: 63 | J73: 63 | K73: -0.101986
D74: 51.301253 | E74: 64 | F74: 64 | G74: 64 | H74: 51.301253 | I74: 64 | J74: 64 | K74: -0.658447
D75: 52.369494 | E75: 65 | F75: 65 | G75: 65 | H75: 52.369494 | I75: 65 | J75: 65 | K75: 1.068241
D76: 51.658851 | E76: 66 | F76: 66 | G76: 66 | H76: =D76 -> 51.658851 | I76: 66 | J76: 66 | K76: -0.710643
D77: 52.950991 | E77: 67 | F77: 67 | G77: 67 | H77: 52.950991 | I77: 67 | J77: 67 | K77: =H77-H76 -> 1.29214
D78: 44.830663 | E78: 68 | F78: 68 | G78: 68 | H78: 44.830663 | I78: 68 | J78: 68 | K78: -8.120328
D79: 51.368305 | E79: 69 | F79: 69 | G79: 69 | H79: 51.368305 | I79: 69 | J79: 69 | K79: 6.537642
D80: 52.13585 | E80: 70 | F80: 70 | G80: 70 | H80: 52.13585 | I80: 70 | J80: 70 | K80: 0.767545
D81: 52.200905 | E81: 71 | F81: 71 | G81: 71 | H81: 52.200905 | I81: 71 | J81: 71 | K81: 0.065055
D82: 52.076355 | E82: 72 | F82: 72 | G82: 72 | H82: 52.076355 | I82: 72 | J82: 72 | K82: -0.12455
D83: 52.085799 | E83: 73 | F83: 73 | G83: 73 | H83: 52.085799 | I83: 73 | J83: 73 | K83: 0.009444
D84: 52.686956 | E84: 74 | F84: 74 | G84: 74 | H84: 52.686956 | I84: 74 | J84: 74 | K84: 0.601157
D85: 51.407563 | E85: 75 | F85: 75 | G85: 75 | H85: 51.407563 | I85: 75 | J85: 75 | K85: -1.279393
D86: 52.481999 | E86: 76 | F86: 76 | G86: 76 | H86: 52.481999 | I86: 76 | J86: 76 | K86: 1.074436
D87: 51.901083 | E87: 77 | F87: 77 | G87: 77 | H87: 51.901083 | I87: 77 | J87: 77 | K87: -0.580916
D88: 53.021162 | E88: 78 | F88: 78 | G88: 78 | H88: 53.021162 | I88: 78 | J88: 78 | K88: 1.120079
D89: 51.783839 | E89: 79 | F89: 79 | G89: 79 | H89: 51.783839 | I89: 79 | J89: 79 | K89: -1.237323
D90: 52.68408 | E90: 80 | F90: 80 | G90: 80 | H90: 52.68408 | I90: 80 | J90: 80 | K90: 0.900241
D91: 51.731617 | E91: 81 | F91: 81 | G91: 81 | H91: 51.731617 | I91: 81 | J91: 81 | K91: -0.952463
D92: 51.783839 | E92: 82 | F92: 82 | G92: 82 | H92: 51.783839 | I92: 82 | J92: 82 | K92: 0.052222
D93: 51.708514 | E93: 83 | F93: 83 | G93: 83 | H93: 51.708514 | I93: 83 | J93: 83 | K93: -0.075325
D94: 52.325597 | E94: 84 | F94: 84 | G94: 84 | H94: 52.325597 | I94: 84 | J94: 84 | K94: 0.617083
D95: 51.974045 | E95: 85 | F95: 85 | G95: 85 | H95: 51.974045 | I95: 85 | J95: 85 | K95: -0.351552
D96: 51.75685 | E96: 86 | F96: 86 | G96: 86 | H96: 51.75685 | I96: 86 | J96: 86 | K96: -0.217195
D97: 52.002732 | E97: 87 | F97: 87 | G97: 87 | H97: 52.002732 | I97: 87 | J97: 87 | K97: 0.245882
D98: 52.525247 | E98: 88 | F98: 88 | G98: 88 | H98: 52.525247 | I98: 88 | J98: 88 | K98: 0.522515
D99: 51.62047 | E99: 89 | F99: 89 | G99: 89 | H99: 51.62047 | I99: 89 | J99: 89 | K99: -0.904777
D100: 52.46209 | E100: 90 | F100: 90 | G100: 90 | H100: 52.46209 | I100: 90 | J100: 90 | K100: 0.84162
D101: 52.019545 | E101: 91 | F101: 91 | G101: 91 | H101: 52.019545 | I101: 91 | J101: 91 | K101: -0.442545
D102: 51.93681 | E102: 92 | F102: 92 | G102: 92 | H102: 51.93681 | I102: 92 | J102: 92 | K102: -0.082735
D103: 52.543866 | E103: 93 | F103: 93 | G103: 93 | H103: 52.543866 | I103: 93 | J103: 93 | K103: 0.607056
D104: 52.403189 | E104: 94 | F104: 94 | G104: 94 | H104: 52.403189 | I104: 94 | J104: 94 | K104: -0.140677
D105: 52.909734 | E105: 95 | F105: 95 | G105: 95 | H105: 52.909734 | I105: 95 | J105: 95 | K105: 0.506545
D106: 56.320538 | E106: 96 | F106: 96 | G106: 96 | H106: 56.320538 | I106: 96 | J106: 96 | K106: 3.410804
D107: 52.678092 | E107: 97 | F107: 97 | G107: 97 | H107: 52.678092 | I107: 97 | J107: 97 | K107: -3.642446
D108: 59.865333 | E108: 98 | F108: 98 | G108: 98 | H108: 59.865333 | I108: 98 | J108: 98 | K108: 7.187241
D109: 53.295062 | E109: 99 | F109: 99 | G109: 99 | H109: 53.295062 | I109: 99 | J109: 99 | K109: -6.570271
D110: 52.150307 | E110: 100 | F110: 100 | G110: 100 | H110: 52.150307 | I110: 100 | J110: 100 | K110: -1.144755
D111: Revision History
D112: Rev 1; 01/15/15

Sheet CPK PPK Calculations
A1: Sub group | B1: ='PROCESS CAPABILITY CPK PPK'!F5 -> 1 | D1: =IF(COUNTBLANK('PROCESS CAPABILITY CPK PPK'!D11)=1,0,'PROCESS CAPABILITY CPK PPK'!D11) -> 52.195965 | E1: =B4 -> 44.830663 | F1: =FREQUENCY(RawData,Bins) -> 1 | G1: =IF(COUNTBLANK(D1)=1,"",D1) -> 52.195965 | H1: =IF(COUNTBLANK(D2)=1,"",D2) -> 51.720496 | I1: =IF(COUNTBLANK(D3)=1,"",D3) -> 52.589621 | J1: =IF(COUNTBLANK(D4)=1,"",D4) -> 52.83495 | K1: =IF(COUNTBLANK(D5)=1,"",D5) -> 52.713011 | L1: =IF(COUNTBLANK(D6)=1,"",D6) -> 52.757413 | M1: =IF(COUNTBLANK(D7)=1,"",D7) -> 51.485971 | N1: =IF(COUNTBLANK(D8)=1,"",D8) -> 51.309217 | O1: =IF(COUNTBLANK(D9)=1,"",D9) -> 52.146637 | P1: =IF(COUNTBLANK(D10)=1,"",D10) -> 51.676681 | Q1: =IF(COUNTBLANK(D11)=1,"",D11) -> 51.658221 | R1: =IF(COUNTBLANK(D12)=1,"",D12) -> 46.383939 | S1: =IF(COUNTBLANK(D13)=1,"",D13) -> 51.738932 | T1: =IF(COUNTBLANK(D14)=1,"",D14) -> 51.726101 | U1: =IF(COUNTBLANK(D15)=1,"",D15) -> 52.54053 | V1: =IF(COUNTBLANK(D16)=1,"",D16) -> 52.341082 | W1: =IF(COUNTBLANK(D17)=1,"",D17) -> 50.643135 | X1: =IF(COUNTBLANK(D18)=1,"",D18) -> 52.375944 | Y1: =IF(COUNTBLANK(D19)=1,"",D19) -> 52.559546 | Z1: =IF(COUNTBLANK(D20)=1,"",D20) -> 52.317412 | AA1: =IF(COUNTBLANK(D21)=1,"",D21) -> 52.902283 | AB1: =IF(COUNTBLANK(D22)=1,"",D22) -> 51.845779 | AC1: =IF(COUNTBLANK(D23)=1,"",D23) -> 52.749931 | AD1: =IF(COUNTBLANK(D24)=1,"",D24) -> 60.233105 | AE1: =IF(COUNTBLANK(D25)=1,"",D25) -> 52.669038 | AF1: =IF(COUNTBLANK(D26)=1,"",D26) -> 52.898168 | AG1: =IF(COUNTBLANK(D27)=1,"",D27) -> 51.7678 | AH1: =IF(COUNTBLANK(D28)=1,"",D28) -> 52.091924 | AI1: =IF(COUNTBLANK(D29)=1,"",D29) -> 52.609367 | AJ1: =IF(COUNTBLANK(D30)=1,"",D30) -> 51.648657 | AK1: =IF(COUNTBLANK(D31)=1,"",D31) -> 52.824661 | AL1: =IF(COUNTBLANK(D32)=1,"",D32) -> 52.330685 | AM1: =IF(COUNTBLANK(D33)=1,"",D33) -> 52.376166 | AN1: =IF(COUNTBLANK(D34)=1,"",D34) -> 51.940792 | AO1: =IF(COUNTBLANK(D35)=1,"",D35) -> 51.631531 | AP1: =IF(COUNTBLANK(D36)=1,"",D36) -> 52.082259 | AQ1: =IF(COUNTBLANK(D37)=1,"",D37) -> 51.773096 | AR1: =IF(COUNTBLANK(D38)=1,"",D38) -> 51.902429 | AS1: =IF(COUNTBLANK(D39)=1,"",D39) -> 50.972968 | AT1: =IF(COUNTBLANK(D40)=1,"",D40) -> 51.959042 | AU1: =IF(COUNTBLANK(D41)=1,"",D41) -> 51.680017 | AV1: =IF(COUNTBLANK(D42)=1,"",D42) -> 51.680531 | AW1: =IF(COUNTBLANK(D43)=1,"",D43) -> 53.430066 | AX1: =IF(COUNTBLANK(D44)=1,"",D44) -> 52.093703 | AY1: =IF(COUNTBLANK(D45)=1,"",D45) -> 51.726946 | AZ1: =IF(COUNTBLANK(D46)=1,"",D46) -> 52.633387 | BA1: =IF(COUNTBLANK(D47)=1,"",D47) -> 52.120309 | BB1: =IF(COUNTBLANK(D48)=1,"",D48) -> 52.153933 | BC1: =IF(COUNTBLANK(D49)=1,"",D49) -> 51.469504 | BD1: =IF(COUNTBLANK(D50)=1,"",D50) -> 52.17517 | BE1: =IF(COUNTBLANK(D51)=1,"",D51) -> 52.872146 | BF1: =IF(COUNTBLANK(D52)=1,"",D52) -> 51.283677 | BG1: =IF(COUNTBLANK(D53)=1,"",D53) -> 51.75685 | BH1: =IF(COUNTBLANK(D54)=1,"",D54) -> 51.793904 | BI1: =IF(COUNTBLANK(D55)=1,"",D55) -> 56.585208 | BJ1: =IF(COUNTBLANK(D56)=1,"",D56) -> 52.324934 | BK1: =IF(COUNTBLANK(D57)=1,"",D57) -> 52.35336 | BL1: =IF(COUNTBLANK(D58)=1,"",D58) -> 52.317302 | BM1: =IF(COUNTBLANK(D59)=1,"",D59) -> 51.980942 | BN1: =IF(COUNTBLANK(D60)=1,"",D60) -> 53.647259 | BO1: =IF(COUNTBLANK(D61)=1,"",D61) -> 51.598459 | BP1: =IF(COUNTBLANK(D62)=1,"",D62) -> 52.061686 | BQ1: =IF(COUNTBLANK(D63)=1,"",D63) -> 51.9597 | BR1: =IF(COUNTBLANK(D64)=1,"",D64) -> 51.301253 | BS1: =IF(COUNTBLANK(D65)=1,"",D65) -> 52.369494 | BT1: =IF(COUNTBLANK(D66)=1,"",D66) -> 51.658851 | BU1: =IF(COUNTBLANK(D67)=1,"",D67) -> 52.950991 | BV1: =IF(COUNTBLANK(D68)=1,"",D68) -> 44.830663 | BW1: =IF(COUNTBLANK(D69)=1,"",D69) -> 51.368305 | BX1: =IF(COUNTBLANK(D70)=1,"",D70) -> 52.13585 | BY1: =IF(COUNTBLANK(D71)=1,"",D71) -> 52.200905 | BZ1: =IF(COUNTBLANK(D72)=1,"",D72) -> 52.076355 | CA1: =IF(COUNTBLANK(D73)=1,"",D73) -> 52.085799 | CB1: =IF(COUNTBLANK(D74)=1,"",D74) -> 52.686956 | CC1: =IF(COUNTBLANK(D75)=1,"",D75) -> 51.407563 | CD1: =IF(COUNTBLANK(D76)=1,"",D76) -> 52.481999 | CE1: =IF(COUNTBLANK(D77)=1,"",D77) -> 51.901083 | CF1: =IF(COUNTBLANK(D78)=1,"",D78) -> 53.021162 | CG1: =IF(COUNTBLANK(D79)=1,"",D79) -> 51.783839 | CH1: =IF(COUNTBLANK(D80)=1,"",D80) -> 52.68408 | CI1: =IF(COUNTBLANK(D81)=1,"",D81) -> 51.731617 | CJ1: =IF(COUNTBLANK(D82)=1,"",D82) -> 51.783839 | CK1: =IF(COUNTBLANK(D83)=1,"",D83) -> 51.708514 | CL1: =IF(COUNTBLANK(D84)=1,"",D84) -> 52.325597 | CM1: =IF(COUNTBLANK(D85)=1,"",D85) -> 51.974045 | CN1: =IF(COUNTBLANK(D86)=1,"",D86) -> 51.75685 | CO1: =IF(COUNTBLANK(D87)=1,"",D87) -> 52.002732 | CP1: =IF(COUNTBLANK(D88)=1,"",D88) -> 52.525247 | CQ1: =IF(COUNTBLANK(D89)=1,"",D89) -> 51.62047 | CR1: =IF(COUNTBLANK(D90)=1,"",D90) -> 52.46209 | CS1: =IF(COUNTBLANK(D91)=1,"",D91) -> 52.019545 | CT1: =IF(COUNTBLANK(D92)=1,"",D92) -> 51.93681 | CU1: =IF(COUNTBLANK(D93)=1,"",D93) -> 52.543866 | CV1: =IF(COUNTBLANK(D94)=1,"",D94) -> 52.403189 | CW1: =IF(COUNTBLANK(D95)=1,"",D95) -> 52.909734 | CX1: =IF(COUNTBLANK(D96)=1,"",D96) -> 56.320538 | CY1: =IF(COUNTBLANK(D97)=1,"",D97) -> 52.678092 | CZ1: =IF(COUNTBLANK(D98)=1,"",D98) -> 59.865333 | DA1: =IF(COUNTBLANK(D99)=1,"",D99) -> 53.295062 | DB1: =IF(COUNTBLANK(D100)=1,"",D100) -> 52.150307 | DC1: =AVERAGE(G1:DB1) -> 52.25582103 | DF1: =IF(COUNTBLANK(D2)=1,"",ABS(D1-D2)) -> 0.475469 | DG1: =IF(COUNTBLANK(D3)=1,"",ABS(D2-D3)) -> 0.869125 | DH1: =IF(COUNTBLANK(D4)=1,"",ABS(D3-D4)) -> 0.245329 | DI1: =IF(COUNTBLANK(D5)=1,"",ABS(D4-D5)) -> 0.121939 | DJ1: =IF(COUNTBLANK(D6)=1,"",ABS(D5-D6)) -> 0.044402 | DK1: =IF(COUNTBLANK(D7)=1,"",ABS(D6-D7)) -> 1.271442 | DL1: =IF(COUNTBLANK(D8)=1,"",ABS(D7-D8)) -> 0.176754 | DM1: =IF(COUNTBLANK(D9)=1,"",ABS(D8-D9)) -> 0.83742 | DN1: =IF(COUNTBLANK(D10)=1,"",ABS(D9-D10)) -> 0.469956 | DO1: =IF(COUNTBLANK(D11)=1,"",ABS(D10-D11)) -> 0.01846 | DP1: =IF(COUNTBLANK(D12)=1,"",ABS(D11-D12)) -> 5.274282 | DQ1: =IF(COUNTBLANK(D13)=1,"",ABS(D12-D13)) -> 5.354993 | DR1: =IF(COUNTBLANK(D14)=1,"",ABS(D13-D14)) -> 0.012831 | DS1: =IF(COUNTBLANK(D15)=1,"",ABS(D14-D15)) -> 0.814429 | DT1: =IF(COUNTBLANK(D16)=1,"",ABS(D15-D16)) -> 0.199448 | DU1: =IF(COUNTBLANK(D17)=1,"",ABS(D16-D17)) -> 1.697947 | DV1: =IF(COUNTBLANK(D18)=1,"",ABS(D17-D18)) -> 1.732809 | DW1: =IF(COUNTBLANK(D19)=1,"",ABS(D18-D19)) -> 0.183602 | DX1: =IF(COUNTBLANK(D20)=1,"",ABS(D19-D20)) -> 0.242134 | DY1: =IF(COUNTBLANK(D21)=1,"",ABS(D20-D21)) -> 0.584871 | DZ1: =IF(COUNTBLANK(D22)=1,"",ABS(D21-D22)) -> 1.056504 | EA1: =IF(COUNTBLANK(D23)=1,"",ABS(D22-D23)) -> 0.904152 | EB1: =IF(COUNTBLANK(D24)=1,"",ABS(D23-D24)) -> 7.483174 | EC1: =IF(COUNTBLANK(D25)=1,"",ABS(D24-D25)) -> 7.564067 | ED1: =IF(COUNTBLANK(D26)=1,"",ABS(D25-D26)) -> 0.22913 | EE1: =IF(COUNTBLANK(D27)=1,"",ABS(D26-D27)) -> 1.130368 | EF1: =IF(COUNTBLANK(D28)=1,"",ABS(D27-D28)) -> 0.324124 | EG1: =IF(COUNTBLANK(D29)=1,"",ABS(D28-D29)) -> 0.517443 | EH1: =IF(COUNTBLANK(D30)=1,"",ABS(D29-D30)) -> 0.96071 | EI1: =IF(COUNTBLANK(D31)=1,"",ABS(D30-D31)) -> 1.176004 | EJ1: =IF(COUNTBLANK(D32)=1,"",ABS(D31-D32)) -> 0.493976 | EK1: =IF(COUNTBLANK(D33)=1,"",ABS(D32-D33)) -> 0.045481 | EL1: =IF(COUNTBLANK(D34)=1,"",ABS(D33-D34)) -> 0.435374 | EM1: =IF(COUNTBLANK(D35)=1,"",ABS(D34-D35)) -> 0.309261 | EN1: =IF(COUNTBLANK(D36)=1,"",ABS(D35-D36)) -> 0.450728 | EO1: =IF(COUNTBLANK(D37)=1,"",ABS(D36-D37)) -> 0.309163 | EP1: =IF(COUNTBLANK(D38)=1,"",ABS(D37-D38)) -> 0.129333 | EQ1: =IF(COUNTBLANK(D39)=1,"",ABS(D38-D39)) -> 0.929461 | ER1: =IF(COUNTBLANK(D40)=1,"",ABS(D39-D40)) -> 0.986074 | ES1: =IF(COUNTBLANK(D41)=1,"",ABS(D40-D41)) -> 0.279025 | ET1: =IF(COUNTBLANK(D42)=1,"",ABS(D41-D42)) -> 0.000514 | EU1: =IF(COUNTBLANK(D43)=1,"",ABS(D42-D43)) -> 1.749535 | EV1: =IF(COUNTBLANK(D44)=1,"",ABS(D43-D44)) -> 1.336363 | EW1: =IF(COUNTBLANK(D45)=1,"",ABS(D44-D45)) -> 0.366757 | EX1: =IF(COUNTBLANK(D46)=1,"",ABS(D45-D46)) -> 0.906441 | EY1: =IF(COUNTBLANK(D47)=1,"",ABS(D46-D47)) -> 0.513078 | EZ1: =IF(COUNTBLANK(D48)=1,"",ABS(D47-D48)) -> 0.033624 | FA1: =IF(COUNTBLANK(D49)=1,"",ABS(D48-D49)) -> 0.684429 | FB1: =IF(COUNTBLANK(D50)=1,"",ABS(D49-D50)) -> 0.705666 | FC1: =IF(COUNTBLANK(D51)=1,"",ABS(D50-D51)) -> 0.696976 | FD1: =IF(COUNTBLANK(D52)=1,"",ABS(D51-D52)) -> 1.588469 | FE1: =IF(COUNTBLANK(D53)=1,"",ABS(D52-D53)) -> 0.473173 | FF1: =IF(COUNTBLANK(D54)=1,"",ABS(D53-D54)) -> 0.037054 | FG1: =IF(COUNTBLANK(D55)=1,"",ABS(D54-D55)) -> 4.791304 | FH1: =IF(COUNTBLANK(D56)=1,"",ABS(D55-D56)) -> 4.260274 | FI1: =IF(COUNTBLANK(D57)=1,"",ABS(D56-D57)) -> 0.028426 | FJ1: =IF(COUNTBLANK(D58)=1,"",ABS(D57-D58)) -> 0.036058 | FK1: =IF(COUNTBLANK(D59)=1,"",ABS(D58-D59)) -> 0.33636 | FL1: =IF(COUNTBLANK(D60)=1,"",ABS(D59-D60)) -> 1.666317 | FM1: =IF(COUNTBLANK(D61)=1,"",ABS(D60-D61)) -> 2.0488 | FN1: =IF(COUNTBLANK(D62)=1,"",ABS(D61-D62)) -> 0.463227 | FO1: =IF(COUNTBLANK(D63)=1,"",ABS(D62-D63)) -> 0.101986 | FP1: =IF(COUNTBLANK(D64)=1,"",ABS(D63-D64)) -> 0.658447 | FQ1: =IF(COUNTBLANK(D65)=1,"",ABS(D64-D65)) -> 1.068241 | FR1: =IF(COUNTBLANK(D66)=1,"",ABS(D65-D66)) -> 0.710643 | FS1: =IF(COUNTBLANK(D67)=1,"",ABS(D66-D67)) -> 1.29214 | FT1: =IF(COUNTBLANK(D68)=1,"",ABS(D67-D68)) -> 8.120328 | FU1: =IF(COUNTBLANK(D69)=1,"",ABS(D68-D69)) -> 6.537642 | FV1: =IF(COUNTBLANK(D70)=1,"",ABS(D69-D70)) -> 0.767545 | FW1: =IF(COUNTBLANK(D71)=1,"",ABS(D70-D71)) -> 0.065055 | FX1: =IF(COUNTBLANK(D72)=1,"",ABS(D71-D72)) -> 0.12455 | FY1: =IF(COUNTBLANK(D73)=1,"",ABS(D72-D73)) -> 0.009444 | FZ1: =IF(COUNTBLANK(D74)=1,"",ABS(D73-D74)) -> 0.601157 | GA1: =IF(COUNTBLANK(D75)=1,"",ABS(D74-D75)) -> 1.279393 | GB1: =IF(COUNTBLANK(D76)=1,"",ABS(D75-D76)) -> 1.074436 | GC1: =IF(COUNTBLANK(D77)=1,"",ABS(D76-D77)) -> 0.580916 | GD1: =IF(COUNTBLANK(D78)=1,"",ABS(D77-D78)) -> 1.120079 | GE1: =IF(COUNTBLANK(D79)=1,"",ABS(D78-D79)) -> 1.237323 | GF1: =IF(COUNTBLANK(D80)=1,"",ABS(D79-D80)) -> 0.900241 | GG1: =IF(COUNTBLANK(D81)=1,"",ABS(D80-D81)) -> 0.952463 | GH1: =IF(COUNTBLANK(D82)=1,"",ABS(D81-D82)) -> 0.052222 | GI1: =IF(COUNTBLANK(D83)=1,"",ABS(D82-D83)) -> 0.075325 | GJ1: =IF(COUNTBLANK(D84)=1,"",ABS(D83-D84)) -> 0.617083 | GK1: =IF(COUNTBLANK(D85)=1,"",ABS(D84-D85)) -> 0.351552 | GL1: =IF(COUNTBLANK(D86)=1,"",ABS(D85-D86)) -> 0.217195 | GM1: =IF(COUNTBLANK(D87)=1,"",ABS(D86-D87)) -> 0.245882 | GN1: =IF(COUNTBLANK(D88)=1,"",ABS(D87-D88)) -> 0.522515 | GO1: =IF(COUNTBLANK(D89)=1,"",ABS(D88-D89)) -> 0.904777 | GP1: =IF(COUNTBLANK(D90)=1,"",ABS(D89-D90)) -> 0.84162 | GQ1: =IF(COUNTBLANK(D91)=1,"",ABS(D90-D91)) -> 0.442545 | GR1: =IF(COUNTBLANK(D92)=1,"",ABS(D91-D92)) -> 0.082735 | GS1: =IF(COUNTBLANK(D93)=1,"",ABS(D92-D93)) -> 0.607056 | GT1: =IF(COUNTBLANK(D94)=1,"",ABS(D93-D94)) -> 0.140677 | GU1: =IF(COUNTBLANK(D95)=1,"",ABS(D94-D95)) -> 0.506545 | GV1: =IF(COUNTBLANK(D96)=1,"",ABS(D95-D96)) -> 3.410804 | GW1: =IF(COUNTBLANK(D97)=1,"",ABS(D96-D97)) -> 3.642446 | GX1: =IF(COUNTBLANK(D98)=1,"",ABS(D97-D98)) -> 7.187241 | GY1: =IF(COUNTBLANK(D99)=1,"",ABS(D98-D99)) -> 6.570271 | GZ1: =IF(COUNTBLANK(D100)=1,"",ABS(D99-D100)) -> 1.144755 | HA1: =AVERAGE(DE1:GZ1) -> 1.250801152 | HC1: 1 | HD1: =3*(1/HG2) -> 2.654867257 | HF1: =HF2 -> 3.267 | HG1: =HG2 -> 1.13
A2: # sub-groups | B2: =ROUNDUP(COUNT(D1:D100)/B1,0) -> 100 | D2: =IF(COUNTBLANK('PROCESS CAPABILITY CPK PPK'!D12)=1,"",'PROCESS CAPABILITY CPK PPK'!D12) -> 51.720496 | E2: =E1+$B$6 -> 45.6007851 | F2: 0 | G2: =IF(COUNTBLANK(D2)=1,"",AVERAGE(D1:D2)) -> 51.9582305 | H2: =IF(COUNTBLANK(D4)=1,"",AVERAGE(D3:D4)) -> 52.7122855 | I2: =IF(COUNTBLANK(D6)=1,"",AVERAGE(D5:D6)) -> 52.735212 | J2: =IF(COUNTBLANK(D8)=1,"",AVERAGE(D7:D8)) -> 51.397594 | K2: =IF(COUNTBLANK(D10)=1,"",AVERAGE(D9:D10)) -> 51.911659 | L2: =IF(COUNTBLANK(D12)=1,"",AVERAGE(D11:D12)) -> 49.02108 | M2: =IF(COUNTBLANK(D14)=1,"",AVERAGE(D13:D14)) -> 51.7325165 | N2: =IF(COUNTBLANK(D16)=1,"",AVERAGE(D15:D16)) -> 52.440806 | O2: =IF(COUNTBLANK(D18)=1,"",AVERAGE(D17:D18)) -> 51.5095395 | P2: =IF(COUNTBLANK(D20)=1,"",AVERAGE(D19:D20)) -> 52.438479 | Q2: =IF(COUNTBLANK(D22)=1,"",AVERAGE(D21:D22)) -> 52.374031 | R2: =IF(COUNTBLANK(D24)=1,"",AVERAGE(D23:D24)) -> 56.491518 | S2: =IF(COUNTBLANK(D26)=1,"",AVERAGE(D25:D26)) -> 52.783603 | T2: =IF(COUNTBLANK(D28)=1,"",AVERAGE(D27:D28)) -> 51.929862 | U2: =IF(COUNTBLANK(D30)=1,"",AVERAGE(D29:D30)) -> 52.129012 | V2: =IF(COUNTBLANK(D32)=1,"",AVERAGE(D31:D32)) -> 52.577673 | W2: =IF(COUNTBLANK(D34)=1,"",AVERAGE(D33:D34)) -> 52.158479 | X2: =IF(COUNTBLANK(D36)=1,"",AVERAGE(D35:D36)) -> 51.856895 | Y2: =IF(COUNTBLANK(D38)=1,"",AVERAGE(D37:D38)) -> 51.8377625 | Z2: =IF(COUNTBLANK(D40)=1,"",AVERAGE(D39:D40)) -> 51.466005 | AA2: =IF(COUNTBLANK(D42)=1,"",AVERAGE(D41:D42)) -> 51.680274 | AB2: =IF(COUNTBLANK(D44)=1,"",AVERAGE(D43:D44)) -> 52.7618845 | AC2: =IF(COUNTBLANK(D46)=1,"",AVERAGE(D45:D46)) -> 52.1801665 | AD2: =IF(COUNTBLANK(D48)=1,"",AVERAGE(D47:D48)) -> 52.137121 | AE2: =IF(COUNTBLANK(D50)=1,"",AVERAGE(D49:D50)) -> 51.822337 | AF2: =IF(COUNTBLANK(D52)=1,"",AVERAGE(D51:D52)) -> 52.0779115 | AG2: =IF(COUNTBLANK(D54)=1,"",AVERAGE(D53:D54)) -> 51.775377 | AH2: =IF(COUNTBLANK(D56)=1,"",AVERAGE(D55:D56)) -> 54.455071 | AI2: =IF(COUNTBLANK(D58)=1,"",AVERAGE(D57:D58)) -> 52.335331 | AJ2: =IF(COUNTBLANK(D60)=1,"",AVERAGE(D59:D60)) -> 52.8141005 | AK2: =IF(COUNTBLANK(D62)=1,"",AVERAGE(D61:D62)) -> 51.8300725 | AL2: =IF(COUNTBLANK(D64)=1,"",AVERAGE(D63:D64)) -> 51.6304765 | AM2: =IF(COUNTBLANK(D66)=1,"",AVERAGE(D65:D66)) -> 52.0141725 | AN2: =IF(COUNTBLANK(D68)=1,"",AVERAGE(D67:D68)) -> 48.890827 | AO2: =IF(COUNTBLANK(D70)=1,"",AVERAGE(D69:D70)) -> 51.7520775 | AP2: =IF(COUNTBLANK(D72)=1,"",AVERAGE(D71:D72)) -> 52.13863 | AQ2: =IF(COUNTBLANK(D74)=1,"",AVERAGE(D73:D74)) -> 52.3863775 | AR2: =IF(COUNTBLANK(D76)=1,"",AVERAGE(D75:D76)) -> 51.944781 | AS2: =IF(COUNTBLANK(D78)=1,"",AVERAGE(D77:D78)) -> 52.4611225 | AT2: =IF(COUNTBLANK(D80)=1,"",AVERAGE(D79:D80)) -> 52.2339595 | AU2: =IF(COUNTBLANK(D82)=1,"",AVERAGE(D81:D82)) -> 51.757728 | AV2: =IF(COUNTBLANK(D84)=1,"",AVERAGE(D83:D84)) -> 52.0170555 | AW2: =IF(COUNTBLANK(D86)=1,"",AVERAGE(D85:D86)) -> 51.8654475 | AX2: =IF(COUNTBLANK(D88)=1,"",AVERAGE(D87:D88)) -> 52.2639895 | AY2: =IF(COUNTBLANK(D90)=1,"",AVERAGE(D89:D90)) -> 52.04128 | AZ2: =IF(COUNTBLANK(D92)=1,"",AVERAGE(D91:D92)) -> 51.9781775 | BA2: =IF(COUNTBLANK(D94)=1,"",AVERAGE(D93:D94)) -> 52.4735275 | BB2: =IF(COUNTBLANK(D96)=1,"",AVERAGE(D95:D96)) -> 54.615136 | BC2: =IF(COUNTBLANK(D98)=1,"",AVERAGE(D97:D98)) -> 56.2717125 | BD2: =IF(COUNTBLANK(D100)=1,"",AVERAGE(D99:D100)) -> 52.7226845 | BE2: ="" ->  | BF2: ="" ->  | BG2: ="" ->  | BH2: ="" ->  | BI2: ="" ->  | BJ2: ="" ->  | BK2: ="" ->  | BL2: ="" ->  | BM2: ="" ->  | BN2: ="" ->  | BO2: ="" ->  | BP2: ="" ->  | BQ2: ="" ->  | BR2: ="" ->  | BS2: ="" ->  | BT2: ="" ->  | BU2: ="" ->  | BV2: ="" ->  | BW2: ="" ->  | BX2: ="" ->  | BY2: ="" ->  | BZ2: ="" ->  | CA2: ="" ->  | CB2: ="" ->  | CC2: ="" ->  | CD2: ="" ->  | CE2: ="" ->  | CF2: ="" ->  | CG2: ="" ->  | CH2: ="" ->  | CI2: ="" ->  | CJ2: ="" ->  | CK2: ="" ->  | CL2: ="" ->  | CM2: ="" ->  | CN2: ="" ->  | CO2: ="" ->  | CP2: ="" ->  | CQ2: ="" ->  | CR2: ="" ->  | CS2: ="" ->  | CT2: ="" ->  | CU2: ="" ->  | CV2: ="" ->  | CW2: ="" ->  | CX2: ="" ->  | CY2: ="" ->  | CZ2: ="" ->  | DA2: ="" ->  | DB2: ="" ->  | DC2: =AVERAGE(G2:BD2) -> 52.25582103 | DE2: =IF(COUNTBLANK(D2)=1,"",MAX(D1:D2)-MIN(D1:D2)) -> 0.475469 | DF2: =IF(COUNTBLANK(D4)=1,"",MAX(D3:D4)-MIN(D3:D4)) -> 0.245329 | DG2: =IF(COUNTBLANK(D6)=1,"",MAX(D5:D6)-MIN(D5:D6)) -> 0.044402 | DH2: =IF(COUNTBLANK(D8)=1,"",MAX(D7:D8)-MIN(D7:D8)) -> 0.176754 | DI2: =IF(COUNTBLANK(D10)=1,"",MAX(D9:D10)-MIN(D9:D10)) -> 0.469956 | DJ2: =IF(COUNTBLANK(D12)=1,"",MAX(D11:D12)-MIN(D11:D12)) -> 5.274282 | DK2: =IF(COUNTBLANK(D14)=1,"",MAX(D13:D14)-MIN(D13:D14)) -> 0.012831 | DL2: =IF(COUNTBLANK(D16)=1,"",MAX(D15:D16)-MIN(D15:D16)) -> 0.199448 | DM2: =IF(COUNTBLANK(D18)=1,"",MAX(D17:D18)-MIN(D17:D18)) -> 1.732809 | DN2: =IF(COUNTBLANK(D20)=1,"",MAX(D19:D20)-MIN(D19:D20)) -> 0.242134 | DO2: =IF(COUNTBLANK(D22)=1,"",MAX(D21:D22)-MIN(D21:D22)) -> 1.056504 | DP2: =IF(COUNTBLANK(D24)=1,"",MAX(D23:D24)-MIN(D23:D24)) -> 7.483174 | DQ2: =IF(COUNTBLANK(D26)=1,"",MAX(D25:D26)-MIN(D25:D26)) -> 0.22913 | DR2: =IF(COUNTBLANK(D28)=1,"",MAX(D27:D28)-MIN(D27:D28)) -> 0.324124 | DS2: =IF(COUNTBLANK(D30)=1,"",MAX(D29:D30)-MIN(D29:D30)) -> 0.96071 | DT2: =IF(COUNTBLANK(D32)=1,"",MAX(D31:D32)-MIN(D31:D32)) -> 0.493976 | DU2: =IF(COUNTBLANK(D34)=1,"",MAX(D33:D34)-MIN(D33:D34)) -> 0.435374 | DV2: =IF(COUNTBLANK(D36)=1,"",MAX(D35:D36)-MIN(D35:D36)) -> 0.450728 | DW2: =IF(COUNTBLANK(D38)=1,"",MAX(D37:D38)-MIN(D37:D38)) -> 0.129333 | DX2: =IF(COUNTBLANK(D40)=1,"",MAX(D39:D40)-MIN(D39:D40)) -> 0.986074 | DY2: =IF(COUNTBLANK(D42)=1,"",MAX(D41:D42)-MIN(D41:D42)) -> 0.000514 | DZ2: =IF(COUNTBLANK(D44)=1,"",MAX(D43:D44)-MIN(D43:D44)) -> 1.336363 | EA2: =IF(COUNTBLANK(D46)=1,"",MAX(D45:D46)-MIN(D45:D46)) -> 0.906441 | EB2: =IF(COUNTBLANK(D48)=1,"",MAX(D47:D48)-MIN(D47:D48)) -> 0.033624 | EC2: =IF(COUNTBLANK(D50)=1,"",MAX(D49:D50)-MIN(D49:D50)) -> 0.705666 | ED2: =IF(COUNTBLANK(D52)=1,"",MAX(D51:D52)-MIN(D51:D52)) -> 1.588469 | EE2: =IF(COUNTBLANK(D54)=1,"",MAX(D53:D54)-MIN(D53:D54)) -> 0.037054 | EF2: =IF(COUNTBLANK(D56)=1,"",MAX(D55:D56)-MIN(D55:D56)) -> 4.260274 | EG2: =IF(COUNTBLANK(D58)=1,"",MAX(D57:D58)-MIN(D57:D58)) -> 0.036058 | EH2: =IF(COUNTBLANK(D60)=1,"",MAX(D59:D60)-MIN(D59:D60)) -> 1.666317 | EI2: =IF(COUNTBLANK(D62)=1,"",MAX(D61:D62)-MIN(D61:D62)) -> 0.463227 | EJ2: =IF(COUNTBLANK(D64)=1,"",MAX(D63:D64)-MIN(D63:D64)) -> 0.658447 | EK2: =IF(COUNTBLANK(D66)=1,"",MAX(D65:D66)-MIN(D65:D66)) -> 0.710643 | EL2: =IF(COUNTBLANK(D68)=1,"",MAX(D67:D68)-MIN(D67:D68)) -> 8.120328 | EM2: =IF(COUNTBLANK(D70)=1,"",MAX(D69:D70)-MIN(D69:D70)) -> 0.767545 | EN2: =IF(COUNTBLANK(D72)=1,"",MAX(D71:D72)-MIN(D71:D72)) -> 0.12455 | EO2: =IF(COUNTBLANK(D74)=1,"",MAX(D73:D74)-MIN(D73:D74)) -> 0.601157 | EP2: =IF(COUNTBLANK(D76)=1,"",MAX(D75:D76)-MIN(D75:D76)) -> 1.074436 | EQ2: =IF(COUNTBLANK(D78)=1,"",MAX(D77:D78)-MIN(D77:D78)) -> 1.120079 | ER2: =IF(COUNTBLANK(D80)=1,"",MAX(D79:D80)-MIN(D79:D80)) -> 0.900241 | ES2: =IF(COUNTBLANK(D82)=1,"",MAX(D81:D82)-MIN(D81:D82)) -> 0.052222 | ET2: =IF(COUNTBLANK(D84)=1,"",MAX(D83:D84)-MIN(D83:D84)) -> 0.617083 | EU2: =IF(COUNTBLANK(D86)=1,"",MAX(D85:D86)-MIN(D85:D86)) -> 0.217195 | EV2: =IF(COUNTBLANK(D88)=1,"",MAX(D87:D88)-MIN(D87:D88)) -> 0.522515 | EW2: =IF(COUNTBLANK(D90)=1,"",MAX(D89:D90)-MIN(D89:D90)) -> 0.84162 | EX2: =IF(COUNTBLANK(D92)=1,"",MAX(D91:D92)-MIN(D91:D92)) -> 0.082735 | EY2: =IF(COUNTBLANK(D94)=1,"",MAX(D93:D94)-MIN(D93:D94)) -> 0.140677 | EZ2: =IF(COUNTBLANK(D96)=1,"",MAX(D95:D96)-MIN(D95:D96)) -> 3.410804 | FA2: =IF(COUNTBLANK(D98)=1,"",MAX(D97:D98)-MIN(D97:D98)) -> 7.187241 | FB2: =IF(COUNTBLANK(D100)=1,"",MAX(D99:D100)-MIN(D99:D100)) -> 1.144755 | FC2: ="" ->  | FD2: ="" ->  | FE2: ="" ->  | FF2: ="" ->  | FG2: ="" ->  | FH2: ="" ->  | FI2: ="" ->  | FJ2: ="" ->  | FK2: ="" ->  | FL2: ="" ->  | FM2: ="" ->  | FN2: ="" ->  | FO2: ="" ->  | FP2: ="" ->  | FQ2: ="" ->  | FR2: ="" ->  | FS2: ="" ->  | FT2: ="" ->  | FU2: ="" ->  | FV2: ="" ->  | FW2: ="" ->  | FX2: ="" ->  | FY2: ="" ->  | FZ2: ="" ->  | GA2: ="" ->  | GB2: ="" ->  | GC2: ="" ->  | GD2: ="" ->  | GE2: ="" ->  | GF2: ="" ->  | GG2: ="" ->  | GH2: ="" ->  | GI2: ="" ->  | GJ2: ="" ->  | GK2: ="" ->  | GL2: ="" ->  | GM2: ="" ->  | GN2: ="" ->  | GO2: ="" ->  | GP2: ="" ->  | GQ2: ="" ->  | GR2: ="" ->  | GS2: ="" ->  | GT2: ="" ->  | GU2: ="" ->  | GV2: ="" ->  | GW2: ="" ->  | GX2: ="" ->  | GY2: ="" ->  | GZ2: ="" ->  | HA2: =AVERAGE(DE2:FB2) -> 1.21501642 | HC2: 2 | HD2: 1.88 | HE2: 0 | HF2: 3.267 | HG2: 1.13 | HH2: 1.88
A3: Max | B3: =MAX(D1:D100) -> 60.233105 | D3: =IF(COUNTBLANK('PROCESS CAPABILITY CPK PPK'!D13)=1,"",'PROCESS CAPABILITY CPK PPK'!D13) -> 52.589621 | E3: =E2+$B$6 -> 46.3709072 | F3: 0 | G3: =IF(COUNTBLANK(D3)=1,"",AVERAGE(D1:D3)) -> 52.168694 | H3: =IF(COUNTBLANK(D6)=1,"",AVERAGE(D4:D6)) -> 52.768458 | I3: =IF(COUNTBLANK(D9)=1,"",AVERAGE(D7:D9)) -> 51.647275 | J3: =IF(COUNTBLANK(D12)=1,"",AVERAGE(D10:D12)) -> 49.90628033 | K3: =IF(COUNTBLANK(D15)=1,"",AVERAGE(D13:D15)) -> 52.00185433 | L3: =IF(COUNTBLANK(D18)=1,"",AVERAGE(D16:D18)) -> 51.78672033 | M3: =IF(COUNTBLANK(D21)=1,"",AVERAGE(D19:D21)) -> 52.59308033 | N3: =IF(COUNTBLANK(D24)=1,"",AVERAGE(D22:D24)) -> 54.94293833 | O3: =IF(COUNTBLANK(D27)=1,"",AVERAGE(D25:D27)) -> 52.445002 | P3: =IF(COUNTBLANK(D30)=1,"",AVERAGE(D28:D30)) -> 52.11664933 | Q3: =IF(COUNTBLANK(D33)=1,"",AVERAGE(D31:D33)) -> 52.510504 | R3: =IF(COUNTBLANK(D36)=1,"",AVERAGE(D34:D36)) -> 51.88486067 | S3: =IF(COUNTBLANK(D39)=1,"",AVERAGE(D37:D39)) -> 51.54949767 | T3: =IF(COUNTBLANK(D42)=1,"",AVERAGE(D40:D42)) -> 51.77319667 | U3: =IF(COUNTBLANK(D45)=1,"",AVERAGE(D43:D45)) -> 52.416905 | V3: =IF(COUNTBLANK(D48)=1,"",AVERAGE(D46:D48)) -> 52.302543 | W3: =IF(COUNTBLANK(D51)=1,"",AVERAGE(D49:D51)) -> 52.17227333 | X3: =IF(COUNTBLANK(D54)=1,"",AVERAGE(D52:D54)) -> 51.611477 | Y3: =IF(COUNTBLANK(D57)=1,"",AVERAGE(D55:D57)) -> 53.75450067 | Z3: =IF(COUNTBLANK(D60)=1,"",AVERAGE(D58:D60)) -> 52.648501 | AA3: =IF(COUNTBLANK(D63)=1,"",AVERAGE(D61:D63)) -> 51.87328167 | AB3: =IF(COUNTBLANK(D66)=1,"",AVERAGE(D64:D66)) -> 51.77653267 | AC3: =IF(COUNTBLANK(D69)=1,"",AVERAGE(D67:D69)) -> 49.716653 | AD3: =IF(COUNTBLANK(D72)=1,"",AVERAGE(D70:D72)) -> 52.13770333 | AE3: =IF(COUNTBLANK(D75)=1,"",AVERAGE(D73:D75)) -> 52.060106 | AF3: =IF(COUNTBLANK(D78)=1,"",AVERAGE(D76:D78)) -> 52.46808133 | AG3: =IF(COUNTBLANK(D81)=1,"",AVERAGE(D79:D81)) -> 52.066512 | AH3: =IF(COUNTBLANK(D84)=1,"",AVERAGE(D82:D84)) -> 51.93931667 | AI3: =IF(COUNTBLANK(D87)=1,"",AVERAGE(D85:D87)) -> 51.911209 | AJ3: =IF(COUNTBLANK(D90)=1,"",AVERAGE(D88:D90)) -> 52.20260233 | AK3: =IF(COUNTBLANK(D93)=1,"",AVERAGE(D91:D93)) -> 52.16674033 | AL3: =IF(COUNTBLANK(D96)=1,"",AVERAGE(D94:D96)) -> 53.87782033 | AM3: =IF(COUNTBLANK(D99)=1,"",AVERAGE(D97:D99)) -> 55.27949567 | AN3: ="" ->  | AO3: ="" ->  | AP3: ="" ->  | AQ3: ="" ->  | AR3: ="" ->  | AS3: ="" ->  | AT3: ="" ->  | AU3: ="" ->  | AV3: ="" ->  | AW3: ="" ->  | AX3: ="" ->  | AY3: ="" ->  | AZ3: ="" ->  | BA3: ="" ->  | BB3: ="" ->  | BC3: ="" ->  | BD3: ="" ->  | BE3: ="" ->  | BF3: ="" ->  | BG3: ="" ->  | BH3: ="" ->  | BI3: ="" ->  | BJ3: ="" ->  | BK3: ="" ->  | BL3: ="" ->  | BM3: ="" ->  | BN3: ="" ->  | BO3: ="" ->  | BP3: ="" ->  | BQ3: ="" ->  | BR3: ="" ->  | BS3: ="" ->  | BT3: ="" ->  | BU3: ="" ->  | BV3: ="" ->  | BW3: ="" ->  | BX3: ="" ->  | BY3: ="" ->  | BZ3: ="" ->  | CA3: ="" ->  | CB3: ="" ->  | CC3: ="" ->  | CD3: ="" ->  | CE3: ="" ->  | CF3: ="" ->  | CG3: ="" ->  | CH3: ="" ->  | CI3: ="" ->  | CJ3: ="" ->  | CK3: ="" ->  | CL3: ="" ->  | CM3: ="" ->  | CN3: ="" ->  | CO3: ="" ->  | CP3: ="" ->  | CQ3: ="" ->  | CR3: ="" ->  | CS3: ="" ->  | CT3: ="" ->  | CU3: ="" ->  | CV3: ="" ->  | CW3: ="" ->  | CX3: ="" ->  | CY3: ="" ->  | CZ3: ="" ->  | DA3: ="" ->  | DB3: ="" ->  | DC3: =AVERAGE(G3:AM3) -> 52.25688683 | DE3: =IF(COUNTBLANK(D3)=1,"",MAX(D1:D3)-MIN(D1:D3)) -> 0.869125 | DF3: =IF(COUNTBLANK(D6)=1,"",MAX(D4:D6)-MIN(D4:D6)) -> 0.121939 | DG3: =IF(COUNTBLANK(D9)=1,"",MAX(D7:D9)-MIN(D7:D9)) -> 0.83742 | DH3: =IF(COUNTBLANK(D12)=1,"",MAX(D10:D12)-MIN(D10:D12)) -> 5.292742 | DI3: =IF(COUNTBLANK(D15)=1,"",MAX(D13:D15)-MIN(D13:D15)) -> 0.814429 | DJ3: =IF(COUNTBLANK(D18)=1,"",MAX(D16:D18)-MIN(D16:D18)) -> 1.732809 | DK3: =IF(COUNTBLANK(D21)=1,"",MAX(D19:D21)-MIN(D19:D21)) -> 0.584871 | DL3: =IF(COUNTBLANK(D24)=1,"",MAX(D22:D24)-MIN(D22:D24)) -> 8.387326 | DM3: =IF(COUNTBLANK(D27)=1,"",MAX(D25:D27)-MIN(D25:D27)) -> 1.130368 | DN3: =IF(COUNTBLANK(D30)=1,"",MAX(D28:D30)-MIN(D28:D30)) -> 0.96071 | DO3: =IF(COUNTBLANK(D33)=1,"",MAX(D31:D33)-MIN(D31:D33)) -> 0.493976 | DP3: =IF(COUNTBLANK(D36)=1,"",MAX(D34:D36)-MIN(D34:D36)) -> 0.450728 | DQ3: =IF(COUNTBLANK(D39)=1,"",MAX(D37:D39)-MIN(D37:D39)) -> 0.929461 | DR3: =IF(COUNTBLANK(D42)=1,"",MAX(D40:D42)-MIN(D40:D42)) -> 0.279025 | DS3: =IF(COUNTBLANK(D45)=1,"",MAX(D43:D45)-MIN(D43:D45)) -> 1.70312 | DT3: =IF(COUNTBLANK(D48)=1,"",MAX(D46:D48)-MIN(D46:D48)) -> 0.513078 | DU3: =IF(COUNTBLANK(D51)=1,"",MAX(D49:D51)-MIN(D49:D51)) -> 1.402642 | DV3: =IF(COUNTBLANK(D54)=1,"",MAX(D52:D54)-MIN(D52:D54)) -> 0.510227 | DW3: =IF(COUNTBLANK(D57)=1,"",MAX(D55:D57)-MIN(D55:D57)) -> 4.260274 | DX3: =IF(COUNTBLANK(D60)=1,"",MAX(D58:D60)-MIN(D58:D60)) -> 1.666317 | DY3: =IF(COUNTBLANK(D63)=1,"",MAX(D61:D63)-MIN(D61:D63)) -> 0.463227 | DZ3: =IF(COUNTBLANK(D66)=1,"",MAX(D64:D66)-MIN(D64:D66)) -> 1.068241 | EA3: =IF(COUNTBLANK(D69)=1,"",MAX(D67:D69)-MIN(D67:D69)) -> 8.120328 | EB3: =IF(COUNTBLANK(D72)=1,"",MAX(D70:D72)-MIN(D70:D72)) -> 0.12455 | EC3: =IF(COUNTBLANK(D75)=1,"",MAX(D73:D75)-MIN(D73:D75)) -> 1.279393 | ED3: =IF(COUNTBLANK(D78)=1,"",MAX(D76:D78)-MIN(D76:D78)) -> 1.120079 | EE3: =IF(COUNTBLANK(D81)=1,"",MAX(D79:D81)-MIN(D79:D81)) -> 0.952463 | EF3: =IF(COUNTBLANK(D84)=1,"",MAX(D82:D84)-MIN(D82:D84)) -> 0.617083 | EG3: =IF(COUNTBLANK(D87)=1,"",MAX(D85:D87)-MIN(D85:D87)) -> 0.245882 | EH3: =IF(COUNTBLANK(D90)=1,"",MAX(D88:D90)-MIN(D88:D90)) -> 0.904777 | EI3: =IF(COUNTBLANK(D93)=1,"",MAX(D91:D93)-MIN(D91:D93)) -> 0.607056 | EJ3: =IF(COUNTBLANK(D96)=1,"",MAX(D94:D96)-MIN(D94:D96)) -> 3.917349 | EK3: =IF(COUNTBLANK(D99)=1,"",MAX(D97:D99)-MIN(D97:D99)) -> 7.187241 | EL3: ="" ->  | EM3: ="" ->  | EN3: ="" ->  | EO3: ="" ->  | EP3: ="" ->  | EQ3: ="" ->  | ER3: ="" ->  | ES3: ="" ->  | ET3: ="" ->  | EU3: ="" ->  | EV3: ="" ->  | EW3: ="" ->  | EX3: ="" ->  | EY3: ="" ->  | EZ3: ="" ->  | FA3: ="" ->  | FB3: ="" ->  | FC3: ="" ->  | FD3: ="" ->  | FE3: ="" ->  | FF3: ="" ->  | FG3: ="" ->  | FH3: ="" ->  | FI3: ="" ->  | FJ3: ="" ->  | FK3: ="" ->  | FL3: ="" ->  | FM3: ="" ->  | FN3: ="" ->  | FO3: ="" ->  | FP3: ="" ->  | FQ3: ="" ->  | FR3: ="" ->  | FS3: ="" ->  | FT3: ="" ->  | FU3: ="" ->  | FV3: ="" ->  | FW3: ="" ->  | FX3: ="" ->  | FY3: ="" ->  | FZ3: ="" ->  | GA3: ="" ->  | GB3: ="" ->  | GC3: ="" ->  | GD3: ="" ->  | GE3: ="" ->  | GF3: ="" ->  | GG3: ="" ->  | GH3: ="" ->  | GI3: ="" ->  | GJ3: ="" ->  | GK3: ="" ->  | GL3: ="" ->  | GM3: ="" ->  | GN3: ="" ->  | GO3: ="" ->  | GP3: ="" ->  | GQ3: ="" ->  | GR3: ="" ->  | GS3: ="" ->  | GT3: ="" ->  | GU3: ="" ->  | GV3: ="" ->  | GW3: ="" ->  | GX3: ="" ->  | GY3: ="" ->  | GZ3: ="" ->  | HA3: =AVERAGE(DE3:EK3) -> 1.804492606 | HC3: 3 | HD3: 1.023 | HE3: 0 | HF3: 2.57 | HG3: 1.69 | HH3: 1.19
A4: Min | B4: =MIN(D1:D100) -> 44.830663 | D4: =IF(COUNTBLANK('PROCESS CAPABILITY CPK PPK'!D14)=1,"",'PROCESS CAPABILITY CPK PPK'!D14) -> 52.83495 | E4: 47.1410293 | F4: 1 | G4: =IF(COUNTBLANK(D4)=1,"",AVERAGE(D1:D4)) -> 52.335258 | H4: =IF(COUNTBLANK(D8)=1,"",AVERAGE(D5:D8)) -> 52.066403 | I4: =IF(COUNTBLANK(D12)=1,"",AVERAGE(D9:D12)) -> 50.4663695 | J4: =IF(COUNTBLANK(D16)=1,"",AVERAGE(D13:D16)) -> 52.08666125 | K4: =IF(COUNTBLANK(D20)=1,"",AVERAGE(D17:D20)) -> 51.97400925 | L4: =IF(COUNTBLANK(D24)=1,"",AVERAGE(D21:D24)) -> 54.4327745 | M4: =IF(COUNTBLANK(D28)=1,"",AVERAGE(D25:D28)) -> 52.3567325 | N4: =IF(COUNTBLANK(D32)=1,"",AVERAGE(D29:D32)) -> 52.3533425 | O4: =IF(COUNTBLANK(D36)=1,"",AVERAGE(D33:D36)) -> 52.007687 | P4: =IF(COUNTBLANK(D40)=1,"",AVERAGE(D37:D40)) -> 51.65188375 | Q4: =IF(COUNTBLANK(D44)=1,"",AVERAGE(D41:D44)) -> 52.22107925 | R4: =IF(COUNTBLANK(D48)=1,"",AVERAGE(D45:D48)) -> 52.15864375 | S4: =IF(COUNTBLANK(D52)=1,"",AVERAGE(D49:D52)) -> 51.95012425 | T4: =IF(COUNTBLANK(D56)=1,"",AVERAGE(D53:D56)) -> 53.115224 | U4: =IF(COUNTBLANK(D60)=1,"",AVERAGE(D57:D60)) -> 52.57471575 | V4: =IF(COUNTBLANK(D64)=1,"",AVERAGE(D61:D64)) -> 51.7302745 | W4: =IF(COUNTBLANK(D68)=1,"",AVERAGE(D65:D68)) -> 50.45249975 | X4: =IF(COUNTBLANK(D72)=1,"",AVERAGE(D69:D72)) -> 51.94535375 | Y4: =IF(COUNTBLANK(D76)=1,"",AVERAGE(D73:D76)) -> 52.16557925 | Z4: =IF(COUNTBLANK(D80)=1,"",AVERAGE(D77:D80)) -> 52.347541 | AA4: =IF(COUNTBLANK(D84)=1,"",AVERAGE(D81:D84)) -> 51.88739175 | AB4: =IF(COUNTBLANK(D88)=1,"",AVERAGE(D85:D88)) -> 52.0647185 | AC4: =IF(COUNTBLANK(D92)=1,"",AVERAGE(D89:D92)) -> 52.00972875 | AD4: =IF(COUNTBLANK(D96)=1,"",AVERAGE(D93:D96)) -> 53.54433175 | AE4: =IF(COUNTBLANK(D100)=1,"",AVERAGE(D97:D100)) -> 54.4971985 | AF4: ="" ->  | AG4: ="" ->  | AH4: ="" ->  | AI4: ="" ->  | AJ4: ="" ->  | AK4: ="" ->  | AL4: ="" ->  | AM4: ="" ->  | AN4: ="" ->  | AO4: ="" ->  | AP4: ="" ->  | AQ4: ="" ->  | AR4: ="" ->  | AS4: ="" ->  | AT4: ="" ->  | AU4: ="" ->  | AV4: ="" ->  | AW4: ="" ->  | AX4: ="" ->  | AY4: ="" ->  | AZ4: ="" ->  | BA4: ="" ->  | BB4: ="" ->  | BC4: ="" ->  | BD4: ="" ->  | BE4: ="" ->  | BF4: ="" ->  | BG4: ="" ->  | BH4: ="" ->  | BI4: ="" ->  | BJ4: ="" ->  | BK4: ="" ->  | BL4: ="" ->  | BM4: ="" ->  | BN4: ="" ->  | BO4: ="" ->  | BP4: ="" ->  | BQ4: ="" ->  | BR4: ="" ->  | BS4: ="" ->  | BT4: ="" ->  | BU4: ="" ->  | BV4: ="" ->  | BW4: ="" ->  | BX4: ="" ->  | BY4: ="" ->  | BZ4: ="" ->  | CA4: ="" ->  | CB4: ="" ->  | CC4: ="" ->  | CD4: ="" ->  | CE4: ="" ->  | CF4: ="" ->  | CG4: ="" ->  | CH4: ="" ->  | CI4: ="" ->  | CJ4: ="" ->  | CK4: ="" ->  | CL4: ="" ->  | CM4: ="" ->  | CN4: ="" ->  | CO4: ="" ->  | CP4: ="" ->  | CQ4: ="" ->  | CR4: ="" ->  | CS4: ="" ->  | CT4: ="" ->  | CU4: ="" ->  | CV4: ="" ->  | CW4: ="" ->  | CX4: ="" ->  | CY4: ="" ->  | CZ4: ="" ->  | DA4: ="" ->  | DB4: ="" ->  | DC4: =AVERAGE(G4:AE4) -> 52.25582103 | DE4: =IF(COUNTBLANK(D4)=1,"",MAX(D1:D4)-MIN(D1:D4)) -> 1.114454 | DF4: =IF(COUNTBLANK(D8)=1,"",MAX(D5:D8)-MIN(D5:D8)) -> 1.448196 | DG4: =IF(COUNTBLANK(D12)=1,"",MAX(D9:D12)-MIN(D9:D12)) -> 5.762698 | DH4: =IF(COUNTBLANK(D16)=1,"",MAX(D13:D16)-MIN(D13:D16)) -> 0.814429 | DI4: =IF(COUNTBLANK(D20)=1,"",MAX(D17:D20)-MIN(D17:D20)) -> 1.916411 | DJ4: =IF(COUNTBLANK(D24)=1,"",MAX(D21:D24)-MIN(D21:D24)) -> 8.387326 | DK4: =IF(COUNTBLANK(D28)=1,"",MAX(D25:D28)-MIN(D25:D28)) -> 1.130368 | DL4: =IF(COUNTBLANK(D32)=1,"",MAX(D29:D32)-MIN(D29:D32)) -> 1.176004 | DM4: =IF(COUNTBLANK(D36)=1,"",MAX(D33:D36)-MIN(D33:D36)) -> 0.744635 | DN4: =IF(COUNTBLANK(D40)=1,"",MAX(D37:D40)-MIN(D37:D40)) -> 0.986074 | DO4: =IF(COUNTBLANK(D44)=1,"",MAX(D41:D44)-MIN(D41:D44)) -> 1.750049 | DP4: =IF(COUNTBLANK(D48)=1,"",MAX(D45:D48)-MIN(D45:D48)) -> 0.906441 | DQ4: =IF(COUNTBLANK(D52)=1,"",MAX(D49:D52)-MIN(D49:D52)) -> 1.588469 | DR4: =IF(COUNTBLANK(D56)=1,"",MAX(D53:D56)-MIN(D53:D56)) -> 4.828358 | DS4: =IF(COUNTBLANK(D60)=1,"",MAX(D57:D60)-MIN(D57:D60)) -> 1.666317 | DT4: =IF(COUNTBLANK(D64)=1,"",MAX(D61:D64)-MIN(D61:D64)) -> 0.760433 | DU4: =IF(COUNTBLANK(D68)=1,"",MAX(D65:D68)-MIN(D65:D68)) -> 8.120328 | DV4: =IF(COUNTBLANK(D72)=1,"",MAX(D69:D72)-MIN(D69:D72)) -> 0.8326 | DW4: =IF(COUNTBLANK(D76)=1,"",MAX(D73:D76)-MIN(D73:D76)) -> 1.279393 | DX4: =IF(COUNTBLANK(D80)=1,"",MAX(D77:D80)-MIN(D77:D80)) -> 1.237323 | DY4: =IF(COUNTBLANK(D84)=1,"",MAX(D81:D84)-MIN(D81:D84)) -> 0.617083 | DZ4: =IF(COUNTBLANK(D88)=1,"",MAX(D85:D88)-MIN(D85:D88)) -> 0.768397 | EA4: =IF(COUNTBLANK(D92)=1,"",MAX(D89:D92)-MIN(D89:D92)) -> 0.84162 | EB4: =IF(COUNTBLANK(D96)=1,"",MAX(D93:D96)-MIN(D93:D96)) -> 3.917349 | EC4: =IF(COUNTBLANK(D100)=1,"",MAX(D97:D100)-MIN(D97:D100)) -> 7.715026 | ED4: ="" ->  | EE4: ="" ->  | EF4: ="" ->  | EG4: ="" ->  | EH4: ="" ->  | EI4: ="" ->  | EJ4: ="" ->  | EK4: ="" ->  | EL4: ="" ->  | EM4: ="" ->  | EN4: ="" ->  | EO4: ="" ->  | EP4: ="" ->  | EQ4: ="" ->  | ER4: ="" ->  | ES4: ="" ->  | ET4: ="" ->  | EU4: ="" ->  | EV4: ="" ->  | EW4: ="" ->  | EX4: ="" ->  | EY4: ="" ->  | EZ4: ="" ->  | FA4: ="" ->  | FB4: ="" ->  | FC4: ="" ->  | FD4: ="" ->  | FE4: ="" ->  | FF4: ="" ->  | FG4: ="" ->  | FH4: ="" ->  | FI4: ="" ->  | FJ4: ="" ->  | FK4: ="" ->  | FL4: ="" ->  | FM4: ="" ->  | FN4: ="" ->  | FO4: ="" ->  | FP4: ="" ->  | FQ4: ="" ->  | FR4: ="" ->  | FS4: ="" ->  | FT4: ="" ->  | FU4: ="" ->  | FV4: ="" ->  | FW4: ="" ->  | FX4: ="" ->  | FY4: ="" ->  | FZ4: ="" ->  | GA4: ="" ->  | GB4: ="" ->  | GC4: ="" ->  | GD4: ="" ->  | GE4: ="" ->  | GF4: ="" ->  | GG4: ="" ->  | GH4: ="" ->  | GI4: ="" ->  | GJ4: ="" ->  | GK4: ="" ->  | GL4: ="" ->  | GM4: ="" ->  | GN4: ="" ->  | GO4: ="" ->  | GP4: ="" ->  | GQ4: ="" ->  | GR4: ="" ->  | GS4: ="" ->  | GT4: ="" ->  | GU4: ="" ->  | GV4: ="" ->  | GW4: ="" ->  | GX4: ="" ->  | GY4: ="" ->  | GZ4: ="" ->  | HA4: =AVERAGE(DE4:EC4) -> 2.41239124 | HC4: 4 | HD4: 0.729 | HE4: 0 | HF4: 2.28 | HG4: 2.06 | HH4: 0.8
A5: Range | B5: =B3-B4 -> 15.402442 | D5: =IF(COUNTBLANK('PROCESS CAPABILITY CPK PPK'!D15)=1,"",'PROCESS CAPABILITY CPK PPK'!D15) -> 52.713011 | E5: 47.9111514 | F5: 0 | G5: =IF(COUNTBLANK(D5)=1,"",AVERAGE(D1:D5)) -> 52.4108086 | H5: =IF(COUNTBLANK(D10)=1,"",AVERAGE(D6:D10)) -> 51.8751838 | I5: =IF(COUNTBLANK(D15)=1,"",AVERAGE(D11:D15)) -> 50.8095446 | J5: =IF(COUNTBLANK(D20)=1,"",AVERAGE(D16:D20)) -> 52.0474238 | K5: =IF(COUNTBLANK(D25)=1,"",AVERAGE(D21:D25)) -> 54.0800272 | L5: =IF(COUNTBLANK(D30)=1,"",AVERAGE(D26:D30)) -> 52.2031832 | M5: =IF(COUNTBLANK(D35)=1,"",AVERAGE(D31:D35)) -> 52.220767 | N5: =IF(COUNTBLANK(D40)=1,"",AVERAGE(D36:D40)) -> 51.7379588 | O5: =IF(COUNTBLANK(D45)=1,"",AVERAGE(D41:D45)) -> 52.1222526 | P5: =IF(COUNTBLANK(D50)=1,"",AVERAGE(D46:D50)) -> 52.1104606 | Q5: =IF(COUNTBLANK(D55)=1,"",AVERAGE(D51:D55)) -> 52.858357 | R5: =IF(COUNTBLANK(D60)=1,"",AVERAGE(D56:D60)) -> 52.5247594 | S5: =IF(COUNTBLANK(D65)=1,"",AVERAGE(D61:D65)) -> 51.8581184 | T5: =IF(COUNTBLANK(D70)=1,"",AVERAGE(D66:D70)) -> 50.588932 | U5: =IF(COUNTBLANK(D75)=1,"",AVERAGE(D71:D75)) -> 52.0915156 | V5: =IF(COUNTBLANK(D80)=1,"",AVERAGE(D76:D80)) -> 52.3744326 | W5: =IF(COUNTBLANK(D85)=1,"",AVERAGE(D81:D85)) -> 51.9047224 | X5: =IF(COUNTBLANK(D90)=1,"",AVERAGE(D86:D90)) -> 52.0734778 | Y5: =IF(COUNTBLANK(D95)=1,"",AVERAGE(D91:D95)) -> 52.3626288 | Z5: =IF(COUNTBLANK(D100)=1,"",AVERAGE(D96:D100)) -> 54.8618664 | AA5: ="" ->  | AB5: ="" ->  | AC5: ="" ->  | AD5: ="" ->  | AE5: ="" ->  | AF5: ="" ->  | AG5: ="" ->  | AH5: ="" ->  | AI5: ="" ->  | AJ5: ="" ->  | AK5: ="" ->  | AL5: ="" ->  | AM5: ="" ->  | AN5: ="" ->  | AO5: ="" ->  | AP5: ="" ->  | AQ5: ="" ->  | AR5: ="" ->  | AS5: ="" ->  | AT5: ="" ->  | AU5: ="" ->  | AV5: ="" ->  | AW5: ="" ->  | AX5: ="" ->  | AY5: ="" ->  | AZ5: ="" ->  | BA5: ="" ->  | BB5: ="" ->  | BC5: ="" ->  | BD5: ="" ->  | BE5: ="" ->  | BF5: ="" ->  | BG5: ="" ->  | BH5: ="" ->  | BI5: ="" ->  | BJ5: ="" ->  | BK5: ="" ->  | BL5: ="" ->  | BM5: ="" ->  | BN5: ="" ->  | BO5: ="" ->  | BP5: ="" ->  | BQ5: ="" ->  | BR5: ="" ->  | BS5: ="" ->  | BT5: ="" ->  | BU5: ="" ->  | BV5: ="" ->  | BW5: ="" ->  | BX5: ="" ->  | BY5: ="" ->  | BZ5: ="" ->  | CA5: ="" ->  | CB5: ="" ->  | CC5: ="" ->  | CD5: ="" ->  | CE5: ="" ->  | CF5: ="" ->  | CG5: ="" ->  | CH5: ="" ->  | CI5: ="" ->  | CJ5: ="" ->  | CK5: ="" ->  | CL5: ="" ->  | CM5: ="" ->  | CN5: ="" ->  | CO5: ="" ->  | CP5: ="" ->  | CQ5: ="" ->  | CR5: ="" ->  | CS5: ="" ->  | CT5: ="" ->  | CU5: ="" ->  | CV5: ="" ->  | CW5: ="" ->  | CX5: ="" ->  | CY5: ="" ->  | CZ5: ="" ->  | DA5: ="" ->  | DB5: ="" ->  | DC5: =AVERAGE(G5:Z5) -> 52.25582103 | DE5: =IF(COUNTBLANK(D5)=1,"",MAX(D1:D5)-MIN(D1:D5)) -> 1.114454 | DF5: =IF(COUNTBLANK(D10)=1,"",MAX(D6:D10)-MIN(D6:D10)) -> 1.448196 | DG5: =IF(COUNTBLANK(D15)=1,"",MAX(D11:D15)-MIN(D11:D15)) -> 6.156591 | DH5: =IF(COUNTBLANK(D20)=1,"",MAX(D16:D20)-MIN(D16:D20)) -> 1.916411 | DI5: =IF(COUNTBLANK(D25)=1,"",MAX(D21:D25)-MIN(D21:D25)) -> 8.387326 | DJ5: =IF(COUNTBLANK(D30)=1,"",MAX(D26:D30)-MIN(D26:D30)) -> 1.249511 | DK5: =IF(COUNTBLANK(D35)=1,"",MAX(D31:D35)-MIN(D31:D35)) -> 1.19313 | DL5: =IF(COUNTBLANK(D40)=1,"",MAX(D36:D40)-MIN(D36:D40)) -> 1.109291 | DM5: =IF(COUNTBLANK(D45)=1,"",MAX(D41:D45)-MIN(D41:D45)) -> 1.750049 | DN5: =IF(COUNTBLANK(D50)=1,"",MAX(D46:D50)-MIN(D46:D50)) -> 1.163883 | DO5: =IF(COUNTBLANK(D55)=1,"",MAX(D51:D55)-MIN(D51:D55)) -> 5.301531 | DP5: =IF(COUNTBLANK(D60)=1,"",MAX(D56:D60)-MIN(D56:D60)) -> 1.666317 | DQ5: =IF(COUNTBLANK(D65)=1,"",MAX(D61:D65)-MIN(D61:D65)) -> 1.068241 | DR5: =IF(COUNTBLANK(D70)=1,"",MAX(D66:D70)-MIN(D66:D70)) -> 8.120328 | DS5: =IF(COUNTBLANK(D75)=1,"",MAX(D71:D75)-MIN(D71:D75)) -> 1.279393 | DT5: =IF(COUNTBLANK(D80)=1,"",MAX(D76:D80)-MIN(D76:D80)) -> 1.237323 | DU5: =IF(COUNTBLANK(D85)=1,"",MAX(D81:D85)-MIN(D81:D85)) -> 0.617083 | DV5: =IF(COUNTBLANK(D90)=1,"",MAX(D86:D90)-MIN(D86:D90)) -> 0.904777 | DW5: =IF(COUNTBLANK(D95)=1,"",MAX(D91:D95)-MIN(D91:D95)) -> 0.972924 | DX5: =IF(COUNTBLANK(D100)=1,"",MAX(D96:D100)-MIN(D96:D100)) -> 7.715026 | DY5: ="" ->  | DZ5: ="" ->  | EA5: ="" ->  | EB5: ="" ->  | EC5: ="" ->  | ED5: ="" ->  | EE5: ="" ->  | EF5: ="" ->  | EG5: ="" ->  | EH5: ="" ->  | EI5: ="" ->  | EJ5: ="" ->  | EK5: ="" ->  | EL5: ="" ->  | EM5: ="" ->  | EN5: ="" ->  | EO5: ="" ->  | EP5: ="" ->  | EQ5: ="" ->  | ER5: ="" ->  | ES5: ="" ->  | ET5: ="" ->  | EU5: ="" ->  | EV5: ="" ->  | EW5: ="" ->  | EX5: ="" ->  | EY5: ="" ->  | EZ5: ="" ->  | FA5: ="" ->  | FB5: ="" ->  | FC5: ="" ->  | FD5: ="" ->  | FE5: ="" ->  | FF5: ="" ->  | FG5: ="" ->  | FH5: ="" ->  | FI5: ="" ->  | FJ5: ="" ->  | FK5: ="" ->  | FL5: ="" ->  | FM5: ="" ->  | FN5: ="" ->  | FO5: ="" ->  | FP5: ="" ->  | FQ5: ="" ->  | FR5: ="" ->  | FS5: ="" ->  | FT5: ="" ->  | FU5: ="" ->  | FV5: ="" ->  | FW5: ="" ->  | FX5: ="" ->  | FY5: ="" ->  | FZ5: ="" ->  | GA5: ="" ->  | GB5: ="" ->  | GC5: ="" ->  | GD5: ="" ->  | GE5: ="" ->  | GF5: ="" ->  | GG5: ="" ->  | GH5: ="" ->  | GI5: ="" ->  | GJ5: ="" ->  | GK5: ="" ->  | GL5: ="" ->  | GM5: ="" ->  | GN5: ="" ->  | GO5: ="" ->  | GP5: ="" ->  | GQ5: ="" ->  | GR5: ="" ->  | GS5: ="" ->  | GT5: ="" ->  | GU5: ="" ->  | GV5: ="" ->  | GW5: ="" ->  | GX5: ="" ->  | GY5: ="" ->  | GZ5: ="" ->  | HA5: =AVERAGE(DE5:DX5) -> 2.71858925 | HC5: 5 | HD5: 0.577 | HE5: 0 | HF5: 2.11 | HG5: 2.33 | HH5: 0.69
A6: Bin Size | B6: =B5/20 -> 0.7701221 | D6: =IF(COUNTBLANK('PROCESS CAPABILITY CPK PPK'!D16)=1,"",'PROCESS CAPABILITY CPK PPK'!D16) -> 52.757413 | E6: 48.6812735 | F6: 0 | G6: =IF(COUNTBLANK(D6)=1,"",AVERAGE(D1:D6)) -> 52.468576 | H6: =IF(COUNTBLANK(D12)=1,"",AVERAGE(D7:D12)) -> 50.77677767 | I6: =IF(COUNTBLANK(D18)=1,"",AVERAGE(D13:D18)) -> 51.89428733 | J6: =IF(COUNTBLANK(D24)=1,"",AVERAGE(D19:D24)) -> 53.76800933 | K6: =IF(COUNTBLANK(D30)=1,"",AVERAGE(D25:D30)) -> 52.28082567 | L6: =IF(COUNTBLANK(D36)=1,"",AVERAGE(D31:D36)) -> 52.19768233 | M6: =IF(COUNTBLANK(D42)=1,"",AVERAGE(D37:D42)) -> 51.66134717 | N6: =IF(COUNTBLANK(D48)=1,"",AVERAGE(D43:D48)) -> 52.359724 | O6: =IF(COUNTBLANK(D54)=1,"",AVERAGE(D49:D54)) -> 51.89187517 | P6: =IF(COUNTBLANK(D60)=1,"",AVERAGE(D55:D60)) -> 53.20150083 | Q6: =IF(COUNTBLANK(D66)=1,"",AVERAGE(D61:D66)) -> 51.82490717 | R6: =IF(COUNTBLANK(D72)=1,"",AVERAGE(D67:D72)) -> 50.92717817 | S6: =IF(COUNTBLANK(D78)=1,"",AVERAGE(D73:D78)) -> 52.26409367 | T6: =IF(COUNTBLANK(D84)=1,"",AVERAGE(D79:D84)) -> 52.00291433 | U6: =IF(COUNTBLANK(D90)=1,"",AVERAGE(D85:D90)) -> 52.05690567 | V6: =IF(COUNTBLANK(D96)=1,"",AVERAGE(D91:D96)) -> 53.02228033 | W6: ="" ->  | X6: ="" ->  | Y6: ="" ->  | Z6: ="" ->  | AA6: ="" ->  | AB6: ="" ->  | AC6: ="" ->  | AD6: ="" ->  | AE6: ="" ->  | AF6: ="" ->  | AG6: ="" ->  | AH6: ="" ->  | AI6: ="" ->  | AJ6: ="" ->  | AK6: ="" ->  | AL6: ="" ->  | AM6: ="" ->  | AN6: ="" ->  | AO6: ="" ->  | AP6: ="" ->  | AQ6: ="" ->  | AR6: ="" ->  | AS6: ="" ->  | AT6: ="" ->  | AU6: ="" ->  | AV6: ="" ->  | AW6: ="" ->  | AX6: ="" ->  | AY6: ="" ->  | AZ6: ="" ->  | BA6: ="" ->  | BB6: ="" ->  | BC6: ="" ->  | BD6: ="" ->  | BE6: ="" ->  | BF6: ="" ->  | BG6: ="" ->  | BH6: ="" ->  | BI6: ="" ->  | BJ6: ="" ->  | BK6: ="" ->  | BL6: ="" ->  | BM6: ="" ->  | BN6: ="" ->  | BO6: ="" ->  | BP6: ="" ->  | BQ6: ="" ->  | BR6: ="" ->  | BS6: ="" ->  | BT6: ="" ->  | BU6: ="" ->  | BV6: ="" ->  | BW6: ="" ->  | BX6: ="" ->  | BY6: ="" ->  | BZ6: ="" ->  | CA6: ="" ->  | CB6: ="" ->  | CC6: ="" ->  | CD6: ="" ->  | CE6: ="" ->  | CF6: ="" ->  | CG6: ="" ->  | CH6: ="" ->  | CI6: ="" ->  | CJ6: ="" ->  | CK6: ="" ->  | CL6: ="" ->  | CM6: ="" ->  | CN6: ="" ->  | CO6: ="" ->  | CP6: ="" ->  | CQ6: ="" ->  | CR6: ="" ->  | CS6: ="" ->  | CT6: ="" ->  | CU6: ="" ->  | CV6: ="" ->  | CW6: ="" ->  | CX6: ="" ->  | CY6: ="" ->  | CZ6: ="" ->  | DA6: ="" ->  | DB6: ="" ->  | DC6: =AVERAGE(G6:V6) -> 52.1624303 | DE6: =IF(COUNTBLANK(D6)=1,"",MAX(D1:D6)-MIN(D1:D6)) -> 1.114454 | DF6: =IF(COUNTBLANK(D12)=1,"",MAX(D7:D12)-MIN(D7:D12)) -> 5.762698 | DG6: =IF(COUNTBLANK(D18)=1,"",MAX(D13:D18)-MIN(D13:D18)) -> 1.897395 | DH6: =IF(COUNTBLANK(D24)=1,"",MAX(D19:D24)-MIN(D19:D24)) -> 8.387326 | DI6: =IF(COUNTBLANK(D30)=1,"",MAX(D25:D30)-MIN(D25:D30)) -> 1.249511 | DJ6: =IF(COUNTBLANK(D36)=1,"",MAX(D31:D36)-MIN(D31:D36)) -> 1.19313 | DK6: =IF(COUNTBLANK(D42)=1,"",MAX(D37:D42)-MIN(D37:D42)) -> 0.986074 | DL6: =IF(COUNTBLANK(D48)=1,"",MAX(D43:D48)-MIN(D43:D48)) -> 1.70312 | DM6: =IF(COUNTBLANK(D54)=1,"",MAX(D49:D54)-MIN(D49:D54)) -> 1.588469 | DN6: =IF(COUNTBLANK(D60)=1,"",MAX(D55:D60)-MIN(D55:D60)) -> 4.604266 | DO6: =IF(COUNTBLANK(D66)=1,"",MAX(D61:D66)-MIN(D61:D66)) -> 1.068241 | DP6: =IF(COUNTBLANK(D72)=1,"",MAX(D67:D72)-MIN(D67:D72)) -> 8.120328 | DQ6: =IF(COUNTBLANK(D78)=1,"",MAX(D73:D78)-MIN(D73:D78)) -> 1.613599 | DR6: =IF(COUNTBLANK(D84)=1,"",MAX(D79:D84)-MIN(D79:D84)) -> 0.975566 | DS6: =IF(COUNTBLANK(D90)=1,"",MAX(D85:D90)-MIN(D85:D90)) -> 0.904777 | DT6: ="" ->  | DU6: ="" ->  | DV6: ="" ->  | DW6: ="" ->  | DX6: ="" ->  | DY6: ="" ->  | DZ6: ="" ->  | EA6: ="" ->  | EB6: ="" ->  | EC6: ="" ->  | ED6: ="" ->  | EE6: ="" ->  | EF6: ="" ->  | EG6: ="" ->  | EH6: ="" ->  | EI6: ="" ->  | EJ6: ="" ->  | EK6: ="" ->  | EL6: ="" ->  | EM6: ="" ->  | EN6: ="" ->  | EO6: ="" ->  | EP6: ="" ->  | EQ6: ="" ->  | ER6: ="" ->  | ES6: ="" ->  | ET6: ="" ->  | EU6: ="" ->  | EV6: ="" ->  | EW6: ="" ->  | EX6: ="" ->  | EY6: ="" ->  | EZ6: ="" ->  | FA6: ="" ->  | FB6: ="" ->  | FC6: ="" ->  | FD6: ="" ->  | FE6: ="" ->  | FF6: ="" ->  | FG6: ="" ->  | FH6: ="" ->  | FI6: ="" ->  | FJ6: ="" ->  | FK6: ="" ->  | FL6: ="" ->  | FM6: ="" ->  | FN6: ="" ->  | FO6: ="" ->  | FP6: ="" ->  | FQ6: ="" ->  | FR6: ="" ->  | FS6: ="" ->  | FT6: ="" ->  | FU6: ="" ->  | FV6: ="" ->  | FW6: ="" ->  | FX6: ="" ->  | FY6: ="" ->  | FZ6: ="" ->  | GA6: ="" ->  | GB6: ="" ->  | GC6: ="" ->  | GD6: ="" ->  | GE6: ="" ->  | GF6: ="" ->  | GG6: ="" ->  | GH6: ="" ->  | GI6: ="" ->  | GJ6: ="" ->  | GK6: ="" ->  | GL6: ="" ->  | GM6: ="" ->  | GN6: ="" ->  | GO6: ="" ->  | GP6: ="" ->  | GQ6: ="" ->  | GR6: ="" ->  | GS6: ="" ->  | GT6: ="" ->  | GU6: ="" ->  | GV6: ="" ->  | GW6: ="" ->  | GX6: ="" ->  | GY6: ="" ->  | GZ6: ="" ->  | HA6: =AVERAGE(DE6:DT6) -> 2.744596933 | HC6: 6 | HD6: 0.483 | HE6: 0 | HF6: 2 | HG6: 2.53 | HH6: 0.55
A7: USL | B7: =IF(COUNTBLANK('PROCESS CAPABILITY CPK PPK'!F6)=1,"",'PROCESS CAPABILITY CPK PPK'!F6) -> 70 | D7: =IF(COUNTBLANK('PROCESS CAPABILITY CPK PPK'!D17)=1,"",'PROCESS CAPABILITY CPK PPK'!D17) -> 51.485971 | E7: 49.4513956 | F7: 0 | AA7: CQD-113.42; Rev 1; 01/15/15 | HC7: n | HD7: A2 | HE7: D3 | HF7: D4 | HG7: d2 | HH7: A2
A8: LSL | B8: =IF(COUNTBLANK('PROCESS CAPABILITY CPK PPK'!F7)=1,"",'PROCESS CAPABILITY CPK PPK'!F7) -> 40 | D8: =IF(COUNTBLANK('PROCESS CAPABILITY CPK PPK'!D18)=1,"",'PROCESS CAPABILITY CPK PPK'!D18) -> 51.309217 | E8: 50.2215177 | F8: 0 | H8: Data | M8: Avg | R8: UCL | W8: LCL | Y8: USL | Z8: LSL | AA8: Tol | HG8: HG | HH8: median chart
A9: X Bar | B9: =M10 -> 52.25582103 | D9: =IF(COUNTBLANK('PROCESS CAPABILITY CPK PPK'!D19)=1,"",'PROCESS CAPABILITY CPK PPK'!D19) -> 52.146637 | E9: 50.9916398 | F9: 2 | H9: Data | M9: Avg | R9: UCL | W9: LCL | Y9: =IF(COUNTBLANK('PROCESS CAPABILITY CPK PPK'!F6)>0,"USL n/a",(IF($B$1=1,"USL","USL n/a"))) -> USL | Z9: =IF(COUNTBLANK('PROCESS CAPABILITY CPK PPK'!F7)>0,"LSL n/a",IF($B$1=1,"LSL","LSL n/a")) -> LSL | AA9: =IF(COUNTBLANK('PROCESS CAPABILITY CPK PPK'!F7)>0,"Tol n/a",IF(COUNTBLANK('PROCESS CAPABILITY CPK PPK'!F6)>0,"Tol n/a",IF($B$1=1,"Tol","Tol n/a"))) -> Tol | AC9: median chart | DF9: Data | DK9: Centerline | DP9: UCL
A10: R Bar | B10: =DK10 -> 1.250801152 | D10: =IF(COUNTBLANK('PROCESS CAPABILITY CPK PPK'!D20)=1,"",'PROCESS CAPABILITY CPK PPK'!D20) -> 51.676681 | E10: 51.7617619 | F10: 24 | G10: 1 | H10: =INDIRECT(I10) -> 52.195965 | I10: =CONCATENATE(J10,K10) -> g1 | J10: g | K10: =$B$1 -> 1 | M10: =INDIRECT(N10) -> 52.25582103 | N10: =CONCATENATE("$",O10,"$",P10) -> $DC$1 | O10: DC | P10: =$B$1 -> 1 | R10: =(INDIRECT(S10)*DK10)+M10 -> 55.57653205 | S10: =CONCATENATE("$",T10,"$",U10) -> $HD$1 | T10: HD | U10: =$B$1 -> 1 | W10: =M10-(R10-M10) -> 48.93511001 | Y10: =IF($B$1=1,$B$7,$B$9) -> 70 | Z10: =IF($B$1=1,$B$8,$B$9) -> 40 | AA10: =IF($B$1=1,Y10-Z10,$B$10) -> 30 | AC10: UCL | AD10: =AD13+(INDIRECT(AE10)*AD14) -> 52.25582103 | AE10: =CONCATENATE(AF10,"$",AG10) -> $HH$1 | AF10: $HH | AG10: =B1 -> 1 | DE10: 1 | DF10: =IF($B$1=1,"",INDIRECT(DG10)) ->  | DG10: =CONCATENATE(DH10,DI10) -> de1 | DH10: de | DI10: =$B$1 -> 1 | DK10: =INDIRECT(DL10) -> 1.250801152 | DL10: =CONCATENATE("$",DM10,"$",DN10) -> $ha$1 | DM10: ha | DN10: =$B$1 -> 1 | DP10: =INDIRECT(DQ10)*DK10 -> 4.086367362 | DQ10: =CONCATENATE("$",DR10,"$",DS10) -> $Hf$1 | DR10: Hf | DS10: =$B$1 -> 1
A11: Stdev | B11: =STDEV(RawData) -> 1.664176323 | D11: =IF(COUNTBLANK('PROCESS CAPABILITY CPK PPK'!D21)=1,"",'PROCESS CAPABILITY CPK PPK'!D21) -> 51.658221 | E11: 52.531884 | F11: 44 | G11: 2 | H11: =INDIRECT(I11) -> 51.720496 | I11: =CONCATENATE(J11,K11) -> h1 | J11: h | K11: =$B$1 -> 1 | M11: =INDIRECT(N11) -> 52.25582103 | N11: =CONCATENATE("$",O11,"$",P11) -> $DC$1 | O11: DC | P11: =$B$1 -> 1 | R11: =(INDIRECT(S11)*DK11)+M11 -> 55.57653205 | S11: =CONCATENATE("$",T11,"$",U11) -> $HD$1 | T11: HD | U11: =$B$1 -> 1 | W11: =M11-(R11-M11) -> 48.93511001 | Y11: =IF($B$1=1,$B$7,$B$9) -> 70 | Z11: =IF($B$1=1,$B$8,$B$9) -> 40 | AA11: =IF($B$1=1,Y11-Z11,$B$10) -> 30 | AC11: LCL | AD11: =AD13-(INDIRECT(AE11)*AD14) -> 52.25582103 | AE11: =CONCATENATE(AF11,"$",AG11) -> $HH$1 | AF11: $HH | AG11: =B1 -> 1 | DE11: 2 | DF11: =INDIRECT(DG11) -> 0.475469 | DG11: =CONCATENATE(DH11,DI11) -> df1 | DH11: df | DI11: =$B$1 -> 1 | DK11: =INDIRECT(DL11) -> 1.250801152 | DL11: =CONCATENATE("$",DM11,"$",DN11) -> $ha$1 | DM11: ha | DN11: =$B$1 -> 1 | DP11: =INDIRECT(DQ11)*DK11 -> 4.086367362 | DQ11: =CONCATENATE("$",DR11,"$",DS11) -> $Hf$1 | DR11: Hf | DS11: =$B$1 -> 1
A12: R Bar/d2 | B12: =IF(B1=1,(DK10/HG1),IF(B1>1,DK10/(INDIRECT(CONCATENATE(HG8,$B$1))),"n/a")) -> 1.106903674 | D12: =IF(COUNTBLANK('PROCESS CAPABILITY CPK PPK'!D22)=1,"",'PROCESS CAPABILITY CPK PPK'!D22) -> 46.383939 | E12: 53.3020061 | F12: 22 | G12: 3 | H12: 52.589621 | I12: I1 | J12: I | K12: 1 | M12: =INDIRECT(N12) -> 52.25582103 | N12: =CONCATENATE("$",O12,"$",P12) -> $DC$1 | O12: DC | P12: =$B$1 -> 1 | R12: =(INDIRECT(S12)*DK12)+M12 -> 55.57653205 | S12: =CONCATENATE("$",T12,"$",U12) -> $HD$1 | T12: HD | U12: =$B$1 -> 1 | W12: 48.93511001 | Y12: 70 | Z12: 40 | AA12: 30 | AC12: UCLr | AD12: =B15 -> 4.086367362 | DE12: 3 | DF12: 0.869125 | DG12: dg1 | DH12: dg | DI12: 1 | DK12: =INDIRECT(DL12) -> 1.250801152 | DL12: =CONCATENATE("$",DM12,"$",DN12) -> $ha$1 | DM12: ha | DN12: =$B$1 -> 1 | DP12: =INDIRECT(DQ12)*DK12 -> 4.086367362 | DQ12: =CONCATENATE("$",DR12,"$",DS12) -> $Hf$1 | DR12: Hf | DS12: =$B$1 -> 1
A13: UCL X | B13: =R10 -> 55.57653205 | D13: =IF(COUNTBLANK('PROCESS CAPABILITY CPK PPK'!D23)=1,"",'PROCESS CAPABILITY CPK PPK'!D23) -> 51.738932 | E13: 54.0721282 | F13: 2 | G13: 4 | H13: 52.83495 | I13: j1 | J13: j | K13: 1 | M13: 52.25582103 | N13: $DC$1 | O13: DC | P13: 1 | R13: 55.57653205 | S13: $HD$1 | T13: HD | U13: 1 | W13: 48.93511001 | Y13: 70 | Z13: 40 | AA13: 30 | AC13: Xbar | AD13: =M10 -> 52.25582103 | DE13: 4 | DF13: 0.245329 | DG13: dh1 | DH13: dh | DI13: 1 | DK13: 1.250801152 | DL13: $ha$1 | DM13: ha | DN13: 1 | DP13: 4.086367362 | DQ13: $Hf$1 | DR13: Hf | DS13: 1
A14: LCL X | B14: =W10 -> 48.93511001 | D14: =IF(COUNTBLANK('PROCESS CAPABILITY CPK PPK'!D24)=1,"",'PROCESS CAPABILITY CPK PPK'!D24) -> 51.726101 | E14: 54.8422503 | F14: 0 | G14: 5 | H14: 52.713011 | I14: k1 | J14: k | K14: 1 | M14: 52.25582103 | N14: $DC$1 | O14: DC | P14: 1 | R14: 55.57653205 | S14: $HD$1 | T14: HD | U14: 1 | W14: 48.93511001 | Y14: 70 | Z14: 40 | AA14: 30 | AC14: Rbar | AD14: =DK10 -> 1.250801152 | DE14: 5 | DF14: 0.121939 | DG14: dI1 | DH14: dI | DI14: 1 | DK14: 1.250801152 | DL14: $ha$1 | DM14: ha | DN14: 1 | DP14: 4.086367362 | DQ14: $Hf$1 | DR14: Hf | DS14: 1
A15: UCL R | B15: =DP10 -> 4.086367362 | D15: =IF(COUNTBLANK('PROCESS CAPABILITY CPK PPK'!D25)=1,"",'PROCESS CAPABILITY CPK PPK'!D25) -> 52.54053 | E15: 55.6123724 | F15: 0 | G15: 6 | H15: 52.757413 | I15: l1 | J15: l | K15: 1 | M15: 52.25582103 | N15: $DC$1 | O15: DC | P15: 1 | R15: 55.57653205 | S15: $HD$1 | T15: HD | U15: 1 | W15: 48.93511001 | Y15: 70 | Z15: 40 | AA15: 30 | DE15: 6 | DF15: 0.044402 | DG15: dj1 | DH15: dj | DI15: 1 | DK15: 1.250801152 | DL15: $ha$1 | DM15: ha | DN15: 1 | DP15: 4.086367362 | DQ15: $Hf$1 | DR15: Hf | DS15: 1
A16: Pp | B16: =IF(COUNTBLANK(B7:B8)>0,"need tol",($B$7-$B$8)/(6*$B$11)) -> 3.004489327 | D16: =IF(COUNTBLANK('PROCESS CAPABILITY CPK PPK'!D26)=1,"",'PROCESS CAPABILITY CPK PPK'!D26) -> 52.341082 | E16: 56.3824945 | F16: 1 | G16: 7 | H16: 51.485971 | I16: m1 | J16: m | K16: 1 | M16: 52.25582103 | N16: $DC$1 | O16: DC | P16: 1 | R16: 55.57653205 | S16: $HD$1 | T16: HD | U16: 1 | W16: 48.93511001 | Y16: 70 | Z16: 40 | AA16: 30 | DE16: 7 | DF16: 1.271442 | DG16: dk1 | DH16: dk | DI16: 1 | DK16: 1.250801152 | DL16: $ha$1 | DM16: ha | DN16: 1 | DP16: 4.086367362 | DQ16: $Hf$1 | DR16: Hf | DS16: 1
A17: Ppk Upper | B17: =IF(COUNTBLANK(B7)=1,"need tol",(B7-B9)/(3*B11)) -> 3.554146422 | D17: =IF(COUNTBLANK('PROCESS CAPABILITY CPK PPK'!D27)=1,"",'PROCESS CAPABILITY CPK PPK'!D27) -> 50.643135 | E17: 57.1526166 | F17: 1 | G17: 8 | H17: 51.309217 | I17: n1 | J17: n | K17: 1 | M17: 52.25582103 | N17: $DC$1 | O17: DC | P17: 1 | R17: 55.57653205 | S17: $HD$1 | T17: HD | U17: 1 | W17: 48.93511001 | Y17: 70 | Z17: 40 | AA17: 30 | DE17: 8 | DF17: 0.176754 | DG17: dl1 | DH17: dl | DI17: 1 | DK17: 1.250801152 | DL17: $ha$1 | DM17: ha | DN17: 1 | DP17: 4.086367362 | DQ17: $Hf$1 | DR17: Hf | DS17: 1
A18: Ppk Lower | B18: =IF(COUNTBLANK(B8)=1,"need tol",(B9-B8)/(3*B11)) -> 2.454832232 | D18: =IF(COUNTBLANK('PROCESS CAPABILITY CPK PPK'!D28)=1,"",'PROCESS CAPABILITY CPK PPK'!D28) -> 52.375944 | E18: 57.9227387 | F18: 0 | G18: 9 | H18: 52.146637 | I18: o1 | J18: o | K18: 1 | M18: 52.25582103 | N18: $DC$1 | O18: DC | P18: 1 | R18: 55.57653205 | S18: $HD$1 | T18: HD | U18: 1 | W18: 48.93511001 | Y18: 70 | Z18: 40 | AA18: 30 | DE18: 9 | DF18: 0.83742 | DG18: dm1 | DH18: dm | DI18: 1 | DK18: 1.250801152 | DL18: $ha$1 | DM18: ha | DN18: 1 | DP18: 4.086367362 | DQ18: $Hf$1 | DR18: Hf | DS18: 1
A19: Ppk | B19: =IF(COUNTBLANK(B7:B8)>0,"need tol",MIN(B17:B18)) -> 2.454832232 | D19: =IF(COUNTBLANK('PROCESS CAPABILITY CPK PPK'!D29)=1,"",'PROCESS CAPABILITY CPK PPK'!D29) -> 52.559546 | E19: 58.6928608 | F19: 0 | G19: 10 | H19: 51.676681 | I19: p1 | J19: p | K19: 1 | M19: 52.25582103 | N19: $DC$1 | O19: DC | P19: 1 | R19: 55.57653205 | S19: $HD$1 | T19: HD | U19: 1 | W19: 48.93511001 | Y19: 70 | Z19: 40 | AA19: 30 | DE19: 10 | DF19: 0.469956 | DG19: dn1 | DH19: dn | DI19: 1 | DK19: 1.250801152 | DL19: $ha$1 | DM19: ha | DN19: 1 | DP19: 4.086367362 | DQ19: $Hf$1 | DR19: Hf | DS19: 1
A20: Cp | B20: =IF(COUNTBLANK(B7:B8)>0,"need tol",IF(B1>0,(B7-B8)/(6*B12),"n/a")) -> 4.517104892 | D20: =IF(COUNTBLANK('PROCESS CAPABILITY CPK PPK'!D30)=1,"",'PROCESS CAPABILITY CPK PPK'!D30) -> 52.317412 | E20: =E19+$B$6 -> 59.4629829 | F20: 0 | G20: 11 | H20: 51.658221 | I20: q1 | J20: q | K20: 1 | M20: 52.25582103 | N20: $DC$1 | O20: DC | P20: 1 | R20: 55.57653205 | S20: $HD$1 | T20: HD | U20: 1 | W20: 48.93511001 | Y20: 70 | Z20: 40 | AA20: 30 | DE20: 11 | DF20: 0.01846 | DG20: do1 | DH20: do | DI20: 1 | DK20: 1.250801152 | DL20: $ha$1 | DM20: ha | DN20: 1 | DP20: 4.086367362 | DQ20: $Hf$1 | DR20: Hf | DS20: 1
A21: Cpk Upper | B21: =IF(COUNTBLANK(B7)=1,"need tol",IF(B1>0,(B7-B9)/(3*B12),"n/a")) -> 5.343487842 | D21: =IF(COUNTBLANK('PROCESS CAPABILITY CPK PPK'!D31)=1,"",'PROCESS CAPABILITY CPK PPK'!D31) -> 52.902283 | E21: 60.233105 | F21: =FREQUENCY(RawData,Bins) -> 1 | G21: 12 | H21: 46.383939 | I21: r1 | J21: r | K21: 1 | M21: 52.25582103 | N21: $DC$1 | O21: DC | P21: 1 | R21: 55.57653205 | S21: $HD$1 | T21: HD | U21: 1 | W21: 48.93511001 | Y21: 70 | Z21: 40 | AA21: 30 | DE21: 12 | DF21: 5.274282 | DG21: dp1 | DH21: dp | DI21: 1 | DK21: 1.250801152 | DL21: $ha$1 | DM21: ha | DN21: 1 | DP21: 4.086367362 | DQ21: $Hf$1 | DR21: Hf | DS21: 1
A22: Cpk Lower | B22: =IF(COUNTBLANK(B8)=1,"need tol",IF(B1>0,(B9-B8)/(3*B12),"n/a")) -> 3.690721942 | D22: =IF(COUNTBLANK('PROCESS CAPABILITY CPK PPK'!D32)=1,"",'PROCESS CAPABILITY CPK PPK'!D32) -> 51.845779 | G22: 13 | H22: 51.738932 | I22: s1 | J22: s | K22: 1 | M22: 52.25582103 | N22: $DC$1 | O22: DC | P22: 1 | R22: 55.57653205 | S22: $HD$1 | T22: HD | U22: 1 | W22: 48.93511001 | Y22: 70 | Z22: 40 | AA22: 30 | DE22: 13 | DF22: 5.354993 | DG22: dq1 | DH22: dq | DI22: 1 | DK22: 1.250801152 | DL22: $ha$1 | DM22: ha | DN22: 1 | DP22: 4.086367362 | DQ22: $Hf$1 | DR22: Hf | DS22: 1
A23: Cpk | B23: =IF(COUNTBLANK(B7:B8)>0,"need tol",IF(B1>0,MIN(B21:B22),"n/a")) -> 3.690721942 | D23: =IF(COUNTBLANK('PROCESS CAPABILITY CPK PPK'!D33)=1,"",'PROCESS CAPABILITY CPK PPK'!D33) -> 52.749931 | G23: 14 | H23: 51.726101 | I23: t1 | J23: t | K23: 1 | M23: 52.25582103 | N23: $DC$1 | O23: DC | P23: 1 | R23: 55.57653205 | S23: $HD$1 | T23: HD | U23: 1 | W23: 48.93511001 | Y23: 70 | Z23: 40 | AA23: 30 | DE23: 14 | DF23: 0.012831 | DG23: dr1 | DH23: dr | DI23: 1 | DK23: 1.250801152 | DL23: $ha$1 | DM23: ha | DN23: 1 | DP23: 4.086367362 | DQ23: $Hf$1 | DR23: Hf | DS23: 1
A24: # samples | B24: =COUNT('PROCESS CAPABILITY CPK PPK'!D11:D110) -> 100 | D24: =IF(COUNTBLANK('PROCESS CAPABILITY CPK PPK'!D34)=1,"",'PROCESS CAPABILITY CPK PPK'!D34) -> 60.233105 | G24: 15 | H24: 52.54053 | I24: u1 | J24: u | K24: 1 | M24: 52.25582103 | N24: $DC$1 | O24: DC | P24: 1 | R24: 55.57653205 | S24: $HD$1 | T24: HD | U24: 1 | W24: 48.93511001 | Y24: 70 | Z24: 40 | AA24: 30 | DE24: 15 | DF24: 0.814429 | DG24: ds1 | DH24: ds | DI24: 1 | DK24: 1.250801152 | DL24: $ha$1 | DM24: ha | DN24: 1 | DP24: 4.086367362 | DQ24: $Hf$1 | DR24: Hf | DS24: 1
A25: Upper PC line | B25: =IF(B1>1,"Use n=1",IF(COUNTBLANK(B7:B8)>0,"Need Tol",IF(AA223=FALSE,"Not Stable",IF(B19>1,((((B7-B8)/2)+B8)+((B7-B8)/2*0.5)),"Can't Use")))) -> Not Stable | D25: =IF(COUNTBLANK('PROCESS CAPABILITY CPK PPK'!D35)=1,"",'PROCESS CAPABILITY CPK PPK'!D35) -> 52.669038 | G25: 16 | H25: 52.341082 | I25: v1 | J25: v | K25: 1 | M25: 52.25582103 | N25: $DC$1 | O25: DC | P25: 1 | R25: 55.57653205 | S25: $HD$1 | T25: HD | U25: 1 | W25: 48.93511001 | Y25: 70 | Z25: 40 | AA25: 30 | DE25: 16 | DF25: 0.199448 | DG25: dt1 | DH25: dt | DI25: 1 | DK25: 1.250801152 | DL25: $ha$1 | DM25: ha | DN25: 1 | DP25: 4.086367362 | DQ25: $Hf$1 | DR25: Hf | DS25: 1
A26: Lower PC line | B26: =IF(B1>1,"Use n=1",IF(COUNTBLANK(B7:B8)>0,"need tol",IF(AA223=FALSE,"Not Stable",IF(B19>1,((((B7-B8)/2)+B8)-((B7-B8)/2*0.5)),"Can't Use")))) -> Not Stable | D26: =IF(COUNTBLANK('PROCESS CAPABILITY CPK PPK'!D36)=1,"",'PROCESS CAPABILITY CPK PPK'!D36) -> 52.898168 | G26: 17 | H26: 50.643135 | I26: w1 | J26: w | K26: 1 | M26: 52.25582103 | N26: $DC$1 | O26: DC | P26: 1 | R26: 55.57653205 | S26: $HD$1 | T26: HD | U26: 1 | W26: 48.93511001 | Y26: 70 | Z26: 40 | AA26: 30 | DE26: 17 | DF26: 1.697947 | DG26: du1 | DH26: du | DI26: 1 | DK26: 1.250801152 | DL26: $ha$1 | DM26: ha | DN26: 1 | DP26: 4.086367362 | DQ26: $Hf$1 | DR26: Hf | DS26: 1
A27: Median UCL | B27: =IF(B1=1,"Use IMR",AD10) -> Use IMR | D27: =IF(COUNTBLANK('PROCESS CAPABILITY CPK PPK'!D37)=1,"",'PROCESS CAPABILITY CPK PPK'!D37) -> 51.7678 | G27: 18 | H27: 52.375944 | I27: x1 | J27: x | K27: 1 | M27: 52.25582103 | N27: $DC$1 | O27: DC | P27: 1 | R27: 55.57653205 | S27: $HD$1 | T27: HD | U27: 1 | W27: 48.93511001 | Y27: 70 | Z27: 40 | AA27: 30 | DE27: 18 | DF27: 1.732809 | DG27: dv1 | DH27: dv | DI27: 1 | DK27: 1.250801152 | DL27: $ha$1 | DM27: ha | DN27: 1 | DP27: 4.086367362 | DQ27: $Hf$1 | DR27: Hf | DS27: 1
A28: Median LCL | B28: =IF(B1=1,"Use IMR",AD11) -> Use IMR | D28: =IF(COUNTBLANK('PROCESS CAPABILITY CPK PPK'!D38)=1,"",'PROCESS CAPABILITY CPK PPK'!D38) -> 52.091924 | G28: 19 | H28: 52.559546 | I28: y1 | J28: y | K28: 1 | M28: 52.25582103 | N28: $DC$1 | O28: DC | P28: 1 | R28: 55.57653205 | S28: $HD$1 | T28: HD | U28: 1 | W28: 48.93511001 | Y28: 70 | Z28: 40 | AA28: 30 | DE28: 19 | DF28: 0.183602 | DG28: dw1 | DH28: dw | DI28: 1 | DK28: 1.250801152 | DL28: $ha$1 | DM28: ha | DN28: 1 | DP28: 4.086367362 | DQ28: $Hf$1 | DR28: Hf | DS28: 1
A29: Median UCLR | B29: =IF(B1=1,"Use IMR",AD12) -> Use IMR | D29: =IF(COUNTBLANK('PROCESS CAPABILITY CPK PPK'!D39)=1,"",'PROCESS CAPABILITY CPK PPK'!D39) -> 52.609367 | G29: 20 | H29: 52.317412 | I29: z1 | J29: z | K29: 1 | M29: 52.25582103 | N29: $DC$1 | O29: DC | P29: 1 | R29: 55.57653205 | S29: $HD$1 | T29: HD | U29: 1 | W29: 48.93511001 | Y29: 70 | Z29: 40 | AA29: 30 | DE29: 20 | DF29: 0.242134 | DG29: dx1 | DH29: dx | DI29: 1 | DK29: 1.250801152 | DL29: $ha$1 | DM29: ha | DN29: 1 | DP29: 4.086367362 | DQ29: $Hf$1 | DR29: Hf | DS29: 1
A30: Prod UCL X | B30: =IF(COUNTBLANK(B7:B8)>0,"need tol",((($B$7-$B$8)/2)+$B$8)+(INDIRECT(S10)*DK10)) -> 58.32071102 | D30: =IF(COUNTBLANK('PROCESS CAPABILITY CPK PPK'!D40)=1,"",'PROCESS CAPABILITY CPK PPK'!D40) -> 51.648657 | G30: 21 | H30: 52.902283 | I30: aa1 | J30: aa | K30: 1 | M30: 52.25582103 | N30: $DC$1 | O30: DC | P30: 1 | R30: 55.57653205 | S30: $HD$1 | T30: HD | U30: 1 | W30: 48.93511001 | Y30: 70 | Z30: 40 | AA30: 30 | DE30: 21 | DF30: 0.584871 | DG30: dy1 | DH30: dy | DI30: 1 | DK30: 1.250801152 | DL30: $ha$1 | DM30: ha | DN30: 1 | DP30: 4.086367362 | DQ30: $Hf$1 | DR30: Hf | DS30: 1
A31: Prod LCL X | B31: =IF(COUNTBLANK(B7:B8)>0,"need tol",((($B$7-$B$8)/2)+$B$8)-(INDIRECT(S10)*DK10)) -> 51.67928898 | D31: =IF(COUNTBLANK('PROCESS CAPABILITY CPK PPK'!D41)=1,"",'PROCESS CAPABILITY CPK PPK'!D41) -> 52.824661 | G31: 22 | H31: 51.845779 | I31: ab1 | J31: ab | K31: 1 | M31: 52.25582103 | N31: $DC$1 | O31: DC | P31: 1 | R31: 55.57653205 | S31: $HD$1 | T31: HD | U31: 1 | W31: 48.93511001 | Y31: 70 | Z31: 40 | AA31: 30 | DE31: 22 | DF31: 1.056504 | DG31: dz1 | DH31: dz | DI31: 1 | DK31: 1.250801152 | DL31: $ha$1 | DM31: ha | DN31: 1 | DP31: 4.086367362 | DQ31: $Hf$1 | DR31: Hf | DS31: 1
A32: Prod UCL R | B32: =B15 -> 4.086367362 | D32: =IF(COUNTBLANK('PROCESS CAPABILITY CPK PPK'!D42)=1,"",'PROCESS CAPABILITY CPK PPK'!D42) -> 52.330685 | G32: 23 | H32: 52.749931 | I32: ac1 | J32: ac | K32: 1 | M32: 52.25582103 | N32: $DC$1 | O32: DC | P32: 1 | R32: 55.57653205 | S32: $HD$1 | T32: HD | U32: 1 | W32: 48.93511001 | Y32: 70 | Z32: 40 | AA32: 30 | DE32: 23 | DF32: 0.904152 | DG32: ea1 | DH32: ea | DI32: 1 | DK32: 1.250801152 | DL32: $ha$1 | DM32: ha | DN32: 1 | DP32: 4.086367362 | DQ32: $Hf$1 | DR32: Hf | DS32: 1
A33: Xbar+2/3 UCL | B33: =((B13-B9)*(2/3))+B9 -> 54.46962838 | D33: =IF(COUNTBLANK('PROCESS CAPABILITY CPK PPK'!D43)=1,"",'PROCESS CAPABILITY CPK PPK'!D43) -> 52.376166 | G33: 24 | H33: 60.233105 | I33: ad1 | J33: ad | K33: 1 | M33: 52.25582103 | N33: $DC$1 | O33: DC | P33: 1 | R33: 55.57653205 | S33: $HD$1 | T33: HD | U33: 1 | W33: 48.93511001 | Y33: 70 | Z33: 40 | AA33: 30 | DE33: 24 | DF33: 7.483174 | DG33: eb1 | DH33: eb | DI33: 1 | DK33: 1.250801152 | DL33: $ha$1 | DM33: ha | DN33: 1 | DP33: 4.086367362 | DQ33: $Hf$1 | DR33: Hf | DS33: 1
A34: Xbar-2/3 UCL | B34: =B9-((B13-B9)*(2/3)) -> 50.04201368 | D34: =IF(COUNTBLANK('PROCESS CAPABILITY CPK PPK'!D44)=1,"",'PROCESS CAPABILITY CPK PPK'!D44) -> 51.940792 | G34: 25 | H34: 52.669038 | I34: ae1 | J34: ae | K34: 1 | M34: 52.25582103 | N34: $DC$1 | O34: DC | P34: 1 | R34: 55.57653205 | S34: $HD$1 | T34: HD | U34: 1 | W34: 48.93511001 | Y34: 70 | Z34: 40 | AA34: 30 | DE34: 25 | DF34: 7.564067 | DG34: ec1 | DH34: ec | DI34: 1 | DK34: 1.250801152 | DL34: $ha$1 | DM34: ha | DN34: 1 | DP34: 4.086367362 | DQ34: $Hf$1 | DR34: Hf | DS34: 1
A35: Rbar-2/3 UCL | B35: =((B15-B10)*(2/3))+B10 -> 3.141178625 | D35: =IF(COUNTBLANK('PROCESS CAPABILITY CPK PPK'!D45)=1,"",'PROCESS CAPABILITY CPK PPK'!D45) -> 51.631531 | G35: 26 | H35: 52.898168 | I35: af1 | J35: af | K35: 1 | M35: 52.25582103 | N35: $DC$1 | O35: DC | P35: 1 | R35: 55.57653205 | S35: $HD$1 | T35: HD | U35: 1 | W35: 48.93511001 | Y35: 70 | Z35: 40 | AA35: 30 | DE35: 26 | DF35: 0.22913 | DG35: ed1 | DH35: ed | DI35: 1 | DK35: 1.250801152 | DL35: $ha$1 | DM35: ha | DN35: 1 | DP35: 4.086367362 | DQ35: $Hf$1 | DR35: Hf | DS35: 1
A36: Xbar+1/3 UCL | B36: =((B13-B9)*(1/3))+B9 -> 53.3627247 | D36: =IF(COUNTBLANK('PROCESS CAPABILITY CPK PPK'!D46)=1,"",'PROCESS CAPABILITY CPK PPK'!D46) -> 52.082259 | G36: 27 | H36: 51.7678 | I36: ag1 | J36: ag | K36: 1 | M36: 52.25582103 | N36: $DC$1 | O36: DC | P36: 1 | R36: 55.57653205 | S36: $HD$1 | T36: HD | U36: 1 | W36: 48.93511001 | Y36: 70 | Z36: 40 | AA36: 30 | DE36: 27 | DF36: 1.130368 | DG36: ee1 | DH36: ee | DI36: 1 | DK36: 1.250801152 | DL36: $ha$1 | DM36: ha | DN36: 1 | DP36: 4.086367362 | DQ36: $Hf$1 | DR36: Hf | DS36: 1
A37: Xbar-1/3 UCL | B37: =B9-((B13-B9)*(1/3)) -> 51.14891736 | D37: =IF(COUNTBLANK('PROCESS CAPABILITY CPK PPK'!D47)=1,"",'PROCESS CAPABILITY CPK PPK'!D47) -> 51.773096 | G37: 28 | H37: 52.091924 | I37: ah1 | J37: ah | K37: 1 | M37: 52.25582103 | N37: $DC$1 | O37: DC | P37: 1 | R37: 55.57653205 | S37: $HD$1 | T37: HD | U37: 1 | W37: 48.93511001 | Y37: 70 | Z37: 40 | AA37: 30 | DE37: 28 | DF37: 0.324124 | DG37: ef1 | DH37: ef | DI37: 1 | DK37: 1.250801152 | DL37: $ha$1 | DM37: ha | DN37: 1 | DP37: 4.086367362 | DQ37: $Hf$1 | DR37: Hf | DS37: 1
A38: Rbar-1/3 UCL | B38: =((B15-B10)*(1/3))+B10 -> 2.195989888 | D38: =IF(COUNTBLANK('PROCESS CAPABILITY CPK PPK'!D48)=1,"",'PROCESS CAPABILITY CPK PPK'!D48) -> 51.902429 | G38: 29 | H38: 52.609367 | I38: aI1 | J38: aI | K38: 1 | M38: 52.25582103 | N38: $DC$1 | O38: DC | P38: 1 | R38: 55.57653205 | S38: $HD$1 | T38: HD | U38: 1 | W38: 48.93511001 | Y38: 70 | Z38: 40 | AA38: 30 | DE38: 29 | DF38: 0.517443 | DG38: eg1 | DH38: eg | DI38: 1 | DK38: 1.250801152 | DL38: $ha$1 | DM38: ha | DN38: 1 | DP38: 4.086367362 | DQ38: $Hf$1 | DR38: Hf | DS38: 1
A39: Skewness | B39: =SKEW(RawData) -> 1.069062203 | D39: =IF(COUNTBLANK('PROCESS CAPABILITY CPK PPK'!D49)=1,"",'PROCESS CAPABILITY CPK PPK'!D49) -> 50.972968 | G39: 30 | H39: 51.648657 | I39: aj1 | J39: aj | K39: 1 | M39: 52.25582103 | N39: $DC$1 | O39: DC | P39: 1 | R39: 55.57653205 | S39: $HD$1 | T39: HD | U39: 1 | W39: 48.93511001 | Y39: 70 | Z39: 40 | AA39: 30 | DE39: 30 | DF39: 0.96071 | DG39: eh1 | DH39: eh | DI39: 1 | DK39: 1.250801152 | DL39: $ha$1 | DM39: ha | DN39: 1 | DP39: 4.086367362 | DQ39: $Hf$1 | DR39: Hf | DS39: 1
A40: Std err skew | B40: =SQRT(6/B24) -> 0.2449489743 | D40: =IF(COUNTBLANK('PROCESS CAPABILITY CPK PPK'!D50)=1,"",'PROCESS CAPABILITY CPK PPK'!D50) -> 51.959042 | G40: 31 | H40: 52.824661 | I40: ak1 | J40: ak | K40: 1 | M40: 52.25582103 | N40: $DC$1 | O40: DC | P40: 1 | R40: 55.57653205 | S40: $HD$1 | T40: HD | U40: 1 | W40: 48.93511001 | Y40: 70 | Z40: 40 | AA40: 30 | DE40: 31 | DF40: 1.176004 | DG40: eI1 | DH40: eI | DI40: 1 | DK40: 1.250801152 | DL40: $ha$1 | DM40: ha | DN40: 1 | DP40: 4.086367362 | DQ40: $Hf$1 | DR40: Hf | DS40: 1
A41: Kurtosis | B41: =KURT(RawData) -> 14.0896588 | D41: =IF(COUNTBLANK('PROCESS CAPABILITY CPK PPK'!D51)=1,"",'PROCESS CAPABILITY CPK PPK'!D51) -> 51.680017 | G41: 32 | H41: 52.330685 | I41: al1 | J41: al | K41: 1 | M41: 52.25582103 | N41: $DC$1 | O41: DC | P41: 1 | R41: 55.57653205 | S41: $HD$1 | T41: HD | U41: 1 | W41: 48.93511001 | Y41: 70 | Z41: 40 | AA41: 30 | DE41: 32 | DF41: 0.493976 | DG41: ej1 | DH41: ej | DI41: 1 | DK41: 1.250801152 | DL41: $ha$1 | DM41: ha | DN41: 1 | DP41: 4.086367362 | DQ41: $Hf$1 | DR41: Hf | DS41: 1
A42: Std err kurt | B42: =SQRT(24/B24) -> 0.4898979486 | D42: =IF(COUNTBLANK('PROCESS CAPABILITY CPK PPK'!D52)=1,"",'PROCESS CAPABILITY CPK PPK'!D52) -> 51.680531 | G42: 33 | H42: 52.376166 | I42: am1 | J42: am | K42: 1 | M42: 52.25582103 | N42: $DC$1 | O42: DC | P42: 1 | R42: 55.57653205 | S42: $HD$1 | T42: HD | U42: 1 | W42: 48.93511001 | Y42: 70 | Z42: 40 | AA42: 30 | DE42: 33 | DF42: 0.045481 | DG42: ek1 | DH42: ek | DI42: 1 | DK42: 1.250801152 | DL42: $ha$1 | DM42: ha | DN42: 1 | DP42: 4.086367362 | DQ42: $Hf$1 | DR42: Hf | DS42: 1
A43: Skewed? | B43: =IF(AND(2*B40<ABS(B39),B39<0),"Neg skew",IF(AND(2*B40<ABS(B39),B39>0),"Pos skew","")) -> Pos skew | D43: =IF(COUNTBLANK('PROCESS CAPABILITY CPK PPK'!D53)=1,"",'PROCESS CAPABILITY CPK PPK'!D53) -> 53.430066 | G43: 34 | H43: 51.940792 | I43: an1 | J43: an | K43: 1 | M43: 52.25582103 | N43: $DC$1 | O43: DC | P43: 1 | R43: 55.57653205 | S43: $HD$1 | T43: HD | U43: 1 | W43: 48.93511001 | Y43: 70 | Z43: 40 | AA43: 30 | DE43: 34 | DF43: 0.435374 | DG43: el1 | DH43: el | DI43: 1 | DK43: 1.250801152 | DL43: $ha$1 | DM43: ha | DN43: 1 | DP43: 4.086367362 | DQ43: $Hf$1 | DR43: Hf | DS43: 1
A44: Kurtosis? | B44: =IF(AND(2*B42<ABS(B41),B41<0),"Flat",IF(AND(2*B42<ABS(B41),B41>0),"Tall","")) -> Tall | D44: =IF(COUNTBLANK('PROCESS CAPABILITY CPK PPK'!D54)=1,"",'PROCESS CAPABILITY CPK PPK'!D54) -> 52.093703 | G44: 35 | H44: 51.631531 | I44: ao1 | J44: ao | K44: 1 | M44: 52.25582103 | N44: $DC$1 | O44: DC | P44: 1 | R44: 55.57653205 | S44: $HD$1 | T44: HD | U44: 1 | W44: 48.93511001 | Y44: 70 | Z44: 40 | AA44: 30 | DE44: 35 | DF44: 0.309261 | DG44: em1 | DH44: em | DI44: 1 | DK44: 1.250801152 | DL44: $ha$1 | DM44: ha | DN44: 1 | DP44: 4.086367362 | DQ44: $Hf$1 | DR44: Hf | DS44: 1
A45: Normality | B45: =IF(AND(B43="",B44=""),"Normal",IF(AND(COUNTBLANK(B43)=0,COUNTBLANK(B44)=1),B43,IF(AND(COUNTBLANK(B43)=1,COUNTBLANK(B44)=0),B44,IF(AND(COUNTBLANK(B43)=0,COUNTBLANK(B44)=0),CONCATENATE(B43," & ",B44))))) -> Pos skew & Tall | D45: =IF(COUNTBLANK('PROCESS CAPABILITY CPK PPK'!D55)=1,"",'PROCESS CAPABILITY CPK PPK'!D55) -> 51.726946 | G45: 36 | H45: 52.082259 | I45: ap1 | J45: ap | K45: 1 | M45: 52.25582103 | N45: $DC$1 | O45: DC | P45: 1 | R45: 55.57653205 | S45: $HD$1 | T45: HD | U45: 1 | W45: 48.93511001 | Y45: 70 | Z45: 40 | AA45: 30 | DE45: 36 | DF45: 0.450728 | DG45: en1 | DH45: en | DI45: 1 | DK45: 1.250801152 | DL45: $ha$1 | DM45: ha | DN45: 1 | DP45: 4.086367362 | DQ45: $Hf$1 | DR45: Hf | DS45: 1
D46: =IF(COUNTBLANK('PROCESS CAPABILITY CPK PPK'!D56)=1,"",'PROCESS CAPABILITY CPK PPK'!D56) -> 52.633387 | G46: 37 | H46: 51.773096 | I46: aq1 | J46: aq | K46: 1 | M46: 52.25582103 | N46: $DC$1 | O46: DC | P46: 1 | R46: 55.57653205 | S46: $HD$1 | T46: HD | U46: 1 | W46: 48.93511001 | Y46: 70 | Z46: 40 | AA46: 30 | DE46: 37 | DF46: 0.309163 | DG46: eo1 | DH46: eo | DI46: 1 | DK46: 1.250801152 | DL46: $ha$1 | DM46: ha | DN46: 1 | DP46: 4.086367362 | DQ46: $Hf$1 | DR46: Hf | DS46: 1
D47: =IF(COUNTBLANK('PROCESS CAPABILITY CPK PPK'!D57)=1,"",'PROCESS CAPABILITY CPK PPK'!D57) -> 52.120309 | G47: 38 | H47: 51.902429 | I47: ar1 | J47: ar | K47: 1 | M47: 52.25582103 | N47: $DC$1 | O47: DC | P47: 1 | R47: 55.57653205 | S47: $HD$1 | T47: HD | U47: 1 | W47: 48.93511001 | Y47: 70 | Z47: 40 | AA47: 30 | DE47: 38 | DF47: 0.129333 | DG47: ep1 | DH47: ep | DI47: 1 | DK47: 1.250801152 | DL47: $ha$1 | DM47: ha | DN47: 1 | DP47: 4.086367362 | DQ47: $Hf$1 | DR47: Hf | DS47: 1
A48: Bin Labels | B48: Frequency | C48: cum % | D48: =IF(COUNTBLANK('PROCESS CAPABILITY CPK PPK'!D58)=1,"",'PROCESS CAPABILITY CPK PPK'!D58) -> 52.153933 | G48: 39 | H48: 50.972968 | I48: as1 | J48: as | K48: 1 | M48: 52.25582103 | N48: $DC$1 | O48: DC | P48: 1 | R48: 55.57653205 | S48: $HD$1 | T48: HD | U48: 1 | W48: 48.93511001 | Y48: 70 | Z48: 40 | AA48: 30 | DE48: 39 | DF48: 0.929461 | DG48: eq1 | DH48: eq | DI48: 1 | DK48: 1.250801152 | DL48: $ha$1 | DM48: ha | DN48: 1 | DP48: 4.086367362 | DQ48: $Hf$1 | DR48: Hf | DS48: 1
A49: =B4 -> 44.830663 | B49: =F1 -> 1 | C49: =($B$24*$B$6)*NORMDIST(A49,$B$9,$B$11,FALSE) -> 0.0008779128852 | D49: =IF(COUNTBLANK('PROCESS CAPABILITY CPK PPK'!D59)=1,"",'PROCESS CAPABILITY CPK PPK'!D59) -> 51.469504 | G49: 40 | H49: 51.959042 | I49: at1 | J49: at | K49: 1 | M49: 52.25582103 | N49: $DC$1 | O49: DC | P49: 1 | R49: 55.57653205 | S49: $HD$1 | T49: HD | U49: 1 | W49: 48.93511001 | Y49: 70 | Z49: 40 | AA49: 30 | DE49: 40 | DF49: 0.986074 | DG49: er1 | DH49: er | DI49: 1 | DK49: 1.250801152 | DL49: $ha$1 | DM49: ha | DN49: 1 | DP49: 4.086367362 | DQ49: $Hf$1 | DR49: Hf | DS49: 1
A50: =A49+$B$6 -> 45.6007851 | B50: =F2 -> 0 | C50: =($B$24*$B$6)*NORMDIST(A50,$B$9,$B$11,FALSE) -> 0.006218087501 | D50: =IF(COUNTBLANK('PROCESS CAPABILITY CPK PPK'!D60)=1,"",'PROCESS CAPABILITY CPK PPK'!D60) -> 52.17517 | G50: 41 | H50: 51.680017 | I50: au1 | J50: au | K50: 1 | M50: 52.25582103 | N50: $DC$1 | O50: DC | P50: 1 | R50: 55.57653205 | S50: $HD$1 | T50: HD | U50: 1 | W50: 48.93511001 | Y50: 70 | Z50: 40 | AA50: 30 | DE50: 41 | DF50: 0.279025 | DG50: es1 | DH50: es | DI50: 1 | DK50: 1.250801152 | DL50: $ha$1 | DM50: ha | DN50: 1 | DP50: 4.086367362 | DQ50: $Hf$1 | DR50: Hf | DS50: 1
A51: =A50+$B$6 -> 46.3709072 | B51: 0 | C51: 0.0355514693 | D51: =IF(COUNTBLANK('PROCESS CAPABILITY CPK PPK'!D61)=1,"",'PROCESS CAPABILITY CPK PPK'!D61) -> 52.872146 | G51: 42 | H51: 51.680531 | I51: av1 | J51: av | K51: 1 | M51: 52.25582103 | N51: $DC$1 | O51: DC | P51: 1 | R51: 55.57653205 | S51: $HD$1 | T51: HD | U51: 1 | W51: 48.93511001 | Y51: 70 | Z51: 40 | AA51: 30 | DE51: 42 | DF51: 0.000514 | DG51: et1 | DH51: et | DI51: 1 | DK51: 1.250801152 | DL51: $ha$1 | DM51: ha | DN51: 1 | DP51: 4.086367362 | DQ51: $Hf$1 | DR51: Hf | DS51: 1
A52: 47.1410293 | B52: 1 | C52: 0.1640792259 | D52: =IF(COUNTBLANK('PROCESS CAPABILITY CPK PPK'!D62)=1,"",'PROCESS CAPABILITY CPK PPK'!D62) -> 51.283677 | G52: 43 | H52: 53.430066 | I52: aw1 | J52: aw | K52: 1 | M52: 52.25582103 | N52: $DC$1 | O52: DC | P52: 1 | R52: 55.57653205 | S52: $HD$1 | T52: HD | U52: 1 | W52: 48.93511001 | Y52: 70 | Z52: 40 | AA52: 30 | DE52: 43 | DF52: 1.749535 | DG52: eu1 | DH52: eu | DI52: 1 | DK52: 1.250801152 | DL52: $ha$1 | DM52: ha | DN52: 1 | DP52: 4.086367362 | DQ52: $Hf$1 | DR52: Hf | DS52: 1
A53: 47.9111514 | B53: 0 | C53: 0.6112867214 | D53: =IF(COUNTBLANK('PROCESS CAPABILITY CPK PPK'!D63)=1,"",'PROCESS CAPABILITY CPK PPK'!D63) -> 51.75685 | G53: 44 | H53: 52.093703 | I53: ax1 | J53: ax | K53: 1 | M53: 52.25582103 | N53: $DC$1 | O53: DC | P53: 1 | R53: 55.57653205 | S53: $HD$1 | T53: HD | U53: 1 | W53: 48.93511001 | Y53: 70 | Z53: 40 | AA53: 30 | DE53: 44 | DF53: 1.336363 | DG53: ev1 | DH53: ev | DI53: 1 | DK53: 1.250801152 | DL53: $ha$1 | DM53: ha | DN53: 1 | DP53: 4.086367362 | DQ53: $Hf$1 | DR53: Hf | DS53: 1
A54: 48.6812735 | B54: 0 | C54: 1.838364583 | D54: =IF(COUNTBLANK('PROCESS CAPABILITY CPK PPK'!D64)=1,"",'PROCESS CAPABILITY CPK PPK'!D64) -> 51.793904 | G54: 45 | H54: 51.726946 | I54: ay1 | J54: ay | K54: 1 | M54: 52.25582103 | N54: $DC$1 | O54: DC | P54: 1 | R54: 55.57653205 | S54: $HD$1 | T54: HD | U54: 1 | W54: 48.93511001 | Y54: 70 | Z54: 40 | AA54: 30 | DE54: 45 | DF54: 0.366757 | DG54: ew1 | DH54: ew | DI54: 1 | DK54: 1.250801152 | DL54: $ha$1 | DM54: ha | DN54: 1 | DP54: 4.086367362 | DQ54: $Hf$1 | DR54: Hf | DS54: 1
A55: 49.4513956 | B55: =F7 -> 0 | C55: 4.462863937 | D55: =IF(COUNTBLANK('PROCESS CAPABILITY CPK PPK'!D65)=1,"",'PROCESS CAPABILITY CPK PPK'!D65) -> 56.585208 | G55: 46 | H55: 52.633387 | I55: az1 | J55: az | K55: 1 | M55: 52.25582103 | N55: $DC$1 | O55: DC | P55: 1 | R55: 55.57653205 | S55: $HD$1 | T55: HD | U55: 1 | W55: 48.93511001 | Y55: 70 | Z55: 40 | AA55: 30 | DE55: 46 | DF55: 0.906441 | DG55: ex1 | DH55: ex | DI55: 1 | DK55: 1.250801152 | DL55: $ha$1 | DM55: ha | DN55: 1 | DP55: 4.086367362 | DQ55: $Hf$1 | DR55: Hf | DS55: 1
A56: 50.2215177 | B56: 0 | C56: 8.745627333 | D56: =IF(COUNTBLANK('PROCESS CAPABILITY CPK PPK'!D66)=1,"",'PROCESS CAPABILITY CPK PPK'!D66) -> 52.324934 | G56: 47 | H56: 52.120309 | I56: ba1 | J56: ba | K56: 1 | M56: 52.25582103 | N56: $DC$1 | O56: DC | P56: 1 | R56: 55.57653205 | S56: $HD$1 | T56: HD | U56: 1 | W56: 48.93511001 | Y56: 70 | Z56: 40 | AA56: 30 | DE56: 47 | DF56: 0.513078 | DG56: ey1 | DH56: ey | DI56: 1 | DK56: 1.250801152 | DL56: $ha$1 | DM56: ha | DN56: 1 | DP56: 4.086367362 | DQ56: $Hf$1 | DR56: Hf | DS56: 1
A57: 50.9916398 | B57: 2 | C57: 13.83450445 | D57: =IF(COUNTBLANK('PROCESS CAPABILITY CPK PPK'!D67)=1,"",'PROCESS CAPABILITY CPK PPK'!D67) -> 52.35336 | G57: 48 | H57: 52.153933 | I57: bb1 | J57: bb | K57: 1 | M57: 52.25582103 | N57: $DC$1 | O57: DC | P57: 1 | R57: 55.57653205 | S57: $HD$1 | T57: HD | U57: 1 | W57: 48.93511001 | Y57: 70 | Z57: 40 | AA57: 30 | DE57: 48 | DF57: 0.033624 | DG57: ez1 | DH57: ez | DI57: 1 | DK57: 1.250801152 | DL57: $ha$1 | DM57: ha | DN57: 1 | DP57: 4.086367362 | DQ57: $Hf$1 | DR57: Hf | DS57: 1
A58: 51.7617619 | B58: 24 | C58: 17.66572912 | D58: =IF(COUNTBLANK('PROCESS CAPABILITY CPK PPK'!D68)=1,"",'PROCESS CAPABILITY CPK PPK'!D68) -> 52.317302 | G58: 49 | H58: 51.469504 | I58: bc1 | J58: bc | K58: 1 | M58: 52.25582103 | N58: $DC$1 | O58: DC | P58: 1 | R58: 55.57653205 | S58: $HD$1 | T58: HD | U58: 1 | W58: 48.93511001 | Y58: 70 | Z58: 40 | AA58: 30 | DE58: 49 | DF58: 0.684429 | DG58: fa1 | DH58: fa | DI58: 1 | DK58: 1.250801152 | DL58: $ha$1 | DM58: ha | DN58: 1 | DP58: 4.086367362 | DQ58: $Hf$1 | DR58: Hf | DS58: 1
A59: 52.531884 | B59: 44 | C59: 18.20936684 | D59: =IF(COUNTBLANK('PROCESS CAPABILITY CPK PPK'!D69)=1,"",'PROCESS CAPABILITY CPK PPK'!D69) -> 51.980942 | G59: 50 | H59: 52.17517 | I59: bd1 | J59: bd | K59: 1 | M59: 52.25582103 | N59: $DC$1 | O59: DC | P59: 1 | R59: 55.57653205 | S59: $HD$1 | T59: HD | U59: 1 | W59: 48.93511001 | Y59: 70 | Z59: 40 | AA59: 30 | DE59: 50 | DF59: 0.705666 | DG59: fb1 | DH59: fb | DI59: 1 | DK59: 1.250801152 | DL59: $ha$1 | DM59: ha | DN59: 1 | DP59: 4.086367362 | DQ59: $Hf$1 | DR59: Hf | DS59: 1
A60: 53.3020061 | B60: 22 | C60: 15.15142369 | D60: =IF(COUNTBLANK('PROCESS CAPABILITY CPK PPK'!D70)=1,"",'PROCESS CAPABILITY CPK PPK'!D70) -> 53.647259 | G60: 51 | H60: 52.872146 | I60: be1 | J60: be | K60: 1 | M60: 52.25582103 | N60: $DC$1 | O60: DC | P60: 1 | R60: 55.57653205 | S60: $HD$1 | T60: HD | U60: 1 | W60: 48.93511001 | Y60: 70 | Z60: 40 | AA60: 30 | DE60: 51 | DF60: 0.696976 | DG60: fc1 | DH60: fc | DI60: 1 | DK60: 1.250801152 | DL60: $ha$1 | DM60: ha | DN60: 1 | DP60: 4.086367362 | DQ60: $Hf$1 | DR60: Hf | DS60: 1
A61: 54.0721282 | B61: 2 | C61: 10.17670908 | D61: =IF(COUNTBLANK('PROCESS CAPABILITY CPK PPK'!D71)=1,"",'PROCESS CAPABILITY CPK PPK'!D71) -> 51.598459 | G61: 52 | H61: 51.283677 | I61: bf1 | J61: bf | K61: 1 | M61: 52.25582103 | N61: $DC$1 | O61: DC | P61: 1 | R61: 55.57653205 | S61: $HD$1 | T61: HD | U61: 1 | W61: 48.93511001 | Y61: 70 | Z61: 40 | AA61: 30 | DE61: 52 | DF61: 1.588469 | DG61: fd1 | DH61: fd | DI61: 1 | DK61: 1.250801152 | DL61: $ha$1 | DM61: ha | DN61: 1 | DP61: 4.086367362 | DQ61: $Hf$1 | DR61: Hf | DS61: 1
A62: 54.8422503 | B62: 0 | C62: 5.517681089 | D62: =IF(COUNTBLANK('PROCESS CAPABILITY CPK PPK'!D72)=1,"",'PROCESS CAPABILITY CPK PPK'!D72) -> 52.061686 | G62: 53 | H62: 51.75685 | I62: bg1 | J62: bg | K62: 1 | M62: 52.25582103 | N62: $DC$1 | O62: DC | P62: 1 | R62: 55.57653205 | S62: $HD$1 | T62: HD | U62: 1 | W62: 48.93511001 | Y62: 70 | Z62: 40 | AA62: 30 | DE62: 53 | DF62: 0.473173 | DG62: fe1 | DH62: fe | DI62: 1 | DK62: 1.250801152 | DL62: $ha$1 | DM62: ha | DN62: 1 | DP62: 4.086367362 | DQ62: $Hf$1 | DR62: Hf | DS62: 1
A63: 55.6123724 | B63: 0 | C63: 2.414911116 | D63: =IF(COUNTBLANK('PROCESS CAPABILITY CPK PPK'!D73)=1,"",'PROCESS CAPABILITY CPK PPK'!D73) -> 51.9597 | G63: 54 | H63: 51.793904 | I63: bh1 | J63: bh | K63: 1 | M63: 52.25582103 | N63: $DC$1 | O63: DC | P63: 1 | R63: 55.57653205 | S63: $HD$1 | T63: HD | U63: 1 | W63: 48.93511001 | Y63: 70 | Z63: 40 | AA63: 30 | DE63: 54 | DF63: 0.037054 | DG63: ff1 | DH63: ff | DI63: 1 | DK63: 1.250801152 | DL63: $ha$1 | DM63: ha | DN63: 1 | DP63: 4.086367362 | DQ63: $Hf$1 | DR63: Hf | DS63: 1
A64: 56.3824945 | B64: 1 | C64: 0.8531807046 | D64: =IF(COUNTBLANK('PROCESS CAPABILITY CPK PPK'!D74)=1,"",'PROCESS CAPABILITY CPK PPK'!D74) -> 51.301253 | G64: 55 | H64: 56.585208 | I64: bI1 | J64: bI | K64: 1 | M64: 52.25582103 | N64: $DC$1 | O64: DC | P64: 1 | R64: 55.57653205 | S64: $HD$1 | T64: HD | U64: 1 | W64: 48.93511001 | Y64: 70 | Z64: 40 | AA64: 30 | DE64: 55 | DF64: 4.791304 | DG64: fg1 | DH64: fg | DI64: 1 | DK64: 1.250801152 | DL64: $ha$1 | DM64: ha | DN64: 1 | DP64: 4.086367362 | DQ64: $Hf$1 | DR64: Hf | DS64: 1
A65: 57.1526166 | B65: 1 | C65: 0.2433191095 | D65: =IF(COUNTBLANK('PROCESS CAPABILITY CPK PPK'!D75)=1,"",'PROCESS CAPABILITY CPK PPK'!D75) -> 52.369494 | G65: 56 | H65: 52.324934 | I65: bj1 | J65: bj | K65: 1 | M65: 52.25582103 | N65: $DC$1 | O65: DC | P65: 1 | R65: 55.57653205 | S65: $HD$1 | T65: HD | U65: 1 | W65: 48.93511001 | Y65: 70 | Z65: 40 | AA65: 30 | DE65: 56 | DF65: 4.260274 | DG65: fh1 | DH65: fh | DI65: 1 | DK65: 1.250801152 | DL65: $ha$1 | DM65: ha | DN65: 1 | DP65: 4.086367362 | DQ65: $Hf$1 | DR65: Hf | DS65: 1
A66: 57.9227387 | B66: 0 | C66: 0.05601530835 | D66: =IF(COUNTBLANK('PROCESS CAPABILITY CPK PPK'!D76)=1,"",'PROCESS CAPABILITY CPK PPK'!D76) -> 51.658851 | G66: 57 | H66: 52.35336 | I66: bk1 | J66: bk | K66: 1 | M66: 52.25582103 | N66: $DC$1 | O66: DC | P66: 1 | R66: 55.57653205 | S66: $HD$1 | T66: HD | U66: 1 | W66: 48.93511001 | Y66: 70 | Z66: 40 | AA66: 30 | DE66: 57 | DF66: 0.028426 | DG66: fI1 | DH66: fI | DI66: 1 | DK66: 1.250801152 | DL66: $ha$1 | DM66: ha | DN66: 1 | DP66: 4.086367362 | DQ66: $Hf$1 | DR66: Hf | DS66: 1
A67: 58.6928608 | B67: 0 | C67: 0.01040956455 | D67: =IF(COUNTBLANK('PROCESS CAPABILITY CPK PPK'!D77)=1,"",'PROCESS CAPABILITY CPK PPK'!D77) -> 52.950991 | G67: 58 | H67: 52.317302 | I67: bl1 | J67: bl | K67: 1 | M67: 52.25582103 | N67: $DC$1 | O67: DC | P67: 1 | R67: 55.57653205 | S67: $HD$1 | T67: HD | U67: 1 | W67: 48.93511001 | Y67: 70 | Z67: 40 | AA67: 30 | DE67: 58 | DF67: 0.036058 | DG67: fj1 | DH67: fj | DI67: 1 | DK67: 1.250801152 | DL67: $ha$1 | DM67: ha | DN67: 1 | DP67: 4.086367362 | DQ67: $Hf$1 | DR67: Hf | DS67: 1
A68: 59.4629829 | B68: 0 | C68: 0.001561542158 | D68: =IF(COUNTBLANK('PROCESS CAPABILITY CPK PPK'!D78)=1,"",'PROCESS CAPABILITY CPK PPK'!D78) -> 44.830663 | G68: 59 | H68: 51.980942 | I68: bm1 | J68: bm | K68: 1 | M68: 52.25582103 | N68: $DC$1 | O68: DC | P68: 1 | R68: 55.57653205 | S68: $HD$1 | T68: HD | U68: 1 | W68: 48.93511001 | Y68: 70 | Z68: 40 | AA68: 30 | DE68: 59 | DF68: 0.33636 | DG68: fk1 | DH68: fk | DI68: 1 | DK68: 1.250801152 | DL68: $ha$1 | DM68: ha | DN68: 1 | DP68: 4.086367362 | DQ68: $Hf$1 | DR68: Hf | DS68: 1
A69: 60.233105 | B69: 1 | C69: 0.0001890907062 | D69: =IF(COUNTBLANK('PROCESS CAPABILITY CPK PPK'!D79)=1,"",'PROCESS CAPABILITY CPK PPK'!D79) -> 51.368305 | G69: 60 | H69: 53.647259 | I69: bn1 | J69: bn | K69: 1 | M69: 52.25582103 | N69: $DC$1 | O69: DC | P69: 1 | R69: 55.57653205 | S69: $HD$1 | T69: HD | U69: 1 | W69: 48.93511001 | Y69: 70 | Z69: 40 | AA69: 30 | DE69: 60 | DF69: 1.666317 | DG69: fl1 | DH69: fl | DI69: 1 | DK69: 1.250801152 | DL69: $ha$1 | DM69: ha | DN69: 1 | DP69: 4.086367362 | DQ69: $Hf$1 | DR69: Hf | DS69: 1
D70: =IF(COUNTBLANK('PROCESS CAPABILITY CPK PPK'!D80)=1,"",'PROCESS CAPABILITY CPK PPK'!D80) -> 52.13585 | G70: 61 | H70: 51.598459 | I70: bo1 | J70: bo | K70: 1 | M70: 52.25582103 | N70: $DC$1 | O70: DC | P70: 1 | R70: 55.57653205 | S70: $HD$1 | T70: HD | U70: 1 | W70: 48.93511001 | Y70: 70 | Z70: 40 | AA70: 30 | DE70: 61 | DF70: 2.0488 | DG70: fm1 | DH70: fm | DI70: 1 | DK70: 1.250801152 | DL70: $ha$1 | DM70: ha | DN70: 1 | DP70: 4.086367362 | DQ70: $Hf$1 | DR70: Hf | DS70: 1
D71: =IF(COUNTBLANK('PROCESS CAPABILITY CPK PPK'!D81)=1,"",'PROCESS CAPABILITY CPK PPK'!D81) -> 52.200905 | G71: 62 | H71: 52.061686 | I71: bp1 | J71: bp | K71: 1 | M71: 52.25582103 | N71: $DC$1 | O71: DC | P71: 1 | R71: 55.57653205 | S71: $HD$1 | T71: HD | U71: 1 | W71: 48.93511001 | Y71: 70 | Z71: 40 | AA71: 30 | DE71: 62 | DF71: 0.463227 | DG71: fn1 | DH71: fn | DI71: 1 | DK71: 1.250801152 | DL71: $ha$1 | DM71: ha | DN71: 1 | DP71: 4.086367362 | DQ71: $Hf$1 | DR71: Hf | DS71: 1
D72: =IF(COUNTBLANK('PROCESS CAPABILITY CPK PPK'!D82)=1,"",'PROCESS CAPABILITY CPK PPK'!D82) -> 52.076355 | G72: 63 | H72: 51.9597 | I72: bq1 | J72: bq | K72: 1 | M72: 52.25582103 | N72: $DC$1 | O72: DC | P72: 1 | R72: 55.57653205 | S72: $HD$1 | T72: HD | U72: 1 | W72: 48.93511001 | Y72: 70 | Z72: 40 | AA72: 30 | DE72: 63 | DF72: 0.101986 | DG72: fo1 | DH72: fo | DI72: 1 | DK72: 1.250801152 | DL72: $ha$1 | DM72: ha | DN72: 1 | DP72: 4.086367362 | DQ72: $Hf$1 | DR72: Hf | DS72: 1
D73: =IF(COUNTBLANK('PROCESS CAPABILITY CPK PPK'!D83)=1,"",'PROCESS CAPABILITY CPK PPK'!D83) -> 52.085799 | G73: 64 | H73: 51.301253 | I73: br1 | J73: br | K73: 1 | M73: 52.25582103 | N73: $DC$1 | O73: DC | P73: 1 | R73: 55.57653205 | S73: $HD$1 | T73: HD | U73: 1 | W73: 48.93511001 | Y73: 70 | Z73: 40 | AA73: 30 | DE73: 64 | DF73: 0.658447 | DG73: fp1 | DH73: fp | DI73: 1 | DK73: 1.250801152 | DL73: $ha$1 | DM73: ha | DN73: 1 | DP73: 4.086367362 | DQ73: $Hf$1 | DR73: Hf | DS73: 1
D74: =IF(COUNTBLANK('PROCESS CAPABILITY CPK PPK'!D84)=1,"",'PROCESS CAPABILITY CPK PPK'!D84) -> 52.686956 | G74: 65 | H74: 52.369494 | I74: bs1 | J74: bs | K74: 1 | M74: 52.25582103 | N74: $DC$1 | O74: DC | P74: 1 | R74: 55.57653205 | S74: $HD$1 | T74: HD | U74: 1 | W74: 48.93511001 | Y74: 70 | Z74: 40 | AA74: 30 | DE74: 65 | DF74: 1.068241 | DG74: fq1 | DH74: fq | DI74: 1 | DK74: 1.250801152 | DL74: $ha$1 | DM74: ha | DN74: 1 | DP74: 4.086367362 | DQ74: $Hf$1 | DR74: Hf | DS74: 1
D75: =IF(COUNTBLANK('PROCESS CAPABILITY CPK PPK'!D85)=1,"",'PROCESS CAPABILITY CPK PPK'!D85) -> 51.407563 | G75: 66 | H75: =INDIRECT(I75) -> 51.658851 | I75: =CONCATENATE(J75,K75) -> bt1 | J75: bt | K75: =$B$1 -> 1 | M75: 52.25582103 | N75: $DC$1 | O75: DC | P75: 1 | R75: 55.57653205 | S75: $HD$1 | T75: HD | U75: 1 | W75: =M75-(R75-M75) -> 48.93511001 | Y75: =IF($B$1=1,$B$7,$B$9) -> 70 | Z75: =IF($B$1=1,$B$8,$B$9) -> 40 | AA75: =IF($B$1=1,Y75-Z75,$B$10) -> 30 | DE75: 66 | DF75: =INDIRECT(DG75) -> 0.710643 | DG75: =CONCATENATE(DH75,DI75) -> fr1 | DH75: fr | DI75: =$B$1 -> 1 | DK75: 1.250801152 | DL75: $ha$1 | DM75: ha | DN75: 1 | DP75: 4.086367362 | DQ75: $Hf$1 | DR75: Hf | DS75: 1
D76: =IF(COUNTBLANK('PROCESS CAPABILITY CPK PPK'!D86)=1,"",'PROCESS CAPABILITY CPK PPK'!D86) -> 52.481999 | G76: 67 | H76: 52.950991 | I76: bu1 | J76: bu | K76: 1 | M76: =INDIRECT(N76) -> 52.25582103 | N76: =CONCATENATE("$",O76,"$",P76) -> $DC$1 | O76: DC | P76: =$B$1 -> 1 | R76: =(INDIRECT(S76)*DK76)+M76 -> 55.57653205 | S76: =CONCATENATE("$",T76,"$",U76) -> $HD$1 | T76: HD | U76: =$B$1 -> 1 | W76: 48.93511001 | Y76: 70 | Z76: 40 | AA76: 30 | DE76: 67 | DF76: 1.29214 | DG76: fs1 | DH76: fs | DI76: 1 | DK76: =INDIRECT(DL76) -> 1.250801152 | DL76: =CONCATENATE("$",DM76,"$",DN76) -> $ha$1 | DM76: ha | DN76: =$B$1 -> 1 | DP76: =INDIRECT(DQ76)*DK76 -> 4.086367362 | DQ76: =CONCATENATE("$",DR76,"$",DS76) -> $Hf$1 | DR76: Hf | DS76: =$B$1 -> 1
D77: =IF(COUNTBLANK('PROCESS CAPABILITY CPK PPK'!D87)=1,"",'PROCESS CAPABILITY CPK PPK'!D87) -> 51.901083 | G77: 68 | H77: 44.830663 | I77: bv1 | J77: bv | K77: 1 | M77: 52.25582103 | N77: $DC$1 | O77: DC | P77: 1 | R77: 55.57653205 | S77: $HD$1 | T77: HD | U77: 1 | W77: 48.93511001 | Y77: 70 | Z77: 40 | AA77: 30 | DE77: 68 | DF77: 8.120328 | DG77: ft1 | DH77: ft | DI77: 1 | DK77: 1.250801152 | DL77: $ha$1 | DM77: ha | DN77: 1 | DP77: 4.086367362 | DQ77: $Hf$1 | DR77: Hf | DS77: 1
D78: =IF(COUNTBLANK('PROCESS CAPABILITY CPK PPK'!D88)=1,"",'PROCESS CAPABILITY CPK PPK'!D88) -> 53.021162 | G78: 69 | H78: 51.368305 | I78: bw1 | J78: bw | K78: 1 | M78: 52.25582103 | N78: $DC$1 | O78: DC | P78: 1 | R78: 55.57653205 | S78: $HD$1 | T78: HD | U78: 1 | W78: 48.93511001 | Y78: 70 | Z78: 40 | AA78: 30 | DE78: 69 | DF78: 6.537642 | DG78: fu1 | DH78: fu | DI78: 1 | DK78: 1.250801152 | DL78: $ha$1 | DM78: ha | DN78: 1 | DP78: 4.086367362 | DQ78: $Hf$1 | DR78: Hf | DS78: 1
D79: =IF(COUNTBLANK('PROCESS CAPABILITY CPK PPK'!D89)=1,"",'PROCESS CAPABILITY CPK PPK'!D89) -> 51.783839 | G79: 70 | H79: 52.13585 | I79: bx1 | J79: bx | K79: 1 | M79: 52.25582103 | N79: $DC$1 | O79: DC | P79: 1 | R79: 55.57653205 | S79: $HD$1 | T79: HD | U79: 1 | W79: 48.93511001 | Y79: 70 | Z79: 40 | AA79: 30 | DE79: 70 | DF79: 0.767545 | DG79: fv1 | DH79: fv | DI79: 1 | DK79: 1.250801152 | DL79: $ha$1 | DM79: ha | DN79: 1 | DP79: 4.086367362 | DQ79: $Hf$1 | DR79: Hf | DS79: 1
D80: =IF(COUNTBLANK('PROCESS CAPABILITY CPK PPK'!D90)=1,"",'PROCESS CAPABILITY CPK PPK'!D90) -> 52.68408 | G80: 71 | H80: 52.200905 | I80: by1 | J80: by | K80: 1 | M80: 52.25582103 | N80: $DC$1 | O80: DC | P80: 1 | R80: 55.57653205 | S80: $HD$1 | T80: HD | U80: 1 | W80: 48.93511001 | Y80: 70 | Z80: 40 | AA80: 30 | DE80: 71 | DF80: 0.065055 | DG80: fw1 | DH80: fw | DI80: 1 | DK80: 1.250801152 | DL80: $ha$1 | DM80: ha | DN80: 1 | DP80: 4.086367362 | DQ80: $Hf$1 | DR80: Hf | DS80: 1
D81: =IF(COUNTBLANK('PROCESS CAPABILITY CPK PPK'!D91)=1,"",'PROCESS CAPABILITY CPK PPK'!D91) -> 51.731617 | G81: 72 | H81: 52.076355 | I81: bz1 | J81: bz | K81: 1 | M81: 52.25582103 | N81: $DC$1 | O81: DC | P81: 1 | R81: 55.57653205 | S81: $HD$1 | T81: HD | U81: 1 | W81: 48.93511001 | Y81: 70 | Z81: 40 | AA81: 30 | DE81: 72 | DF81: 0.12455 | DG81: fx1 | DH81: fx | DI81: 1 | DK81: 1.250801152 | DL81: $ha$1 | DM81: ha | DN81: 1 | DP81: 4.086367362 | DQ81: $Hf$1 | DR81: Hf | DS81: 1
D82: =IF(COUNTBLANK('PROCESS CAPABILITY CPK PPK'!D92)=1,"",'PROCESS CAPABILITY CPK PPK'!D92) -> 51.783839 | G82: 73 | H82: 52.085799 | I82: ca1 | J82: ca | K82: 1 | M82: 52.25582103 | N82: $DC$1 | O82: DC | P82: 1 | R82: 55.57653205 | S82: $HD$1 | T82: HD | U82: 1 | W82: 48.93511001 | Y82: 70 | Z82: 40 | AA82: 30 | DE82: 73 | DF82: 0.009444 | DG82: fy1 | DH82: fy | DI82: 1 | DK82: 1.250801152 | DL82: $ha$1 | DM82: ha | DN82: 1 | DP82: 4.086367362 | DQ82: $Hf$1 | DR82: Hf | DS82: 1
D83: =IF(COUNTBLANK('PROCESS CAPABILITY CPK PPK'!D93)=1,"",'PROCESS CAPABILITY CPK PPK'!D93) -> 51.708514 | G83: 74 | H83: 52.686956 | I83: cb1 | J83: cb | K83: 1 | M83: 52.25582103 | N83: $DC$1 | O83: DC | P83: 1 | R83: 55.57653205 | S83: $HD$1 | T83: HD | U83: 1 | W83: 48.93511001 | Y83: 70 | Z83: 40 | AA83: 30 | DE83: 74 | DF83: 0.601157 | DG83: fz1 | DH83: fz | DI83: 1 | DK83: 1.250801152 | DL83: $ha$1 | DM83: ha | DN83: 1 | DP83: 4.086367362 | DQ83: $Hf$1 | DR83: Hf | DS83: 1
D84: =IF(COUNTBLANK('PROCESS CAPABILITY CPK PPK'!D94)=1,"",'PROCESS CAPABILITY CPK PPK'!D94) -> 52.325597 | G84: 75 | H84: 51.407563 | I84: cc1 | J84: cc | K84: 1 | M84: 52.25582103 | N84: $DC$1 | O84: DC | P84: 1 | R84: 55.57653205 | S84: $HD$1 | T84: HD | U84: 1 | W84: 48.93511001 | Y84: 70 | Z84: 40 | AA84: 30 | DE84: 75 | DF84: 1.279393 | DG84: ga1 | DH84: ga | DI84: 1 | DK84: 1.250801152 | DL84: $ha$1 | DM84: ha | DN84: 1 | DP84: 4.086367362 | DQ84: $Hf$1 | DR84: Hf | DS84: 1
D85: =IF(COUNTBLANK('PROCESS CAPABILITY CPK PPK'!D95)=1,"",'PROCESS CAPABILITY CPK PPK'!D95) -> 51.974045 | G85: 76 | H85: 52.481999 | I85: cd1 | J85: cd | K85: 1 | M85: 52.25582103 | N85: $DC$1 | O85: DC | P85: 1 | R85: 55.57653205 | S85: $HD$1 | T85: HD | U85: 1 | W85: 48.93511001 | Y85: 70 | Z85: 40 | AA85: 30 | DE85: 76 | DF85: 1.074436 | DG85: gb1 | DH85: gb | DI85: 1 | DK85: 1.250801152 | DL85: $ha$1 | DM85: ha | DN85: 1 | DP85: 4.086367362 | DQ85: $Hf$1 | DR85: Hf | DS85: 1
D86: =IF(COUNTBLANK('PROCESS CAPABILITY CPK PPK'!D96)=1,"",'PROCESS CAPABILITY CPK PPK'!D96) -> 51.75685 | G86: 77 | H86: 51.901083 | I86: ce1 | J86: ce | K86: 1 | M86: 52.25582103 | N86: $DC$1 | O86: DC | P86: 1 | R86: 55.57653205 | S86: $HD$1 | T86: HD | U86: 1 | W86: 48.93511001 | Y86: 70 | Z86: 40 | AA86: 30 | DE86: 77 | DF86: 0.580916 | DG86: gc1 | DH86: gc | DI86: 1 | DK86: 1.250801152 | DL86: $ha$1 | DM86: ha | DN86: 1 | DP86: 4.086367362 | DQ86: $Hf$1 | DR86: Hf | DS86: 1
D87: =IF(COUNTBLANK('PROCESS CAPABILITY CPK PPK'!D97)=1,"",'PROCESS CAPABILITY CPK PPK'!D97) -> 52.002732 | G87: 78 | H87: 53.021162 | I87: cf1 | J87: cf | K87: 1 | M87: 52.25582103 | N87: $DC$1 | O87: DC | P87: 1 | R87: 55.57653205 | S87: $HD$1 | T87: HD | U87: 1 | W87: 48.93511001 | Y87: 70 | Z87: 40 | AA87: 30 | DE87: 78 | DF87: 1.120079 | DG87: gd1 | DH87: gd | DI87: 1 | DK87: 1.250801152 | DL87: $ha$1 | DM87: ha | DN87: 1 | DP87: 4.086367362 | DQ87: $Hf$1 | DR87: Hf | DS87: 1
D88: =IF(COUNTBLANK('PROCESS CAPABILITY CPK PPK'!D98)=1,"",'PROCESS CAPABILITY CPK PPK'!D98) -> 52.525247 | G88: 79 | H88: 51.783839 | I88: cg1 | J88: cg | K88: 1 | M88: 52.25582103 | N88: $DC$1 | O88: DC | P88: 1 | R88: 55.57653205 | S88: $HD$1 | T88: HD | U88: 1 | W88: 48.93511001 | Y88: 70 | Z88: 40 | AA88: 30 | DE88: 79 | DF88: 1.237323 | DG88: ge1 | DH88: ge | DI88: 1 | DK88: 1.250801152 | DL88: $ha$1 | DM88: ha | DN88: 1 | DP88: 4.086367362 | DQ88: $Hf$1 | DR88: Hf | DS88: 1
D89: =IF(COUNTBLANK('PROCESS CAPABILITY CPK PPK'!D99)=1,"",'PROCESS CAPABILITY CPK PPK'!D99) -> 51.62047 | G89: 80 | H89: 52.68408 | I89: ch1 | J89: ch | K89: 1 | M89: 52.25582103 | N89: $DC$1 | O89: DC | P89: 1 | R89: 55.57653205 | S89: $HD$1 | T89: HD | U89: 1 | W89: 48.93511001 | Y89: 70 | Z89: 40 | AA89: 30 | DE89: 80 | DF89: 0.900241 | DG89: gf1 | DH89: gf | DI89: 1 | DK89: 1.250801152 | DL89: $ha$1 | DM89: ha | DN89: 1 | DP89: 4.086367362 | DQ89: $Hf$1 | DR89: Hf | DS89: 1
D90: =IF(COUNTBLANK('PROCESS CAPABILITY CPK PPK'!D100)=1,"",'PROCESS CAPABILITY CPK PPK'!D100) -> 52.46209 | G90: 81 | H90: 51.731617 | I90: cI1 | J90: cI | K90: 1 | M90: 52.25582103 | N90: $DC$1 | O90: DC | P90: 1 | R90: 55.57653205 | S90: $HD$1 | T90: HD | U90: 1 | W90: 48.93511001 | Y90: 70 | Z90: 40 | AA90: 30 | DE90: 81 | DF90: 0.952463 | DG90: gg1 | DH90: gg | DI90: 1 | DK90: 1.250801152 | DL90: $ha$1 | DM90: ha | DN90: 1 | DP90: 4.086367362 | DQ90: $Hf$1 | DR90: Hf | DS90: 1
D91: =IF(COUNTBLANK('PROCESS CAPABILITY CPK PPK'!D101)=1,"",'PROCESS CAPABILITY CPK PPK'!D101) -> 52.019545 | G91: 82 | H91: 51.783839 | I91: cj1 | J91: cj | K91: 1 | M91: 52.25582103 | N91: $DC$1 | O91: DC | P91: 1 | R91: 55.57653205 | S91: $HD$1 | T91: HD | U91: 1 | W91: 48.93511001 | Y91: 70 | Z91: 40 | AA91: 30 | DE91: 82 | DF91: 0.052222 | DG91: gh1 | DH91: gh | DI91: 1 | DK91: 1.250801152 | DL91: $ha$1 | DM91: ha | DN91: 1 | DP91: 4.086367362 | DQ91: $Hf$1 | DR91: Hf | DS91: 1
D92: =IF(COUNTBLANK('PROCESS CAPABILITY CPK PPK'!D102)=1,"",'PROCESS CAPABILITY CPK PPK'!D102) -> 51.93681 | G92: 83 | H92: 51.708514 | I92: ck1 | J92: ck | K92: 1 | M92: 52.25582103 | N92: $DC$1 | O92: DC | P92: 1 | R92: 55.57653205 | S92: $HD$1 | T92: HD | U92: 1 | W92: 48.93511001 | Y92: 70 | Z92: 40 | AA92: 30 | DE92: 83 | DF92: 0.075325 | DG92: gI1 | DH92: gI | DI92: 1 | DK92: 1.250801152 | DL92: $ha$1 | DM92: ha | DN92: 1 | DP92: 4.086367362 | DQ92: $Hf$1 | DR92: Hf | DS92: 1
D93: =IF(COUNTBLANK('PROCESS CAPABILITY CPK PPK'!D103)=1,"",'PROCESS CAPABILITY CPK PPK'!D103) -> 52.543866 | G93: 84 | H93: 52.325597 | I93: cl1 | J93: cl | K93: 1 | M93: 52.25582103 | N93: $DC$1 | O93: DC | P93: 1 | R93: 55.57653205 | S93: $HD$1 | T93: HD | U93: 1 | W93: 48.93511001 | Y93: 70 | Z93: 40 | AA93: 30 | DE93: 84 | DF93: 0.617083 | DG93: gj1 | DH93: gj | DI93: 1 | DK93: 1.250801152 | DL93: $ha$1 | DM93: ha | DN93: 1 | DP93: 4.086367362 | DQ93: $Hf$1 | DR93: Hf | DS93: 1
D94: =IF(COUNTBLANK('PROCESS CAPABILITY CPK PPK'!D104)=1,"",'PROCESS CAPABILITY CPK PPK'!D104) -> 52.403189 | G94: 85 | H94: 51.974045 | I94: cm1 | J94: cm | K94: 1 | M94: 52.25582103 | N94: $DC$1 | O94: DC | P94: 1 | R94: 55.57653205 | S94: $HD$1 | T94: HD | U94: 1 | W94: 48.93511001 | Y94: 70 | Z94: 40 | AA94: 30 | DE94: 85 | DF94: 0.351552 | DG94: gk1 | DH94: gk | DI94: 1 | DK94: 1.250801152 | DL94: $ha$1 | DM94: ha | DN94: 1 | DP94: 4.086367362 | DQ94: $Hf$1 | DR94: Hf | DS94: 1
D95: =IF(COUNTBLANK('PROCESS CAPABILITY CPK PPK'!D105)=1,"",'PROCESS CAPABILITY CPK PPK'!D105) -> 52.909734 | G95: 86 | H95: 51.75685 | I95: cn1 | J95: cn | K95: 1 | M95: 52.25582103 | N95: $DC$1 | O95: DC | P95: 1 | R95: 55.57653205 | S95: $HD$1 | T95: HD | U95: 1 | W95: 48.93511001 | Y95: 70 | Z95: 40 | AA95: 30 | DE95: 86 | DF95: 0.217195 | DG95: gl1 | DH95: gl | DI95: 1 | DK95: 1.250801152 | DL95: $ha$1 | DM95: ha | DN95: 1 | DP95: 4.086367362 | DQ95: $Hf$1 | DR95: Hf | DS95: 1
D96: =IF(COUNTBLANK('PROCESS CAPABILITY CPK PPK'!D106)=1,"",'PROCESS CAPABILITY CPK PPK'!D106) -> 56.320538 | G96: 87 | H96: 52.002732 | I96: co1 | J96: co | K96: 1 | M96: 52.25582103 | N96: $DC$1 | O96: DC | P96: 1 | R96: 55.57653205 | S96: $HD$1 | T96: HD | U96: 1 | W96: 48.93511001 | Y96: 70 | Z96: 40 | AA96: 30 | DE96: 87 | DF96: 0.245882 | DG96: gm1 | DH96: gm | DI96: 1 | DK96: 1.250801152 | DL96: $ha$1 | DM96: ha | DN96: 1 | DP96: 4.086367362 | DQ96: $Hf$1 | DR96: Hf | DS96: 1
D97: =IF(COUNTBLANK('PROCESS CAPABILITY CPK PPK'!D107)=1,"",'PROCESS CAPABILITY CPK PPK'!D107) -> 52.678092 | G97: 88 | H97: 52.525247 | I97: cp1 | J97: cp | K97: 1 | M97: 52.25582103 | N97: $DC$1 | O97: DC | P97: 1 | R97: 55.57653205 | S97: $HD$1 | T97: HD | U97: 1 | W97: 48.93511001 | Y97: 70 | Z97: 40 | AA97: 30 | DE97: 88 | DF97: 0.522515 | DG97: gn1 | DH97: gn | DI97: 1 | DK97: 1.250801152 | DL97: $ha$1 | DM97: ha | DN97: 1 | DP97: 4.086367362 | DQ97: $Hf$1 | DR97: Hf | DS97: 1
D98: =IF(COUNTBLANK('PROCESS CAPABILITY CPK PPK'!D108)=1,"",'PROCESS CAPABILITY CPK PPK'!D108) -> 59.865333 | G98: 89 | H98: 51.62047 | I98: cq1 | J98: cq | K98: 1 | M98: 52.25582103 | N98: $DC$1 | O98: DC | P98: 1 | R98: 55.57653205 | S98: $HD$1 | T98: HD | U98: 1 | W98: 48.93511001 | Y98: 70 | Z98: 40 | AA98: 30 | DE98: 89 | DF98: 0.904777 | DG98: go1 | DH98: go | DI98: 1 | DK98: 1.250801152 | DL98: $ha$1 | DM98: ha | DN98: 1 | DP98: 4.086367362 | DQ98: $Hf$1 | DR98: Hf | DS98: 1
D99: =IF(COUNTBLANK('PROCESS CAPABILITY CPK PPK'!D109)=1,"",'PROCESS CAPABILITY CPK PPK'!D109) -> 53.295062 | G99: 90 | H99: 52.46209 | I99: cr1 | J99: cr | K99: 1 | M99: 52.25582103 | N99: $DC$1 | O99: DC | P99: 1 | R99: 55.57653205 | S99: $HD$1 | T99: HD | U99: 1 | W99: 48.93511001 | Y99: 70 | Z99: 40 | AA99: 30 | DE99: 90 | DF99: 0.84162 | DG99: gp1 | DH99: gp | DI99: 1 | DK99: 1.250801152 | DL99: $ha$1 | DM99: ha | DN99: 1 | DP99: 4.086367362 | DQ99: $Hf$1 | DR99: Hf | DS99: 1
D100: =IF(COUNTBLANK('PROCESS CAPABILITY CPK PPK'!D110)=1,"",'PROCESS CAPABILITY CPK PPK'!D110) -> 52.150307 | G100: 91 | H100: 52.019545 | I100: cs1 | J100: cs | K100: 1 | M100: 52.25582103 | N100: $DC$1 | O100: DC | P100: 1 | R100: 55.57653205 | S100: $HD$1 | T100: HD | U100: 1 | W100: 48.93511001 | Y100: 70 | Z100: 40 | AA100: 30 | DE100: 91 | DF100: 0.442545 | DG100: gq1 | DH100: gq | DI100: 1 | DK100: 1.250801152 | DL100: $ha$1 | DM100: ha | DN100: 1 | DP100: 4.086367362 | DQ100: $Hf$1 | DR100: Hf | DS100: 1
G101: 92 | H101: 51.93681 | I101: ct1 | J101: ct | K101: 1 | M101: 52.25582103 | N101: $DC$1 | O101: DC | P101: 1 | R101: 55.57653205 | S101: $HD$1 | T101: HD | U101: 1 | W101: 48.93511001 | Y101: 70 | Z101: 40 | AA101: 30 | DE101: 92 | DF101: 0.082735 | DG101: gr1 | DH101: gr | DI101: 1 | DK101: 1.250801152 | DL101: $ha$1 | DM101: ha | DN101: 1 | DP101: 4.086367362 | DQ101: $Hf$1 | DR101: Hf | DS101: 1
G102: 93 | H102: 52.543866 | I102: cu1 | J102: cu | K102: 1 | M102: 52.25582103 | N102: $DC$1 | O102: DC | P102: 1 | R102: 55.57653205 | S102: $HD$1 | T102: HD | U102: 1 | W102: 48.93511001 | Y102: 70 | Z102: 40 | AA102: 30 | DE102: 93 | DF102: 0.607056 | DG102: gs1 | DH102: gs | DI102: 1 | DK102: 1.250801152 | DL102: $ha$1 | DM102: ha | DN102: 1 | DP102: 4.086367362 | DQ102: $Hf$1 | DR102: Hf | DS102: 1
G103: 94 | H103: 52.403189 | I103: cv1 | J103: cv | K103: 1 | M103: 52.25582103 | N103: $DC$1 | O103: DC | P103: 1 | R103: 55.57653205 | S103: $HD$1 | T103: HD | U103: 1 | W103: 48.93511001 | Y103: 70 | Z103: 40 | AA103: 30 | DE103: 94 | DF103: 0.140677 | DG103: gt1 | DH103: gt | DI103: 1 | DK103: 1.250801152 | DL103: $ha$1 | DM103: ha | DN103: 1 | DP103: 4.086367362 | DQ103: $Hf$1 | DR103: Hf | DS103: 1
G104: 95 | H104: 52.909734 | I104: cw1 | J104: cw | K104: 1 | M104: 52.25582103 | N104: $DC$1 | O104: DC | P104: 1 | R104: 55.57653205 | S104: $HD$1 | T104: HD | U104: 1 | W104: 48.93511001 | Y104: 70 | Z104: 40 | AA104: 30 | DE104: 95 | DF104: 0.506545 | DG104: gu1 | DH104: gu | DI104: 1 | DK104: 1.250801152 | DL104: $ha$1 | DM104: ha | DN104: 1 | DP104: 4.086367362 | DQ104: $Hf$1 | DR104: Hf | DS104: 1
G105: 96 | H105: 56.320538 | I105: cx1 | J105: cx | K105: 1 | M105: 52.25582103 | N105: $DC$1 | O105: DC | P105: 1 | R105: 55.57653205 | S105: $HD$1 | T105: HD | U105: 1 | W105: 48.93511001 | Y105: 70 | Z105: 40 | AA105: 30 | DE105: 96 | DF105: 3.410804 | DG105: gv1 | DH105: gv | DI105: 1 | DK105: 1.250801152 | DL105: $ha$1 | DM105: ha | DN105: 1 | DP105: 4.086367362 | DQ105: $Hf$1 | DR105: Hf | DS105: 1
G106: 97 | H106: 52.678092 | I106: cy1 | J106: cy | K106: 1 | M106: 52.25582103 | N106: $DC$1 | O106: DC | P106: 1 | R106: 55.57653205 | S106: $HD$1 | T106: HD | U106: 1 | W106: 48.93511001 | Y106: 70 | Z106: 40 | AA106: 30 | DE106: 97 | DF106: 3.642446 | DG106: gw1 | DH106: gw | DI106: 1 | DK106: 1.250801152 | DL106: $ha$1 | DM106: ha | DN106: 1 | DP106: 4.086367362 | DQ106: $Hf$1 | DR106: Hf | DS106: 1
G107: 98 | H107: 59.865333 | I107: cz1 | J107: cz | K107: 1 | M107: 52.25582103 | N107: $DC$1 | O107: DC | P107: 1 | R107: 55.57653205 | S107: $HD$1 | T107: HD | U107: 1 | W107: 48.93511001 | Y107: =IF($B$1=1,$B$7,$B$9) -> 70 | Z107: =IF($B$1=1,$B$8,$B$9) -> 40 | AA107: =IF($B$1=1,Y107-Z107,$B$10) -> 30 | DE107: 98 | DF107: 7.187241 | DG107: gx1 | DH107: gx | DI107: 1 | DK107: 1.250801152 | DL107: $ha$1 | DM107: ha | DN107: 1 | DP107: 4.086367362 | DQ107: $Hf$1 | DR107: Hf | DS107: 1
G108: 99 | H108: 53.295062 | I108: da1 | J108: da | K108: 1 | M108: 52.25582103 | N108: $DC$1 | O108: DC | P108: 1 | R108: 55.57653205 | S108: $HD$1 | T108: HD | U108: 1 | W108: 48.93511001 | Y108: =IF($B$1=1,$B$7,$B$9) -> 70 | Z108: =IF($B$1=1,$B$8,$B$9) -> 40 | AA108: =IF($B$1=1,Y108-Z108,$B$10) -> 30 | DE108: 99 | DF108: 6.570271 | DG108: gy1 | DH108: gy | DI108: 1 | DK108: 1.250801152 | DL108: $ha$1 | DM108: ha | DN108: 1 | DP108: 4.086367362 | DQ108: $Hf$1 | DR108: Hf | DS108: 1
G109: 100 | H109: 52.150307 | I109: db1 | J109: db | K109: 1 | M109: 52.25582103 | N109: $DC$1 | O109: DC | P109: 1 | R109: 55.57653205 | S109: $HD$1 | T109: HD | U109: 1 | W109: 48.93511001 | Y109: =IF($B$1=1,$B$7,$B$9) -> 70 | Z109: =IF($B$1=1,$B$8,$B$9) -> 40 | AA109: =IF($B$1=1,Y109-Z109,$B$10) -> 30 | DE109: 100 | DF109: 1.144755 | DG109: gz1 | DH109: gz | DI109: 1 | DK109: 1.250801152 | DL109: $ha$1 | DM109: ha | DN109: 1 | DP109: 4.086367362 | DQ109: $Hf$1 | DR109: Hf | DS109: 1
A110: Data entry lables | D110: Subgroup Labels | L110: X Chart data | R110: R Chart data | W110: Rule 1 X | Y110: Rule 1 R | AA110: Rule 2 X upper | AC110: Rule 2 X lower | AE110: Rule 2 R upper | AG110: Rule 2 R lower | AJ110: Rule 3 X | AL110: Rule 3 R | AO110: Rule 4 X | AQ110: Rule 4 R | AT110: Rule 5 X upper | AU110: Rule 5 X lower | AV110: Rule 5 R | AX110: Rule 6 X upper | AY110: Rule 6 X lower | AZ110: Rule 6 R | BB110: Rule 7 X Upper | BD110: Rule 7 X lower | BF110: Rule 7 R | BI110: Rule 8 X Upper | BK110: Rule 8 X lower | BM110: Rule 8 R
B111: =IF($B$1=1,"Individuals Chart","X Bar Chart") -> Individuals Chart | C111: =IF($B$1=1,D111,IF($B$1=2,E111,IF($B$1=3,F111,IF($B$1=4,G111,IF($B$1=5,H111,IF($B$1=6,I111,"?")))))) -> 1 | D111: 1 | E111: 1 | F111: 1 | G111: 1 | H111: 1 | I111: 1 | M111: g | N111: =$B$1 -> 1 | O111: =INDIRECT(CONCATENATE(L111,M111,N111)) -> 52.195965 | R111: d | S111: e | T111: =$B$1 -> 1 | U111: =INDIRECT(CONCATENATE(R111,S111,T111)) -> 0 | W111: =IF(COUNTBLANK(O111)<1,IF(O111>$B$13,1,""),"") ->  | X111: =IF(COUNTBLANK(O111)<1,IF(O111<$B$14,1,""),"") ->  | Y111: =IF(COUNTBLANK(U111)<1,IF(U111>$B$15,1,""),"") ->  | AA111: =IF(COUNTBLANK(O111)<1,IF(O111>$M$10,1,""),"") ->  | AC111: =IF(COUNTBLANK(O111)<1,IF(O111<$M$10,1,""),"") -> 1 | AE111: =IF(COUNTBLANK(U111)<1,IF(U111>$B$10,1,""),"") ->  | AG111: =IF(COUNTBLANK(U111)<1,IF(U111<$B$10,1,""),"") -> 1 | AT111: =IF(COUNTBLANK(O111)<1,IF(O111>$B$33,1,""),"") ->  | AU111: =IF(COUNTBLANK(O111)<1,IF(O111<$B$34,1,""),"") ->  | AV111: =IF(COUNTBLANK(U111)<1,IF(U111>$B$35,1,""),"") ->  | AX111: =IF(COUNTBLANK(O111)<1,IF(O111>$B$36,1,""),"") ->  | AY111: =IF(COUNTBLANK(O111)<1,IF(O111<$B$37,1,""),"") ->  | AZ111: =IF(COUNTBLANK(U111)<1,IF(U111>$B$38,1,""),"") ->  | BB111: =IF(COUNTBLANK(O111)<1,IF(O111<$B$36,IF(O111>$B$9,1,""),""),"") ->  | BD111: =IF(COUNTBLANK(O111)<1,IF(O111>$B$37,IF(O111<$B$9,1,""),""),"") -> 1 | BF111: =IF(COUNTBLANK(U111)<1,IF(U111<$B$38,IF(U111>$B$10,1,""),""),"") ->  | BI111: =IF(COUNTBLANK(O111)<1,IF(O111>$B$36,1,""),"") ->  | BK111: =IF(COUNTBLANK(O111)<1,IF(O111<$B$37,1,""),"") ->  | BM111: =IF(COUNTBLANK(U111)<1,IF(U111>$B$38,1,""),"") -> 
B112: =IF($B$1=1,"Moving Range Chart","Range Chart") -> Moving Range Chart | C112: =IF($B$1=1,D112,IF($B$1=2,E112,IF($B$1=3,F112,IF($B$1=4,G112,IF($B$1=5,H112,IF($B$1=6,I112,"?")))))) -> 2 | D112: 2 | E112: 1 | F112: 1 | G112: 1 | H112: 1 | I112: 1 | M112: h | N112: =$B$1 -> 1 | O112: =INDIRECT(CONCATENATE(L112,M112,N112)) -> 51.720496 | R112: d | S112: f | T112: =$B$1 -> 1 | U112: 0.475469 | W112: =IF(COUNTBLANK(O112)<1,IF(O112>$B$13,1,""),"") ->  | X112: =IF(COUNTBLANK(O112)<1,IF(O112<$B$14,1,""),"") ->  | Y112: =IF(COUNTBLANK(U112)<1,IF(U112>$B$15,1,""),"") ->  | AA112: =IF(COUNTBLANK(O112)<1,IF(O112>$M$10,1,""),"") ->  | AC112: =IF(COUNTBLANK(O112)<1,IF(O112<$M$10,1,""),"") -> 1 | AE112: =IF(COUNTBLANK(U112)<1,IF(U112>$B$10,1,""),"") ->  | AG112: =IF(COUNTBLANK(U112)<1,IF(U112<$B$10,1,""),"") -> 1 | AJ112: =IF(COUNTBLANK(O112)<1,IF((O112-O111)<0,-1,IF((O112-O111)>0,1,"")),"") -> -1 | AL112: =IF(COUNTBLANK(U112)<1,IF((U112-U111)<0,-1,IF((U112-U111)>0,1,"")),"") -> 1 | AO112: =IF(COUNTBLANK(O112)<1,IF((O111-O112)<0,-1,IF((O111-O112)>0,1,"")),"") -> 1 | AQ112: =IF(COUNTBLANK(U112)<1,IF((U111-U112)<0,-1,IF((U111-U112)>0,1,"")),"") -> -1 | AT112: =IF(COUNTBLANK(O112)<1,IF(O112>$B$33,1,""),"") ->  | AU112: =IF(COUNTBLANK(O112)<1,IF(O112<$B$34,1,""),"") ->  | AV112: =IF(COUNTBLANK(U112)<1,IF(U112>$B$35,1,""),"") ->  | AX112: =IF(COUNTBLANK(O112)<1,IF(O112>$B$36,1,""),"") ->  | AY112: =IF(COUNTBLANK(O112)<1,IF(O112<$B$37,1,""),"") ->  | AZ112: =IF(COUNTBLANK(U112)<1,IF(U112>$B$38,1,""),"") ->  | BB112: =IF(COUNTBLANK(O112)<1,IF(O112<$B$36,IF(O112>$B$9,1,""),""),"") ->  | BD112: =IF(COUNTBLANK(O112)<1,IF(O112>$B$37,IF(O112<$B$9,1,""),""),"") -> 1 | BF112: =IF(COUNTBLANK(U112)<1,IF(U112<$B$38,IF(U112>$B$10,1,""),""),"") ->  | BI112: =IF(COUNTBLANK(O112)<1,IF(O112>$B$36,1,""),"") ->  | BK112: =IF(COUNTBLANK(O112)<1,IF(O112<$B$37,1,""),"") ->  | BM112: =IF(COUNTBLANK(U112)<1,IF(U112>$B$38,1,""),"") -> 
B113: =IF($B$1>6,"Sub Groups of 1 through 6 only!","") ->  | C113: 3 | D113: 3 | E113: =E111+1 -> 2 | F113: 1 | G113: 1 | H113: 1 | I113: 1 | M113: I | N113: 1 | O113: 52.589621 | R113: d | S113: g | T113: 1 | U113: 0.869125 | AA113: 1 | AG113: 1 | AJ113: =IF(COUNTBLANK(O113)<1,IF((O113-O112)<0,-1,IF((O113-O112)>0,1,"")),"") -> 1 | AL113: =IF(COUNTBLANK(U113)<1,IF((U113-U112)<0,-1,IF((U113-U112)>0,1,"")),"") -> 1 | AO113: =IF(COUNTBLANK(O113)<1,IF((O112-O113)<0,-1,IF((O112-O113)>0,1,"")),"") -> -1 | AQ113: =IF(COUNTBLANK(U113)<1,IF((U112-U113)<0,-1,IF((U112-U113)>0,1,"")),"") -> -1 | BB113: 1
B114: =IF(B1=1,"I MR Chart Limits","X Bar R Chart Limits") -> I MR Chart Limits | C114: 4 | D114: 4 | E114: =E112+1 -> 2 | F114: =F111+1 -> 2 | G114: 1 | H114: 1 | I114: 1 | M114: j | N114: 1 | O114: 52.83495 | R114: d | S114: h | T114: 1 | U114: 0.245329 | AA114: 1 | AG114: 1 | AJ114: 1 | AL114: -1 | AO114: -1 | AQ114: 1 | BB114: 1
C115: 5 | D115: 5 | E115: 3 | F115: =F112+1 -> 2 | G115: =G111+1 -> 2 | H115: 1 | I115: 1 | M115: k | N115: 1 | O115: 52.713011 | R115: d | S115: I | T115: 1 | U115: 0.121939 | AA115: 1 | AG115: 1 | AJ115: -1 | AL115: -1 | AO115: 1 | AQ115: 1 | BB115: 1
C116: 6 | D116: 6 | E116: 3 | F116: 2 | G116: =G112+1 -> 2 | H116: =H111+1 -> 2 | I116: 1 | M116: l | N116: 1 | O116: 52.757413 | R116: d | S116: j | T116: 1 | U116: 0.044402 | AA116: 1 | AG116: 1 | AJ116: 1 | AK116: =IF(ABS(SUM(AJ111:AJ116))=6,1,"") ->  | AL116: -1 | AM116: =IF(ABS(SUM(AL111:AL116))=6,1,"") ->  | AO116: -1 | AQ116: 1 | BB116: 1
C117: 7 | D117: 7 | E117: 4 | F117: 3 | G117: 2 | H117: =H112+1 -> 2 | I117: =I111+1 -> 2 | M117: m | N117: 1 | O117: 51.485971 | R117: d | S117: k | T117: 1 | U117: 1.271442 | AC117: 1 | AE117: 1 | AJ117: -1 | AK117: =IF(ABS(SUM(AJ112:AJ117))=6,1,"") ->  | AL117: 1 | AM117: =IF(ABS(SUM(AL112:AL117))=6,1,"") ->  | AO117: 1 | AQ117: -1 | BD117: 1 | BF117: 1
C118: 8 | D118: 8 | E118: 4 | F118: 3 | G118: 2 | H118: 2 | I118: =I112+1 -> 2 | M118: n | N118: 1 | O118: 51.309217 | R118: d | S118: l | T118: 1 | U118: 0.176754 | AC118: 1 | AG118: 1 | AJ118: -1 | AL118: -1 | AO118: 1 | AQ118: 1 | BD118: 1 | BJ118: =IF(COUNTBLANK(O118)<1,IF(SUM(BI111:BI118)>8,1,""),"") ->  | BL118: =IF(COUNTBLANK(O118)<1,IF(SUM(BK111:BK118)>8,1,""),"") ->  | BN118: =IF(COUNTBLANK(U118)<1,IF(SUM(BM111:BM118)>8,1,""),"") -> 
C119: 9 | D119: 9 | E119: 5 | F119: 3 | G119: 3 | H119: 2 | I119: 2 | M119: o | N119: 1 | O119: 52.146637 | R119: d | S119: m | T119: 1 | U119: 0.83742 | AB119: =IF(SUM(AA111:AA119)>8,1,"") ->  | AC119: 1 | AD119: =IF(SUM(AC111:AC119)>8,1,"") ->  | AF119: =IF(SUM(AE111:AE119)>8,1,"") ->  | AG119: 1 | AH119: =IF(SUM(AG111:AG119)>8,1,"") ->  | AJ119: 1 | AL119: 1 | AO119: -1 | AQ119: -1 | BD119: 1 | BJ119: =IF(COUNTBLANK(O119)<1,IF(SUM(BI112:BI119)>8,1,""),"") ->  | BL119: =IF(COUNTBLANK(O119)<1,IF(SUM(BK112:BK119)>8,1,""),"") ->  | BN119: =IF(COUNTBLANK(U119)<1,IF(SUM(BM112:BM119)>8,1,""),"") -> 
C120: 10 | D120: 10 | E120: 5 | F120: 4 | G120: 3 | H120: 2 | I120: 2 | M120: p | N120: 1 | O120: 51.676681 | R120: d | S120: n | T120: 1 | U120: 0.469956 | AC120: 1 | AD120: =IF(SUM(AC112:AC120)>8,1,"") ->  | AG120: 1 | AH120: =IF(SUM(AG112:AG120)>8,1,"") ->  | AJ120: -1 | AL120: -1 | AO120: 1 | AQ120: 1 | BD120: 1
